Workbook

Sheet ACCUEIL
F7: 2020-06-28
E21: Date des Données :
E23: Clients | F23: Particuliers | G23: Fin Avril
F24: Pros | G24: Fin Avril
F25: Premium | G25: Fin Avril
E27: Edoc et Opt'in | G27: Fin Avril
E28: SED | G28: 2020-06-28
E29: Remises commerciales | G29: Fin Mai
E31: QHD | G31: Fin Avril
E33: Base PNB réel | G33: Fin Avril
E35: Données Hebdo | G35: 2020-06-28
E36: CA UC + Arbitrage | G36: 2020-06-21
E38: ETP | G38: Fin Mai

Sheet Accueilagence
A1: Accueil
E7: =ACCUEIL!F7 -> 2020-06-28

Sheet Accueilsecteur
A1: Accueil
E7: =ACCUEIL!F7 -> 2020-06-28

Sheet AccueilDircom
A1: Accueil
E7: =ACCUEIL!F7 -> 2020-06-28

Sheet DC_FICHE
A1: Accueil
A2: BAROMETRE BDD
A4: UNITE: | B4: DIRECTION REGIONALE | E4: ETP perf : | F4: =VLOOKUP(A5,'RECAP DIRCOM'!$G$6:$I$12,3,FALSE) -> 258.16
A5: =VLOOKUP(B5,LISTES!$M$6:$N$12,2,FALSE) -> 262 | B5: BAS-RHIN
C6: Coefficient du critére | E6: Résultats | I6: Ecart au 1ier | M6: Evolution | O6: Rang
E7: du 1ier | G7: DIRECTION | I7: Du mois | K7: Au 31/12/2019
A9: RANG au CLASSEMENT GENERAL | K9: =VLOOKUP($A$5,'RECAP DIRCOM AN'!$G$6:$FS$312,168,FALSE) -> 6 | M9: =+K9-O9 -> 0 | O9: =VLOOKUP($A$5,'RECAP DIRCOM'!$G$6:$FS$312,168,FALSE) -> 6
A11: CRITERE CLIENTS | C11: 15% | O11: =VLOOKUP($A$5,'RECAP DIRCOM'!$G$6:$FS$312,23,FALSE) -> 6
B12: PNB Evolution nette Clients BP | C12: 4% | E12: ='RECAP DIRCOM'!K4 -> -1.0 | G12: =VLOOKUP($A$5,'RECAP DIRCOM'!$G$6:$FS$312,6,FALSE) -> -2.3 | I12: =VLOOKUP($A$5,'RECAP DIRCOM'!$G$6:$FS$312,7,FALSE) -> 86% | K12: =VLOOKUP($A$5,'RECAP DIRCOM AN'!$G$6:$FS$312,7,FALSE) -> 130% | M12: =+K12-I12 -> 44% | O12: =VLOOKUP($A$5,'RECAP DIRCOM'!$G$6:$FS$312,8,FALSE) -> 6
B13: PNB Evolution nette Clients PREMIUM | C13: 5% | E13: ='RECAP DIRCOM'!O4 -> 0.7 | G13: =VLOOKUP($A$5,'RECAP DIRCOM'!$G$6:$FS$312,10,FALSE) -> 0.3 | I13: =VLOOKUP($A$5,'RECAP DIRCOM'!$G$6:$FS$312,11,FALSE) -> 53% | K13: =VLOOKUP($A$5,'RECAP DIRCOM AN'!$G$6:$FS$312,11,FALSE) -> 1% | M13: =+K13-I13 -> -53% | O13: =VLOOKUP($A$5,'RECAP DIRCOM'!$G$6:$FS$312,12,FALSE) -> 7
B14: PNB Evolution nette Clients Jeunes Equipés | C14: 3% | E14: ='RECAP DIRCOM'!S4 -> -0.4 | G14: =VLOOKUP($A$5,'RECAP DIRCOM'!$G$6:$FS$312,14,FALSE) -> -0.6 | I14: =VLOOKUP($A$5,'RECAP DIRCOM'!$G$6:$FS$312,15,FALSE) -> 62% | K14: =VLOOKUP($A$5,'RECAP DIRCOM AN'!$G$6:$FS$312,15,FALSE) -> 69% | M14: =+K14-I14 -> 7% | O14: =VLOOKUP($A$5,'RECAP DIRCOM'!$G$6:$FS$312,16,FALSE) -> 4
B15: PNB Evolution nette Clients Pro Actifs Equipés | C15: 3% | E15: ='RECAP DIRCOM'!W4 -> 0.5 | G15: =VLOOKUP($A$5,'RECAP DIRCOM'!$G$6:$FS$312,18,FALSE) -> 0.1 | I15: =VLOOKUP($A$5,'RECAP DIRCOM'!$G$6:$FS$312,19,FALSE) -> 79% | K15: =VLOOKUP($A$5,'RECAP DIRCOM AN'!$G$6:$FS$312,19,FALSE) -> 0% | M15: =+K15-I15 -> -79% | O15: =VLOOKUP($A$5,'RECAP DIRCOM'!$G$6:$FS$312,20,FALSE) -> 7
A17: CRITERE BANCARISATION | C17: 15% | O17: =VLOOKUP($A$5,'RECAP DIRCOM'!$G$6:$FS$312,48,FALSE) -> 3
B18: PNB Ventes nettes forfaits | C18: 4% | E18: ='RECAP DIRCOM'!AJ4 -> 3.6 | G18: =VLOOKUP($A$5,'RECAP DIRCOM'!$G$6:$FS$312,31,FALSE) -> 1.9 | I18: =VLOOKUP($A$5,'RECAP DIRCOM'!$G$6:$FS$312,32,FALSE) -> 47% | K18: =VLOOKUP($A$5,'RECAP DIRCOM AN'!$G$6:$FS$312,32,FALSE) -> 126% | M18: =+K18-I18 -> 79% | O18: =VLOOKUP($A$5,'RECAP DIRCOM'!$G$6:$FS$312,33,FALSE) -> 4
B19: PNB Ventes nettes IZICARTES Débit Différé | C19: 4% | E19: ='RECAP DIRCOM'!AN4 -> 4.3 | G19: =VLOOKUP($A$5,'RECAP DIRCOM'!$G$6:$FS$312,35,FALSE) -> 3.9 | I19: =VLOOKUP($A$5,'RECAP DIRCOM'!$G$6:$FS$312,36,FALSE) -> 9% | K19: =VLOOKUP($A$5,'RECAP DIRCOM AN'!$G$6:$FS$312,36,FALSE) -> 0% | M19: =+K19-I19 -> -9% | O19: =VLOOKUP($A$5,'RECAP DIRCOM'!$G$6:$FS$312,37,FALSE) -> 3
B20: PNB Ventes nettes cartes HDG Débit Différé | C20: 4% | E20: ='RECAP DIRCOM'!AR4 -> 6.6 | G20: =VLOOKUP($A$5,'RECAP DIRCOM'!$G$6:$FS$312,39,FALSE) -> 6.6 | I20: =VLOOKUP($A$5,'RECAP DIRCOM'!$G$6:$FS$312,40,FALSE) -> 0% | K20: =VLOOKUP($A$5,'RECAP DIRCOM AN'!$G$6:$FS$312,40,FALSE) -> 0% | M20: =+K20-I20 -> 0% | O20: =VLOOKUP($A$5,'RECAP DIRCOM'!$G$6:$FS$312,41,FALSE) -> 1
B21: PNB Ventes nettes Forfaits Pro, Carte pro | C21: 3% | E21: ='RECAP DIRCOM'!AV4 -> 0.9 | G21: =VLOOKUP($A$5,'RECAP DIRCOM'!$G$6:$FS$312,43,FALSE) -> 0.3 | I21: =VLOOKUP($A$5,'RECAP DIRCOM'!$G$6:$FS$312,44,FALSE) -> 68% | K21: =VLOOKUP($A$5,'RECAP DIRCOM AN'!$G$6:$FS$312,44,FALSE) -> 44% | M21: =+K21-I21 -> -24% | O21: =VLOOKUP($A$5,'RECAP DIRCOM'!$G$6:$FS$312,45,FALSE) -> 5
A23: CRITERE EPARGNE | C23: 10% | O23: =VLOOKUP($A$5,'RECAP DIRCOM'!$G$6:$FS$312,69,FALSE) -> 3
B24: PNB Epargne Liquide | C24: 3% | E24: ='RECAP DIRCOM'!BI4 -> 7.4 | G24: =VLOOKUP($A$5,'RECAP DIRCOM'!$G$6:$FS$312,56,FALSE) -> 7.3 | I24: =VLOOKUP($A$5,'RECAP DIRCOM'!$G$6:$FS$312,57,FALSE) -> 1% | K24: =VLOOKUP($A$5,'RECAP DIRCOM AN'!$G$6:$FS$312,57,FALSE) -> 23% | M24: =+K24-I24 -> 22% | O24: =VLOOKUP($A$5,'RECAP DIRCOM'!$G$6:$FS$312,58,FALSE) -> 2
B25: PNB CA UC + arbitrage | C25: 4% | E25: ='RECAP DIRCOM'!BM4 -> 0.7 | G25: =VLOOKUP($A$5,'RECAP DIRCOM'!$G$6:$FS$312,60,FALSE) -> 0.7 | I25: =VLOOKUP($A$5,'RECAP DIRCOM'!$G$6:$FS$312,61,FALSE) -> 5% | K25: =VLOOKUP($A$5,'RECAP DIRCOM AN'!$G$6:$FS$312,61,FALSE) -> 0% | M25: =+K25-I25 -> -5% | O25: =VLOOKUP($A$5,'RECAP DIRCOM'!$G$6:$FS$312,62,FALSE) -> 3
B26: PNB Excédent assurance vie | C26: 3% | E26: ='RECAP DIRCOM'!BQ4 -> 0.5 | G26: =VLOOKUP($A$5,'RECAP DIRCOM'!$G$6:$FS$312,64,FALSE) -> -1.2 | I26: =VLOOKUP($A$5,'RECAP DIRCOM'!$G$6:$FS$312,65,FALSE) -> 74% | K26: =VLOOKUP($A$5,'RECAP DIRCOM AN'!$G$6:$FS$312,65,FALSE) -> 63% | M26: =+K26-I26 -> -11% | O26: =VLOOKUP($A$5,'RECAP DIRCOM'!$G$6:$FS$312,66,FALSE) -> 3
A28: CRITERE CREDITS | C28: 15% | O28: =VLOOKUP($A$5,'RECAP DIRCOM'!$G$6:$FS$312,102,FALSE) -> 5
B29: PNB crédit conso | C29: 4% | E29: ='RECAP DIRCOM'!CD4 -> 23.9 | G29: =VLOOKUP($A$5,'RECAP DIRCOM'!$G$6:$FS$312,77,FALSE) -> 18.1 | I29: =VLOOKUP($A$5,'RECAP DIRCOM'!$G$6:$FS$312,78,FALSE) -> 24% | K29: =VLOOKUP($A$5,'RECAP DIRCOM AN'!$G$6:$FS$312,78,FALSE) -> 29% | M29: =+K29-I29 -> 5% | O29: =VLOOKUP($A$5,'RECAP DIRCOM'!$G$6:$FS$312,79,FALSE) -> 6
B30: PNB ADE crédit conso | C30: 1% | E30: ='RECAP DIRCOM'!CH4 -> 5.5 | G30: =VLOOKUP($A$5,'RECAP DIRCOM'!$G$6:$FS$312,81,FALSE) -> 4.7 | I30: =VLOOKUP($A$5,'RECAP DIRCOM'!$G$6:$FS$312,82,FALSE) -> 14% | K30: =VLOOKUP($A$5,'RECAP DIRCOM AN'!$G$6:$FS$312,82,FALSE) -> 29% | M30: 15% | O30: =VLOOKUP($A$5,'RECAP DIRCOM'!$G$6:$FS$312,83,FALSE) -> 6
B31: PNB crédit immo | C31: 4% | E31: ='RECAP DIRCOM'!CL4 -> 39.1 | G31: =VLOOKUP($A$5,'RECAP DIRCOM'!$G$6:$FS$312,85,FALSE) -> 21.1 | I31: =VLOOKUP($A$5,'RECAP DIRCOM'!$G$6:$FS$312,86,FALSE) -> 46% | K31: =VLOOKUP($A$5,'RECAP DIRCOM AN'!$G$6:$FS$312,86,FALSE) -> 33% | M31: -12% | O31: =VLOOKUP($A$5,'RECAP DIRCOM'!$G$6:$FS$312,87,FALSE) -> 6
B32: PNB ADE crédit immo | C32: 2% | E32: ='RECAP DIRCOM'!CP4 -> 24.3 | G32: =VLOOKUP($A$5,'RECAP DIRCOM'!$G$6:$FS$312,89,FALSE) -> 12.6 | I32: =VLOOKUP($A$5,'RECAP DIRCOM'!$G$6:$FS$312,90,FALSE) -> 48% | K32: =VLOOKUP($A$5,'RECAP DIRCOM AN'!$G$6:$FS$312,90,FALSE) -> 47% | M32: -1% | O32: =VLOOKUP($A$5,'RECAP DIRCOM'!$G$6:$FS$312,91,FALSE) -> 5
B33: PNB SACCEF | C33: 2% | E33: ='RECAP DIRCOM'!CT4 -> 2.3 | G33: =VLOOKUP($A$5,'RECAP DIRCOM'!$G$6:$FS$312,93,FALSE) -> 1.3 | I33: =VLOOKUP($A$5,'RECAP DIRCOM'!$G$6:$FS$312,94,FALSE) -> 44% | K33: =VLOOKUP($A$5,'RECAP DIRCOM AN'!$G$6:$FS$312,94,FALSE) -> 36% | M33: -8% | O33: =VLOOKUP($A$5,'RECAP DIRCOM'!$G$6:$FS$312,95,FALSE) -> 4
B34: PNB Crédit MLT + Crédit Bail | C34: 2% | E34: ='RECAP DIRCOM'!CX4 -> 4.7 | G34: =VLOOKUP($A$5,'RECAP DIRCOM'!$G$6:$FS$312,97,FALSE) -> 3.1 | I34: =VLOOKUP($A$5,'RECAP DIRCOM'!$G$6:$FS$312,98,FALSE) -> 34% | K34: =VLOOKUP($A$5,'RECAP DIRCOM AN'!$G$6:$FS$312,98,FALSE) -> 0% | M34: -34% | O34: =VLOOKUP($A$5,'RECAP DIRCOM'!$G$6:$FS$312,99,FALSE) -> 4
A36: CRITERE IARD PREVOYANCE | C36: 15% | O36: =VLOOKUP($A$5,'RECAP DIRCOM'!$G$6:$FS$312,119,FALSE) -> 6
B37: PNB Ventes nettes IARD | C37: 9% | E37: ='RECAP DIRCOM'!DK4 -> 1.0 | G37: =VLOOKUP($A$5,'RECAP DIRCOM'!$G$6:$FS$312,110,FALSE) -> 0.5 | I37: =VLOOKUP($A$5,'RECAP DIRCOM'!$G$6:$FS$312,111,FALSE) -> 56% | K37: =VLOOKUP($A$5,'RECAP DIRCOM AN'!$G$6:$FS$312,111,FALSE) -> 69% | M37: =+K37-I37 -> 13% | O37: =VLOOKUP($A$5,'RECAP DIRCOM'!$G$6:$FS$312,112,FALSE) -> 6
B38: PNB Ventes nettes Prévoyance | C38: 6% | E38: ='RECAP DIRCOM'!DO4 -> 1.1 | G38: =VLOOKUP($A$5,'RECAP DIRCOM'!$G$6:$FS$312,114,FALSE) -> 0.8 | I38: =VLOOKUP($A$5,'RECAP DIRCOM'!$G$6:$FS$312,115,FALSE) -> 26% | K38: =VLOOKUP($A$5,'RECAP DIRCOM AN'!$G$6:$FS$312,115,FALSE) -> 42% | M38: =+K38-I38 -> 16% | O38: =VLOOKUP($A$5,'RECAP DIRCOM'!$G$6:$FS$312,116,FALSE) -> 3
A40: CRITERE ACCELERATEURS PNB | C40: 15% | O40: =VLOOKUP($A$5,'RECAP DIRCOM'!$G$6:$FS$312,144,FALSE) -> 2
B41: PNB Ventes brutes SED Finalisées | C41: 6% | E41: ='RECAP DIRCOM'!EB4 -> 0.3 | G41: =VLOOKUP($A$5,'RECAP DIRCOM'!$G$6:$FS$312,127,FALSE) -> 0.3 | I41: =VLOOKUP($A$5,'RECAP DIRCOM'!$G$6:$FS$312,128,FALSE) -> 20% | K41: =VLOOKUP($A$5,'RECAP DIRCOM AN'!$G$6:$FS$312,128,FALSE) -> 11% | M41: =+K41-I41 -> -9% | O41: =VLOOKUP($A$5,'RECAP DIRCOM'!$G$6:$FS$312,129,FALSE) -> 4
B42: PNB clients équipés E documents | C42: 3% | E42: ='RECAP DIRCOM'!EF4 -> 0.8 | G42: =VLOOKUP($A$5,'RECAP DIRCOM'!$G$6:$FS$312,131,FALSE) -> 0.7 | I42: =VLOOKUP($A$5,'RECAP DIRCOM'!$G$6:$FS$312,132,FALSE) -> 20% | K42: =VLOOKUP($A$5,'RECAP DIRCOM AN'!$G$6:$FS$312,132,FALSE) -> 0% | M42: =+K42-I42 -> -20% | O42: =VLOOKUP($A$5,'RECAP DIRCOM'!$G$6:$FS$312,133,FALSE) -> 3
B43: Economie opt'in | C43: 3% | E43: ='RECAP DIRCOM'!EJ4 -> 0.4 | G43: =VLOOKUP($A$5,'RECAP DIRCOM'!$G$6:$FS$312,135,FALSE) -> 0.4 | I43: =VLOOKUP($A$5,'RECAP DIRCOM'!$G$6:$FS$312,136,FALSE) -> 0% | K43: =VLOOKUP($A$5,'RECAP DIRCOM AN'!$G$6:$FS$312,136,FALSE) -> 2% | M43: =+K43-I43 -> 2% | O43: =VLOOKUP($A$5,'RECAP DIRCOM'!$G$6:$FS$312,137,FALSE) -> 1
B44: Remises commerciales | C44: 3% | E44: ='RECAP DIRCOM'!EN4 -> -1.2 | G44: =VLOOKUP($A$5,'RECAP DIRCOM'!$G$6:$FS$312,139,FALSE) -> -1.4 | I44: =VLOOKUP($A$5,'RECAP DIRCOM'!$G$6:$FS$312,140,FALSE) -> 18% | K44: =VLOOKUP($A$5,'RECAP DIRCOM AN'!$G$6:$FS$312,140,FALSE) -> 17% | M44: =+K44-I44 -> -1% | O44: =VLOOKUP($A$5,'RECAP DIRCOM'!$G$6:$FS$312,141,FALSE) -> 5
A46: CRITERE Qualité-Satisfaction Clients | C46: 15% | O46: =VLOOKUP($A$5,'RECAP DIRCOM'!$G$6:$FS$312,159,FALSE) -> 6
B47: Objectifs NPS* | C47: 8% | E47: ='RECAP DIRCOM'!FA4 -> -9 | G47: =VLOOKUP($A$5,'RECAP DIRCOM'!$G$6:$FS$312,151,FALSE) -> -21 | I47: =VLOOKUP($A$5,'RECAP DIRCOM'!$G$6:$FS$312,152,FALSE) -> 133% | K47: =VLOOKUP($A$5,'RECAP DIRCOM AN'!$G$6:$FS$312,152,FALSE) -> 150% | M47: =+K47-I47 -> 17% | O47: =VLOOKUP($A$5,'RECAP DIRCOM'!$G$6:$FS$312,153,FALSE) -> 6
B48: Enquête Qualité Haute Définition | C48: 7% | E48: ='RECAP DIRCOM'!FD4 -> 58% | G48: =VLOOKUP($A$5,'RECAP DIRCOM'!$G$6:$FS$312,154,FALSE) -> 40% | I48: =VLOOKUP($A$5,'RECAP DIRCOM'!$G$6:$FS$312,155,FALSE) -> 31% | K48: =VLOOKUP($A$5,'RECAP DIRCOM AN'!$G$6:$FS$312,155,FALSE) -> 8% | M48: =+K48-I48 -> -23% | O48: =VLOOKUP($A$5,'RECAP DIRCOM'!$G$6:$FS$312,156,FALSE) -> 6

Sheet DC_TOTAL
B1: Accueil | D1: BAROMETRE BDD - DIRECTIONS REGIONALES
D2: TOTAL GENERAL
D3: =ACCUEIL!F7 -> 2020-06-28
D7: TOTAL GENERAL | G7: Total Clients | J7: Total Bancarisation | M7: Total Epargne | P7: Total Crédits | S7: Total IARD Prévoyance | V7: Total Accélérateurs PNB | Y7: Total Qualité-Satisfaction Clients
E8: coef | F8: 100% | H8: coef | I8: ='RECAP DIRCOM'!$AC$4 -> 15% | K8: coef | L8: ='RECAP DIRCOM'!$BB$4 -> 15% | N8: coef | O8: ='RECAP DIRCOM'!$BW$4 -> 10% | Q8: coef | R8: ='RECAP DIRCOM'!$DD$4 -> 15% | T8: coef | U8: ='RECAP DIRCOM'!$DU$4 -> 15% | W8: coef | X8: ='RECAP DIRCOM'!$ET$4 -> 15% | Z8: coef | AA8: ='RECAP DIRCOM'!$FI$4 -> 15%
A9: eds | B9: Direction | C9: ="ETP perf "&DATEMAJ!$C$39 -> ETP perf au 31/05 | D9: Moyenne ecart au 1er | E9: % Ecart au 1er | F9: Rang CEGEE | G9: Moyenne ecart au 1er | H9: % Ecart au 1er | I9: Rang CEGEE | J9: Moyenne ecart au 1er | K9: % Ecart au 1er | L9: Rang CEGEE | M9: Moyenne ecart au 1er | N9: % Ecart au 1er | O9: Rang CEGEE | P9: Moyenne ecart au 1er | Q9: % Ecart au 1er | R9: Rang CEGEE | S9: Moyenne ecart au 1er | T9: % Ecart au 1er | U9: Rang CEGEE | V9: Moyenne ecart au 1er | W9: % Ecart au 1er | X9: Rang CEGEE | Y9: Moyenne ecart au 1er | Z9: % Ecart au 1er | AA9: Rang CEGEE
A10: 30 | B10: Marne-Ardennes | C10: 223 | D10: 2% | E10: 0% | F10: 1 | G10: 24% | H10: 0% | I10: 1 | J10: 12% | K10: 2% | L10: 2 | M10: 29% | N10: 17% | O10: 4 | P10: 7% | Q10: 0% | R10: 1 | S10: 5% | T10: 0% | U10: 1 | V10: 12% | W10: 0% | X10: 1 | Y10: 0% | Z10: 0% | AA10: 1
A11: 110 | B11: Meurthe et Moselle Meuse | C11: 229 | D11: 5% | E11: 3% | F11: 2 | G11: 34% | H11: 10% | I11: 3 | J11: 9% | K11: 0% | L11: 1 | M11: 12% | N11: 0% | O11: 1 | P11: 9% | Q11: 2% | R11: 2 | S11: 13% | T11: 8% | U11: 2 | V11: 17% | W11: 4% | X11: 3 | Y11: 12% | Z11: 12% | AA11: 2
A12: 50 | B12: Aube Haute Marne | C12: 125 | D12: 18% | E12: 16% | F12: 3 | G12: 26% | H12: 2% | I12: 2 | J12: 39% | K12: 30% | L12: 5 | M12: 36% | N12: 24% | O12: 6 | P12: 28% | Q12: 21% | R12: 4 | S12: 31% | T12: 26% | U12: 3 | V12: 24% | W12: 12% | X12: 4 | Y12: 16% | Z12: 16% | AA12: 3
A13: 80 | B13: Vosges | C13: 131 | D13: 22% | E13: 20% | F13: 4 | G13: 40% | H13: 16% | I13: 4 | J13: 34% | K13: 24% | L13: 4 | M13: 15% | N13: 3% | O13: 2 | P13: 37% | Q13: 29% | R13: 6 | S13: 37% | T13: 31% | U13: 5 | V13: 38% | W13: 25% | X13: 6 | Y13: 17% | Z13: 17% | AA13: 4
A14: 160 | B14: Moselle | C14: 266 | D14: 25% | E14: 23% | F14: 5 | G14: 43% | H14: 19% | I14: 5 | J14: 46% | K14: 36% | L14: 6 | M14: 34% | N14: 22% | O14: 5 | P14: 22% | Q14: 15% | R14: 3 | S14: 35% | T14: 30% | U14: 4 | V14: 28% | W14: 16% | X14: 5 | Y14: 38% | Z14: 38% | AA14: 5
A15: 262 | B15: Bas-Rhin | C15: 258 | D15: 34% | E15: 32% | F15: 6 | G15: 69% | H15: 45% | I15: 6 | J15: 29% | K15: 19% | L15: 3 | M15: 25% | N15: 12% | O15: 3 | P15: 37% | Q15: 29% | R15: 5 | S15: 44% | T15: 39% | U15: 6 | V15: 16% | W15: 3% | X15: 2 | Y15: 86% | Z15: 86% | AA15: 6
A16: 264 | B16: Haut-Rhin | C16: 157 | D16: 52% | E16: 50% | F16: 7 | G16: 86% | H16: 62% | I16: 7 | J16: 64% | K16: 55% | L16: 7 | M16: 50% | N16: 38% | O16: 7 | P16: 37% | Q16: 30% | R16: 7 | S16: 57% | T16: 52% | U16: 7 | V16: 42% | W16: 30% | X16: 7 | Y16: 93% | Z16: 93% | AA16: 7
B17: Total CEGEE Directions Régionales | C17: =SUM(C10:C16) -> 1390

Sheet DC_BANCA
B1: Accueil | D1: BAROMETRE BDD - DIRECTIONS REGIONALES
D2: BANCARISATION
D3: =ACCUEIL!F7 -> 2020-06-28
D7: Ventes nettes FORFAITS | H7: Ventes nettes IZICARTES débit différé | L7: Ventes nettes Cartes HDG débit différé | P7: Ventes nettes Forfaits Pro Cartes Pro | T7: Total Bancarisation
D8: =DATEMAJ!C12 -> au 28/06 | F8: coef | G8: ='RECAP DIRCOM'!AM4 -> 4% | H8: =DATEMAJ!C13 -> au 28/06 | J8: coef | K8: ='RECAP DIRCOM'!AQ4 -> 4% | L8: =DATEMAJ!C14 -> au 28/06 | N8: coef | O8: ='RECAP DIRCOM'!AU4 -> 4% | P8: =DATEMAJ!C15 -> au 28/06 | R8: coef | S8: ='RECAP DIRCOM'!AY4 -> 3% | U8: coef | V8: ='RECAP DIRCOM'!BB4 -> 15%
B9: Direction | C9: ="ETP perf "&DATEMAJ!$C$39 -> ETP perf au 31/05 | D9: Nb / ETP | E9: PNB / ETP | F9: % Ecart au 1er | G9: Rang | H9: Nb / ETP | I9: PNB / ETP | J9: % Ecart au 1er | K9: Rang | L9: Nb / ETP | M9: PNB / ETP | N9: % Ecart au 1er | O9: Rang | P9: Nb / ETP | Q9: PNB / ETP | R9: % Ecart au 1er | S9: Rang | T9: Moyenne ecart au 1er | U9: % Ecart au 1er | V9: Rang CEGEE
A10: 50 | B10: Aube Haute Marne | C10: =VLOOKUP($A10,'RECAP DIRCOM'!$G$6:$FJ$12,3,FALSE) -> 125 | D10: =VLOOKUP($A10,'RECAP DIRCOM'!$G$6:$FJ$12,30,FALSE) -> 2.74 | E10: =VLOOKUP($A10,'RECAP DIRCOM'!$G$6:$FJ$12,31,FALSE) -> 1.14 | F10: =VLOOKUP($A10,'RECAP DIRCOM'!$G$6:$FJ$12,32,FALSE) -> 68% | G10: =VLOOKUP($A10,'RECAP DIRCOM'!$G$6:$FJ$12,33,FALSE) -> 6 | H10: =VLOOKUP($A10,'RECAP DIRCOM'!$G$6:$FJ$12,34,FALSE) -> 4.46 | I10: =VLOOKUP($A10,'RECAP DIRCOM'!$G$6:$FJ$12,35,FALSE) -> 2.71 | J10: =VLOOKUP($A10,'RECAP DIRCOM'!$G$6:$FJ$12,36,FALSE) -> 37% | K10: =VLOOKUP($A10,'RECAP DIRCOM'!$G$6:$FJ$12,37,FALSE) -> 6 | L10: =VLOOKUP($A10,'RECAP DIRCOM'!$G$6:$FJ$12,38,FALSE) -> 5.58 | M10: =VLOOKUP($A10,'RECAP DIRCOM'!$G$6:$FJ$12,39,FALSE) -> 3.76 | N10: =VLOOKUP($A10,'RECAP DIRCOM'!$G$6:$FJ$12,40,FALSE) -> 43% | O10: =VLOOKUP($A10,'RECAP DIRCOM'!$G$6:$FJ$12,41,FALSE) -> 7 | P10: =VLOOKUP($A10,'RECAP DIRCOM'!$G$6:$FJ$12,42,FALSE) -> 1.55 | Q10: =VLOOKUP($A10,'RECAP DIRCOM'!$G$6:$FJ$12,43,FALSE) -> 0.92 | R10: =VLOOKUP($A10,'RECAP DIRCOM'!$G$6:$FJ$12,44,FALSE) -> 0% | S10: =VLOOKUP($A10,'RECAP DIRCOM'!$G$6:$FJ$12,45,FALSE) -> 1 | T10: =VLOOKUP($A10,'RECAP DIRCOM'!$G$6:$FJ$12,46,FALSE) -> 39% | U10: =VLOOKUP($A10,'RECAP DIRCOM'!$G$6:$FJ$12,47,FALSE) -> 30% | V10: =VLOOKUP($A10,'RECAP DIRCOM'!$G$6:$FJ$12,48,FALSE) -> 5
A11: 262 | B11: Bas-Rhin | C11: =VLOOKUP($A11,'RECAP DIRCOM'!$G$6:$FJ$12,3,FALSE) -> 258 | D11: =VLOOKUP($A11,'RECAP DIRCOM'!$G$6:$FJ$12,30,FALSE) -> 5.00 | E11: =VLOOKUP($A11,'RECAP DIRCOM'!$G$6:$FJ$12,31,FALSE) -> 1.88 | F11: =VLOOKUP($A11,'RECAP DIRCOM'!$G$6:$FJ$12,32,FALSE) -> 47% | G11: =VLOOKUP($A11,'RECAP DIRCOM'!$G$6:$FJ$12,33,FALSE) -> 4 | H11: =VLOOKUP($A11,'RECAP DIRCOM'!$G$6:$FJ$12,34,FALSE) -> 5.85 | I11: =VLOOKUP($A11,'RECAP DIRCOM'!$G$6:$FJ$12,35,FALSE) -> 3.91 | J11: =VLOOKUP($A11,'RECAP DIRCOM'!$G$6:$FJ$12,36,FALSE) -> 9% | K11: =VLOOKUP($A11,'RECAP DIRCOM'!$G$6:$FJ$12,37,FALSE) -> 3 | L11: =VLOOKUP($A11,'RECAP DIRCOM'!$G$6:$FJ$12,38,FALSE) -> 9.83 | M11: =VLOOKUP($A11,'RECAP DIRCOM'!$G$6:$FJ$12,39,FALSE) -> 6.55 | N11: =VLOOKUP($A11,'RECAP DIRCOM'!$G$6:$FJ$12,40,FALSE) -> 0% | O11: =VLOOKUP($A11,'RECAP DIRCOM'!$G$6:$FJ$12,41,FALSE) -> 1 | P11: =VLOOKUP($A11,'RECAP DIRCOM'!$G$6:$FJ$12,42,FALSE) -> 0.56 | Q11: =VLOOKUP($A11,'RECAP DIRCOM'!$G$6:$FJ$12,43,FALSE) -> 0.29 | R11: =VLOOKUP($A11,'RECAP DIRCOM'!$G$6:$FJ$12,44,FALSE) -> 68% | S11: =VLOOKUP($A11,'RECAP DIRCOM'!$G$6:$FJ$12,45,FALSE) -> 5 | T11: =VLOOKUP($A11,'RECAP DIRCOM'!$G$6:$FJ$12,46,FALSE) -> 29% | U11: =VLOOKUP($A11,'RECAP DIRCOM'!$G$6:$FJ$12,47,FALSE) -> 19% | V11: =VLOOKUP($A11,'RECAP DIRCOM'!$G$6:$FJ$12,48,FALSE) -> 3
A12: 264 | B12: Haut-Rhin | C12: =VLOOKUP($A12,'RECAP DIRCOM'!$G$6:$FJ$12,3,FALSE) -> 157 | D12: =VLOOKUP($A12,'RECAP DIRCOM'!$G$6:$FJ$12,30,FALSE) -> 0.54 | E12: =VLOOKUP($A12,'RECAP DIRCOM'!$G$6:$FJ$12,31,FALSE) -> 0.13 | F12: =VLOOKUP($A12,'RECAP DIRCOM'!$G$6:$FJ$12,32,FALSE) -> 96% | G12: =VLOOKUP($A12,'RECAP DIRCOM'!$G$6:$FJ$12,33,FALSE) -> 7 | H12: =VLOOKUP($A12,'RECAP DIRCOM'!$G$6:$FJ$12,34,FALSE) -> 3.26 | I12: =VLOOKUP($A12,'RECAP DIRCOM'!$G$6:$FJ$12,35,FALSE) -> 2.33 | J12: =VLOOKUP($A12,'RECAP DIRCOM'!$G$6:$FJ$12,36,FALSE) -> 46% | K12: =VLOOKUP($A12,'RECAP DIRCOM'!$G$6:$FJ$12,37,FALSE) -> 7 | L12: =VLOOKUP($A12,'RECAP DIRCOM'!$G$6:$FJ$12,38,FALSE) -> 5.83 | M12: =VLOOKUP($A12,'RECAP DIRCOM'!$G$6:$FJ$12,39,FALSE) -> 4.10 | N12: =VLOOKUP($A12,'RECAP DIRCOM'!$G$6:$FJ$12,40,FALSE) -> 37% | O12: =VLOOKUP($A12,'RECAP DIRCOM'!$G$6:$FJ$12,41,FALSE) -> 6 | P12: =VLOOKUP($A12,'RECAP DIRCOM'!$G$6:$FJ$12,42,FALSE) -> 0.54 | Q12: =VLOOKUP($A12,'RECAP DIRCOM'!$G$6:$FJ$12,43,FALSE) -> 0.18 | R12: =VLOOKUP($A12,'RECAP DIRCOM'!$G$6:$FJ$12,44,FALSE) -> 81% | S12: =VLOOKUP($A12,'RECAP DIRCOM'!$G$6:$FJ$12,45,FALSE) -> 6 | T12: =VLOOKUP($A12,'RECAP DIRCOM'!$G$6:$FJ$12,46,FALSE) -> 64% | U12: =VLOOKUP($A12,'RECAP DIRCOM'!$G$6:$FJ$12,47,FALSE) -> 55% | V12: =VLOOKUP($A12,'RECAP DIRCOM'!$G$6:$FJ$12,48,FALSE) -> 7
A13: 30 | B13: Marne-Ardennes | C13: =VLOOKUP($A13,'RECAP DIRCOM'!$G$6:$FJ$12,3,FALSE) -> 223 | D13: =VLOOKUP($A13,'RECAP DIRCOM'!$G$6:$FJ$12,30,FALSE) -> 6.98 | E13: =VLOOKUP($A13,'RECAP DIRCOM'!$G$6:$FJ$12,31,FALSE) -> 3.57 | F13: =VLOOKUP($A13,'RECAP DIRCOM'!$G$6:$FJ$12,32,FALSE) -> 0% | G13: =VLOOKUP($A13,'RECAP DIRCOM'!$G$6:$FJ$12,33,FALSE) -> 1 | H13: =VLOOKUP($A13,'RECAP DIRCOM'!$G$6:$FJ$12,34,FALSE) -> 5.92 | I13: =VLOOKUP($A13,'RECAP DIRCOM'!$G$6:$FJ$12,35,FALSE) -> 3.97 | J13: =VLOOKUP($A13,'RECAP DIRCOM'!$G$6:$FJ$12,36,FALSE) -> 8% | K13: =VLOOKUP($A13,'RECAP DIRCOM'!$G$6:$FJ$12,37,FALSE) -> 2 | L13: =VLOOKUP($A13,'RECAP DIRCOM'!$G$6:$FJ$12,38,FALSE) -> 7.57 | M13: =VLOOKUP($A13,'RECAP DIRCOM'!$G$6:$FJ$12,39,FALSE) -> 5.17 | N13: =VLOOKUP($A13,'RECAP DIRCOM'!$G$6:$FJ$12,40,FALSE) -> 21% | O13: =VLOOKUP($A13,'RECAP DIRCOM'!$G$6:$FJ$12,41,FALSE) -> 4 | P13: =VLOOKUP($A13,'RECAP DIRCOM'!$G$6:$FJ$12,42,FALSE) -> 1.12 | Q13: =VLOOKUP($A13,'RECAP DIRCOM'!$G$6:$FJ$12,43,FALSE) -> 0.74 | R13: =VLOOKUP($A13,'RECAP DIRCOM'!$G$6:$FJ$12,44,FALSE) -> 20% | S13: =VLOOKUP($A13,'RECAP DIRCOM'!$G$6:$FJ$12,45,FALSE) -> 2 | T13: =VLOOKUP($A13,'RECAP DIRCOM'!$G$6:$FJ$12,46,FALSE) -> 12% | U13: =VLOOKUP($A13,'RECAP DIRCOM'!$G$6:$FJ$12,47,FALSE) -> 2% | V13: =VLOOKUP($A13,'RECAP DIRCOM'!$G$6:$FJ$12,48,FALSE) -> 2
A14: 110 | B14: Meurthe et Moselle Meuse | C14: =VLOOKUP($A14,'RECAP DIRCOM'!$G$6:$FJ$12,3,FALSE) -> 229 | D14: =VLOOKUP($A14,'RECAP DIRCOM'!$G$6:$FJ$12,30,FALSE) -> 7.03 | E14: =VLOOKUP($A14,'RECAP DIRCOM'!$G$6:$FJ$12,31,FALSE) -> 3.25 | F14: =VLOOKUP($A14,'RECAP DIRCOM'!$G$6:$FJ$12,32,FALSE) -> 9% | G14: =VLOOKUP($A14,'RECAP DIRCOM'!$G$6:$FJ$12,33,FALSE) -> 2 | H14: =VLOOKUP($A14,'RECAP DIRCOM'!$G$6:$FJ$12,34,FALSE) -> 6.62 | I14: =VLOOKUP($A14,'RECAP DIRCOM'!$G$6:$FJ$12,35,FALSE) -> 4.30 | J14: =VLOOKUP($A14,'RECAP DIRCOM'!$G$6:$FJ$12,36,FALSE) -> 0% | K14: =VLOOKUP($A14,'RECAP DIRCOM'!$G$6:$FJ$12,37,FALSE) -> 1 | L14: =VLOOKUP($A14,'RECAP DIRCOM'!$G$6:$FJ$12,38,FALSE) -> 9.08 | M14: =VLOOKUP($A14,'RECAP DIRCOM'!$G$6:$FJ$12,39,FALSE) -> 6.10 | N14: =VLOOKUP($A14,'RECAP DIRCOM'!$G$6:$FJ$12,40,FALSE) -> 7% | O14: =VLOOKUP($A14,'RECAP DIRCOM'!$G$6:$FJ$12,41,FALSE) -> 2 | P14: =VLOOKUP($A14,'RECAP DIRCOM'!$G$6:$FJ$12,42,FALSE) -> 1.07 | Q14: =VLOOKUP($A14,'RECAP DIRCOM'!$G$6:$FJ$12,43,FALSE) -> 0.68 | R14: =VLOOKUP($A14,'RECAP DIRCOM'!$G$6:$FJ$12,44,FALSE) -> 26% | S14: =VLOOKUP($A14,'RECAP DIRCOM'!$G$6:$FJ$12,45,FALSE) -> 3 | T14: =VLOOKUP($A14,'RECAP DIRCOM'!$G$6:$FJ$12,46,FALSE) -> 9% | U14: =VLOOKUP($A14,'RECAP DIRCOM'!$G$6:$FJ$12,47,FALSE) -> 0% | V14: =VLOOKUP($A14,'RECAP DIRCOM'!$G$6:$FJ$12,48,FALSE) -> 1
A15: 160 | B15: Moselle | C15: =VLOOKUP($A15,'RECAP DIRCOM'!$G$6:$FJ$12,3,FALSE) -> 266 | D15: =VLOOKUP($A15,'RECAP DIRCOM'!$G$6:$FJ$12,30,FALSE) -> 5.90 | E15: =VLOOKUP($A15,'RECAP DIRCOM'!$G$6:$FJ$12,31,FALSE) -> 3.09 | F15: =VLOOKUP($A15,'RECAP DIRCOM'!$G$6:$FJ$12,32,FALSE) -> 13% | G15: =VLOOKUP($A15,'RECAP DIRCOM'!$G$6:$FJ$12,33,FALSE) -> 3 | H15: =VLOOKUP($A15,'RECAP DIRCOM'!$G$6:$FJ$12,34,FALSE) -> 4.19 | I15: =VLOOKUP($A15,'RECAP DIRCOM'!$G$6:$FJ$12,35,FALSE) -> 2.86 | J15: =VLOOKUP($A15,'RECAP DIRCOM'!$G$6:$FJ$12,36,FALSE) -> 33% | K15: =VLOOKUP($A15,'RECAP DIRCOM'!$G$6:$FJ$12,37,FALSE) -> 5 | L15: =VLOOKUP($A15,'RECAP DIRCOM'!$G$6:$FJ$12,38,FALSE) -> 5.91 | M15: =VLOOKUP($A15,'RECAP DIRCOM'!$G$6:$FJ$12,39,FALSE) -> 4.15 | N15: =VLOOKUP($A15,'RECAP DIRCOM'!$G$6:$FJ$12,40,FALSE) -> 37% | O15: =VLOOKUP($A15,'RECAP DIRCOM'!$G$6:$FJ$12,41,FALSE) -> 5 | P15: =VLOOKUP($A15,'RECAP DIRCOM'!$G$6:$FJ$12,42,FALSE) -> 0.11 | Q15: =VLOOKUP($A15,'RECAP DIRCOM'!$G$6:$FJ$12,43,FALSE) -> -0.15 | R15: =VLOOKUP($A15,'RECAP DIRCOM'!$G$6:$FJ$12,44,FALSE) -> 116% | S15: =VLOOKUP($A15,'RECAP DIRCOM'!$G$6:$FJ$12,45,FALSE) -> 7 | T15: =VLOOKUP($A15,'RECAP DIRCOM'!$G$6:$FJ$12,46,FALSE) -> 46% | U15: =VLOOKUP($A15,'RECAP DIRCOM'!$G$6:$FJ$12,47,FALSE) -> 36% | V15: =VLOOKUP($A15,'RECAP DIRCOM'!$G$6:$FJ$12,48,FALSE) -> 6
A16: 80 | B16: Vosges | C16: =VLOOKUP($A16,'RECAP DIRCOM'!$G$6:$FJ$12,3,FALSE) -> 131 | D16: =VLOOKUP($A16,'RECAP DIRCOM'!$G$6:$FJ$12,30,FALSE) -> 4.87 | E16: =VLOOKUP($A16,'RECAP DIRCOM'!$G$6:$FJ$12,31,FALSE) -> 1.65 | F16: =VLOOKUP($A16,'RECAP DIRCOM'!$G$6:$FJ$12,32,FALSE) -> 54% | G16: =VLOOKUP($A16,'RECAP DIRCOM'!$G$6:$FJ$12,33,FALSE) -> 5 | H16: =VLOOKUP($A16,'RECAP DIRCOM'!$G$6:$FJ$12,34,FALSE) -> 4.76 | I16: =VLOOKUP($A16,'RECAP DIRCOM'!$G$6:$FJ$12,35,FALSE) -> 3.17 | J16: =VLOOKUP($A16,'RECAP DIRCOM'!$G$6:$FJ$12,36,FALSE) -> 26% | K16: =VLOOKUP($A16,'RECAP DIRCOM'!$G$6:$FJ$12,37,FALSE) -> 4 | L16: =VLOOKUP($A16,'RECAP DIRCOM'!$G$6:$FJ$12,38,FALSE) -> 7.92 | M16: =VLOOKUP($A16,'RECAP DIRCOM'!$G$6:$FJ$12,39,FALSE) -> 5.27 | N16: =VLOOKUP($A16,'RECAP DIRCOM'!$G$6:$FJ$12,40,FALSE) -> 20% | O16: =VLOOKUP($A16,'RECAP DIRCOM'!$G$6:$FJ$12,41,FALSE) -> 3 | P16: =VLOOKUP($A16,'RECAP DIRCOM'!$G$6:$FJ$12,42,FALSE) -> 0.95 | Q16: =VLOOKUP($A16,'RECAP DIRCOM'!$G$6:$FJ$12,43,FALSE) -> 0.59 | R16: =VLOOKUP($A16,'RECAP DIRCOM'!$G$6:$FJ$12,44,FALSE) -> 36% | S16: =VLOOKUP($A16,'RECAP DIRCOM'!$G$6:$FJ$12,45,FALSE) -> 4 | T16: =VLOOKUP($A16,'RECAP DIRCOM'!$G$6:$FJ$12,46,FALSE) -> 34% | U16: =VLOOKUP($A16,'RECAP DIRCOM'!$G$6:$FJ$12,47,FALSE) -> 24% | V16: =VLOOKUP($A16,'RECAP DIRCOM'!$G$6:$FJ$12,48,FALSE) -> 4
B17: Total CEGEE Directions Régionales | C17: =SUM(C10:C16) -> 1390

Sheet DC_EPARGNE
B1: Accueil | D1: BAROMETRE BDD - DIRECTIONS REGIONALES
D2: EPARGNE
D3: =ACCUEIL!F7 -> 2020-06-28
D7: Excédent Epargne Liquide | H7: CA UC + arbitrage | L7: Excédent Assurance Vie | P7: Total Epargne
D8: =DATEMAJ!C17 -> au 28/06 | F8: coef | G8: ='RECAP DIRCOM'!BL4 -> 3% | H8: =DATEMAJ!C18 -> au 21/06 | J8: coef | K8: ='RECAP DIRCOM'!BP4 -> 4% | L8: =DATEMAJ!C19 -> au 28/06 | N8: coef | O8: ='RECAP DIRCOM'!BT4 -> 3% | Q8: coef | R8: ='RECAP DIRCOM'!BW4 -> 10%
B9: Direction | C9: ="ETP perf "&DATEMAJ!$C$39 -> ETP perf au 31/05 | D9: Réal / ETP | E9: PNB / ETP | F9: % Ecart au 1er | G9: Rang | H9: Réal / ETP | I9: PNB / ETP | J9: % Ecart au 1er | K9: Rang | L9: Réal / ETP | M9: PNB / ETP | N9: % Ecart au 1er | O9: Rang | P9: Moyenne ecart au 1er | Q9: % Ecart au 1er | R9: Rang CEGEE
A10: 50 | B10: Aube Haute Marne | C10: =VLOOKUP($A10,'RECAP DIRCOM'!$G$6:$FJ$12,3,FALSE) -> 125 | D10: =VLOOKUP($A10,'RECAP DIRCOM'!$G$6:$FJ$12,55,FALSE) -> 242.15 | E10: =VLOOKUP($A10,'RECAP DIRCOM'!$G$6:$FJ$12,56,FALSE) -> 5.57 | F10: =VLOOKUP($A10,'RECAP DIRCOM'!$G$6:$FJ$12,57,FALSE) -> 24% | G10: =VLOOKUP($A10,'RECAP DIRCOM'!$G$6:$FJ$12,58,FALSE) -> 5 | H10: =VLOOKUP($A10,'RECAP DIRCOM'!$G$6:$FJ$12,59,FALSE) -> 85.52 | I10: =VLOOKUP($A10,'RECAP DIRCOM'!$G$6:$FJ$12,60,FALSE) -> 0.66 | J10: =VLOOKUP($A10,'RECAP DIRCOM'!$G$6:$FJ$12,61,FALSE) -> 9% | K10: =VLOOKUP($A10,'RECAP DIRCOM'!$G$6:$FJ$12,62,FALSE) -> 4 | L10: =VLOOKUP($A10,'RECAP DIRCOM'!$G$6:$FJ$12,63,FALSE) -> -37 | M10: =VLOOKUP($A10,'RECAP DIRCOM'!$G$6:$FJ$12,64,FALSE) -> -1.34 | N10: =VLOOKUP($A10,'RECAP DIRCOM'!$G$6:$FJ$12,65,FALSE) -> 82% | O10: =VLOOKUP($A10,'RECAP DIRCOM'!$G$6:$FJ$12,66,FALSE) -> 6 | P10: =VLOOKUP($A10,'RECAP DIRCOM'!$G$6:$FJ$12,67,FALSE) -> 36% | Q10: =VLOOKUP($A10,'RECAP DIRCOM'!$G$6:$FJ$12,68,FALSE) -> 24% | R10: =VLOOKUP($A10,'RECAP DIRCOM'!$G$6:$FJ$12,69,FALSE) -> 6
A11: 262 | B11: Bas-Rhin | C11: =VLOOKUP($A11,'RECAP DIRCOM'!$G$6:$FJ$12,3,FALSE) -> 258 | D11: =VLOOKUP($A11,'RECAP DIRCOM'!$G$6:$FJ$12,55,FALSE) -> 315.14 | E11: =VLOOKUP($A11,'RECAP DIRCOM'!$G$6:$FJ$12,56,FALSE) -> 7.30 | F11: =VLOOKUP($A11,'RECAP DIRCOM'!$G$6:$FJ$12,57,FALSE) -> 1% | G11: =VLOOKUP($A11,'RECAP DIRCOM'!$G$6:$FJ$12,58,FALSE) -> 2 | H11: =VLOOKUP($A11,'RECAP DIRCOM'!$G$6:$FJ$12,59,FALSE) -> 93.55 | I11: =VLOOKUP($A11,'RECAP DIRCOM'!$G$6:$FJ$12,60,FALSE) -> 0.70 | J11: =VLOOKUP($A11,'RECAP DIRCOM'!$G$6:$FJ$12,61,FALSE) -> 5% | K11: =VLOOKUP($A11,'RECAP DIRCOM'!$G$6:$FJ$12,62,FALSE) -> 3 | L11: =VLOOKUP($A11,'RECAP DIRCOM'!$G$6:$FJ$12,63,FALSE) -> -32 | M11: =VLOOKUP($A11,'RECAP DIRCOM'!$G$6:$FJ$12,64,FALSE) -> -1.16 | N11: =VLOOKUP($A11,'RECAP DIRCOM'!$G$6:$FJ$12,65,FALSE) -> 74% | O11: =VLOOKUP($A11,'RECAP DIRCOM'!$G$6:$FJ$12,66,FALSE) -> 3 | P11: =VLOOKUP($A11,'RECAP DIRCOM'!$G$6:$FJ$12,67,FALSE) -> 25% | Q11: =VLOOKUP($A11,'RECAP DIRCOM'!$G$6:$FJ$12,68,FALSE) -> 12% | R11: =VLOOKUP($A11,'RECAP DIRCOM'!$G$6:$FJ$12,69,FALSE) -> 3
A12: 264 | B12: Haut-Rhin | C12: =VLOOKUP($A12,'RECAP DIRCOM'!$G$6:$FJ$12,3,FALSE) -> 157 | D12: =VLOOKUP($A12,'RECAP DIRCOM'!$G$6:$FJ$12,55,FALSE) -> 283.32 | E12: =VLOOKUP($A12,'RECAP DIRCOM'!$G$6:$FJ$12,56,FALSE) -> 6.46 | F12: =VLOOKUP($A12,'RECAP DIRCOM'!$G$6:$FJ$12,57,FALSE) -> 12% | G12: =VLOOKUP($A12,'RECAP DIRCOM'!$G$6:$FJ$12,58,FALSE) -> 4 | H12: =VLOOKUP($A12,'RECAP DIRCOM'!$G$6:$FJ$12,59,FALSE) -> 81.92 | I12: =VLOOKUP($A12,'RECAP DIRCOM'!$G$6:$FJ$12,60,FALSE) -> 0.70 | J12: =VLOOKUP($A12,'RECAP DIRCOM'!$G$6:$FJ$12,61,FALSE) -> 4% | K12: =VLOOKUP($A12,'RECAP DIRCOM'!$G$6:$FJ$12,62,FALSE) -> 2 | L12: =VLOOKUP($A12,'RECAP DIRCOM'!$G$6:$FJ$12,63,FALSE) -> -79 | M12: =VLOOKUP($A12,'RECAP DIRCOM'!$G$6:$FJ$12,64,FALSE) -> -2.83 | N12: =VLOOKUP($A12,'RECAP DIRCOM'!$G$6:$FJ$12,65,FALSE) -> 150% | O12: =VLOOKUP($A12,'RECAP DIRCOM'!$G$6:$FJ$12,66,FALSE) -> 7 | P12: =VLOOKUP($A12,'RECAP DIRCOM'!$G$6:$FJ$12,67,FALSE) -> 50% | Q12: =VLOOKUP($A12,'RECAP DIRCOM'!$G$6:$FJ$12,68,FALSE) -> 38% | R12: =VLOOKUP($A12,'RECAP DIRCOM'!$G$6:$FJ$12,69,FALSE) -> 7
A13: 30 | B13: Marne-Ardennes | C13: =VLOOKUP($A13,'RECAP DIRCOM'!$G$6:$FJ$12,3,FALSE) -> 223 | D13: =VLOOKUP($A13,'RECAP DIRCOM'!$G$6:$FJ$12,55,FALSE) -> 317.71 | E13: =VLOOKUP($A13,'RECAP DIRCOM'!$G$6:$FJ$12,56,FALSE) -> 7.36 | F13: =VLOOKUP($A13,'RECAP DIRCOM'!$G$6:$FJ$12,57,FALSE) -> 0% | G13: =VLOOKUP($A13,'RECAP DIRCOM'!$G$6:$FJ$12,58,FALSE) -> 1 | H13: =VLOOKUP($A13,'RECAP DIRCOM'!$G$6:$FJ$12,59,FALSE) -> 91.34 | I13: =VLOOKUP($A13,'RECAP DIRCOM'!$G$6:$FJ$12,60,FALSE) -> 0.65 | J13: =VLOOKUP($A13,'RECAP DIRCOM'!$G$6:$FJ$12,61,FALSE) -> 12% | K13: =VLOOKUP($A13,'RECAP DIRCOM'!$G$6:$FJ$12,62,FALSE) -> 6 | L13: =VLOOKUP($A13,'RECAP DIRCOM'!$G$6:$FJ$12,63,FALSE) -> -37 | M13: =VLOOKUP($A13,'RECAP DIRCOM'!$G$6:$FJ$12,64,FALSE) -> -1.33 | N13: =VLOOKUP($A13,'RECAP DIRCOM'!$G$6:$FJ$12,65,FALSE) -> 82% | O13: =VLOOKUP($A13,'RECAP DIRCOM'!$G$6:$FJ$12,66,FALSE) -> 5 | P13: =VLOOKUP($A13,'RECAP DIRCOM'!$G$6:$FJ$12,67,FALSE) -> 29% | Q13: =VLOOKUP($A13,'RECAP DIRCOM'!$G$6:$FJ$12,68,FALSE) -> 17% | R13: =VLOOKUP($A13,'RECAP DIRCOM'!$G$6:$FJ$12,69,FALSE) -> 4
A14: 110 | B14: Meurthe et Moselle Meuse | C14: =VLOOKUP($A14,'RECAP DIRCOM'!$G$6:$FJ$12,3,FALSE) -> 229 | D14: =VLOOKUP($A14,'RECAP DIRCOM'!$G$6:$FJ$12,55,FALSE) -> 281.48 | E14: =VLOOKUP($A14,'RECAP DIRCOM'!$G$6:$FJ$12,56,FALSE) -> 6.51 | F14: =VLOOKUP($A14,'RECAP DIRCOM'!$G$6:$FJ$12,57,FALSE) -> 12% | G14: =VLOOKUP($A14,'RECAP DIRCOM'!$G$6:$FJ$12,58,FALSE) -> 3 | H14: =VLOOKUP($A14,'RECAP DIRCOM'!$G$6:$FJ$12,59,FALSE) -> 103.65 | I14: =VLOOKUP($A14,'RECAP DIRCOM'!$G$6:$FJ$12,60,FALSE) -> 0.73 | J14: =VLOOKUP($A14,'RECAP DIRCOM'!$G$6:$FJ$12,61,FALSE) -> 0% | K14: =VLOOKUP($A14,'RECAP DIRCOM'!$G$6:$FJ$12,62,FALSE) -> 1 | L14: =VLOOKUP($A14,'RECAP DIRCOM'!$G$6:$FJ$12,63,FALSE) -> -4 | M14: =VLOOKUP($A14,'RECAP DIRCOM'!$G$6:$FJ$12,64,FALSE) -> -0.16 | N14: =VLOOKUP($A14,'RECAP DIRCOM'!$G$6:$FJ$12,65,FALSE) -> 29% | O14: =VLOOKUP($A14,'RECAP DIRCOM'!$G$6:$FJ$12,66,FALSE) -> 2 | P14: =VLOOKUP($A14,'RECAP DIRCOM'!$G$6:$FJ$12,67,FALSE) -> 12% | Q14: =VLOOKUP($A14,'RECAP DIRCOM'!$G$6:$FJ$12,68,FALSE) -> 0% | R14: =VLOOKUP($A14,'RECAP DIRCOM'!$G$6:$FJ$12,69,FALSE) -> 1
A15: 160 | B15: Moselle | C15: =VLOOKUP($A15,'RECAP DIRCOM'!$G$6:$FJ$12,3,FALSE) -> 266 | D15: =VLOOKUP($A15,'RECAP DIRCOM'!$G$6:$FJ$12,55,FALSE) -> 243.76 | E15: =VLOOKUP($A15,'RECAP DIRCOM'!$G$6:$FJ$12,56,FALSE) -> 5.54 | F15: =VLOOKUP($A15,'RECAP DIRCOM'!$G$6:$FJ$12,57,FALSE) -> 25% | G15: =VLOOKUP($A15,'RECAP DIRCOM'!$G$6:$FJ$12,58,FALSE) -> 6 | H15: =VLOOKUP($A15,'RECAP DIRCOM'!$G$6:$FJ$12,59,FALSE) -> 90.58 | I15: =VLOOKUP($A15,'RECAP DIRCOM'!$G$6:$FJ$12,60,FALSE) -> 0.66 | J15: =VLOOKUP($A15,'RECAP DIRCOM'!$G$6:$FJ$12,61,FALSE) -> 10% | K15: =VLOOKUP($A15,'RECAP DIRCOM'!$G$6:$FJ$12,62,FALSE) -> 5 | L15: =VLOOKUP($A15,'RECAP DIRCOM'!$G$6:$FJ$12,63,FALSE) -> -33 | M15: =VLOOKUP($A15,'RECAP DIRCOM'!$G$6:$FJ$12,64,FALSE) -> -1.19 | N15: =VLOOKUP($A15,'RECAP DIRCOM'!$G$6:$FJ$12,65,FALSE) -> 76% | O15: =VLOOKUP($A15,'RECAP DIRCOM'!$G$6:$FJ$12,66,FALSE) -> 4 | P15: =VLOOKUP($A15,'RECAP DIRCOM'!$G$6:$FJ$12,67,FALSE) -> 34% | Q15: =VLOOKUP($A15,'RECAP DIRCOM'!$G$6:$FJ$12,68,FALSE) -> 22% | R15: =VLOOKUP($A15,'RECAP DIRCOM'!$G$6:$FJ$12,69,FALSE) -> 5
A16: 80 | B16: Vosges | C16: =VLOOKUP($A16,'RECAP DIRCOM'!$G$6:$FJ$12,3,FALSE) -> 131 | D16: =VLOOKUP($A16,'RECAP DIRCOM'!$G$6:$FJ$12,55,FALSE) -> 200.20 | E16: =VLOOKUP($A16,'RECAP DIRCOM'!$G$6:$FJ$12,56,FALSE) -> 5.27 | F16: =VLOOKUP($A16,'RECAP DIRCOM'!$G$6:$FJ$12,57,FALSE) -> 28% | G16: =VLOOKUP($A16,'RECAP DIRCOM'!$G$6:$FJ$12,58,FALSE) -> 7 | H16: =VLOOKUP($A16,'RECAP DIRCOM'!$G$6:$FJ$12,59,FALSE) -> 103.23 | I16: =VLOOKUP($A16,'RECAP DIRCOM'!$G$6:$FJ$12,60,FALSE) -> 0.61 | J16: =VLOOKUP($A16,'RECAP DIRCOM'!$G$6:$FJ$12,61,FALSE) -> 17% | K16: =VLOOKUP($A16,'RECAP DIRCOM'!$G$6:$FJ$12,62,FALSE) -> 7 | L16: =VLOOKUP($A16,'RECAP DIRCOM'!$G$6:$FJ$12,63,FALSE) -> 14 | M16: =VLOOKUP($A16,'RECAP DIRCOM'!$G$6:$FJ$12,64,FALSE) -> 0.49 | N16: =VLOOKUP($A16,'RECAP DIRCOM'!$G$6:$FJ$12,65,FALSE) -> 0% | O16: =VLOOKUP($A16,'RECAP DIRCOM'!$G$6:$FJ$12,66,FALSE) -> 1 | P16: =VLOOKUP($A16,'RECAP DIRCOM'!$G$6:$FJ$12,67,FALSE) -> 15% | Q16: =VLOOKUP($A16,'RECAP DIRCOM'!$G$6:$FJ$12,68,FALSE) -> 3% | R16: =VLOOKUP($A16,'RECAP DIRCOM'!$G$6:$FJ$12,69,FALSE) -> 2
B17: Total CEGEE Directions Régionales | C17: =SUM(C10:C16) -> 1390

Sheet DC_CREDIT
B1: Accueil | D1: BAROMETRE BDD - DIRECTIONS REGIONALES
D2: CREDITS
D3: =ACCUEIL!F7 -> 2020-06-28
D7: Engagements crédits conso | H7: ADE crédits conso | L7: Engagements crédits immo | P7: ADE crédits immo | T7: SACCEF | X7: Engagement Crédits MLT + Crédits Bail | AB7: Total Crédits
D8: =DATEMAJ!C21 -> au 28/06 | F8: coef | G8: ='RECAP DIRCOM'!CG4 -> 4% | I8: =DATEMAJ!C22 -> au 28/06 | J8: coef | K8: ='RECAP DIRCOM'!CK4 -> 1% | L8: =DATEMAJ!C23 -> au 28/06 | N8: coef | O8: ='RECAP DIRCOM'!CO4 -> 4% | Q8: =DATEMAJ!C24 -> au 28/06 | R8: coef | S8: ='RECAP DIRCOM'!CS4 -> 2% | U8: =DATEMAJ!C25 -> au 28/06 | V8: coef | W8: ='RECAP DIRCOM'!CW4 -> 2% | X8: =DATEMAJ!C26 -> au 28/06 | Z8: coef | AA8: ='RECAP DIRCOM'!DA4 -> 2% | AC8: coef | AD8: ='RECAP DIRCOM'!DD4 -> 15%
B9: Direction | C9: ="ETP perf "&DATEMAJ!$C$39 -> ETP perf au 31/05 | D9: Réal / ETP | E9: PNB / ETP | F9: % Ecart au 1er | G9: Rang | I9: PNB / ETP | J9: % Ecart au 1er | K9: Rang | L9: Réal / ETP | M9: PNB / ETP | N9: % Ecart au 1er | O9: Rang | Q9: PNB / ETP | R9: % Ecart au 1er | S9: Rang | U9: PNB / ETP | V9: % Ecart au 1er | W9: Rang | X9: Réal / ETP | Y9: PNB / ETP | Z9: % Ecart au 1er | AA9: Rang | AB9: Moyenne ecart au 1er | AC9: % Ecart au 1er | AD9: Rang CEGEE
A10: 50 | B10: Aube Haute Marne | C10: =VLOOKUP($A10,'RECAP DIRCOM'!$G$6:$FJ$12,3,FALSE) -> 125 | D10: =VLOOKUP($A10,'RECAP DIRCOM'!$G$6:$FJ$12,76,FALSE) -> 237.83 | E10: =VLOOKUP($A10,'RECAP DIRCOM'!$G$6:$FJ$12,77,FALSE) -> 23.64 | F10: =VLOOKUP($A10,'RECAP DIRCOM'!$G$6:$FJ$12,78,FALSE) -> 1% | G10: =VLOOKUP($A10,'RECAP DIRCOM'!$G$6:$FJ$12,79,FALSE) -> 2 | I10: =VLOOKUP($A10,'RECAP DIRCOM'!$G$6:$FJ$12,81,FALSE) -> 5.08 | J10: =VLOOKUP($A10,'RECAP DIRCOM'!$G$6:$FJ$12,82,FALSE) -> 7% | K10: =VLOOKUP($A10,'RECAP DIRCOM'!$G$6:$FJ$12,83,FALSE) -> 2 | L10: =VLOOKUP($A10,'RECAP DIRCOM'!$G$6:$FJ$12,84,FALSE) -> 487.78 | M10: =VLOOKUP($A10,'RECAP DIRCOM'!$G$6:$FJ$12,85,FALSE) -> 20.78 | N10: =VLOOKUP($A10,'RECAP DIRCOM'!$G$6:$FJ$12,86,FALSE) -> 47% | O10: =VLOOKUP($A10,'RECAP DIRCOM'!$G$6:$FJ$12,87,FALSE) -> 7 | Q10: =VLOOKUP($A10,'RECAP DIRCOM'!$G$6:$FJ$12,89,FALSE) -> 9.79 | R10: =VLOOKUP($A10,'RECAP DIRCOM'!$G$6:$FJ$12,90,FALSE) -> 60% | S10: =VLOOKUP($A10,'RECAP DIRCOM'!$G$6:$FJ$12,91,FALSE) -> 7 | U10: =VLOOKUP($A10,'RECAP DIRCOM'!$G$6:$FJ$12,93,FALSE) -> 1.18 | V10: =VLOOKUP($A10,'RECAP DIRCOM'!$G$6:$FJ$12,94,FALSE) -> 49% | W10: =VLOOKUP($A10,'RECAP DIRCOM'!$G$6:$FJ$12,95,FALSE) -> 5 | X10: =VLOOKUP($A10,'RECAP DIRCOM'!$G$6:$FJ$12,96,FALSE) -> 119.97 | Y10: =VLOOKUP($A10,'RECAP DIRCOM'!$G$6:$FJ$12,97,FALSE) -> 4.68 | Z10: =VLOOKUP($A10,'RECAP DIRCOM'!$G$6:$FJ$12,98,FALSE) -> 0% | AA10: =VLOOKUP($A10,'RECAP DIRCOM'!$G$6:$FJ$12,99,FALSE) -> 1 | AB10: =VLOOKUP($A10,'RECAP DIRCOM'!$G$6:$FJ$12,100,FALSE) -> 28% | AC10: =VLOOKUP($A10,'RECAP DIRCOM'!$G$6:$FJ$12,101,FALSE) -> 21% | AD10: =VLOOKUP($A10,'RECAP DIRCOM'!$G$6:$FJ$12,102,FALSE) -> 4
A11: 262 | B11: Bas-Rhin | C11: =VLOOKUP($A11,'RECAP DIRCOM'!$G$6:$FJ$12,3,FALSE) -> 258 | D11: =VLOOKUP($A11,'RECAP DIRCOM'!$G$6:$FJ$12,76,FALSE) -> 200.14 | E11: =VLOOKUP($A11,'RECAP DIRCOM'!$G$6:$FJ$12,77,FALSE) -> 18.06 | F11: =VLOOKUP($A11,'RECAP DIRCOM'!$G$6:$FJ$12,78,FALSE) -> 24% | G11: =VLOOKUP($A11,'RECAP DIRCOM'!$G$6:$FJ$12,79,FALSE) -> 6 | I11: =VLOOKUP($A11,'RECAP DIRCOM'!$G$6:$FJ$12,81,FALSE) -> 4.72 | J11: =VLOOKUP($A11,'RECAP DIRCOM'!$G$6:$FJ$12,82,FALSE) -> 14% | K11: =VLOOKUP($A11,'RECAP DIRCOM'!$G$6:$FJ$12,83,FALSE) -> 6 | L11: =VLOOKUP($A11,'RECAP DIRCOM'!$G$6:$FJ$12,84,FALSE) -> 675.65 | M11: =VLOOKUP($A11,'RECAP DIRCOM'!$G$6:$FJ$12,85,FALSE) -> 21.14 | N11: =VLOOKUP($A11,'RECAP DIRCOM'!$G$6:$FJ$12,86,FALSE) -> 46% | O11: =VLOOKUP($A11,'RECAP DIRCOM'!$G$6:$FJ$12,87,FALSE) -> 6 | Q11: =VLOOKUP($A11,'RECAP DIRCOM'!$G$6:$FJ$12,89,FALSE) -> 12.64 | R11: =VLOOKUP($A11,'RECAP DIRCOM'!$G$6:$FJ$12,90,FALSE) -> 48% | S11: =VLOOKUP($A11,'RECAP DIRCOM'!$G$6:$FJ$12,91,FALSE) -> 5 | U11: =VLOOKUP($A11,'RECAP DIRCOM'!$G$6:$FJ$12,93,FALSE) -> 1.28 | V11: =VLOOKUP($A11,'RECAP DIRCOM'!$G$6:$FJ$12,94,FALSE) -> 44% | W11: =VLOOKUP($A11,'RECAP DIRCOM'!$G$6:$FJ$12,95,FALSE) -> 4 | X11: =VLOOKUP($A11,'RECAP DIRCOM'!$G$6:$FJ$12,96,FALSE) -> 92.48 | Y11: =VLOOKUP($A11,'RECAP DIRCOM'!$G$6:$FJ$12,97,FALSE) -> 3.08 | Z11: =VLOOKUP($A11,'RECAP DIRCOM'!$G$6:$FJ$12,98,FALSE) -> 34% | AA11: =VLOOKUP($A11,'RECAP DIRCOM'!$G$6:$FJ$12,99,FALSE) -> 4 | AB11: =VLOOKUP($A11,'RECAP DIRCOM'!$G$6:$FJ$12,100,FALSE) -> 37% | AC11: =VLOOKUP($A11,'RECAP DIRCOM'!$G$6:$FJ$12,101,FALSE) -> 29% | AD11: =VLOOKUP($A11,'RECAP DIRCOM'!$G$6:$FJ$12,102,FALSE) -> 5
A12: 264 | B12: Haut-Rhin | C12: =VLOOKUP($A12,'RECAP DIRCOM'!$G$6:$FJ$12,3,FALSE) -> 157 | D12: =VLOOKUP($A12,'RECAP DIRCOM'!$G$6:$FJ$12,76,FALSE) -> 180.68 | E12: =VLOOKUP($A12,'RECAP DIRCOM'!$G$6:$FJ$12,77,FALSE) -> 17.10 | F12: =VLOOKUP($A12,'RECAP DIRCOM'!$G$6:$FJ$12,78,FALSE) -> 28% | G12: =VLOOKUP($A12,'RECAP DIRCOM'!$G$6:$FJ$12,79,FALSE) -> 7 | I12: =VLOOKUP($A12,'RECAP DIRCOM'!$G$6:$FJ$12,81,FALSE) -> 4.08 | J12: =VLOOKUP($A12,'RECAP DIRCOM'!$G$6:$FJ$12,82,FALSE) -> 25% | K12: =VLOOKUP($A12,'RECAP DIRCOM'!$G$6:$FJ$12,83,FALSE) -> 7 | L12: =VLOOKUP($A12,'RECAP DIRCOM'!$G$6:$FJ$12,84,FALSE) -> 614.72 | M12: =VLOOKUP($A12,'RECAP DIRCOM'!$G$6:$FJ$12,85,FALSE) -> 21.60 | N12: =VLOOKUP($A12,'RECAP DIRCOM'!$G$6:$FJ$12,86,FALSE) -> 45% | O12: =VLOOKUP($A12,'RECAP DIRCOM'!$G$6:$FJ$12,87,FALSE) -> 5 | Q12: =VLOOKUP($A12,'RECAP DIRCOM'!$G$6:$FJ$12,89,FALSE) -> 13.92 | R12: =VLOOKUP($A12,'RECAP DIRCOM'!$G$6:$FJ$12,90,FALSE) -> 43% | S12: =VLOOKUP($A12,'RECAP DIRCOM'!$G$6:$FJ$12,91,FALSE) -> 4 | U12: =VLOOKUP($A12,'RECAP DIRCOM'!$G$6:$FJ$12,93,FALSE) -> 1.11 | V12: =VLOOKUP($A12,'RECAP DIRCOM'!$G$6:$FJ$12,94,FALSE) -> 52% | W12: =VLOOKUP($A12,'RECAP DIRCOM'!$G$6:$FJ$12,95,FALSE) -> 7 | X12: =VLOOKUP($A12,'RECAP DIRCOM'!$G$6:$FJ$12,96,FALSE) -> 94.06 | Y12: =VLOOKUP($A12,'RECAP DIRCOM'!$G$6:$FJ$12,97,FALSE) -> 3.45 | Z12: =VLOOKUP($A12,'RECAP DIRCOM'!$G$6:$FJ$12,98,FALSE) -> 26% | AA12: =VLOOKUP($A12,'RECAP DIRCOM'!$G$6:$FJ$12,99,FALSE) -> 3 | AB12: =VLOOKUP($A12,'RECAP DIRCOM'!$G$6:$FJ$12,100,FALSE) -> 37% | AC12: =VLOOKUP($A12,'RECAP DIRCOM'!$G$6:$FJ$12,101,FALSE) -> 30% | AD12: =VLOOKUP($A12,'RECAP DIRCOM'!$G$6:$FJ$12,102,FALSE) -> 7
A13: 30 | B13: Marne-Ardennes | C13: =VLOOKUP($A13,'RECAP DIRCOM'!$G$6:$FJ$12,3,FALSE) -> 223 | D13: =VLOOKUP($A13,'RECAP DIRCOM'!$G$6:$FJ$12,76,FALSE) -> 223.84 | E13: =VLOOKUP($A13,'RECAP DIRCOM'!$G$6:$FJ$12,77,FALSE) -> 21.16 | F13: =VLOOKUP($A13,'RECAP DIRCOM'!$G$6:$FJ$12,78,FALSE) -> 11% | G13: =VLOOKUP($A13,'RECAP DIRCOM'!$G$6:$FJ$12,79,FALSE) -> 4 | I13: =VLOOKUP($A13,'RECAP DIRCOM'!$G$6:$FJ$12,81,FALSE) -> 4.82 | J13: =VLOOKUP($A13,'RECAP DIRCOM'!$G$6:$FJ$12,82,FALSE) -> 12% | K13: =VLOOKUP($A13,'RECAP DIRCOM'!$G$6:$FJ$12,83,FALSE) -> 4 | L13: =VLOOKUP($A13,'RECAP DIRCOM'!$G$6:$FJ$12,84,FALSE) -> 928.15 | M13: =VLOOKUP($A13,'RECAP DIRCOM'!$G$6:$FJ$12,85,FALSE) -> 37.59 | N13: =VLOOKUP($A13,'RECAP DIRCOM'!$G$6:$FJ$12,86,FALSE) -> 4% | O13: =VLOOKUP($A13,'RECAP DIRCOM'!$G$6:$FJ$12,87,FALSE) -> 2 | Q13: =VLOOKUP($A13,'RECAP DIRCOM'!$G$6:$FJ$12,89,FALSE) -> 24.34 | R13: =VLOOKUP($A13,'RECAP DIRCOM'!$G$6:$FJ$12,90,FALSE) -> 0% | S13: =VLOOKUP($A13,'RECAP DIRCOM'!$G$6:$FJ$12,91,FALSE) -> 1 | U13: =VLOOKUP($A13,'RECAP DIRCOM'!$G$6:$FJ$12,93,FALSE) -> 2.14 | V13: =VLOOKUP($A13,'RECAP DIRCOM'!$G$6:$FJ$12,94,FALSE) -> 7% | W13: =VLOOKUP($A13,'RECAP DIRCOM'!$G$6:$FJ$12,95,FALSE) -> 2 | X13: =VLOOKUP($A13,'RECAP DIRCOM'!$G$6:$FJ$12,96,FALSE) -> 152.82 | Y13: =VLOOKUP($A13,'RECAP DIRCOM'!$G$6:$FJ$12,97,FALSE) -> 4.17 | Z13: =VLOOKUP($A13,'RECAP DIRCOM'!$G$6:$FJ$12,98,FALSE) -> 11% | AA13: =VLOOKUP($A13,'RECAP DIRCOM'!$G$6:$FJ$12,99,FALSE) -> 2 | AB13: =VLOOKUP($A13,'RECAP DIRCOM'!$G$6:$FJ$12,100,FALSE) -> 7% | AC13: =VLOOKUP($A13,'RECAP DIRCOM'!$G$6:$FJ$12,101,FALSE) -> 0% | AD13: =VLOOKUP($A13,'RECAP DIRCOM'!$G$6:$FJ$12,102,FALSE) -> 1
A14: 110 | B14: Meurthe et Moselle Meuse | C14: =VLOOKUP($A14,'RECAP DIRCOM'!$G$6:$FJ$12,3,FALSE) -> 229 | D14: =VLOOKUP($A14,'RECAP DIRCOM'!$G$6:$FJ$12,76,FALSE) -> 245.50 | E14: =VLOOKUP($A14,'RECAP DIRCOM'!$G$6:$FJ$12,77,FALSE) -> 23.86 | F14: =VLOOKUP($A14,'RECAP DIRCOM'!$G$6:$FJ$12,78,FALSE) -> 0% | G14: =VLOOKUP($A14,'RECAP DIRCOM'!$G$6:$FJ$12,79,FALSE) -> 1 | I14: =VLOOKUP($A14,'RECAP DIRCOM'!$G$6:$FJ$12,81,FALSE) -> 5.47 | J14: =VLOOKUP($A14,'RECAP DIRCOM'!$G$6:$FJ$12,82,FALSE) -> 0% | K14: =VLOOKUP($A14,'RECAP DIRCOM'!$G$6:$FJ$12,83,FALSE) -> 1 | L14: =VLOOKUP($A14,'RECAP DIRCOM'!$G$6:$FJ$12,84,FALSE) -> 998.01 | M14: =VLOOKUP($A14,'RECAP DIRCOM'!$G$6:$FJ$12,85,FALSE) -> 39.13 | N14: =VLOOKUP($A14,'RECAP DIRCOM'!$G$6:$FJ$12,86,FALSE) -> 0% | O14: =VLOOKUP($A14,'RECAP DIRCOM'!$G$6:$FJ$12,87,FALSE) -> 1 | Q14: =VLOOKUP($A14,'RECAP DIRCOM'!$G$6:$FJ$12,89,FALSE) -> 22.85 | R14: =VLOOKUP($A14,'RECAP DIRCOM'!$G$6:$FJ$12,90,FALSE) -> 6% | S14: =VLOOKUP($A14,'RECAP DIRCOM'!$G$6:$FJ$12,91,FALSE) -> 2 | U14: =VLOOKUP($A14,'RECAP DIRCOM'!$G$6:$FJ$12,93,FALSE) -> 2.30 | V14: =VLOOKUP($A14,'RECAP DIRCOM'!$G$6:$FJ$12,94,FALSE) -> 0% | W14: =VLOOKUP($A14,'RECAP DIRCOM'!$G$6:$FJ$12,95,FALSE) -> 1 | X14: =VLOOKUP($A14,'RECAP DIRCOM'!$G$6:$FJ$12,96,FALSE) -> 41.53 | Y14: =VLOOKUP($A14,'RECAP DIRCOM'!$G$6:$FJ$12,97,FALSE) -> 1.89 | Z14: =VLOOKUP($A14,'RECAP DIRCOM'!$G$6:$FJ$12,98,FALSE) -> 60% | AA14: =VLOOKUP($A14,'RECAP DIRCOM'!$G$6:$FJ$12,99,FALSE) -> 6 | AB14: =VLOOKUP($A14,'RECAP DIRCOM'!$G$6:$FJ$12,100,FALSE) -> 9% | AC14: =VLOOKUP($A14,'RECAP DIRCOM'!$G$6:$FJ$12,101,FALSE) -> 2% | AD14: =VLOOKUP($A14,'RECAP DIRCOM'!$G$6:$FJ$12,102,FALSE) -> 2
A15: 160 | B15: Moselle | C15: =VLOOKUP($A15,'RECAP DIRCOM'!$G$6:$FJ$12,3,FALSE) -> 266 | D15: =VLOOKUP($A15,'RECAP DIRCOM'!$G$6:$FJ$12,76,FALSE) -> 243.55 | E15: =VLOOKUP($A15,'RECAP DIRCOM'!$G$6:$FJ$12,77,FALSE) -> 23.36 | F15: =VLOOKUP($A15,'RECAP DIRCOM'!$G$6:$FJ$12,78,FALSE) -> 2% | G15: =VLOOKUP($A15,'RECAP DIRCOM'!$G$6:$FJ$12,79,FALSE) -> 3 | I15: =VLOOKUP($A15,'RECAP DIRCOM'!$G$6:$FJ$12,81,FALSE) -> 4.94 | J15: =VLOOKUP($A15,'RECAP DIRCOM'!$G$6:$FJ$12,82,FALSE) -> 10% | K15: =VLOOKUP($A15,'RECAP DIRCOM'!$G$6:$FJ$12,83,FALSE) -> 3 | L15: =VLOOKUP($A15,'RECAP DIRCOM'!$G$6:$FJ$12,84,FALSE) -> 858.16 | M15: =VLOOKUP($A15,'RECAP DIRCOM'!$G$6:$FJ$12,85,FALSE) -> 33.19 | N15: =VLOOKUP($A15,'RECAP DIRCOM'!$G$6:$FJ$12,86,FALSE) -> 15% | O15: =VLOOKUP($A15,'RECAP DIRCOM'!$G$6:$FJ$12,87,FALSE) -> 3 | Q15: =VLOOKUP($A15,'RECAP DIRCOM'!$G$6:$FJ$12,89,FALSE) -> 14.36 | R15: =VLOOKUP($A15,'RECAP DIRCOM'!$G$6:$FJ$12,90,FALSE) -> 41% | S15: =VLOOKUP($A15,'RECAP DIRCOM'!$G$6:$FJ$12,91,FALSE) -> 3 | U15: =VLOOKUP($A15,'RECAP DIRCOM'!$G$6:$FJ$12,93,FALSE) -> 1.82 | V15: =VLOOKUP($A15,'RECAP DIRCOM'!$G$6:$FJ$12,94,FALSE) -> 21% | W15: =VLOOKUP($A15,'RECAP DIRCOM'!$G$6:$FJ$12,95,FALSE) -> 3 | X15: =VLOOKUP($A15,'RECAP DIRCOM'!$G$6:$FJ$12,96,FALSE) -> 42.41 | Y15: =VLOOKUP($A15,'RECAP DIRCOM'!$G$6:$FJ$12,97,FALSE) -> 1.62 | Z15: =VLOOKUP($A15,'RECAP DIRCOM'!$G$6:$FJ$12,98,FALSE) -> 65% | AA15: =VLOOKUP($A15,'RECAP DIRCOM'!$G$6:$FJ$12,99,FALSE) -> 7 | AB15: =VLOOKUP($A15,'RECAP DIRCOM'!$G$6:$FJ$12,100,FALSE) -> 22% | AC15: =VLOOKUP($A15,'RECAP DIRCOM'!$G$6:$FJ$12,101,FALSE) -> 15% | AD15: =VLOOKUP($A15,'RECAP DIRCOM'!$G$6:$FJ$12,102,FALSE) -> 3
A16: 80 | B16: Vosges | C16: =VLOOKUP($A16,'RECAP DIRCOM'!$G$6:$FJ$12,3,FALSE) -> 131 | D16: =VLOOKUP($A16,'RECAP DIRCOM'!$G$6:$FJ$12,76,FALSE) -> 220.24 | E16: =VLOOKUP($A16,'RECAP DIRCOM'!$G$6:$FJ$12,77,FALSE) -> 20.63 | F16: =VLOOKUP($A16,'RECAP DIRCOM'!$G$6:$FJ$12,78,FALSE) -> 14% | G16: =VLOOKUP($A16,'RECAP DIRCOM'!$G$6:$FJ$12,79,FALSE) -> 5 | I16: =VLOOKUP($A16,'RECAP DIRCOM'!$G$6:$FJ$12,81,FALSE) -> 4.76 | J16: =VLOOKUP($A16,'RECAP DIRCOM'!$G$6:$FJ$12,82,FALSE) -> 13% | K16: =VLOOKUP($A16,'RECAP DIRCOM'!$G$6:$FJ$12,83,FALSE) -> 5 | L16: =VLOOKUP($A16,'RECAP DIRCOM'!$G$6:$FJ$12,84,FALSE) -> 508.51 | M16: =VLOOKUP($A16,'RECAP DIRCOM'!$G$6:$FJ$12,85,FALSE) -> 22.35 | N16: =VLOOKUP($A16,'RECAP DIRCOM'!$G$6:$FJ$12,86,FALSE) -> 43% | O16: =VLOOKUP($A16,'RECAP DIRCOM'!$G$6:$FJ$12,87,FALSE) -> 4 | Q16: =VLOOKUP($A16,'RECAP DIRCOM'!$G$6:$FJ$12,89,FALSE) -> 12.23 | R16: =VLOOKUP($A16,'RECAP DIRCOM'!$G$6:$FJ$12,90,FALSE) -> 50% | S16: =VLOOKUP($A16,'RECAP DIRCOM'!$G$6:$FJ$12,91,FALSE) -> 6 | U16: =VLOOKUP($A16,'RECAP DIRCOM'!$G$6:$FJ$12,93,FALSE) -> 1.16 | V16: =VLOOKUP($A16,'RECAP DIRCOM'!$G$6:$FJ$12,94,FALSE) -> 49% | W16: =VLOOKUP($A16,'RECAP DIRCOM'!$G$6:$FJ$12,95,FALSE) -> 6 | X16: =VLOOKUP($A16,'RECAP DIRCOM'!$G$6:$FJ$12,96,FALSE) -> 57.27 | Y16: =VLOOKUP($A16,'RECAP DIRCOM'!$G$6:$FJ$12,97,FALSE) -> 2.08 | Z16: =VLOOKUP($A16,'RECAP DIRCOM'!$G$6:$FJ$12,98,FALSE) -> 56% | AA16: =VLOOKUP($A16,'RECAP DIRCOM'!$G$6:$FJ$12,99,FALSE) -> 5 | AB16: =VLOOKUP($A16,'RECAP DIRCOM'!$G$6:$FJ$12,100,FALSE) -> 37% | AC16: =VLOOKUP($A16,'RECAP DIRCOM'!$G$6:$FJ$12,101,FALSE) -> 29% | AD16: =VLOOKUP($A16,'RECAP DIRCOM'!$G$6:$FJ$12,102,FALSE) -> 6
B17: Total CEGEE Directions Régionales | C17: =SUM(C10:C16) -> 1390

Sheet DC_IARD
B1: Accueil | D1: BAROMETRE BDD - DIRECTIONS REGIONALES
D2: IARD ET PREVOYANCE
D3: =ACCUEIL!F7 -> 2020-06-28
D7: Ventes nettes IARD | H7: Ventes nettes Prévoyance | L7: Total IARD Prévoyance
D8: =DATEMAJ!C28 -> au 28/06 | F8: coef | G8: ='RECAP DIRCOM'!DN4 -> 9% | H8: =DATEMAJ!C29 -> au 28/06 | J8: coef | K8: ='RECAP DIRCOM'!DR4 -> 6% | M8: coef | N8: ='RECAP DIRCOM'!DU4 -> 15%
B9: Direction | C9: ="ETP perf "&DATEMAJ!$C$39 -> ETP perf au 31/05 | D9: Nb / ETP | E9: PNB / ETP | F9: % Ecart au 1er | G9: Rang | H9: Nb / ETP | I9: PNB / ETP | J9: % Ecart au 1er | K9: Rang | L9: Moyenne ecart au 1er | M9: % Ecart au 1er | N9: Rang CEGEE
A10: 50 | B10: Aube Haute Marne | C10: =VLOOKUP($A10,'RECAP DIRCOM'!$G$6:$FJ$12,3,FALSE) -> 125 | D10: =VLOOKUP($A10,'RECAP DIRCOM'!$G$6:$FJ$12,109,FALSE) -> 5.22 | E10: =VLOOKUP($A10,'RECAP DIRCOM'!$G$6:$FJ$12,110,FALSE) -> 0.55 | F10: =VLOOKUP($A10,'RECAP DIRCOM'!$G$6:$FJ$12,111,FALSE) -> 48% | G10: =VLOOKUP($A10,'RECAP DIRCOM'!$G$6:$FJ$12,112,FALSE) -> 5 | H10: =VLOOKUP($A10,'RECAP DIRCOM'!$G$6:$FJ$12,113,FALSE) -> 6.94 | I10: =VLOOKUP($A10,'RECAP DIRCOM'!$G$6:$FJ$12,114,FALSE) -> 1.03 | J10: =VLOOKUP($A10,'RECAP DIRCOM'!$G$6:$FJ$12,115,FALSE) -> 6% | K10: =VLOOKUP($A10,'RECAP DIRCOM'!$G$6:$FJ$12,116,FALSE) -> 2 | L10: =VLOOKUP($A10,'RECAP DIRCOM'!$G$6:$FJ$12,117,FALSE) -> 31% | M10: =VLOOKUP($A10,'RECAP DIRCOM'!$G$6:$FJ$12,118,FALSE) -> 26% | N10: =VLOOKUP($A10,'RECAP DIRCOM'!$G$6:$FJ$12,119,FALSE) -> 3
A11: 262 | B11: Bas-Rhin | C11: =VLOOKUP($A11,'RECAP DIRCOM'!$G$6:$FJ$12,3,FALSE) -> 258 | D11: =VLOOKUP($A11,'RECAP DIRCOM'!$G$6:$FJ$12,109,FALSE) -> 4.64 | E11: =VLOOKUP($A11,'RECAP DIRCOM'!$G$6:$FJ$12,110,FALSE) -> 0.46 | F11: =VLOOKUP($A11,'RECAP DIRCOM'!$G$6:$FJ$12,111,FALSE) -> 56% | G11: =VLOOKUP($A11,'RECAP DIRCOM'!$G$6:$FJ$12,112,FALSE) -> 6 | H11: =VLOOKUP($A11,'RECAP DIRCOM'!$G$6:$FJ$12,113,FALSE) -> 4.97 | I11: =VLOOKUP($A11,'RECAP DIRCOM'!$G$6:$FJ$12,114,FALSE) -> 0.82 | J11: =VLOOKUP($A11,'RECAP DIRCOM'!$G$6:$FJ$12,115,FALSE) -> 26% | K11: =VLOOKUP($A11,'RECAP DIRCOM'!$G$6:$FJ$12,116,FALSE) -> 3 | L11: =VLOOKUP($A11,'RECAP DIRCOM'!$G$6:$FJ$12,117,FALSE) -> 44% | M11: =VLOOKUP($A11,'RECAP DIRCOM'!$G$6:$FJ$12,118,FALSE) -> 39% | N11: =VLOOKUP($A11,'RECAP DIRCOM'!$G$6:$FJ$12,119,FALSE) -> 6
A12: 264 | B12: Haut-Rhin | C12: =VLOOKUP($A12,'RECAP DIRCOM'!$G$6:$FJ$12,3,FALSE) -> 157 | D12: =VLOOKUP($A12,'RECAP DIRCOM'!$G$6:$FJ$12,109,FALSE) -> 3.41 | E12: =VLOOKUP($A12,'RECAP DIRCOM'!$G$6:$FJ$12,110,FALSE) -> 0.35 | F12: =VLOOKUP($A12,'RECAP DIRCOM'!$G$6:$FJ$12,111,FALSE) -> 67% | G12: =VLOOKUP($A12,'RECAP DIRCOM'!$G$6:$FJ$12,112,FALSE) -> 7 | H12: =VLOOKUP($A12,'RECAP DIRCOM'!$G$6:$FJ$12,113,FALSE) -> 3.02 | I12: =VLOOKUP($A12,'RECAP DIRCOM'!$G$6:$FJ$12,114,FALSE) -> 0.63 | J12: =VLOOKUP($A12,'RECAP DIRCOM'!$G$6:$FJ$12,115,FALSE) -> 42% | K12: =VLOOKUP($A12,'RECAP DIRCOM'!$G$6:$FJ$12,116,FALSE) -> 6 | L12: =VLOOKUP($A12,'RECAP DIRCOM'!$G$6:$FJ$12,117,FALSE) -> 57% | M12: =VLOOKUP($A12,'RECAP DIRCOM'!$G$6:$FJ$12,118,FALSE) -> 52% | N12: =VLOOKUP($A12,'RECAP DIRCOM'!$G$6:$FJ$12,119,FALSE) -> 7
A13: 30 | B13: Marne-Ardennes | C13: =VLOOKUP($A13,'RECAP DIRCOM'!$G$6:$FJ$12,3,FALSE) -> 223 | D13: =VLOOKUP($A13,'RECAP DIRCOM'!$G$6:$FJ$12,109,FALSE) -> 9.01 | E13: =VLOOKUP($A13,'RECAP DIRCOM'!$G$6:$FJ$12,110,FALSE) -> 0.95 | F13: =VLOOKUP($A13,'RECAP DIRCOM'!$G$6:$FJ$12,111,FALSE) -> 9% | G13: =VLOOKUP($A13,'RECAP DIRCOM'!$G$6:$FJ$12,112,FALSE) -> 2 | H13: =VLOOKUP($A13,'RECAP DIRCOM'!$G$6:$FJ$12,113,FALSE) -> 6.19 | I13: =VLOOKUP($A13,'RECAP DIRCOM'!$G$6:$FJ$12,114,FALSE) -> 1.10 | J13: =VLOOKUP($A13,'RECAP DIRCOM'!$G$6:$FJ$12,115,FALSE) -> 0% | K13: =VLOOKUP($A13,'RECAP DIRCOM'!$G$6:$FJ$12,116,FALSE) -> 1 | L13: =VLOOKUP($A13,'RECAP DIRCOM'!$G$6:$FJ$12,117,FALSE) -> 5% | M13: =VLOOKUP($A13,'RECAP DIRCOM'!$G$6:$FJ$12,118,FALSE) -> 0% | N13: =VLOOKUP($A13,'RECAP DIRCOM'!$G$6:$FJ$12,119,FALSE) -> 1
A14: 110 | B14: Meurthe et Moselle Meuse | C14: =VLOOKUP($A14,'RECAP DIRCOM'!$G$6:$FJ$12,3,FALSE) -> 229 | D14: =VLOOKUP($A14,'RECAP DIRCOM'!$G$6:$FJ$12,109,FALSE) -> 10.43 | E14: =VLOOKUP($A14,'RECAP DIRCOM'!$G$6:$FJ$12,110,FALSE) -> 1.04 | F14: =VLOOKUP($A14,'RECAP DIRCOM'!$G$6:$FJ$12,111,FALSE) -> 0% | G14: =VLOOKUP($A14,'RECAP DIRCOM'!$G$6:$FJ$12,112,FALSE) -> 1 | H14: =VLOOKUP($A14,'RECAP DIRCOM'!$G$6:$FJ$12,113,FALSE) -> 5.42 | I14: =VLOOKUP($A14,'RECAP DIRCOM'!$G$6:$FJ$12,114,FALSE) -> 0.73 | J14: =VLOOKUP($A14,'RECAP DIRCOM'!$G$6:$FJ$12,115,FALSE) -> 34% | K14: =VLOOKUP($A14,'RECAP DIRCOM'!$G$6:$FJ$12,116,FALSE) -> 5 | L14: =VLOOKUP($A14,'RECAP DIRCOM'!$G$6:$FJ$12,117,FALSE) -> 13% | M14: =VLOOKUP($A14,'RECAP DIRCOM'!$G$6:$FJ$12,118,FALSE) -> 8% | N14: =VLOOKUP($A14,'RECAP DIRCOM'!$G$6:$FJ$12,119,FALSE) -> 2
A15: 160 | B15: Moselle | C15: =VLOOKUP($A15,'RECAP DIRCOM'!$G$6:$FJ$12,3,FALSE) -> 266 | D15: =VLOOKUP($A15,'RECAP DIRCOM'!$G$6:$FJ$12,109,FALSE) -> 7.08 | E15: =VLOOKUP($A15,'RECAP DIRCOM'!$G$6:$FJ$12,110,FALSE) -> 0.74 | F15: =VLOOKUP($A15,'RECAP DIRCOM'!$G$6:$FJ$12,111,FALSE) -> 30% | G15: =VLOOKUP($A15,'RECAP DIRCOM'!$G$6:$FJ$12,112,FALSE) -> 3 | H15: =VLOOKUP($A15,'RECAP DIRCOM'!$G$6:$FJ$12,113,FALSE) -> 3.78 | I15: =VLOOKUP($A15,'RECAP DIRCOM'!$G$6:$FJ$12,114,FALSE) -> 0.62 | J15: =VLOOKUP($A15,'RECAP DIRCOM'!$G$6:$FJ$12,115,FALSE) -> 44% | K15: =VLOOKUP($A15,'RECAP DIRCOM'!$G$6:$FJ$12,116,FALSE) -> 7 | L15: =VLOOKUP($A15,'RECAP DIRCOM'!$G$6:$FJ$12,117,FALSE) -> 35% | M15: =VLOOKUP($A15,'RECAP DIRCOM'!$G$6:$FJ$12,118,FALSE) -> 30% | N15: =VLOOKUP($A15,'RECAP DIRCOM'!$G$6:$FJ$12,119,FALSE) -> 4
A16: 80 | B16: Vosges | C16: =VLOOKUP($A16,'RECAP DIRCOM'!$G$6:$FJ$12,3,FALSE) -> 131 | D16: =VLOOKUP($A16,'RECAP DIRCOM'!$G$6:$FJ$12,109,FALSE) -> 5.60 | E16: =VLOOKUP($A16,'RECAP DIRCOM'!$G$6:$FJ$12,110,FALSE) -> 0.61 | F16: =VLOOKUP($A16,'RECAP DIRCOM'!$G$6:$FJ$12,111,FALSE) -> 42% | G16: =VLOOKUP($A16,'RECAP DIRCOM'!$G$6:$FJ$12,112,FALSE) -> 4 | H16: =VLOOKUP($A16,'RECAP DIRCOM'!$G$6:$FJ$12,113,FALSE) -> 4.47 | I16: =VLOOKUP($A16,'RECAP DIRCOM'!$G$6:$FJ$12,114,FALSE) -> 0.78 | J16: =VLOOKUP($A16,'RECAP DIRCOM'!$G$6:$FJ$12,115,FALSE) -> 29% | K16: =VLOOKUP($A16,'RECAP DIRCOM'!$G$6:$FJ$12,116,FALSE) -> 4 | L16: =VLOOKUP($A16,'RECAP DIRCOM'!$G$6:$FJ$12,117,FALSE) -> 37% | M16: =VLOOKUP($A16,'RECAP DIRCOM'!$G$6:$FJ$12,118,FALSE) -> 31% | N16: =VLOOKUP($A16,'RECAP DIRCOM'!$G$6:$FJ$12,119,FALSE) -> 5
B17: Total CEGEE Directions Régionales | C17: =SUM(C10:C16) -> 1390

Sheet DC_CONQUETE
B1: Accueil | D1: BAROMETRE BDD - DIRECTIONS REGIONALES
D2: CLIENTS
D3: =ACCUEIL!F7 -> 2020-06-28
D7: Evolution nette clients Bancarisés Principaux | H7: Evolution nette relations PREMIUM | L7: Evolution nette clients Jeunes équipés | P7: Evolution nette clients Pro actif équipés | T7: Total Clients
D8: =DATEMAJ!C7 -> au 30/04 | F8: coef | G8: ='RECAP DIRCOM'!N4 -> 4% | H8: =DATEMAJ!C8 -> au 30/04 | J8: coef | K8: ='RECAP DIRCOM'!R4 -> 5% | L8: =DATEMAJ!C9 -> au 30/04 | N8: coef | O8: ='RECAP DIRCOM'!V4 -> 3% | P8: =DATEMAJ!C10 -> au 30/04 | R8: coef | S8: ='RECAP DIRCOM'!Z4 -> 3% | U8: coef | V8: ='RECAP DIRCOM'!AC4 -> 15%
B9: Direction | C9: ="ETP perf "&DATEMAJ!$C$39 -> ETP perf au 31/05 | D9: Nb / ETP | E9: PNB / ETP | F9: % Ecart au 1er | G9: Rang | H9: Nb / ETP | I9: PNB / ETP | J9: % Ecart au 1er | K9: Rang | L9: Nb / ETP | M9: PNB / ETP | N9: % Ecart au 1er | O9: Rang | P9: Nb / ETP | Q9: PNB / ETP | R9: % Ecart au 1er | S9: Rang | T9: Moyenne ecart au 1er | U9: % Ecart au 1er | V9: Rang CEGEE
A10: 50 | B10: Aube Haute Marne | C10: =VLOOKUP($A10,'RECAP DIRCOM'!$G$6:$FJ$12,3,FALSE) -> 125 | D10: =VLOOKUP($A10,'RECAP DIRCOM'!$G$6:$FJ$12,5,FALSE) -> -3.66 | E10: =VLOOKUP($A10,'RECAP DIRCOM'!$G$6:$FJ$12,6,FALSE) -> -1.83 | F10: =VLOOKUP($A10,'RECAP DIRCOM'!$G$6:$FJ$12,7,FALSE) -> 57% | G10: =VLOOKUP($A10,'RECAP DIRCOM'!$G$6:$FJ$12,8,FALSE) -> 3 | H10: =VLOOKUP($A10,'RECAP DIRCOM'!$G$6:$FJ$12,9,FALSE) -> 0.96 | I10: =VLOOKUP($A10,'RECAP DIRCOM'!$G$6:$FJ$12,10,FALSE) -> 0.68 | J10: =VLOOKUP($A10,'RECAP DIRCOM'!$G$6:$FJ$12,11,FALSE) -> 0% | K10: =VLOOKUP($A10,'RECAP DIRCOM'!$G$6:$FJ$12,12,FALSE) -> 1 | L10: =VLOOKUP($A10,'RECAP DIRCOM'!$G$6:$FJ$12,13,FALSE) -> -3.57 | M10: =VLOOKUP($A10,'RECAP DIRCOM'!$G$6:$FJ$12,14,FALSE) -> -0.54 | N10: =VLOOKUP($A10,'RECAP DIRCOM'!$G$6:$FJ$12,15,FALSE) -> 52% | O10: =VLOOKUP($A10,'RECAP DIRCOM'!$G$6:$FJ$12,16,FALSE) -> 3 | P10: =VLOOKUP($A10,'RECAP DIRCOM'!$G$6:$FJ$12,17,FALSE) -> 0.20 | Q10: =VLOOKUP($A10,'RECAP DIRCOM'!$G$6:$FJ$12,18,FALSE) -> 0.50 | R10: =VLOOKUP($A10,'RECAP DIRCOM'!$G$6:$FJ$12,19,FALSE) -> 0% | S10: =VLOOKUP($A10,'RECAP DIRCOM'!$G$6:$FJ$12,20,FALSE) -> 1 | T10: =VLOOKUP($A10,'RECAP DIRCOM'!$G$6:$FJ$12,21,FALSE) -> 26% | U10: =VLOOKUP($A10,'RECAP DIRCOM'!$G$6:$FJ$12,22,FALSE) -> 2% | V10: =VLOOKUP($A10,'RECAP DIRCOM'!$G$6:$FJ$12,23,FALSE) -> 2
A11: 262 | B11: Bas-Rhin | C11: =VLOOKUP($A11,'RECAP DIRCOM'!$G$6:$FJ$12,3,FALSE) -> 258 | D11: =VLOOKUP($A11,'RECAP DIRCOM'!$G$6:$FJ$12,5,FALSE) -> -4.50 | E11: =VLOOKUP($A11,'RECAP DIRCOM'!$G$6:$FJ$12,6,FALSE) -> -2.25 | F11: =VLOOKUP($A11,'RECAP DIRCOM'!$G$6:$FJ$12,7,FALSE) -> 86% | G11: =VLOOKUP($A11,'RECAP DIRCOM'!$G$6:$FJ$12,8,FALSE) -> 6 | H11: =VLOOKUP($A11,'RECAP DIRCOM'!$G$6:$FJ$12,9,FALSE) -> 0.45 | I11: =VLOOKUP($A11,'RECAP DIRCOM'!$G$6:$FJ$12,10,FALSE) -> 0.31 | J11: =VLOOKUP($A11,'RECAP DIRCOM'!$G$6:$FJ$12,11,FALSE) -> 53% | K11: =VLOOKUP($A11,'RECAP DIRCOM'!$G$6:$FJ$12,12,FALSE) -> 7 | L11: =VLOOKUP($A11,'RECAP DIRCOM'!$G$6:$FJ$12,13,FALSE) -> -3.81 | M11: =VLOOKUP($A11,'RECAP DIRCOM'!$G$6:$FJ$12,14,FALSE) -> -0.57 | N11: =VLOOKUP($A11,'RECAP DIRCOM'!$G$6:$FJ$12,15,FALSE) -> 62% | O11: =VLOOKUP($A11,'RECAP DIRCOM'!$G$6:$FJ$12,16,FALSE) -> 4 | P11: =VLOOKUP($A11,'RECAP DIRCOM'!$G$6:$FJ$12,17,FALSE) -> 0.04 | Q11: =VLOOKUP($A11,'RECAP DIRCOM'!$G$6:$FJ$12,18,FALSE) -> 0.11 | R11: =VLOOKUP($A11,'RECAP DIRCOM'!$G$6:$FJ$12,19,FALSE) -> 79% | S11: =VLOOKUP($A11,'RECAP DIRCOM'!$G$6:$FJ$12,20,FALSE) -> 7 | T11: =VLOOKUP($A11,'RECAP DIRCOM'!$G$6:$FJ$12,21,FALSE) -> 69% | U11: =VLOOKUP($A11,'RECAP DIRCOM'!$G$6:$FJ$12,22,FALSE) -> 45% | V11: =VLOOKUP($A11,'RECAP DIRCOM'!$G$6:$FJ$12,23,FALSE) -> 6
A12: 264 | B12: Haut-Rhin | C12: =VLOOKUP($A12,'RECAP DIRCOM'!$G$6:$FJ$12,3,FALSE) -> 157 | D12: =VLOOKUP($A12,'RECAP DIRCOM'!$G$6:$FJ$12,5,FALSE) -> -6.38 | E12: =VLOOKUP($A12,'RECAP DIRCOM'!$G$6:$FJ$12,6,FALSE) -> -3.19 | F12: =VLOOKUP($A12,'RECAP DIRCOM'!$G$6:$FJ$12,7,FALSE) -> 150% | G12: =VLOOKUP($A12,'RECAP DIRCOM'!$G$6:$FJ$12,8,FALSE) -> 7 | H12: =VLOOKUP($A12,'RECAP DIRCOM'!$G$6:$FJ$12,9,FALSE) -> 0.48 | I12: =VLOOKUP($A12,'RECAP DIRCOM'!$G$6:$FJ$12,10,FALSE) -> 0.34 | J12: =VLOOKUP($A12,'RECAP DIRCOM'!$G$6:$FJ$12,11,FALSE) -> 50% | K12: =VLOOKUP($A12,'RECAP DIRCOM'!$G$6:$FJ$12,12,FALSE) -> 5 | L12: =VLOOKUP($A12,'RECAP DIRCOM'!$G$6:$FJ$12,13,FALSE) -> -4.68 | M12: =VLOOKUP($A12,'RECAP DIRCOM'!$G$6:$FJ$12,14,FALSE) -> -0.70 | N12: =VLOOKUP($A12,'RECAP DIRCOM'!$G$6:$FJ$12,15,FALSE) -> 99% | O12: =VLOOKUP($A12,'RECAP DIRCOM'!$G$6:$FJ$12,16,FALSE) -> 7 | P12: =VLOOKUP($A12,'RECAP DIRCOM'!$G$6:$FJ$12,17,FALSE) -> 0.11 | Q12: =VLOOKUP($A12,'RECAP DIRCOM'!$G$6:$FJ$12,18,FALSE) -> 0.27 | R12: =VLOOKUP($A12,'RECAP DIRCOM'!$G$6:$FJ$12,19,FALSE) -> 46% | S12: =VLOOKUP($A12,'RECAP DIRCOM'!$G$6:$FJ$12,20,FALSE) -> 5 | T12: =VLOOKUP($A12,'RECAP DIRCOM'!$G$6:$FJ$12,21,FALSE) -> 86% | U12: =VLOOKUP($A12,'RECAP DIRCOM'!$G$6:$FJ$12,22,FALSE) -> 62% | V12: =VLOOKUP($A12,'RECAP DIRCOM'!$G$6:$FJ$12,23,FALSE) -> 7
A13: 30 | B13: Marne-Ardennes | C13: =VLOOKUP($A13,'RECAP DIRCOM'!$G$6:$FJ$12,3,FALSE) -> 223 | D13: =VLOOKUP($A13,'RECAP DIRCOM'!$G$6:$FJ$12,5,FALSE) -> -2.00 | E13: =VLOOKUP($A13,'RECAP DIRCOM'!$G$6:$FJ$12,6,FALSE) -> -1.00 | F13: =VLOOKUP($A13,'RECAP DIRCOM'!$G$6:$FJ$12,7,FALSE) -> 0% | G13: =VLOOKUP($A13,'RECAP DIRCOM'!$G$6:$FJ$12,8,FALSE) -> 1 | H13: =VLOOKUP($A13,'RECAP DIRCOM'!$G$6:$FJ$12,9,FALSE) -> 0.55 | I13: =VLOOKUP($A13,'RECAP DIRCOM'!$G$6:$FJ$12,10,FALSE) -> 0.38 | J13: =VLOOKUP($A13,'RECAP DIRCOM'!$G$6:$FJ$12,11,FALSE) -> 43% | K13: =VLOOKUP($A13,'RECAP DIRCOM'!$G$6:$FJ$12,12,FALSE) -> 4 | L13: =VLOOKUP($A13,'RECAP DIRCOM'!$G$6:$FJ$12,13,FALSE) -> -2.35 | M13: =VLOOKUP($A13,'RECAP DIRCOM'!$G$6:$FJ$12,14,FALSE) -> -0.35 | N13: =VLOOKUP($A13,'RECAP DIRCOM'!$G$6:$FJ$12,15,FALSE) -> 0% | O13: =VLOOKUP($A13,'RECAP DIRCOM'!$G$6:$FJ$12,16,FALSE) -> 1 | P13: =VLOOKUP($A13,'RECAP DIRCOM'!$G$6:$FJ$12,17,FALSE) -> 0.10 | Q13: =VLOOKUP($A13,'RECAP DIRCOM'!$G$6:$FJ$12,18,FALSE) -> 0.26 | R13: =VLOOKUP($A13,'RECAP DIRCOM'!$G$6:$FJ$12,19,FALSE) -> 48% | S13: =VLOOKUP($A13,'RECAP DIRCOM'!$G$6:$FJ$12,20,FALSE) -> 6 | T13: =VLOOKUP($A13,'RECAP DIRCOM'!$G$6:$FJ$12,21,FALSE) -> 24% | U13: =VLOOKUP($A13,'RECAP DIRCOM'!$G$6:$FJ$12,22,FALSE) -> 0% | V13: =VLOOKUP($A13,'RECAP DIRCOM'!$G$6:$FJ$12,23,FALSE) -> 1
A14: 110 | B14: Meurthe et Moselle Meuse | C14: =VLOOKUP($A14,'RECAP DIRCOM'!$G$6:$FJ$12,3,FALSE) -> 229 | D14: =VLOOKUP($A14,'RECAP DIRCOM'!$G$6:$FJ$12,5,FALSE) -> -2.71 | E14: =VLOOKUP($A14,'RECAP DIRCOM'!$G$6:$FJ$12,6,FALSE) -> -1.35 | F14: =VLOOKUP($A14,'RECAP DIRCOM'!$G$6:$FJ$12,7,FALSE) -> 24% | G14: =VLOOKUP($A14,'RECAP DIRCOM'!$G$6:$FJ$12,8,FALSE) -> 2 | H14: =VLOOKUP($A14,'RECAP DIRCOM'!$G$6:$FJ$12,9,FALSE) -> 0.46 | I14: =VLOOKUP($A14,'RECAP DIRCOM'!$G$6:$FJ$12,10,FALSE) -> 0.32 | J14: =VLOOKUP($A14,'RECAP DIRCOM'!$G$6:$FJ$12,11,FALSE) -> 53% | K14: =VLOOKUP($A14,'RECAP DIRCOM'!$G$6:$FJ$12,12,FALSE) -> 6 | L14: =VLOOKUP($A14,'RECAP DIRCOM'!$G$6:$FJ$12,13,FALSE) -> -2.53 | M14: =VLOOKUP($A14,'RECAP DIRCOM'!$G$6:$FJ$12,14,FALSE) -> -0.38 | N14: =VLOOKUP($A14,'RECAP DIRCOM'!$G$6:$FJ$12,15,FALSE) -> 8% | O14: =VLOOKUP($A14,'RECAP DIRCOM'!$G$6:$FJ$12,16,FALSE) -> 2 | P14: =VLOOKUP($A14,'RECAP DIRCOM'!$G$6:$FJ$12,17,FALSE) -> 0.12 | Q14: =VLOOKUP($A14,'RECAP DIRCOM'!$G$6:$FJ$12,18,FALSE) -> 0.29 | R14: =VLOOKUP($A14,'RECAP DIRCOM'!$G$6:$FJ$12,19,FALSE) -> 41% | S14: =VLOOKUP($A14,'RECAP DIRCOM'!$G$6:$FJ$12,20,FALSE) -> 3 | T14: =VLOOKUP($A14,'RECAP DIRCOM'!$G$6:$FJ$12,21,FALSE) -> 34% | U14: =VLOOKUP($A14,'RECAP DIRCOM'!$G$6:$FJ$12,22,FALSE) -> 10% | V14: =VLOOKUP($A14,'RECAP DIRCOM'!$G$6:$FJ$12,23,FALSE) -> 3
A15: 160 | B15: Moselle | C15: =VLOOKUP($A15,'RECAP DIRCOM'!$G$6:$FJ$12,3,FALSE) -> 266 | D15: =VLOOKUP($A15,'RECAP DIRCOM'!$G$6:$FJ$12,5,FALSE) -> -3.91 | E15: =VLOOKUP($A15,'RECAP DIRCOM'!$G$6:$FJ$12,6,FALSE) -> -1.96 | F15: =VLOOKUP($A15,'RECAP DIRCOM'!$G$6:$FJ$12,7,FALSE) -> 66% | G15: =VLOOKUP($A15,'RECAP DIRCOM'!$G$6:$FJ$12,8,FALSE) -> 5 | H15: =VLOOKUP($A15,'RECAP DIRCOM'!$G$6:$FJ$12,9,FALSE) -> 0.83 | I15: =VLOOKUP($A15,'RECAP DIRCOM'!$G$6:$FJ$12,10,FALSE) -> 0.58 | J15: =VLOOKUP($A15,'RECAP DIRCOM'!$G$6:$FJ$12,11,FALSE) -> 14% | K15: =VLOOKUP($A15,'RECAP DIRCOM'!$G$6:$FJ$12,12,FALSE) -> 2 | L15: =VLOOKUP($A15,'RECAP DIRCOM'!$G$6:$FJ$12,13,FALSE) -> -3.83 | M15: =VLOOKUP($A15,'RECAP DIRCOM'!$G$6:$FJ$12,14,FALSE) -> -0.57 | N15: =VLOOKUP($A15,'RECAP DIRCOM'!$G$6:$FJ$12,15,FALSE) -> 63% | O15: =VLOOKUP($A15,'RECAP DIRCOM'!$G$6:$FJ$12,16,FALSE) -> 5 | P15: =VLOOKUP($A15,'RECAP DIRCOM'!$G$6:$FJ$12,17,FALSE) -> 0.12 | Q15: =VLOOKUP($A15,'RECAP DIRCOM'!$G$6:$FJ$12,18,FALSE) -> 0.29 | R15: =VLOOKUP($A15,'RECAP DIRCOM'!$G$6:$FJ$12,19,FALSE) -> 42% | S15: =VLOOKUP($A15,'RECAP DIRCOM'!$G$6:$FJ$12,20,FALSE) -> 4 | T15: =VLOOKUP($A15,'RECAP DIRCOM'!$G$6:$FJ$12,21,FALSE) -> 43% | U15: =VLOOKUP($A15,'RECAP DIRCOM'!$G$6:$FJ$12,22,FALSE) -> 19% | V15: =VLOOKUP($A15,'RECAP DIRCOM'!$G$6:$FJ$12,23,FALSE) -> 5
A16: 80 | B16: Vosges | C16: =VLOOKUP($A16,'RECAP DIRCOM'!$G$6:$FJ$12,3,FALSE) -> 131 | D16: =VLOOKUP($A16,'RECAP DIRCOM'!$G$6:$FJ$12,5,FALSE) -> -3.86 | E16: =VLOOKUP($A16,'RECAP DIRCOM'!$G$6:$FJ$12,6,FALSE) -> -1.93 | F16: =VLOOKUP($A16,'RECAP DIRCOM'!$G$6:$FJ$12,7,FALSE) -> 64% | G16: =VLOOKUP($A16,'RECAP DIRCOM'!$G$6:$FJ$12,8,FALSE) -> 4 | H16: =VLOOKUP($A16,'RECAP DIRCOM'!$G$6:$FJ$12,9,FALSE) -> 0.79 | I16: =VLOOKUP($A16,'RECAP DIRCOM'!$G$6:$FJ$12,10,FALSE) -> 0.55 | J16: =VLOOKUP($A16,'RECAP DIRCOM'!$G$6:$FJ$12,11,FALSE) -> 19% | K16: =VLOOKUP($A16,'RECAP DIRCOM'!$G$6:$FJ$12,12,FALSE) -> 3 | L16: =VLOOKUP($A16,'RECAP DIRCOM'!$G$6:$FJ$12,13,FALSE) -> -4.10 | M16: =VLOOKUP($A16,'RECAP DIRCOM'!$G$6:$FJ$12,14,FALSE) -> -0.62 | N16: =VLOOKUP($A16,'RECAP DIRCOM'!$G$6:$FJ$12,15,FALSE) -> 75% | O16: =VLOOKUP($A16,'RECAP DIRCOM'!$G$6:$FJ$12,16,FALSE) -> 6 | P16: =VLOOKUP($A16,'RECAP DIRCOM'!$G$6:$FJ$12,17,FALSE) -> 0.18 | Q16: =VLOOKUP($A16,'RECAP DIRCOM'!$G$6:$FJ$12,18,FALSE) -> 0.46 | R16: =VLOOKUP($A16,'RECAP DIRCOM'!$G$6:$FJ$12,19,FALSE) -> 8% | S16: =VLOOKUP($A16,'RECAP DIRCOM'!$G$6:$FJ$12,20,FALSE) -> 2 | T16: =VLOOKUP($A16,'RECAP DIRCOM'!$G$6:$FJ$12,21,FALSE) -> 40% | U16: =VLOOKUP($A16,'RECAP DIRCOM'!$G$6:$FJ$12,22,FALSE) -> 16% | V16: =VLOOKUP($A16,'RECAP DIRCOM'!$G$6:$FJ$12,23,FALSE) -> 4
B17: Total CEGEE Directions Régionales | C17: =SUM(C10:C16) -> 1390

Sheet DC_ACCELER
B1: Accueil | D1: BAROMETRE BDD - DIRECTIONS REGIONALES
D2: ACCELERATEURS DE PNB
D3: =ACCUEIL!F7 -> 2020-06-28
D7: Ventes brutes SED finalisées | H7: Clients Equipés E documents | L7: Economie Opt'in | P7: Remises Commerciales | T7: Total Accélérateurs PNB
D8: =DATEMAJ!C31 -> au 28/06 | F8: coef | G8: ='RECAP DIRCOM'!EE4 -> 6% | H8: =DATEMAJ!C32 -> au 30/04 | J8: coef | K8: ='RECAP DIRCOM'!EI4 -> 3% | L8: =DATEMAJ!C33 -> au 30/04 | N8: coef | O8: ='RECAP DIRCOM'!EM4 -> 3% | P8: =DATEMAJ!C34 -> au 31/05 | R8: coef | S8: ='RECAP DIRCOM'!EQ4 -> 3% | U8: coef | V8: ='RECAP DIRCOM'!ET4 -> 15%
B9: Direction | C9: ="ETP perf "&DATEMAJ!$C$39 -> ETP perf au 31/05 | D9: Nb / ETP | E9: PNB / ETP | F9: % Ecart au 1er | G9: Rang | H9: Nb / ETP | I9: PNB / ETP | J9: % Ecart au 1er | K9: Rang | L9: Nb / ETP | M9: PNB / ETP | N9: % Ecart au 1er | O9: Rang | P9: Rem / ETP | Q9: PNB / ETP | R9: % Ecart au 1er | S9: Rang | T9: Moyenne ecart au 1er | U9: % Ecart au 1er | V9: Rang CEGEE
A10: 50 | B10: Aube Haute Marne | C10: =VLOOKUP($A10,'RECAP DIRCOM'!$G$6:$FJ$12,3,FALSE) -> 125 | D10: =VLOOKUP($A10,'RECAP DIRCOM'!$G$6:$FJ$12,126,FALSE) -> 24.98 | E10: =VLOOKUP($A10,'RECAP DIRCOM'!$G$6:$FJ$12,127,FALSE) -> 0.25 | F10: =VLOOKUP($A10,'RECAP DIRCOM'!$G$6:$FJ$12,128,FALSE) -> 23% | G10: =VLOOKUP($A10,'RECAP DIRCOM'!$G$6:$FJ$12,129,FALSE) -> 5 | H10: =VLOOKUP($A10,'RECAP DIRCOM'!$G$6:$FJ$12,130,FALSE) -> 11.46 | I10: =VLOOKUP($A10,'RECAP DIRCOM'!$G$6:$FJ$12,131,FALSE) -> 0.57 | J10: =VLOOKUP($A10,'RECAP DIRCOM'!$G$6:$FJ$12,132,FALSE) -> 31% | K10: =VLOOKUP($A10,'RECAP DIRCOM'!$G$6:$FJ$12,133,FALSE) -> 5 | L10: =VLOOKUP($A10,'RECAP DIRCOM'!$G$6:$FJ$12,134,FALSE) -> 13.71 | M10: =VLOOKUP($A10,'RECAP DIRCOM'!$G$6:$FJ$12,135,FALSE) -> 0.21 | N10: =VLOOKUP($A10,'RECAP DIRCOM'!$G$6:$FJ$12,136,FALSE) -> 44% | O10: =VLOOKUP($A10,'RECAP DIRCOM'!$G$6:$FJ$12,137,FALSE) -> 2 | P10: =VLOOKUP($A10,'RECAP DIRCOM'!$G$6:$FJ$12,138,FALSE) -> -149.63 | Q10: =VLOOKUP($A10,'RECAP DIRCOM'!$G$6:$FJ$12,139,FALSE) -> -1.19 | R10: =VLOOKUP($A10,'RECAP DIRCOM'!$G$6:$FJ$12,140,FALSE) -> 0% | S10: =VLOOKUP($A10,'RECAP DIRCOM'!$G$6:$FJ$12,141,FALSE) -> 1 | T10: =VLOOKUP($A10,'RECAP DIRCOM'!$G$6:$FJ$12,142,FALSE) -> 24% | U10: =VLOOKUP($A10,'RECAP DIRCOM'!$G$6:$FJ$12,143,FALSE) -> 12% | V10: =VLOOKUP($A10,'RECAP DIRCOM'!$G$6:$FJ$12,144,FALSE) -> 4
A11: 262 | B11: Bas-Rhin | C11: =VLOOKUP($A11,'RECAP DIRCOM'!$G$6:$FJ$12,3,FALSE) -> 258 | D11: =VLOOKUP($A11,'RECAP DIRCOM'!$G$6:$FJ$12,126,FALSE) -> 26.10 | E11: =VLOOKUP($A11,'RECAP DIRCOM'!$G$6:$FJ$12,127,FALSE) -> 0.26 | F11: =VLOOKUP($A11,'RECAP DIRCOM'!$G$6:$FJ$12,128,FALSE) -> 20% | G11: =VLOOKUP($A11,'RECAP DIRCOM'!$G$6:$FJ$12,129,FALSE) -> 4 | H11: =VLOOKUP($A11,'RECAP DIRCOM'!$G$6:$FJ$12,130,FALSE) -> 13.26 | I11: =VLOOKUP($A11,'RECAP DIRCOM'!$G$6:$FJ$12,131,FALSE) -> 0.66 | J11: =VLOOKUP($A11,'RECAP DIRCOM'!$G$6:$FJ$12,132,FALSE) -> 20% | K11: =VLOOKUP($A11,'RECAP DIRCOM'!$G$6:$FJ$12,133,FALSE) -> 3 | L11: =VLOOKUP($A11,'RECAP DIRCOM'!$G$6:$FJ$12,134,FALSE) -> 24.35 | M11: =VLOOKUP($A11,'RECAP DIRCOM'!$G$6:$FJ$12,135,FALSE) -> 0.37 | N11: =VLOOKUP($A11,'RECAP DIRCOM'!$G$6:$FJ$12,136,FALSE) -> 0% | O11: =VLOOKUP($A11,'RECAP DIRCOM'!$G$6:$FJ$12,137,FALSE) -> 1 | P11: =VLOOKUP($A11,'RECAP DIRCOM'!$G$6:$FJ$12,138,FALSE) -> -363.44 | Q11: =VLOOKUP($A11,'RECAP DIRCOM'!$G$6:$FJ$12,139,FALSE) -> -1.41 | R11: =VLOOKUP($A11,'RECAP DIRCOM'!$G$6:$FJ$12,140,FALSE) -> 18% | S11: =VLOOKUP($A11,'RECAP DIRCOM'!$G$6:$FJ$12,141,FALSE) -> 5 | T11: =VLOOKUP($A11,'RECAP DIRCOM'!$G$6:$FJ$12,142,FALSE) -> 16% | U11: =VLOOKUP($A11,'RECAP DIRCOM'!$G$6:$FJ$12,143,FALSE) -> 3% | V11: =VLOOKUP($A11,'RECAP DIRCOM'!$G$6:$FJ$12,144,FALSE) -> 2
A12: 264 | B12: Haut-Rhin | C12: =VLOOKUP($A12,'RECAP DIRCOM'!$G$6:$FJ$12,3,FALSE) -> 157 | D12: =VLOOKUP($A12,'RECAP DIRCOM'!$G$6:$FJ$12,126,FALSE) -> 19.78 | E12: =VLOOKUP($A12,'RECAP DIRCOM'!$G$6:$FJ$12,127,FALSE) -> 0.20 | F12: =VLOOKUP($A12,'RECAP DIRCOM'!$G$6:$FJ$12,128,FALSE) -> 39% | G12: =VLOOKUP($A12,'RECAP DIRCOM'!$G$6:$FJ$12,129,FALSE) -> 7 | H12: =VLOOKUP($A12,'RECAP DIRCOM'!$G$6:$FJ$12,130,FALSE) -> 10.57 | I12: =VLOOKUP($A12,'RECAP DIRCOM'!$G$6:$FJ$12,131,FALSE) -> 0.53 | J12: =VLOOKUP($A12,'RECAP DIRCOM'!$G$6:$FJ$12,132,FALSE) -> 37% | K12: =VLOOKUP($A12,'RECAP DIRCOM'!$G$6:$FJ$12,133,FALSE) -> 6 | L12: =VLOOKUP($A12,'RECAP DIRCOM'!$G$6:$FJ$12,134,FALSE) -> 8.74 | M12: =VLOOKUP($A12,'RECAP DIRCOM'!$G$6:$FJ$12,135,FALSE) -> 0.13 | N12: =VLOOKUP($A12,'RECAP DIRCOM'!$G$6:$FJ$12,136,FALSE) -> 64% | O12: =VLOOKUP($A12,'RECAP DIRCOM'!$G$6:$FJ$12,137,FALSE) -> 5 | P12: =VLOOKUP($A12,'RECAP DIRCOM'!$G$6:$FJ$12,138,FALSE) -> -243.72 | Q12: =VLOOKUP($A12,'RECAP DIRCOM'!$G$6:$FJ$12,139,FALSE) -> -1.56 | R12: =VLOOKUP($A12,'RECAP DIRCOM'!$G$6:$FJ$12,140,FALSE) -> 30% | S12: =VLOOKUP($A12,'RECAP DIRCOM'!$G$6:$FJ$12,141,FALSE) -> 7 | T12: =VLOOKUP($A12,'RECAP DIRCOM'!$G$6:$FJ$12,142,FALSE) -> 42% | U12: =VLOOKUP($A12,'RECAP DIRCOM'!$G$6:$FJ$12,143,FALSE) -> 30% | V12: =VLOOKUP($A12,'RECAP DIRCOM'!$G$6:$FJ$12,144,FALSE) -> 7
A13: 30 | B13: Marne-Ardennes | C13: =VLOOKUP($A13,'RECAP DIRCOM'!$G$6:$FJ$12,3,FALSE) -> 223 | D13: =VLOOKUP($A13,'RECAP DIRCOM'!$G$6:$FJ$12,126,FALSE) -> 32.24 | E13: =VLOOKUP($A13,'RECAP DIRCOM'!$G$6:$FJ$12,127,FALSE) -> 0.32 | F13: =VLOOKUP($A13,'RECAP DIRCOM'!$G$6:$FJ$12,128,FALSE) -> 1% | G13: =VLOOKUP($A13,'RECAP DIRCOM'!$G$6:$FJ$12,129,FALSE) -> 2 | H13: =VLOOKUP($A13,'RECAP DIRCOM'!$G$6:$FJ$12,130,FALSE) -> 16.67 | I13: =VLOOKUP($A13,'RECAP DIRCOM'!$G$6:$FJ$12,131,FALSE) -> 0.83 | J13: =VLOOKUP($A13,'RECAP DIRCOM'!$G$6:$FJ$12,132,FALSE) -> 0% | K13: =VLOOKUP($A13,'RECAP DIRCOM'!$G$6:$FJ$12,133,FALSE) -> 1 | L13: =VLOOKUP($A13,'RECAP DIRCOM'!$G$6:$FJ$12,134,FALSE) -> 12.17 | M13: =VLOOKUP($A13,'RECAP DIRCOM'!$G$6:$FJ$12,135,FALSE) -> 0.18 | N13: =VLOOKUP($A13,'RECAP DIRCOM'!$G$6:$FJ$12,136,FALSE) -> 50% | O13: =VLOOKUP($A13,'RECAP DIRCOM'!$G$6:$FJ$12,137,FALSE) -> 4 | P13: =VLOOKUP($A13,'RECAP DIRCOM'!$G$6:$FJ$12,138,FALSE) -> -289.59 | Q13: =VLOOKUP($A13,'RECAP DIRCOM'!$G$6:$FJ$12,139,FALSE) -> -1.30 | R13: =VLOOKUP($A13,'RECAP DIRCOM'!$G$6:$FJ$12,140,FALSE) -> 9% | S13: =VLOOKUP($A13,'RECAP DIRCOM'!$G$6:$FJ$12,141,FALSE) -> 2 | T13: =VLOOKUP($A13,'RECAP DIRCOM'!$G$6:$FJ$12,142,FALSE) -> 12% | U13: =VLOOKUP($A13,'RECAP DIRCOM'!$G$6:$FJ$12,143,FALSE) -> 0% | V13: =VLOOKUP($A13,'RECAP DIRCOM'!$G$6:$FJ$12,144,FALSE) -> 1
A14: 110 | B14: Meurthe et Moselle Meuse | C14: =VLOOKUP($A14,'RECAP DIRCOM'!$G$6:$FJ$12,3,FALSE) -> 229 | D14: =VLOOKUP($A14,'RECAP DIRCOM'!$G$6:$FJ$12,126,FALSE) -> 32.62 | E14: =VLOOKUP($A14,'RECAP DIRCOM'!$G$6:$FJ$12,127,FALSE) -> 0.33 | F14: =VLOOKUP($A14,'RECAP DIRCOM'!$G$6:$FJ$12,128,FALSE) -> 0% | G14: =VLOOKUP($A14,'RECAP DIRCOM'!$G$6:$FJ$12,129,FALSE) -> 1 | H14: =VLOOKUP($A14,'RECAP DIRCOM'!$G$6:$FJ$12,130,FALSE) -> 14.69 | I14: =VLOOKUP($A14,'RECAP DIRCOM'!$G$6:$FJ$12,131,FALSE) -> 0.73 | J14: =VLOOKUP($A14,'RECAP DIRCOM'!$G$6:$FJ$12,132,FALSE) -> 12% | K14: =VLOOKUP($A14,'RECAP DIRCOM'!$G$6:$FJ$12,133,FALSE) -> 2 | L14: =VLOOKUP($A14,'RECAP DIRCOM'!$G$6:$FJ$12,134,FALSE) -> 12.97 | M14: =VLOOKUP($A14,'RECAP DIRCOM'!$G$6:$FJ$12,135,FALSE) -> 0.19 | N14: =VLOOKUP($A14,'RECAP DIRCOM'!$G$6:$FJ$12,136,FALSE) -> 47% | O14: =VLOOKUP($A14,'RECAP DIRCOM'!$G$6:$FJ$12,137,FALSE) -> 3 | P14: =VLOOKUP($A14,'RECAP DIRCOM'!$G$6:$FJ$12,138,FALSE) -> -340.02 | Q14: =VLOOKUP($A14,'RECAP DIRCOM'!$G$6:$FJ$12,139,FALSE) -> -1.48 | R14: =VLOOKUP($A14,'RECAP DIRCOM'!$G$6:$FJ$12,140,FALSE) -> 24% | S14: =VLOOKUP($A14,'RECAP DIRCOM'!$G$6:$FJ$12,141,FALSE) -> 6 | T14: =VLOOKUP($A14,'RECAP DIRCOM'!$G$6:$FJ$12,142,FALSE) -> 17% | U14: =VLOOKUP($A14,'RECAP DIRCOM'!$G$6:$FJ$12,143,FALSE) -> 4% | V14: =VLOOKUP($A14,'RECAP DIRCOM'!$G$6:$FJ$12,144,FALSE) -> 3
A15: 160 | B15: Moselle | C15: =VLOOKUP($A15,'RECAP DIRCOM'!$G$6:$FJ$12,3,FALSE) -> 266 | D15: =VLOOKUP($A15,'RECAP DIRCOM'!$G$6:$FJ$12,126,FALSE) -> 29.68 | E15: =VLOOKUP($A15,'RECAP DIRCOM'!$G$6:$FJ$12,127,FALSE) -> 0.30 | F15: =VLOOKUP($A15,'RECAP DIRCOM'!$G$6:$FJ$12,128,FALSE) -> 9% | G15: =VLOOKUP($A15,'RECAP DIRCOM'!$G$6:$FJ$12,129,FALSE) -> 3 | H15: =VLOOKUP($A15,'RECAP DIRCOM'!$G$6:$FJ$12,130,FALSE) -> 11.52 | I15: =VLOOKUP($A15,'RECAP DIRCOM'!$G$6:$FJ$12,131,FALSE) -> 0.58 | J15: =VLOOKUP($A15,'RECAP DIRCOM'!$G$6:$FJ$12,132,FALSE) -> 31% | K15: =VLOOKUP($A15,'RECAP DIRCOM'!$G$6:$FJ$12,133,FALSE) -> 4 | L15: =VLOOKUP($A15,'RECAP DIRCOM'!$G$6:$FJ$12,134,FALSE) -> 5.15 | M15: =VLOOKUP($A15,'RECAP DIRCOM'!$G$6:$FJ$12,135,FALSE) -> 0.08 | N15: =VLOOKUP($A15,'RECAP DIRCOM'!$G$6:$FJ$12,136,FALSE) -> 79% | O15: =VLOOKUP($A15,'RECAP DIRCOM'!$G$6:$FJ$12,137,FALSE) -> 7 | P15: =VLOOKUP($A15,'RECAP DIRCOM'!$G$6:$FJ$12,138,FALSE) -> -353.72 | Q15: =VLOOKUP($A15,'RECAP DIRCOM'!$G$6:$FJ$12,139,FALSE) -> -1.33 | R15: =VLOOKUP($A15,'RECAP DIRCOM'!$G$6:$FJ$12,140,FALSE) -> 11% | S15: =VLOOKUP($A15,'RECAP DIRCOM'!$G$6:$FJ$12,141,FALSE) -> 3 | T15: =VLOOKUP($A15,'RECAP DIRCOM'!$G$6:$FJ$12,142,FALSE) -> 28% | U15: =VLOOKUP($A15,'RECAP DIRCOM'!$G$6:$FJ$12,143,FALSE) -> 16% | V15: =VLOOKUP($A15,'RECAP DIRCOM'!$G$6:$FJ$12,144,FALSE) -> 5
A16: 80 | B16: Vosges | C16: =VLOOKUP($A16,'RECAP DIRCOM'!$G$6:$FJ$12,3,FALSE) -> 131 | D16: =VLOOKUP($A16,'RECAP DIRCOM'!$G$6:$FJ$12,126,FALSE) -> 22.80 | E16: =VLOOKUP($A16,'RECAP DIRCOM'!$G$6:$FJ$12,127,FALSE) -> 0.23 | F16: =VLOOKUP($A16,'RECAP DIRCOM'!$G$6:$FJ$12,128,FALSE) -> 30% | G16: =VLOOKUP($A16,'RECAP DIRCOM'!$G$6:$FJ$12,129,FALSE) -> 6 | H16: =VLOOKUP($A16,'RECAP DIRCOM'!$G$6:$FJ$12,130,FALSE) -> 9.69 | I16: =VLOOKUP($A16,'RECAP DIRCOM'!$G$6:$FJ$12,131,FALSE) -> 0.48 | J16: =VLOOKUP($A16,'RECAP DIRCOM'!$G$6:$FJ$12,132,FALSE) -> 42% | K16: =VLOOKUP($A16,'RECAP DIRCOM'!$G$6:$FJ$12,133,FALSE) -> 7 | L16: =VLOOKUP($A16,'RECAP DIRCOM'!$G$6:$FJ$12,134,FALSE) -> 7.42 | M16: =VLOOKUP($A16,'RECAP DIRCOM'!$G$6:$FJ$12,135,FALSE) -> 0.11 | N16: =VLOOKUP($A16,'RECAP DIRCOM'!$G$6:$FJ$12,136,FALSE) -> 70% | O16: =VLOOKUP($A16,'RECAP DIRCOM'!$G$6:$FJ$12,137,FALSE) -> 6 | P16: =VLOOKUP($A16,'RECAP DIRCOM'!$G$6:$FJ$12,138,FALSE) -> -181.96 | Q16: =VLOOKUP($A16,'RECAP DIRCOM'!$G$6:$FJ$12,139,FALSE) -> -1.39 | R16: =VLOOKUP($A16,'RECAP DIRCOM'!$G$6:$FJ$12,140,FALSE) -> 16% | S16: =VLOOKUP($A16,'RECAP DIRCOM'!$G$6:$FJ$12,141,FALSE) -> 4 | T16: =VLOOKUP($A16,'RECAP DIRCOM'!$G$6:$FJ$12,142,FALSE) -> 38% | U16: =VLOOKUP($A16,'RECAP DIRCOM'!$G$6:$FJ$12,143,FALSE) -> 25% | V16: =VLOOKUP($A16,'RECAP DIRCOM'!$G$6:$FJ$12,144,FALSE) -> 6
B17: Total CEGEE Directions Régionales | C17: =SUM(C10:C16) -> 1390

Sheet DC_SATISFACTION
B1: Accueil | D1: BAROMETRE BDD - DIRECTIONS REGIONALES
D2: QUALITE / SATISFACTION
D3: =ACCUEIL!F7 -> 2020-06-28
D7: N P S | G7: Enquête Qualité Haute Définition | J7: Total Satisfaction Clients
D8: =DATEMAJ!C36 -> au 30/04 | E8: coef | F8: ='RECAP DIRCOM'!FC4 -> 8% | G8: =DATEMAJ!C37 -> au 30/04 | H8: coef | I8: ='RECAP DIRCOM'!FF4 -> 7% | K8: coef | L8: ='RECAP DIRCOM'!FI4 -> 15%
B9: Direction | C9: ="ETP perf "&DATEMAJ!$C$39 -> ETP perf au 31/05 | E9: % Ecart au 1er | F9: Rang | H9: % Ecart au 1er | I9: Rang | J9: Moyenne ecart au 1er | K9: % Ecart au 1er | L9: Rang CEGEE
A10: 50 | B10: Aube Haute Marne | C10: =VLOOKUP($A10,'RECAP DIRCOM'!$G$6:$FJ$12,3,FALSE) -> 125 | D10: =VLOOKUP($A10,'RECAP DIRCOM'!$G$6:$FJ$12,151,FALSE) -> -10 | E10: =VLOOKUP($A10,'RECAP DIRCOM'!$G$6:$FJ$12,152,FALSE) -> 11% | F10: =VLOOKUP($A10,'RECAP DIRCOM'!$G$6:$FJ$12,153,FALSE) -> 2 | G10: =VLOOKUP($A10,'RECAP DIRCOM'!$G$6:$FJ$12,154,FALSE) -> 45% | H10: =VLOOKUP($A10,'RECAP DIRCOM'!$G$6:$FJ$12,155,FALSE) -> 22% | I10: =VLOOKUP($A10,'RECAP DIRCOM'!$G$6:$FJ$12,156,FALSE) -> 5 | J10: =VLOOKUP($A10,'RECAP DIRCOM'!$G$6:$FJ$12,157,FALSE) -> 16% | K10: =VLOOKUP($A10,'RECAP DIRCOM'!$G$6:$FJ$12,158,FALSE) -> 16% | L10: =VLOOKUP($A10,'RECAP DIRCOM'!$G$6:$FJ$12,159,FALSE) -> 3
A11: 262 | B11: Bas-Rhin | C11: =VLOOKUP($A11,'RECAP DIRCOM'!$G$6:$FJ$12,3,FALSE) -> 258 | D11: =VLOOKUP($A11,'RECAP DIRCOM'!$G$6:$FJ$12,151,FALSE) -> -21 | E11: =VLOOKUP($A11,'RECAP DIRCOM'!$G$6:$FJ$12,152,FALSE) -> 133% | F11: =VLOOKUP($A11,'RECAP DIRCOM'!$G$6:$FJ$12,153,FALSE) -> 6 | G11: =VLOOKUP($A11,'RECAP DIRCOM'!$G$6:$FJ$12,154,FALSE) -> 40% | H11: =VLOOKUP($A11,'RECAP DIRCOM'!$G$6:$FJ$12,155,FALSE) -> 31% | I11: =VLOOKUP($A11,'RECAP DIRCOM'!$G$6:$FJ$12,156,FALSE) -> 6 | J11: =VLOOKUP($A11,'RECAP DIRCOM'!$G$6:$FJ$12,157,FALSE) -> 86% | K11: =VLOOKUP($A11,'RECAP DIRCOM'!$G$6:$FJ$12,158,FALSE) -> 86% | L11: =VLOOKUP($A11,'RECAP DIRCOM'!$G$6:$FJ$12,159,FALSE) -> 6
A12: 264 | B12: Haut-Rhin | C12: =VLOOKUP($A12,'RECAP DIRCOM'!$G$6:$FJ$12,3,FALSE) -> 157 | D12: =VLOOKUP($A12,'RECAP DIRCOM'!$G$6:$FJ$12,151,FALSE) -> -22 | E12: =VLOOKUP($A12,'RECAP DIRCOM'!$G$6:$FJ$12,152,FALSE) -> 144% | F12: =VLOOKUP($A12,'RECAP DIRCOM'!$G$6:$FJ$12,153,FALSE) -> 7 | G12: =VLOOKUP($A12,'RECAP DIRCOM'!$G$6:$FJ$12,154,FALSE) -> 38% | H12: =VLOOKUP($A12,'RECAP DIRCOM'!$G$6:$FJ$12,155,FALSE) -> 35% | I12: =VLOOKUP($A12,'RECAP DIRCOM'!$G$6:$FJ$12,156,FALSE) -> 7 | J12: =VLOOKUP($A12,'RECAP DIRCOM'!$G$6:$FJ$12,157,FALSE) -> 93% | K12: =VLOOKUP($A12,'RECAP DIRCOM'!$G$6:$FJ$12,158,FALSE) -> 93% | L12: =VLOOKUP($A12,'RECAP DIRCOM'!$G$6:$FJ$12,159,FALSE) -> 7
A13: 30 | B13: Marne-Ardennes | C13: =VLOOKUP($A13,'RECAP DIRCOM'!$G$6:$FJ$12,3,FALSE) -> 223 | D13: =VLOOKUP($A13,'RECAP DIRCOM'!$G$6:$FJ$12,151,FALSE) -> -9 | E13: =VLOOKUP($A13,'RECAP DIRCOM'!$G$6:$FJ$12,152,FALSE) -> 0% | F13: =VLOOKUP($A13,'RECAP DIRCOM'!$G$6:$FJ$12,153,FALSE) -> 1 | G13: =VLOOKUP($A13,'RECAP DIRCOM'!$G$6:$FJ$12,154,FALSE) -> 58% | H13: =VLOOKUP($A13,'RECAP DIRCOM'!$G$6:$FJ$12,155,FALSE) -> 0% | I13: =VLOOKUP($A13,'RECAP DIRCOM'!$G$6:$FJ$12,156,FALSE) -> 1 | J13: =VLOOKUP($A13,'RECAP DIRCOM'!$G$6:$FJ$12,157,FALSE) -> 0% | K13: =VLOOKUP($A13,'RECAP DIRCOM'!$G$6:$FJ$12,158,FALSE) -> 0% | L13: =VLOOKUP($A13,'RECAP DIRCOM'!$G$6:$FJ$12,159,FALSE) -> 1
A14: 110 | B14: Meurthe et Moselle Meuse | C14: =VLOOKUP($A14,'RECAP DIRCOM'!$G$6:$FJ$12,3,FALSE) -> 229 | D14: =VLOOKUP($A14,'RECAP DIRCOM'!$G$6:$FJ$12,151,FALSE) -> -10 | E14: =VLOOKUP($A14,'RECAP DIRCOM'!$G$6:$FJ$12,152,FALSE) -> 11% | F14: =VLOOKUP($A14,'RECAP DIRCOM'!$G$6:$FJ$12,153,FALSE) -> 2 | G14: =VLOOKUP($A14,'RECAP DIRCOM'!$G$6:$FJ$12,154,FALSE) -> 51% | H14: =VLOOKUP($A14,'RECAP DIRCOM'!$G$6:$FJ$12,155,FALSE) -> 13% | I14: =VLOOKUP($A14,'RECAP DIRCOM'!$G$6:$FJ$12,156,FALSE) -> 3 | J14: =VLOOKUP($A14,'RECAP DIRCOM'!$G$6:$FJ$12,157,FALSE) -> 12% | K14: =VLOOKUP($A14,'RECAP DIRCOM'!$G$6:$FJ$12,158,FALSE) -> 12% | L14: =VLOOKUP($A14,'RECAP DIRCOM'!$G$6:$FJ$12,159,FALSE) -> 2
A15: 160 | B15: Moselle | C15: =VLOOKUP($A15,'RECAP DIRCOM'!$G$6:$FJ$12,3,FALSE) -> 266 | D15: =VLOOKUP($A15,'RECAP DIRCOM'!$G$6:$FJ$12,151,FALSE) -> -14 | E15: =VLOOKUP($A15,'RECAP DIRCOM'!$G$6:$FJ$12,152,FALSE) -> 56% | F15: =VLOOKUP($A15,'RECAP DIRCOM'!$G$6:$FJ$12,153,FALSE) -> 5 | G15: =VLOOKUP($A15,'RECAP DIRCOM'!$G$6:$FJ$12,154,FALSE) -> 48% | H15: =VLOOKUP($A15,'RECAP DIRCOM'!$G$6:$FJ$12,155,FALSE) -> 17% | I15: =VLOOKUP($A15,'RECAP DIRCOM'!$G$6:$FJ$12,156,FALSE) -> 4 | J15: =VLOOKUP($A15,'RECAP DIRCOM'!$G$6:$FJ$12,157,FALSE) -> 38% | K15: =VLOOKUP($A15,'RECAP DIRCOM'!$G$6:$FJ$12,158,FALSE) -> 38% | L15: =VLOOKUP($A15,'RECAP DIRCOM'!$G$6:$FJ$12,159,FALSE) -> 5
A16: 80 | B16: Vosges | C16: =VLOOKUP($A16,'RECAP DIRCOM'!$G$6:$FJ$12,3,FALSE) -> 131 | D16: =VLOOKUP($A16,'RECAP DIRCOM'!$G$6:$FJ$12,151,FALSE) -> -11 | E16: =VLOOKUP($A16,'RECAP DIRCOM'!$G$6:$FJ$12,152,FALSE) -> 22% | F16: =VLOOKUP($A16,'RECAP DIRCOM'!$G$6:$FJ$12,153,FALSE) -> 4 | G16: =VLOOKUP($A16,'RECAP DIRCOM'!$G$6:$FJ$12,154,FALSE) -> 52% | H16: =VLOOKUP($A16,'RECAP DIRCOM'!$G$6:$FJ$12,155,FALSE) -> 11% | I16: =VLOOKUP($A16,'RECAP DIRCOM'!$G$6:$FJ$12,156,FALSE) -> 2 | J16: =VLOOKUP($A16,'RECAP DIRCOM'!$G$6:$FJ$12,157,FALSE) -> 17% | K16: =VLOOKUP($A16,'RECAP DIRCOM'!$G$6:$FJ$12,158,FALSE) -> 17% | L16: =VLOOKUP($A16,'RECAP DIRCOM'!$G$6:$FJ$12,159,FALSE) -> 4
B17: Total CEGEE Directions Régionales | C17: =SUM(C10:C16) -> 1390

Sheet SE_FICHE
A1: Accueil
A2: BAROMETRE BDD
A4: UNITE: | B4: TERRITOIRE | E4: ETP perf : | F4: =VLOOKUP(A5,'RECAP SECT'!$G$6:$I$23,3,FALSE) -> 64.91
A5: =VLOOKUP(B5,LISTES!$H$6:$I$23,2,FALSE) -> 5130 | B5: COLMAR
C6: Coefficient du critére | E6: Résultats | I6: Ecart au 1ier | M6: Evolution | O6: Rang
E7: du 1ier | G7: du territoire | I7: Du mois | K7: Au 31/12/2019
A9: RANG au CLASSEMENT GENERAL | K9: =VLOOKUP($A$5,'RECAP SECT AN'!$G$6:$FS$312,168,FALSE) -> 17 | M9: =+K9-O9 -> 1 | O9: =VLOOKUP($A$5,'RECAP SECT'!$G$6:$FS$312,168,FALSE) -> 16 | S9: =VLOOKUP($A$5,'RECAP SECT AN'!$G$6:$FE$312,154,FALSE) -> 1 | U9: =+S9-O9 -> -15
A11: CRITERE CONQUETE | C11: 15% | O11: =VLOOKUP($A$5,'RECAP SECT'!$G$6:$FS$312,23,FALSE) -> 15
B12: PNB Evolution nette Clients BP | C12: 4% | E12: ='RECAP SECT'!K4 -> -0.8 | G12: =VLOOKUP($A$5,'RECAP SECT'!$G$6:$FS$312,6,FALSE) -> -3.4 | I12: =VLOOKUP($A$5,'RECAP SECT'!$G$6:$FS$312,7,FALSE) -> 102% | K12: =VLOOKUP($A$5,'RECAP SECT AN'!$G$6:$FS$312,7,FALSE) -> 134% | M12: =+K12-I12 -> 32% | O12: =VLOOKUP($A$5,'RECAP SECT'!$G$6:$FS$312,8,FALSE) -> 16 | S12: =VLOOKUP($A$5,'RECAP SECT AN'!$G$6:$FE$312,6,FALSE) -> -181% | U12: =+S12-I12 -> -283%
B13: PNB Evolution nette Clients PREMIUM | C13: 5% | E13: ='RECAP SECT'!O4 -> 1.1 | G13: =VLOOKUP($A$5,'RECAP SECT'!$G$6:$FS$312,10,FALSE) -> 0.6 | I13: =VLOOKUP($A$5,'RECAP SECT'!$G$6:$FS$312,11,FALSE) -> 44% | K13: =VLOOKUP($A$5,'RECAP SECT AN'!$G$6:$FS$312,11,FALSE) -> 20% | M13: =+K13-I13 -> -23% | O13: =VLOOKUP($A$5,'RECAP SECT'!$G$6:$FS$312,12,FALSE) -> 7 | S13: =VLOOKUP($A$5,'RECAP SECT AN'!$G$6:$FE$312,9,FALSE) -> 287% | U13: =+S13-I13 -> 243%
B14: PNB Evolution nette Clients Jeunes Equipés | C14: 3% | E14: ='RECAP SECT'!S4 -> -0.2 | G14: =VLOOKUP($A$5,'RECAP SECT'!$G$6:$FS$312,14,FALSE) -> -0.8 | I14: =VLOOKUP($A$5,'RECAP SECT'!$G$6:$FS$312,15,FALSE) -> 112% | K14: =VLOOKUP($A$5,'RECAP SECT AN'!$G$6:$FS$312,15,FALSE) -> -99% | M14: =+K14-I14 -> -211% | O14: =VLOOKUP($A$5,'RECAP SECT'!$G$6:$FS$312,16,FALSE) -> 15 | S14: =VLOOKUP($A$5,'RECAP SECT AN'!$G$6:$FE$312,12,FALSE) -> 1300% | U14: =+S14-I14 -> 1188%
B15: PNB Evolution nette Clients Pro Actifs Equipés | C15: 3% | E15: ='RECAP SECT'!W4 -> 0.8 | G15: =VLOOKUP($A$5,'RECAP SECT'!$G$6:$FS$312,18,FALSE) -> 0.2 | I15: =VLOOKUP($A$5,'RECAP SECT'!$G$6:$FS$312,19,FALSE) -> 75% | K15: =VLOOKUP($A$5,'RECAP SECT AN'!$G$6:$FS$312,19,FALSE) -> 54% | M15: =+K15-I15 -> -21% | O15: =VLOOKUP($A$5,'RECAP SECT'!$G$6:$FS$312,20,FALSE) -> 13 | S15: =VLOOKUP($A$5,'RECAP SECT AN'!$G$6:$FE$312,15,FALSE) -> -99% | U15: =+S15-I15 -> -173%
A17: CRITERE BANCARISATION | C17: 15% | O17: =VLOOKUP($A$5,'RECAP SECT'!$G$6:$FS$312,48,FALSE) -> 12
B18: PNB Ventes nettes forfaits | C18: 4% | E18: ='RECAP SECT'!AJ4 -> 6.4 | G18: =VLOOKUP($A$5,'RECAP SECT'!$G$6:$FS$312,31,FALSE) -> 2.5 | I18: =VLOOKUP($A$5,'RECAP SECT'!$G$6:$FS$312,32,FALSE) -> 61% | K18: =VLOOKUP($A$5,'RECAP SECT AN'!$G$6:$FS$312,32,FALSE) -> 117% | M18: =+K18-I18 -> 56% | O18: =VLOOKUP($A$5,'RECAP SECT'!$G$6:$FS$312,33,FALSE) -> 11 | S18: =VLOOKUP($A$5,'RECAP SECT AN'!$G$6:$FE$312,27,FALSE) -> 0% | U18: =+S18-I18 -> -61%
B19: PNB Ventes nettes IZICARTES Débit Différé | C19: 4% | E19: ='RECAP SECT'!AN4 -> 8.0 | G19: =VLOOKUP($A$5,'RECAP SECT'!$G$6:$FS$312,35,FALSE) -> 3.6 | I19: =VLOOKUP($A$5,'RECAP SECT'!$G$6:$FS$312,36,FALSE) -> 55% | K19: =VLOOKUP($A$5,'RECAP SECT AN'!$G$6:$FS$312,36,FALSE) -> 27% | M19: =+K19-I19 -> -28% | O19: =VLOOKUP($A$5,'RECAP SECT'!$G$6:$FS$312,37,FALSE) -> 11 | S19: =VLOOKUP($A$5,'RECAP SECT AN'!$G$6:$FE$312,30,FALSE) -> 430% | U19: =+S19-I19 -> 375%
B20: PNB Ventes nettes cartes HDG Débit Différé | C20: 4% | E20: ='RECAP SECT'!AR4 -> 13.2 | G20: =VLOOKUP($A$5,'RECAP SECT'!$G$6:$FS$312,39,FALSE) -> 5.9 | I20: =VLOOKUP($A$5,'RECAP SECT'!$G$6:$FS$312,40,FALSE) -> 55% | K20: =VLOOKUP($A$5,'RECAP SECT AN'!$G$6:$FS$312,40,FALSE) -> 35% | M20: =+K20-I20 -> -20% | O20: =VLOOKUP($A$5,'RECAP SECT'!$G$6:$FS$312,41,FALSE) -> 8 | S20: =VLOOKUP($A$5,'RECAP SECT AN'!$G$6:$FE$312,33,FALSE) -> 1600% | U20: =+S20-I20 -> 1545%
B21: PNB Ventes nettes Forfaits Pro, Carte pro | C21: 3% | E21: ='RECAP SECT'!AV4 -> 1.3 | G21: =VLOOKUP($A$5,'RECAP SECT'!$G$6:$FS$312,43,FALSE) -> 0.3 | I21: =VLOOKUP($A$5,'RECAP SECT'!$G$6:$FS$312,44,FALSE) -> 80% | K21: =VLOOKUP($A$5,'RECAP SECT AN'!$G$6:$FS$312,44,FALSE) -> 87% | M21: =+K21-I21 -> 7% | O21: =VLOOKUP($A$5,'RECAP SECT'!$G$6:$FS$312,45,FALSE) -> 12 | S21: =VLOOKUP($A$5,'RECAP SECT AN'!$G$6:$FE$312,39,FALSE) -> 467% | U21: =+S21-I21 -> 387%
A23: CRITERE EPARGNE | C23: 10% | O23: =VLOOKUP($A$5,'RECAP SECT'!$G$6:$FS$312,69,FALSE) -> 10
B24: PNB Epargne Liquide | C24: 3% | E24: ='RECAP SECT'!BI4 -> 11.2 | G24: =VLOOKUP($A$5,'RECAP SECT'!$G$6:$FS$312,56,FALSE) -> 8.4 | I24: =VLOOKUP($A$5,'RECAP SECT'!$G$6:$FS$312,57,FALSE) -> 25% | K24: =VLOOKUP($A$5,'RECAP SECT AN'!$G$6:$FS$312,57,FALSE) -> 25% | M24: =+K24-I24 -> -0% | O24: =VLOOKUP($A$5,'RECAP SECT'!$G$6:$FS$312,58,FALSE) -> 6 | S24: =VLOOKUP($A$5,'RECAP SECT AN'!$G$6:$FE$312,51,FALSE) -> 0% | U24: =+S24-I24 -> -25%
B25: PNB CA UC + arbitrage | C25: 4% | E25: ='RECAP SECT'!BM4 -> 1.3 | G25: =VLOOKUP($A$5,'RECAP SECT'!$G$6:$FS$312,60,FALSE) -> 1.3 | I25: =VLOOKUP($A$5,'RECAP SECT'!$G$6:$FS$312,61,FALSE) -> 0% | K25: =VLOOKUP($A$5,'RECAP SECT AN'!$G$6:$FS$312,61,FALSE) -> 23% | M25: =+K25-I25 -> 23% | O25: =VLOOKUP($A$5,'RECAP SECT'!$G$6:$FS$312,62,FALSE) -> 1 | S25: =VLOOKUP($A$5,'RECAP SECT AN'!$G$6:$FE$312,57,FALSE) -> 25% | U25: =+S25-I25 -> 25%
B26: PNB Excédent assurance vie | C26: 3% | E26: ='RECAP SECT'!BQ4 -> 1.8 | G26: =VLOOKUP($A$5,'RECAP SECT'!$G$6:$FS$312,64,FALSE) -> -2.9 | I26: =VLOOKUP($A$5,'RECAP SECT'!$G$6:$FS$312,65,FALSE) -> 119% | K26: =VLOOKUP($A$5,'RECAP SECT AN'!$G$6:$FS$312,65,FALSE) -> 114% | M26: =+K26-I26 -> -5% | O26: =VLOOKUP($A$5,'RECAP SECT'!$G$6:$FS$312,66,FALSE) -> 16 | S26: =VLOOKUP($A$5,'RECAP SECT AN'!$G$6:$FE$312,60,FALSE) -> 107% | U26: =+S26-I26 -> -12%
A28: CRITERE CREDITS | C28: 15% | O28: =VLOOKUP($A$5,'RECAP SECT'!$G$6:$FS$312,102,FALSE) -> 17
B29: PNB crédit conso | C29: 4% | E29: ='RECAP SECT'!CD4 -> 32.9 | G29: =VLOOKUP($A$5,'RECAP SECT'!$G$6:$FS$312,77,FALSE) -> 19.7 | I29: =VLOOKUP($A$5,'RECAP SECT'!$G$6:$FS$312,78,FALSE) -> 40% | K29: =VLOOKUP($A$5,'RECAP SECT AN'!$G$6:$FS$312,78,FALSE) -> 37% | M29: =+K29-I29 -> -2% | O29: =VLOOKUP($A$5,'RECAP SECT'!$G$6:$FS$312,79,FALSE) -> 18 | S29: =VLOOKUP($A$5,'RECAP SECT AN'!$G$6:$FE$312,75,FALSE) -> 0% | U29: =+S29-I29 -> -40%
B30: PNB ADE crédit conso | C30: 1% | E30: ='RECAP SECT'!CH4 -> 8.3 | G30: =VLOOKUP($A$5,'RECAP SECT'!$G$6:$FS$312,81,FALSE) -> 4.3 | I30: =VLOOKUP($A$5,'RECAP SECT'!$G$6:$FS$312,82,FALSE) -> 47% | K30: =VLOOKUP($A$5,'RECAP SECT AN'!$G$6:$FS$312,82,FALSE) -> 44% | M30: -3% | O30: =VLOOKUP($A$5,'RECAP SECT'!$G$6:$FS$312,83,FALSE) -> 18 | S30: =VLOOKUP($A$5,'RECAP SECT AN'!$G$6:$FE$312,78,FALSE) -> 37% | U30: -10%
B31: PNB crédit immo | C31: 4% | E31: ='RECAP SECT'!CL4 -> 55.7 | G31: =VLOOKUP($A$5,'RECAP SECT'!$G$6:$FS$312,85,FALSE) -> 25.0 | I31: =VLOOKUP($A$5,'RECAP SECT'!$G$6:$FS$312,86,FALSE) -> 55% | K31: =VLOOKUP($A$5,'RECAP SECT AN'!$G$6:$FS$312,86,FALSE) -> 38% | M31: -17% | O31: =VLOOKUP($A$5,'RECAP SECT'!$G$6:$FS$312,87,FALSE) -> 17 | S31: =VLOOKUP($A$5,'RECAP SECT AN'!$G$6:$FE$312,81,FALSE) -> 782% | U31: 727%
B32: PNB ADE crédit immo | C32: 2% | E32: ='RECAP SECT'!CP4 -> 35.1 | G32: =VLOOKUP($A$5,'RECAP SECT'!$G$6:$FS$312,89,FALSE) -> 12.2 | I32: =VLOOKUP($A$5,'RECAP SECT'!$G$6:$FS$312,90,FALSE) -> 65% | K32: =VLOOKUP($A$5,'RECAP SECT AN'!$G$6:$FS$312,90,FALSE) -> 49% | M32: -17% | O32: =VLOOKUP($A$5,'RECAP SECT'!$G$6:$FS$312,91,FALSE) -> 17 | S32: =VLOOKUP($A$5,'RECAP SECT AN'!$G$6:$FE$312,84,FALSE) -> 139312% | U32: 139246%
B33: PNB SACCEF | C33: 2% | E33: ='RECAP SECT'!CT4 -> 3.2 | G33: =VLOOKUP($A$5,'RECAP SECT'!$G$6:$FS$312,93,FALSE) -> 1.3 | I33: =VLOOKUP($A$5,'RECAP SECT'!$G$6:$FS$312,94,FALSE) -> 60% | K33: =VLOOKUP($A$5,'RECAP SECT AN'!$G$6:$FS$312,94,FALSE) -> 51% | M33: -9% | O33: =VLOOKUP($A$5,'RECAP SECT'!$G$6:$FS$312,95,FALSE) -> 16 | S33: =VLOOKUP($A$5,'RECAP SECT AN'!$G$6:$FE$312,87,FALSE) -> 1100% | U33: 1040%
B34: PNB Crédit MLT + Crédit Bail | C34: 2% | E34: ='RECAP SECT'!CX4 -> 10.3 | G34: =VLOOKUP($A$5,'RECAP SECT'!$G$6:$FS$312,97,FALSE) -> 4.6 | I34: =VLOOKUP($A$5,'RECAP SECT'!$G$6:$FS$312,98,FALSE) -> 56% | K34: =VLOOKUP($A$5,'RECAP SECT AN'!$G$6:$FS$312,98,FALSE) -> 74% | M34: 19% | O34: =VLOOKUP($A$5,'RECAP SECT'!$G$6:$FS$312,99,FALSE) -> 4 | S34: =VLOOKUP($A$5,'RECAP SECT AN'!$G$6:$FE$312,90,FALSE) -> 49% | U34: -7%
A36: CRITERE IARD PREVOYANCE | C36: 15% | O36: =VLOOKUP($A$5,'RECAP SECT'!$G$6:$FS$312,119,FALSE) -> 15
B37: PNB Ventes nettes IARD | C37: 9% | E37: ='RECAP SECT'!DK4 -> 1.8 | G37: =VLOOKUP($A$5,'RECAP SECT'!$G$6:$FS$312,110,FALSE) -> 0.6 | I37: =VLOOKUP($A$5,'RECAP SECT'!$G$6:$FS$312,111,FALSE) -> 70% | K37: =VLOOKUP($A$5,'RECAP SECT AN'!$G$6:$FS$312,111,FALSE) -> 75% | M37: =+K37-I37 -> 5% | O37: =VLOOKUP($A$5,'RECAP SECT'!$G$6:$FS$312,112,FALSE) -> 15 | S37: =VLOOKUP($A$5,'RECAP SECT AN'!$G$6:$FE$312,102,FALSE) -> 1800% | U37: =+S37-I37 -> 1730%
B38: PNB Ventes nettes Prévoyance | C38: 6% | E38: ='RECAP SECT'!DO4 -> 1.5 | G38: =VLOOKUP($A$5,'RECAP SECT'!$G$6:$FS$312,114,FALSE) -> 0.9 | I38: =VLOOKUP($A$5,'RECAP SECT'!$G$6:$FS$312,115,FALSE) -> 37% | K38: =VLOOKUP($A$5,'RECAP SECT AN'!$G$6:$FS$312,115,FALSE) -> 62% | M38: =+K38-I38 -> 26% | O38: =VLOOKUP($A$5,'RECAP SECT'!$G$6:$FS$312,116,FALSE) -> 9 | S38: =VLOOKUP($A$5,'RECAP SECT AN'!$G$6:$FE$312,105,FALSE) -> 0% | U38: =+S38-I38 -> -37%
A40: CRITERE ACCELERATEURS PNB | C40: 15% | O40: =VLOOKUP($A$5,'RECAP SECT'!$G$6:$FS$312,144,FALSE) -> 16
B41: PNB Ventes brutes SED Finalisées | C41: 6% | E41: ='RECAP SECT'!EB4 -> 0.5 | G41: =VLOOKUP($A$5,'RECAP SECT'!$G$6:$FS$312,127,FALSE) -> 0.3 | I41: =VLOOKUP($A$5,'RECAP SECT'!$G$6:$FS$312,128,FALSE) -> 44% | K41: =VLOOKUP($A$5,'RECAP SECT AN'!$G$6:$FS$312,128,FALSE) -> 45% | M41: =+K41-I41 -> 0% | O41: =VLOOKUP($A$5,'RECAP SECT'!$G$6:$FS$312,129,FALSE) -> 15 | S41: =VLOOKUP($A$5,'RECAP SECT AN'!$G$6:$FE$312,120,FALSE) -> 0% | U41: =+S41-I41 -> -44%
B42: PNB clients équipés E documents | C42: 3% | E42: ='RECAP SECT'!EF4 -> 1.1 | G42: =VLOOKUP($A$5,'RECAP SECT'!$G$6:$FS$312,131,FALSE) -> 0.6 | I42: =VLOOKUP($A$5,'RECAP SECT'!$G$6:$FS$312,132,FALSE) -> 42% | K42: =VLOOKUP($A$5,'RECAP SECT AN'!$G$6:$FS$312,132,FALSE) -> 43% | M42: =+K42-I42 -> 1% | O42: =VLOOKUP($A$5,'RECAP SECT'!$G$6:$FS$312,133,FALSE) -> 14 | S42: =VLOOKUP($A$5,'RECAP SECT AN'!$G$6:$FE$312,123,FALSE) -> 0% | U42: =+S42-I42 -> -42%
B43: Economie opt'in | C43: 3% | E43: ='RECAP SECT'!EJ4 -> 0.7 | G43: =VLOOKUP($A$5,'RECAP SECT'!$G$6:$FS$312,135,FALSE) -> 0.2 | I43: =VLOOKUP($A$5,'RECAP SECT'!$G$6:$FS$312,136,FALSE) -> 71% | K43: =VLOOKUP($A$5,'RECAP SECT AN'!$G$6:$FS$312,136,FALSE) -> 55% | M43: =+K43-I43 -> -16% | O43: =VLOOKUP($A$5,'RECAP SECT'!$G$6:$FS$312,137,FALSE) -> 11
B44: Remises commerciales | C44: 3% | E44: ='RECAP SECT'!EN4 -> -1.2 | G44: =VLOOKUP($A$5,'RECAP SECT'!$G$6:$FS$312,139,FALSE) -> -1.9 | I44: =VLOOKUP($A$5,'RECAP SECT'!$G$6:$FS$312,140,FALSE) -> 63% | K44: =VLOOKUP($A$5,'RECAP SECT AN'!$G$6:$FS$312,140,FALSE) -> 45% | M44: =+K44-I44 -> -18% | O44: =VLOOKUP($A$5,'RECAP SECT'!$G$6:$FS$312,141,FALSE) -> 14 | S44: =VLOOKUP($A$5,'RECAP SECT AN'!$G$6:$FE$312,126,FALSE) -> 2124% | U44: =+S44-I44 -> 2061%
A46: CRITERE Satisfaction Clients | C46: 15% | O46: =VLOOKUP($A$5,'RECAP SECT'!$G$6:$FS$312,159,FALSE) -> 14
B47: Objectifs NPS* | C47: 8% | E47: ='RECAP SECT'!FA4 -> -2 | G47: =VLOOKUP($A$5,'RECAP SECT'!$G$6:$FS$312,151,FALSE) -> -18 | I47: =VLOOKUP($A$5,'RECAP SECT'!$G$6:$FS$312,152,FALSE) -> 86% | K47: =VLOOKUP($A$5,'RECAP SECT AN'!$G$6:$FS$312,152,FALSE) -> 110% | M47: =+K47-I47 -> 24% | O47: =VLOOKUP($A$5,'RECAP SECT'!$G$6:$FS$312,153,FALSE) -> 13 | S47: =VLOOKUP($A$5,'RECAP SECT AN'!$G$6:$FE$312,138,FALSE) -> -33048% | U47: =+S47-I47 -> -33134%
B48: Enquête Qualité Haute Définition | C48: 7% | E48: ='RECAP SECT'!FD4 -> 65% | G48: =VLOOKUP($A$5,'RECAP SECT'!$G$6:$FS$312,154,FALSE) -> 42% | I48: =VLOOKUP($A$5,'RECAP SECT'!$G$6:$FS$312,155,FALSE) -> 35% | K48: =VLOOKUP($A$5,'RECAP SECT AN'!$G$6:$FS$312,155,FALSE) -> 7% | M48: =+K48-I48 -> -29% | O48: =VLOOKUP($A$5,'RECAP SECT'!$G$6:$FS$312,156,FALSE) -> 14 | S48: =VLOOKUP($A$5,'RECAP SECT AN'!$G$6:$FE$312,141,FALSE) -> 1000% | U48: =+S48-I48 -> 965%

Sheet SE_TOTAL
B1: Accueil | F1: BAROMETRE BDD - TERRITOIRES
F2: TOTAL GENERAL
F3: =ACCUEIL!F7 -> 2020-06-28
F7: TOTAL GENERAL | I7: Total Clients | L7: Total Bancarisation | O7: Total Epargne | R7: Total Crédits | U7: Total IARD Prévoyance | X7: Total Accélérateurs PNB | AA7: Total Qualité-Satisfaction Clients
G8: coef | H8: 100% | J8: coef | K8: ='RECAP DIRCOM'!$AC$4 -> 15% | M8: coef | N8: ='RECAP DIRCOM'!$BB$4 -> 15% | P8: coef | Q8: ='RECAP DIRCOM'!$BW$4 -> 10% | S8: coef | T8: ='RECAP DIRCOM'!$DD$4 -> 15% | V8: coef | W8: ='RECAP DIRCOM'!$DU$4 -> 15% | Y8: coef | Z8: ='RECAP DIRCOM'!$ET$4 -> 15% | AB8: coef | AC8: ='RECAP DIRCOM'!$FI$4 -> 15%
B9: Direction | C9: eds | D9: Territoire | E9: ="ETP perf "&DATEMAJ!$C$39 -> ETP perf au 31/05 | F9: Moyenne ecart au 1er | G9: % Ecart au 1er | H9: Rang CEGEE | I9: Moyenne ecart au 1er | J9: % Ecart au 1er | K9: Rang CEGEE | L9: Moyenne ecart au 1er | M9: % Ecart au 1er | N9: Rang CEGEE | O9: Moyenne ecart au 1er | P9: % Ecart au 1er | Q9: Rang CEGEE | R9: Moyenne ecart au 1er | S9: % Ecart au 1er | T9: Rang CEGEE | U9: Moyenne ecart au 1er | V9: % Ecart au 1er | W9: Rang CEGEE | X9: Moyenne ecart au 1er | Y9: % Ecart au 1er | Z9: Rang CEGEE | AA9: Moyenne ecart au 1er | AB9: % Ecart au 1er | AC9: Rang CEGEE
A10: 110 | B10: MEURTHE ET MOSELLE MEUSE | C10: 27 | D10: PONT A MOUSSON | E10: 71.9 | F10: 11% | G10: 0% | H10: 1 | I10: 28% | J10: 0% | K10: 1 | L10: 22% | M10: 4% | N10: 2 | O10: 25% | P10: 2% | Q10: 2 | R10: 10% | S10: 0% | T10: 1 | U10: 9% | V10: 0% | W10: 1 | X10: 30% | Y10: 13% | Z10: 5 | AA10: 60% | AB10: 54% | AC10: 13
A11: 30 | B11: MARNE-ARDENNES | C11: 2 | D11: CHARLEVILLE MEZIERES | E11: 54.5 | F11: 13% | G11: 2% | H11: 2 | I11: 46% | J11: 18% | K11: 6 | L11: 24% | M11: 6% | N11: 3 | O11: 39% | P11: 15% | Q11: 5 | R11: 25% | S11: 15% | T11: 3 | U11: 19% | V11: 10% | W11: 2 | X11: 18% | Y11: 0% | Z11: 1 | AA11: 33% | AB11: 27% | AC11: 8
A12: 30 | B12: MARNE-ARDENNES | C12: 11 | D12: REIMS | E12: 78.1 | F12: 15% | G12: 5% | H12: 3 | I12: 43% | J12: 15% | K12: 2 | L12: 36% | M12: 18% | N12: 4 | O12: 50% | P12: 27% | Q12: 13 | R12: 12% | S12: 2% | T12: 2 | U12: 25% | V12: 16% | W12: 3 | X12: 39% | Y12: 21% | Z12: 9 | AA12: 19% | AB12: 13% | AC12: 3
A13: 110 | B13: MEURTHE ET MOSELLE MEUSE | C13: 26 | D13: NANCY | E13: 63.6 | F13: 19% | G13: 8% | H13: 4 | I13: 47% | J13: 18% | K13: 7 | L13: 38% | M13: 20% | N13: 5 | O13: 43% | P13: 20% | Q13: 8 | R13: 26% | S13: 16% | T13: 4 | U13: 46% | V13: 37% | W13: 9 | X13: 26% | Y13: 9% | Z13: 4 | AA13: 20% | AB13: 14% | AC13: 4
A14: 30 | B14: MARNE-ARDENNES | C14: 6 | D14: CHALONS EN CHAMPAGNE | E14: 45.0 | F14: 20% | G14: 10% | H14: 5 | I14: 50% | J14: 21% | K14: 8 | L14: 54% | M14: 36% | N14: 8 | O14: 49% | P14: 25% | Q14: 11 | R14: 34% | S14: 23% | T14: 6 | U14: 26% | V14: 17% | W14: 4 | X14: 19% | Y14: 1% | Z14: 2 | AA14: 26% | AB14: 20% | AC14: 6
A15: 50 | B15: AUBE HAUTE MARNE | C15: 21 | D15: CHAUMONT | E15: 34.2 | F15: 21% | G15: 11% | H15: 6 | I15: 50% | J15: 21% | K15: 9 | L15: 50% | M15: 32% | N15: 7 | O15: 43% | P15: 20% | Q15: 9 | R15: 36% | S15: 26% | T15: 9 | U15: 34% | V15: 25% | W15: 5 | X15: 31% | Y15: 13% | Z15: 6 | AA15: 18% | AB15: 12% | AC15: 2
A16: 80 | B16: VOSGES | C16: 55 | D16: SAINT DIE | E16: 47.9 | F16: 27% | G16: 17% | H16: 7 | I16: 71% | J16: 43% | K16: 13 | L16: 45% | M16: 26% | N16: 6 | O16: 23% | P16: 0% | Q16: 1 | R16: 45% | S16: 35% | T16: 14 | U16: 42% | V16: 33% | W16: 7 | X16: 47% | Y16: 29% | Z16: 15 | AA16: 21% | AB16: 15% | AC16: 5
A17: 262 | B17: BAS-RHIN | C17: 5006 | D17: STRASBOURG | E17: 73.4 | F17: 31% | G17: 20% | H17: 8 | I17: 68% | J17: 40% | K17: 11 | L17: 18% | M17: 0% | N17: 1 | O17: 34% | P17: 11% | Q17: 3 | R17: 39% | S17: 29% | T17: 10 | U17: 37% | V17: 28% | W17: 6 | X17: 22% | Y17: 4% | Z17: 3 | AA17: 104% | AB17: 98% | AC17: 18
A18: 160 | B18: MOSELLE | C18: 45 | D18: METZ | E18: 85.7 | F18: 31% | G18: 21% | H18: 9 | I18: 45% | J18: 17% | K18: 4 | L18: 74% | M18: 56% | N18: 17 | O18: 41% | P18: 18% | Q18: 6 | R18: 34% | S18: 24% | T18: 7 | U18: 55% | V18: 46% | W18: 13 | X18: 43% | Y18: 25% | Z18: 12 | AA18: 36% | AB18: 30% | AC18: 10
A19: 50 | B19: AUBE HAUTE MARNE | C19: 14 | D19: TROYES | E19: 65.3 | F19: 32% | G19: 21% | H19: 10 | I19: 45% | J19: 17% | K19: 3 | L19: 57% | M19: 39% | N19: 9 | O19: 56% | P19: 33% | Q19: 15 | R19: 41% | S19: 31% | T19: 11 | U19: 47% | V19: 38% | W19: 10 | X19: 42% | Y19: 24% | Z19: 11 | AA19: 50% | AB19: 43% | AC19: 12
A20: 110 | B20: MEURTHE ET MOSELLE MEUSE | C20: 31 | D20: VERDUN | E20: 51.9 | F20: 32% | G20: 22% | H20: 11 | I20: 93% | J20: 64% | K20: 16 | L20: 59% | M20: 41% | N20: 11 | O20: 42% | P20: 19% | Q20: 7 | R20: 35% | S20: 25% | T20: 8 | U20: 53% | V20: 44% | W20: 11 | X20: 46% | Y20: 29% | Z20: 14 | AA20: 6% | AB20: 0% | AC20: 1
A21: 80 | B21: VOSGES | C21: 57 | D21: EPINAL | E21: 59.2 | F21: 36% | G21: 25% | H21: 12 | I21: 46% | J21: 17% | K21: 5 | L21: 62% | M21: 44% | N21: 13 | O21: 52% | P21: 28% | Q21: 14 | R21: 48% | S21: 38% | T21: 15 | U21: 56% | V21: 47% | W21: 14 | X21: 53% | Y21: 35% | Z21: 17 | AA21: 43% | AB21: 37% | AC21: 11
A22: 160 | B22: MOSELLE | C22: 44 | D22: MOSELLE NORD | E22: 68.2 | F22: 36% | G22: 25% | H22: 13 | I22: 64% | J22: 36% | K22: 10 | L22: 59% | M22: 41% | N22: 10 | O22: 49% | P22: 26% | Q22: 12 | R22: 32% | S22: 22% | T22: 5 | U22: 44% | V22: 35% | W22: 8 | X22: 36% | Y22: 18% | Z22: 7 | AA22: 77% | AB22: 71% | AC22: 15
A23: 160 | B23: MOSELLE | C23: 42 | D23: MOSELLE EST | E23: 70.1 | F23: 38% | G23: 27% | H23: 14 | I23: 71% | J23: 43% | K23: 12 | L23: 63% | M23: 45% | N23: 14 | O23: 69% | P23: 46% | Q23: 17 | R23: 41% | S23: 31% | T23: 12 | U23: 53% | V23: 44% | W23: 12 | X23: 46% | Y23: 28% | Z23: 13 | AA23: 35% | AB23: 29% | AC23: 9
A24: 262 | B24: BAS-RHIN | C24: 5060 | D24: HAGUENAU | E24: 74.3 | F24: 39% | G24: 28% | H24: 15 | I24: 73% | J24: 44% | K24: 14 | L24: 74% | M24: 55% | N24: 16 | O24: 59% | P24: 35% | Q24: 16 | R24: 55% | S24: 45% | T24: 18 | U24: 59% | V24: 50% | W24: 16 | X24: 39% | Y24: 21% | Z24: 8 | AA24: 28% | AB24: 22% | AC24: 7
A25: 264 | B25: HAUT-RHIN | C25: 5130 | D25: COLMAR | E25: 64.9 | F25: 43% | G25: 32% | H25: 16 | I25: 79% | J25: 51% | K25: 15 | L25: 62% | M25: 43% | N25: 12 | O25: 43% | P25: 20% | Q25: 10 | R25: 53% | S25: 42% | T25: 17 | U25: 56% | V25: 47% | W25: 15 | X25: 53% | Y25: 35% | Z25: 16 | AA25: 62% | AB25: 56% | AC25: 14
A26: 262 | B26: BAS-RHIN | C26: 5101 | D26: SELESTAT | E26: 62.1 | F26: 50% | G26: 39% | H26: 17 | I26: 100% | J26: 72% | K26: 17 | L26: 67% | M26: 49% | N26: 15 | O26: 37% | P26: 14% | Q26: 4 | R26: 49% | S26: 38% | T26: 16 | U26: 70% | V26: 61% | W26: 17 | X26: 42% | Y26: 24% | Z26: 10 | AA26: 84% | AB26: 78% | AC26: 16
A27: 264 | B27: HAUT-RHIN | C27: 5169 | D27: MULHOUSE | E27: 61.1 | F27: 62% | G27: 51% | H27: 18 | I27: 105% | J27: 77% | K27: 18 | L27: 91% | M27: 73% | N27: 18 | O27: 81% | P27: 58% | Q27: 18 | R27: 43% | S27: 33% | T27: 13 | U27: 73% | V27: 64% | W27: 18 | X27: 57% | Y27: 40% | Z27: 18 | AA27: 92% | AB27: 86% | AC27: 17
A28: Total CEGEE Directions Régionales | E28: =SUM(E10:E27) -> 1131

Sheet SE_BANCA
B1: Accueil | F1: BAROMETRE BDD - TERRITOIRES
F2: BANCARISATION
F3: =ACCUEIL!F7 -> 2020-06-28
F7: Ventes nettes FORFAITS | J7: Ventes nettes IZICARTES débit différé | N7: Ventes nettes Cartes HDG débit différé | R7: Ventes nettes Forfaits Pro Cartes Pro | V7: Total Bancarisation
F8: =DATEMAJ!C12 -> au 28/06 | H8: coef | I8: ='RECAP DIRCOM'!AM4 -> 4% | J8: =DATEMAJ!C13 -> au 28/06 | L8: coef | M8: ='RECAP DIRCOM'!AQ4 -> 4% | N8: =DATEMAJ!C14 -> au 28/06 | P8: coef | Q8: ='RECAP DIRCOM'!AU4 -> 4% | R8: =DATEMAJ!C15 -> au 28/06 | T8: coef | U8: ='RECAP DIRCOM'!AY4 -> 3% | W8: coef | X8: ='RECAP DIRCOM'!BB4 -> 15%
B9: Direction | C9: eds | D9: Territoire | E9: ="ETP perf "&DATEMAJ!$C$39 -> ETP perf au 31/05 | F9: Nb / ETP | G9: PNB / ETP | H9: % Ecart au 1er | I9: Rang | J9: Nb / ETP | K9: PNB / ETP | L9: % Ecart au 1er | M9: Rang | N9: Nb / ETP | O9: PNB / ETP | P9: % Ecart au 1er | Q9: Rang | R9: Nb / ETP | S9: PNB / ETP | T9: % Ecart au 1er | U9: Rang | V9: Moyenne ecart au 1er | W9: % Ecart au 1er | X9: Rang CEGEE
A10: 50 | B10: AUBE HAUTE MARNE | C10: 21 | D10: CHAUMONT | E10: =VLOOKUP($C10,'RECAP SECT'!$G$6:$FJ$253,3,FALSE) -> 34.2 | F10: =VLOOKUP($C10,'RECAP SECT'!$G$6:$FJ$253,30,FALSE) -> 4.27 | G10: =VLOOKUP($C10,'RECAP SECT'!$G$6:$FJ$253,31,FALSE) -> 1.54 | H10: =VLOOKUP($C10,'RECAP SECT'!$G$6:$FJ$253,32,FALSE) -> 76% | I10: =VLOOKUP($C10,'RECAP SECT'!$G$6:$FJ$253,33,FALSE) -> 14 | J10: =VLOOKUP($C10,'RECAP SECT'!$G$6:$FJ$253,34,FALSE) -> 6.49 | K10: =VLOOKUP($C10,'RECAP SECT'!$G$6:$FJ$253,35,FALSE) -> 3.98 | L10: =VLOOKUP($C10,'RECAP SECT'!$G$6:$FJ$253,36,FALSE) -> 51% | M10: =VLOOKUP($C10,'RECAP SECT'!$G$6:$FJ$253,37,FALSE) -> 8 | N10: =VLOOKUP($C10,'RECAP SECT'!$G$6:$FJ$253,38,FALSE) -> 7.66 | O10: =VLOOKUP($C10,'RECAP SECT'!$G$6:$FJ$253,39,FALSE) -> 5.19 | P10: =VLOOKUP($C10,'RECAP SECT'!$G$6:$FJ$253,40,FALSE) -> 61% | Q10: =VLOOKUP($C10,'RECAP SECT'!$G$6:$FJ$253,41,FALSE) -> 13 | R10: =VLOOKUP($C10,'RECAP SECT'!$G$6:$FJ$253,42,FALSE) -> 2.34 | S10: =VLOOKUP($C10,'RECAP SECT'!$G$6:$FJ$253,43,FALSE) -> 1.25 | T10: =VLOOKUP($C10,'RECAP SECT'!$G$6:$FJ$253,44,FALSE) -> 0% | U10: =VLOOKUP($C10,'RECAP SECT'!$G$6:$FJ$253,45,FALSE) -> 1 | V10: =VLOOKUP($C10,'RECAP SECT'!$G$6:$FJ$253,46,FALSE) -> 50% | W10: =VLOOKUP($C10,'RECAP SECT'!$G$6:$FJ$253,47,FALSE) -> 32% | X10: =VLOOKUP($C10,'RECAP SECT'!$G$6:$FJ$253,48,FALSE) -> 7
A11: 50 | B11: AUBE HAUTE MARNE | C11: 14 | D11: TROYES | E11: =VLOOKUP($C11,'RECAP SECT'!$G$6:$FJ$253,3,FALSE) -> 65.3 | F11: =VLOOKUP($C11,'RECAP SECT'!$G$6:$FJ$253,30,FALSE) -> 3.03 | G11: =VLOOKUP($C11,'RECAP SECT'!$G$6:$FJ$253,31,FALSE) -> 1.38 | H11: =VLOOKUP($C11,'RECAP SECT'!$G$6:$FJ$253,32,FALSE) -> 78% | I11: =VLOOKUP($C11,'RECAP SECT'!$G$6:$FJ$253,33,FALSE) -> 16 | J11: =VLOOKUP($C11,'RECAP SECT'!$G$6:$FJ$253,34,FALSE) -> 5.16 | K11: =VLOOKUP($C11,'RECAP SECT'!$G$6:$FJ$253,35,FALSE) -> 3.12 | L11: =VLOOKUP($C11,'RECAP SECT'!$G$6:$FJ$253,36,FALSE) -> 61% | M11: =VLOOKUP($C11,'RECAP SECT'!$G$6:$FJ$253,37,FALSE) -> 15 | N11: =VLOOKUP($C11,'RECAP SECT'!$G$6:$FJ$253,38,FALSE) -> 6.71 | O11: =VLOOKUP($C11,'RECAP SECT'!$G$6:$FJ$253,39,FALSE) -> 4.51 | P11: =VLOOKUP($C11,'RECAP SECT'!$G$6:$FJ$253,40,FALSE) -> 66% | Q11: =VLOOKUP($C11,'RECAP SECT'!$G$6:$FJ$253,41,FALSE) -> 17 | R11: =VLOOKUP($C11,'RECAP SECT'!$G$6:$FJ$253,42,FALSE) -> 1.76 | S11: =VLOOKUP($C11,'RECAP SECT'!$G$6:$FJ$253,43,FALSE) -> 1.11 | T11: =VLOOKUP($C11,'RECAP SECT'!$G$6:$FJ$253,44,FALSE) -> 12% | U11: =VLOOKUP($C11,'RECAP SECT'!$G$6:$FJ$253,45,FALSE) -> 4 | V11: =VLOOKUP($C11,'RECAP SECT'!$G$6:$FJ$253,46,FALSE) -> 57% | W11: =VLOOKUP($C11,'RECAP SECT'!$G$6:$FJ$253,47,FALSE) -> 39% | X11: =VLOOKUP($C11,'RECAP SECT'!$G$6:$FJ$253,48,FALSE) -> 9
A12: 262 | B12: BAS-RHIN | C12: 5060 | D12: HAGUENAU | E12: =VLOOKUP($C12,'RECAP SECT'!$G$6:$FJ$253,3,FALSE) -> 74.3 | F12: =VLOOKUP($C12,'RECAP SECT'!$G$6:$FJ$253,30,FALSE) -> 4.96 | G12: =VLOOKUP($C12,'RECAP SECT'!$G$6:$FJ$253,31,FALSE) -> 1.47 | H12: =VLOOKUP($C12,'RECAP SECT'!$G$6:$FJ$253,32,FALSE) -> 77% | I12: =VLOOKUP($C12,'RECAP SECT'!$G$6:$FJ$253,33,FALSE) -> 15 | J12: =VLOOKUP($C12,'RECAP SECT'!$G$6:$FJ$253,34,FALSE) -> 4.17 | K12: =VLOOKUP($C12,'RECAP SECT'!$G$6:$FJ$253,35,FALSE) -> 2.80 | L12: =VLOOKUP($C12,'RECAP SECT'!$G$6:$FJ$253,36,FALSE) -> 65% | M12: =VLOOKUP($C12,'RECAP SECT'!$G$6:$FJ$253,37,FALSE) -> 17 | N12: =VLOOKUP($C12,'RECAP SECT'!$G$6:$FJ$253,38,FALSE) -> 7.11 | O12: =VLOOKUP($C12,'RECAP SECT'!$G$6:$FJ$253,39,FALSE) -> 4.75 | P12: =VLOOKUP($C12,'RECAP SECT'!$G$6:$FJ$253,40,FALSE) -> 64% | Q12: =VLOOKUP($C12,'RECAP SECT'!$G$6:$FJ$253,41,FALSE) -> 14 | R12: =VLOOKUP($C12,'RECAP SECT'!$G$6:$FJ$253,42,FALSE) -> 0.51 | S12: =VLOOKUP($C12,'RECAP SECT'!$G$6:$FJ$253,43,FALSE) -> 0.08 | T12: =VLOOKUP($C12,'RECAP SECT'!$G$6:$FJ$253,44,FALSE) -> 94% | U12: =VLOOKUP($C12,'RECAP SECT'!$G$6:$FJ$253,45,FALSE) -> 14 | V12: =VLOOKUP($C12,'RECAP SECT'!$G$6:$FJ$253,46,FALSE) -> 74% | W12: =VLOOKUP($C12,'RECAP SECT'!$G$6:$FJ$253,47,FALSE) -> 55% | X12: =VLOOKUP($C12,'RECAP SECT'!$G$6:$FJ$253,48,FALSE) -> 16
A13: 262 | B13: BAS-RHIN | C13: 5101 | D13: SELESTAT | E13: =VLOOKUP($C13,'RECAP SECT'!$G$6:$FJ$253,3,FALSE) -> 62.1 | F13: =VLOOKUP($C13,'RECAP SECT'!$G$6:$FJ$253,30,FALSE) -> 5.20 | G13: =VLOOKUP($C13,'RECAP SECT'!$G$6:$FJ$253,31,FALSE) -> 2.45 | H13: =VLOOKUP($C13,'RECAP SECT'!$G$6:$FJ$253,32,FALSE) -> 62% | I13: =VLOOKUP($C13,'RECAP SECT'!$G$6:$FJ$253,33,FALSE) -> 12 | J13: =VLOOKUP($C13,'RECAP SECT'!$G$6:$FJ$253,34,FALSE) -> 4.83 | K13: =VLOOKUP($C13,'RECAP SECT'!$G$6:$FJ$253,35,FALSE) -> 3.41 | L13: =VLOOKUP($C13,'RECAP SECT'!$G$6:$FJ$253,36,FALSE) -> 58% | M13: =VLOOKUP($C13,'RECAP SECT'!$G$6:$FJ$253,37,FALSE) -> 12 | N13: =VLOOKUP($C13,'RECAP SECT'!$G$6:$FJ$253,38,FALSE) -> 8.84 | O13: =VLOOKUP($C13,'RECAP SECT'!$G$6:$FJ$253,39,FALSE) -> 5.98 | P13: =VLOOKUP($C13,'RECAP SECT'!$G$6:$FJ$253,40,FALSE) -> 55% | Q13: =VLOOKUP($C13,'RECAP SECT'!$G$6:$FJ$253,41,FALSE) -> 7 | R13: =VLOOKUP($C13,'RECAP SECT'!$G$6:$FJ$253,42,FALSE) -> 0.10 | S13: =VLOOKUP($C13,'RECAP SECT'!$G$6:$FJ$253,43,FALSE) -> -0.04 | T13: =VLOOKUP($C13,'RECAP SECT'!$G$6:$FJ$253,44,FALSE) -> 103% | U13: =VLOOKUP($C13,'RECAP SECT'!$G$6:$FJ$253,45,FALSE) -> 16 | V13: =VLOOKUP($C13,'RECAP SECT'!$G$6:$FJ$253,46,FALSE) -> 67% | W13: =VLOOKUP($C13,'RECAP SECT'!$G$6:$FJ$253,47,FALSE) -> 49% | X13: =VLOOKUP($C13,'RECAP SECT'!$G$6:$FJ$253,48,FALSE) -> 15
A14: 262 | B14: BAS-RHIN | C14: 5006 | D14: STRASBOURG | E14: =VLOOKUP($C14,'RECAP SECT'!$G$6:$FJ$253,3,FALSE) -> 73.4 | F14: =VLOOKUP($C14,'RECAP SECT'!$G$6:$FJ$253,30,FALSE) -> 8.19 | G14: =VLOOKUP($C14,'RECAP SECT'!$G$6:$FJ$253,31,FALSE) -> 3.05 | H14: =VLOOKUP($C14,'RECAP SECT'!$G$6:$FJ$253,32,FALSE) -> 52% | I14: =VLOOKUP($C14,'RECAP SECT'!$G$6:$FJ$253,33,FALSE) -> 8 | J14: =VLOOKUP($C14,'RECAP SECT'!$G$6:$FJ$253,34,FALSE) -> 12.28 | K14: =VLOOKUP($C14,'RECAP SECT'!$G$6:$FJ$253,35,FALSE) -> 8.04 | L14: =VLOOKUP($C14,'RECAP SECT'!$G$6:$FJ$253,36,FALSE) -> 0% | M14: =VLOOKUP($C14,'RECAP SECT'!$G$6:$FJ$253,37,FALSE) -> 1 | N14: =VLOOKUP($C14,'RECAP SECT'!$G$6:$FJ$253,38,FALSE) -> 19.89 | O14: =VLOOKUP($C14,'RECAP SECT'!$G$6:$FJ$253,39,FALSE) -> 13.20 | P14: =VLOOKUP($C14,'RECAP SECT'!$G$6:$FJ$253,40,FALSE) -> 0% | Q14: =VLOOKUP($C14,'RECAP SECT'!$G$6:$FJ$253,41,FALSE) -> 1 | R14: =VLOOKUP($C14,'RECAP SECT'!$G$6:$FJ$253,42,FALSE) -> 1.36 | S14: =VLOOKUP($C14,'RECAP SECT'!$G$6:$FJ$253,43,FALSE) -> 0.98 | T14: =VLOOKUP($C14,'RECAP SECT'!$G$6:$FJ$253,44,FALSE) -> 22% | U14: =VLOOKUP($C14,'RECAP SECT'!$G$6:$FJ$253,45,FALSE) -> 6 | V14: =VLOOKUP($C14,'RECAP SECT'!$G$6:$FJ$253,46,FALSE) -> 18% | W14: =VLOOKUP($C14,'RECAP SECT'!$G$6:$FJ$253,47,FALSE) -> 0% | X14: =VLOOKUP($C14,'RECAP SECT'!$G$6:$FJ$253,48,FALSE) -> 1
A15: 264 | B15: HAUT-RHIN | C15: 5130 | D15: COLMAR | E15: =VLOOKUP($C15,'RECAP SECT'!$G$6:$FJ$253,3,FALSE) -> 64.9 | F15: =VLOOKUP($C15,'RECAP SECT'!$G$6:$FJ$253,30,FALSE) -> 3.14 | G15: =VLOOKUP($C15,'RECAP SECT'!$G$6:$FJ$253,31,FALSE) -> 2.50 | H15: =VLOOKUP($C15,'RECAP SECT'!$G$6:$FJ$253,32,FALSE) -> 61% | I15: =VLOOKUP($C15,'RECAP SECT'!$G$6:$FJ$253,33,FALSE) -> 11 | J15: =VLOOKUP($C15,'RECAP SECT'!$G$6:$FJ$253,34,FALSE) -> 4.87 | K15: =VLOOKUP($C15,'RECAP SECT'!$G$6:$FJ$253,35,FALSE) -> 3.60 | L15: =VLOOKUP($C15,'RECAP SECT'!$G$6:$FJ$253,36,FALSE) -> 55% | M15: =VLOOKUP($C15,'RECAP SECT'!$G$6:$FJ$253,37,FALSE) -> 11 | N15: =VLOOKUP($C15,'RECAP SECT'!$G$6:$FJ$253,38,FALSE) -> 8.46 | O15: =VLOOKUP($C15,'RECAP SECT'!$G$6:$FJ$253,39,FALSE) -> 5.93 | P15: =VLOOKUP($C15,'RECAP SECT'!$G$6:$FJ$253,40,FALSE) -> 55% | Q15: =VLOOKUP($C15,'RECAP SECT'!$G$6:$FJ$253,41,FALSE) -> 8 | R15: =VLOOKUP($C15,'RECAP SECT'!$G$6:$FJ$253,42,FALSE) -> 0.75 | S15: =VLOOKUP($C15,'RECAP SECT'!$G$6:$FJ$253,43,FALSE) -> 0.25 | T15: =VLOOKUP($C15,'RECAP SECT'!$G$6:$FJ$253,44,FALSE) -> 80% | U15: =VLOOKUP($C15,'RECAP SECT'!$G$6:$FJ$253,45,FALSE) -> 12 | V15: =VLOOKUP($C15,'RECAP SECT'!$G$6:$FJ$253,46,FALSE) -> 62% | W15: =VLOOKUP($C15,'RECAP SECT'!$G$6:$FJ$253,47,FALSE) -> 43% | X15: =VLOOKUP($C15,'RECAP SECT'!$G$6:$FJ$253,48,FALSE) -> 12
A16: 264 | B16: HAUT-RHIN | C16: 5169 | D16: MULHOUSE | E16: =VLOOKUP($C16,'RECAP SECT'!$G$6:$FJ$253,3,FALSE) -> 61.1 | F16: =VLOOKUP($C16,'RECAP SECT'!$G$6:$FJ$253,30,FALSE) -> -1.97 | G16: =VLOOKUP($C16,'RECAP SECT'!$G$6:$FJ$253,31,FALSE) -> -2.31 | H16: =VLOOKUP($C16,'RECAP SECT'!$G$6:$FJ$253,32,FALSE) -> 136% | I16: =VLOOKUP($C16,'RECAP SECT'!$G$6:$FJ$253,33,FALSE) -> 18 | J16: =VLOOKUP($C16,'RECAP SECT'!$G$6:$FJ$253,34,FALSE) -> 3.19 | K16: =VLOOKUP($C16,'RECAP SECT'!$G$6:$FJ$253,35,FALSE) -> 2.15 | L16: =VLOOKUP($C16,'RECAP SECT'!$G$6:$FJ$253,36,FALSE) -> 73% | M16: =VLOOKUP($C16,'RECAP SECT'!$G$6:$FJ$253,37,FALSE) -> 18 | N16: =VLOOKUP($C16,'RECAP SECT'!$G$6:$FJ$253,38,FALSE) -> 5.98 | O16: =VLOOKUP($C16,'RECAP SECT'!$G$6:$FJ$253,39,FALSE) -> 4.21 | P16: =VLOOKUP($C16,'RECAP SECT'!$G$6:$FJ$253,40,FALSE) -> 68% | Q16: =VLOOKUP($C16,'RECAP SECT'!$G$6:$FJ$253,41,FALSE) -> 18 | R16: =VLOOKUP($C16,'RECAP SECT'!$G$6:$FJ$253,42,FALSE) -> 0.59 | S16: =VLOOKUP($C16,'RECAP SECT'!$G$6:$FJ$253,43,FALSE) -> 0.19 | T16: =VLOOKUP($C16,'RECAP SECT'!$G$6:$FJ$253,44,FALSE) -> 85% | U16: =VLOOKUP($C16,'RECAP SECT'!$G$6:$FJ$253,45,FALSE) -> 13 | V16: =VLOOKUP($C16,'RECAP SECT'!$G$6:$FJ$253,46,FALSE) -> 91% | W16: =VLOOKUP($C16,'RECAP SECT'!$G$6:$FJ$253,47,FALSE) -> 73% | X16: =VLOOKUP($C16,'RECAP SECT'!$G$6:$FJ$253,48,FALSE) -> 18
A17: 30 | B17: MARNE-ARDENNES | C17: 6 | D17: CHALONS EN CHAMPAGNE | E17: =VLOOKUP($C17,'RECAP SECT'!$G$6:$FJ$253,3,FALSE) -> 45.0 | F17: =VLOOKUP($C17,'RECAP SECT'!$G$6:$FJ$253,30,FALSE) -> 9.33 | G17: =VLOOKUP($C17,'RECAP SECT'!$G$6:$FJ$253,31,FALSE) -> 3.79 | H17: =VLOOKUP($C17,'RECAP SECT'!$G$6:$FJ$253,32,FALSE) -> 41% | I17: =VLOOKUP($C17,'RECAP SECT'!$G$6:$FJ$253,33,FALSE) -> 6 | J17: =VLOOKUP($C17,'RECAP SECT'!$G$6:$FJ$253,34,FALSE) -> 5.84 | K17: =VLOOKUP($C17,'RECAP SECT'!$G$6:$FJ$253,35,FALSE) -> 3.97 | L17: =VLOOKUP($C17,'RECAP SECT'!$G$6:$FJ$253,36,FALSE) -> 51% | M17: =VLOOKUP($C17,'RECAP SECT'!$G$6:$FJ$253,37,FALSE) -> 9 | N17: =VLOOKUP($C17,'RECAP SECT'!$G$6:$FJ$253,38,FALSE) -> 8.95 | O17: =VLOOKUP($C17,'RECAP SECT'!$G$6:$FJ$253,39,FALSE) -> 5.92 | P17: =VLOOKUP($C17,'RECAP SECT'!$G$6:$FJ$253,40,FALSE) -> 55% | Q17: =VLOOKUP($C17,'RECAP SECT'!$G$6:$FJ$253,41,FALSE) -> 9 | R17: =VLOOKUP($C17,'RECAP SECT'!$G$6:$FJ$253,42,FALSE) -> 0.76 | S17: =VLOOKUP($C17,'RECAP SECT'!$G$6:$FJ$253,43,FALSE) -> 0.30 | T17: =VLOOKUP($C17,'RECAP SECT'!$G$6:$FJ$253,44,FALSE) -> 76% | U17: =VLOOKUP($C17,'RECAP SECT'!$G$6:$FJ$253,45,FALSE) -> 11 | V17: =VLOOKUP($C17,'RECAP SECT'!$G$6:$FJ$253,46,FALSE) -> 54% | W17: =VLOOKUP($C17,'RECAP SECT'!$G$6:$FJ$253,47,FALSE) -> 36% | X17: =VLOOKUP($C17,'RECAP SECT'!$G$6:$FJ$253,48,FALSE) -> 8
A18: 30 | B18: MARNE-ARDENNES | C18: 2 | D18: CHARLEVILLE MEZIERES | E18: =VLOOKUP($C18,'RECAP SECT'!$G$6:$FJ$253,3,FALSE) -> 54.5 | F18: =VLOOKUP($C18,'RECAP SECT'!$G$6:$FJ$253,30,FALSE) -> 9.31 | G18: =VLOOKUP($C18,'RECAP SECT'!$G$6:$FJ$253,31,FALSE) -> 5.33 | H18: =VLOOKUP($C18,'RECAP SECT'!$G$6:$FJ$253,32,FALSE) -> 17% | I18: =VLOOKUP($C18,'RECAP SECT'!$G$6:$FJ$253,33,FALSE) -> 2 | J18: =VLOOKUP($C18,'RECAP SECT'!$G$6:$FJ$253,34,FALSE) -> 9.03 | K18: =VLOOKUP($C18,'RECAP SECT'!$G$6:$FJ$253,35,FALSE) -> 6.05 | L18: =VLOOKUP($C18,'RECAP SECT'!$G$6:$FJ$253,36,FALSE) -> 25% | M18: =VLOOKUP($C18,'RECAP SECT'!$G$6:$FJ$253,37,FALSE) -> 3 | N18: =VLOOKUP($C18,'RECAP SECT'!$G$6:$FJ$253,38,FALSE) -> 11.36 | O18: =VLOOKUP($C18,'RECAP SECT'!$G$6:$FJ$253,39,FALSE) -> 7.86 | P18: =VLOOKUP($C18,'RECAP SECT'!$G$6:$FJ$253,40,FALSE) -> 40% | Q18: =VLOOKUP($C18,'RECAP SECT'!$G$6:$FJ$253,41,FALSE) -> 4 | R18: =VLOOKUP($C18,'RECAP SECT'!$G$6:$FJ$253,42,FALSE) -> 1.85 | S18: =VLOOKUP($C18,'RECAP SECT'!$G$6:$FJ$253,43,FALSE) -> 1.13 | T18: =VLOOKUP($C18,'RECAP SECT'!$G$6:$FJ$253,44,FALSE) -> 10% | U18: =VLOOKUP($C18,'RECAP SECT'!$G$6:$FJ$253,45,FALSE) -> 3 | V18: =VLOOKUP($C18,'RECAP SECT'!$G$6:$FJ$253,46,FALSE) -> 24% | W18: =VLOOKUP($C18,'RECAP SECT'!$G$6:$FJ$253,47,FALSE) -> 6% | X18: =VLOOKUP($C18,'RECAP SECT'!$G$6:$FJ$253,48,FALSE) -> 3
A19: 30 | B19: MARNE-ARDENNES | C19: 11 | D19: REIMS | E19: =VLOOKUP($C19,'RECAP SECT'!$G$6:$FJ$253,3,FALSE) -> 78.1 | F19: =VLOOKUP($C19,'RECAP SECT'!$G$6:$FJ$253,30,FALSE) -> 8.01 | G19: =VLOOKUP($C19,'RECAP SECT'!$G$6:$FJ$253,31,FALSE) -> 4.26 | H19: =VLOOKUP($C19,'RECAP SECT'!$G$6:$FJ$253,32,FALSE) -> 33% | I19: =VLOOKUP($C19,'RECAP SECT'!$G$6:$FJ$253,33,FALSE) -> 4 | J19: =VLOOKUP($C19,'RECAP SECT'!$G$6:$FJ$253,34,FALSE) -> 7.21 | K19: =VLOOKUP($C19,'RECAP SECT'!$G$6:$FJ$253,35,FALSE) -> 4.80 | L19: =VLOOKUP($C19,'RECAP SECT'!$G$6:$FJ$253,36,FALSE) -> 40% | M19: =VLOOKUP($C19,'RECAP SECT'!$G$6:$FJ$253,37,FALSE) -> 5 | N19: =VLOOKUP($C19,'RECAP SECT'!$G$6:$FJ$253,38,FALSE) -> 8.49 | O19: =VLOOKUP($C19,'RECAP SECT'!$G$6:$FJ$253,39,FALSE) -> 5.84 | P19: =VLOOKUP($C19,'RECAP SECT'!$G$6:$FJ$253,40,FALSE) -> 56% | Q19: =VLOOKUP($C19,'RECAP SECT'!$G$6:$FJ$253,41,FALSE) -> 10 | R19: =VLOOKUP($C19,'RECAP SECT'!$G$6:$FJ$253,42,FALSE) -> 1.47 | S19: =VLOOKUP($C19,'RECAP SECT'!$G$6:$FJ$253,43,FALSE) -> 1.14 | T19: =VLOOKUP($C19,'RECAP SECT'!$G$6:$FJ$253,44,FALSE) -> 9% | U19: =VLOOKUP($C19,'RECAP SECT'!$G$6:$FJ$253,45,FALSE) -> 2 | V19: =VLOOKUP($C19,'RECAP SECT'!$G$6:$FJ$253,46,FALSE) -> 36% | W19: =VLOOKUP($C19,'RECAP SECT'!$G$6:$FJ$253,47,FALSE) -> 18% | X19: =VLOOKUP($C19,'RECAP SECT'!$G$6:$FJ$253,48,FALSE) -> 4
A20: 110 | B20: MEURTHE ET MOSELLE MEUSE | C20: 26 | D20: NANCY | E20: =VLOOKUP($C20,'RECAP SECT'!$G$6:$FJ$253,3,FALSE) -> 63.6 | F20: =VLOOKUP($C20,'RECAP SECT'!$G$6:$FJ$253,30,FALSE) -> 7.76 | G20: =VLOOKUP($C20,'RECAP SECT'!$G$6:$FJ$253,31,FALSE) -> 3.55 | H20: =VLOOKUP($C20,'RECAP SECT'!$G$6:$FJ$253,32,FALSE) -> 44% | I20: =VLOOKUP($C20,'RECAP SECT'!$G$6:$FJ$253,33,FALSE) -> 7 | J20: =VLOOKUP($C20,'RECAP SECT'!$G$6:$FJ$253,34,FALSE) -> 7.73 | K20: =VLOOKUP($C20,'RECAP SECT'!$G$6:$FJ$253,35,FALSE) -> 5.04 | L20: =VLOOKUP($C20,'RECAP SECT'!$G$6:$FJ$253,36,FALSE) -> 37% | M20: =VLOOKUP($C20,'RECAP SECT'!$G$6:$FJ$253,37,FALSE) -> 4 | N20: =VLOOKUP($C20,'RECAP SECT'!$G$6:$FJ$253,38,FALSE) -> 10.31 | O20: =VLOOKUP($C20,'RECAP SECT'!$G$6:$FJ$253,39,FALSE) -> 6.96 | P20: =VLOOKUP($C20,'RECAP SECT'!$G$6:$FJ$253,40,FALSE) -> 47% | Q20: =VLOOKUP($C20,'RECAP SECT'!$G$6:$FJ$253,41,FALSE) -> 5 | R20: =VLOOKUP($C20,'RECAP SECT'!$G$6:$FJ$253,42,FALSE) -> 2.16 | S20: =VLOOKUP($C20,'RECAP SECT'!$G$6:$FJ$253,43,FALSE) -> 1.04 | T20: =VLOOKUP($C20,'RECAP SECT'!$G$6:$FJ$253,44,FALSE) -> 17% | U20: =VLOOKUP($C20,'RECAP SECT'!$G$6:$FJ$253,45,FALSE) -> 5 | V20: =VLOOKUP($C20,'RECAP SECT'!$G$6:$FJ$253,46,FALSE) -> 38% | W20: =VLOOKUP($C20,'RECAP SECT'!$G$6:$FJ$253,47,FALSE) -> 20% | X20: =VLOOKUP($C20,'RECAP SECT'!$G$6:$FJ$253,48,FALSE) -> 5
A21: 110 | B21: MEURTHE ET MOSELLE MEUSE | C21: 27 | D21: PONT A MOUSSON | E21: =VLOOKUP($C21,'RECAP SECT'!$G$6:$FJ$253,3,FALSE) -> 71.9 | F21: =VLOOKUP($C21,'RECAP SECT'!$G$6:$FJ$253,30,FALSE) -> 12.69 | G21: =VLOOKUP($C21,'RECAP SECT'!$G$6:$FJ$253,31,FALSE) -> 6.40 | H21: =VLOOKUP($C21,'RECAP SECT'!$G$6:$FJ$253,32,FALSE) -> 0% | I21: =VLOOKUP($C21,'RECAP SECT'!$G$6:$FJ$253,33,FALSE) -> 1 | J21: =VLOOKUP($C21,'RECAP SECT'!$G$6:$FJ$253,34,FALSE) -> 9.76 | K21: =VLOOKUP($C21,'RECAP SECT'!$G$6:$FJ$253,35,FALSE) -> 6.33 | L21: =VLOOKUP($C21,'RECAP SECT'!$G$6:$FJ$253,36,FALSE) -> 21% | M21: =VLOOKUP($C21,'RECAP SECT'!$G$6:$FJ$253,37,FALSE) -> 2 | N21: =VLOOKUP($C21,'RECAP SECT'!$G$6:$FJ$253,38,FALSE) -> 13.04 | O21: =VLOOKUP($C21,'RECAP SECT'!$G$6:$FJ$253,39,FALSE) -> 8.73 | P21: =VLOOKUP($C21,'RECAP SECT'!$G$6:$FJ$253,40,FALSE) -> 34% | Q21: =VLOOKUP($C21,'RECAP SECT'!$G$6:$FJ$253,41,FALSE) -> 2 | R21: =VLOOKUP($C21,'RECAP SECT'!$G$6:$FJ$253,42,FALSE) -> 0.96 | S21: =VLOOKUP($C21,'RECAP SECT'!$G$6:$FJ$253,43,FALSE) -> 0.81 | T21: =VLOOKUP($C21,'RECAP SECT'!$G$6:$FJ$253,44,FALSE) -> 36% | U21: =VLOOKUP($C21,'RECAP SECT'!$G$6:$FJ$253,45,FALSE) -> 8 | V21: =VLOOKUP($C21,'RECAP SECT'!$G$6:$FJ$253,46,FALSE) -> 22% | W21: =VLOOKUP($C21,'RECAP SECT'!$G$6:$FJ$253,47,FALSE) -> 4% | X21: =VLOOKUP($C21,'RECAP SECT'!$G$6:$FJ$253,48,FALSE) -> 2
A22: 110 | B22: MEURTHE ET MOSELLE MEUSE | C22: 31 | D22: VERDUN | E22: =VLOOKUP($C22,'RECAP SECT'!$G$6:$FJ$253,3,FALSE) -> 51.9 | F22: =VLOOKUP($C22,'RECAP SECT'!$G$6:$FJ$253,30,FALSE) -> 3.95 | G22: =VLOOKUP($C22,'RECAP SECT'!$G$6:$FJ$253,31,FALSE) -> 1.14 | H22: =VLOOKUP($C22,'RECAP SECT'!$G$6:$FJ$253,32,FALSE) -> 82% | I22: =VLOOKUP($C22,'RECAP SECT'!$G$6:$FJ$253,33,FALSE) -> 17 | J22: =VLOOKUP($C22,'RECAP SECT'!$G$6:$FJ$253,34,FALSE) -> 6.24 | K22: =VLOOKUP($C22,'RECAP SECT'!$G$6:$FJ$253,35,FALSE) -> 4.03 | L22: =VLOOKUP($C22,'RECAP SECT'!$G$6:$FJ$253,36,FALSE) -> 50% | M22: =VLOOKUP($C22,'RECAP SECT'!$G$6:$FJ$253,37,FALSE) -> 7 | N22: =VLOOKUP($C22,'RECAP SECT'!$G$6:$FJ$253,38,FALSE) -> 9.42 | O22: =VLOOKUP($C22,'RECAP SECT'!$G$6:$FJ$253,39,FALSE) -> 6.32 | P22: =VLOOKUP($C22,'RECAP SECT'!$G$6:$FJ$253,40,FALSE) -> 52% | Q22: =VLOOKUP($C22,'RECAP SECT'!$G$6:$FJ$253,41,FALSE) -> 6 | R22: =VLOOKUP($C22,'RECAP SECT'!$G$6:$FJ$253,42,FALSE) -> 0.75 | S22: =VLOOKUP($C22,'RECAP SECT'!$G$6:$FJ$253,43,FALSE) -> 0.61 | T22: =VLOOKUP($C22,'RECAP SECT'!$G$6:$FJ$253,44,FALSE) -> 51% | U22: =VLOOKUP($C22,'RECAP SECT'!$G$6:$FJ$253,45,FALSE) -> 10 | V22: =VLOOKUP($C22,'RECAP SECT'!$G$6:$FJ$253,46,FALSE) -> 59% | W22: =VLOOKUP($C22,'RECAP SECT'!$G$6:$FJ$253,47,FALSE) -> 41% | X22: =VLOOKUP($C22,'RECAP SECT'!$G$6:$FJ$253,48,FALSE) -> 11
A23: 160 | B23: MOSELLE | C23: 45 | D23: METZ | E23: =VLOOKUP($C23,'RECAP SECT'!$G$6:$FJ$253,3,FALSE) -> 85.7 | F23: =VLOOKUP($C23,'RECAP SECT'!$G$6:$FJ$253,30,FALSE) -> 5.88 | G23: =VLOOKUP($C23,'RECAP SECT'!$G$6:$FJ$253,31,FALSE) -> 2.78 | H23: =VLOOKUP($C23,'RECAP SECT'!$G$6:$FJ$253,32,FALSE) -> 57% | I23: =VLOOKUP($C23,'RECAP SECT'!$G$6:$FJ$253,33,FALSE) -> 9 | J23: =VLOOKUP($C23,'RECAP SECT'!$G$6:$FJ$253,34,FALSE) -> 4.40 | K23: =VLOOKUP($C23,'RECAP SECT'!$G$6:$FJ$253,35,FALSE) -> 3.06 | L23: =VLOOKUP($C23,'RECAP SECT'!$G$6:$FJ$253,36,FALSE) -> 62% | M23: =VLOOKUP($C23,'RECAP SECT'!$G$6:$FJ$253,37,FALSE) -> 16 | N23: =VLOOKUP($C23,'RECAP SECT'!$G$6:$FJ$253,38,FALSE) -> 6.66 | O23: =VLOOKUP($C23,'RECAP SECT'!$G$6:$FJ$253,39,FALSE) -> 4.72 | P23: =VLOOKUP($C23,'RECAP SECT'!$G$6:$FJ$253,40,FALSE) -> 64% | Q23: =VLOOKUP($C23,'RECAP SECT'!$G$6:$FJ$253,41,FALSE) -> 15 | R23: =VLOOKUP($C23,'RECAP SECT'!$G$6:$FJ$253,42,FALSE) -> 0.11 | S23: =VLOOKUP($C23,'RECAP SECT'!$G$6:$FJ$253,43,FALSE) -> -0.34 | T23: =VLOOKUP($C23,'RECAP SECT'!$G$6:$FJ$253,44,FALSE) -> 127% | U23: =VLOOKUP($C23,'RECAP SECT'!$G$6:$FJ$253,45,FALSE) -> 18 | V23: =VLOOKUP($C23,'RECAP SECT'!$G$6:$FJ$253,46,FALSE) -> 74% | W23: =VLOOKUP($C23,'RECAP SECT'!$G$6:$FJ$253,47,FALSE) -> 56% | X23: =VLOOKUP($C23,'RECAP SECT'!$G$6:$FJ$253,48,FALSE) -> 17
A24: 160 | B24: MOSELLE | C24: 42 | D24: MOSELLE EST | E24: =VLOOKUP($C24,'RECAP SECT'!$G$6:$FJ$253,3,FALSE) -> 70.1 | F24: =VLOOKUP($C24,'RECAP SECT'!$G$6:$FJ$253,30,FALSE) -> 7.41 | G24: =VLOOKUP($C24,'RECAP SECT'!$G$6:$FJ$253,31,FALSE) -> 3.80 | H24: =VLOOKUP($C24,'RECAP SECT'!$G$6:$FJ$253,32,FALSE) -> 41% | I24: =VLOOKUP($C24,'RECAP SECT'!$G$6:$FJ$253,33,FALSE) -> 5 | J24: =VLOOKUP($C24,'RECAP SECT'!$G$6:$FJ$253,34,FALSE) -> 4.75 | K24: =VLOOKUP($C24,'RECAP SECT'!$G$6:$FJ$253,35,FALSE) -> 3.31 | L24: =VLOOKUP($C24,'RECAP SECT'!$G$6:$FJ$253,36,FALSE) -> 59% | M24: =VLOOKUP($C24,'RECAP SECT'!$G$6:$FJ$253,37,FALSE) -> 13 | N24: =VLOOKUP($C24,'RECAP SECT'!$G$6:$FJ$253,38,FALSE) -> 6.45 | O24: =VLOOKUP($C24,'RECAP SECT'!$G$6:$FJ$253,39,FALSE) -> 4.56 | P24: =VLOOKUP($C24,'RECAP SECT'!$G$6:$FJ$253,40,FALSE) -> 65% | Q24: =VLOOKUP($C24,'RECAP SECT'!$G$6:$FJ$253,41,FALSE) -> 16 | R24: =VLOOKUP($C24,'RECAP SECT'!$G$6:$FJ$253,42,FALSE) -> 0.29 | S24: =VLOOKUP($C24,'RECAP SECT'!$G$6:$FJ$253,43,FALSE) -> 0.03 | T24: =VLOOKUP($C24,'RECAP SECT'!$G$6:$FJ$253,44,FALSE) -> 97% | U24: =VLOOKUP($C24,'RECAP SECT'!$G$6:$FJ$253,45,FALSE) -> 15 | V24: =VLOOKUP($C24,'RECAP SECT'!$G$6:$FJ$253,46,FALSE) -> 63% | W24: =VLOOKUP($C24,'RECAP SECT'!$G$6:$FJ$253,47,FALSE) -> 45% | X24: =VLOOKUP($C24,'RECAP SECT'!$G$6:$FJ$253,48,FALSE) -> 14
A25: 160 | B25: MOSELLE | C25: 44 | D25: MOSELLE NORD | E25: =VLOOKUP($C25,'RECAP SECT'!$G$6:$FJ$253,3,FALSE) -> 68.2 | F25: =VLOOKUP($C25,'RECAP SECT'!$G$6:$FJ$253,30,FALSE) -> 8.04 | G25: =VLOOKUP($C25,'RECAP SECT'!$G$6:$FJ$253,31,FALSE) -> 4.66 | H25: =VLOOKUP($C25,'RECAP SECT'!$G$6:$FJ$253,32,FALSE) -> 27% | I25: =VLOOKUP($C25,'RECAP SECT'!$G$6:$FJ$253,33,FALSE) -> 3 | J25: =VLOOKUP($C25,'RECAP SECT'!$G$6:$FJ$253,34,FALSE) -> 5.94 | K25: =VLOOKUP($C25,'RECAP SECT'!$G$6:$FJ$253,35,FALSE) -> 3.94 | L25: =VLOOKUP($C25,'RECAP SECT'!$G$6:$FJ$253,36,FALSE) -> 51% | M25: =VLOOKUP($C25,'RECAP SECT'!$G$6:$FJ$253,37,FALSE) -> 10 | N25: =VLOOKUP($C25,'RECAP SECT'!$G$6:$FJ$253,38,FALSE) -> 8.05 | O25: =VLOOKUP($C25,'RECAP SECT'!$G$6:$FJ$253,39,FALSE) -> 5.57 | P25: =VLOOKUP($C25,'RECAP SECT'!$G$6:$FJ$253,40,FALSE) -> 58% | Q25: =VLOOKUP($C25,'RECAP SECT'!$G$6:$FJ$253,41,FALSE) -> 11 | R25: =VLOOKUP($C25,'RECAP SECT'!$G$6:$FJ$253,42,FALSE) -> 0.01 | S25: =VLOOKUP($C25,'RECAP SECT'!$G$6:$FJ$253,43,FALSE) -> -0.19 | T25: =VLOOKUP($C25,'RECAP SECT'!$G$6:$FJ$253,44,FALSE) -> 115% | U25: =VLOOKUP($C25,'RECAP SECT'!$G$6:$FJ$253,45,FALSE) -> 17 | V25: =VLOOKUP($C25,'RECAP SECT'!$G$6:$FJ$253,46,FALSE) -> 59% | W25: =VLOOKUP($C25,'RECAP SECT'!$G$6:$FJ$253,47,FALSE) -> 41% | X25: =VLOOKUP($C25,'RECAP SECT'!$G$6:$FJ$253,48,FALSE) -> 10
A26: 80 | B26: VOSGES | C26: 57 | D26: EPINAL | E26: =VLOOKUP($C26,'RECAP SECT'!$G$6:$FJ$253,3,FALSE) -> 59.2 | F26: =VLOOKUP($C26,'RECAP SECT'!$G$6:$FJ$253,30,FALSE) -> 5.57 | G26: =VLOOKUP($C26,'RECAP SECT'!$G$6:$FJ$253,31,FALSE) -> 1.56 | H26: =VLOOKUP($C26,'RECAP SECT'!$G$6:$FJ$253,32,FALSE) -> 76% | I26: =VLOOKUP($C26,'RECAP SECT'!$G$6:$FJ$253,33,FALSE) -> 13 | J26: =VLOOKUP($C26,'RECAP SECT'!$G$6:$FJ$253,34,FALSE) -> 4.88 | K26: =VLOOKUP($C26,'RECAP SECT'!$G$6:$FJ$253,35,FALSE) -> 3.28 | L26: =VLOOKUP($C26,'RECAP SECT'!$G$6:$FJ$253,36,FALSE) -> 59% | M26: =VLOOKUP($C26,'RECAP SECT'!$G$6:$FJ$253,37,FALSE) -> 14 | N26: =VLOOKUP($C26,'RECAP SECT'!$G$6:$FJ$253,38,FALSE) -> 8.04 | O26: =VLOOKUP($C26,'RECAP SECT'!$G$6:$FJ$253,39,FALSE) -> 5.31 | P26: =VLOOKUP($C26,'RECAP SECT'!$G$6:$FJ$253,40,FALSE) -> 60% | Q26: =VLOOKUP($C26,'RECAP SECT'!$G$6:$FJ$253,41,FALSE) -> 12 | R26: =VLOOKUP($C26,'RECAP SECT'!$G$6:$FJ$253,42,FALSE) -> 1.06 | S26: =VLOOKUP($C26,'RECAP SECT'!$G$6:$FJ$253,43,FALSE) -> 0.63 | T26: =VLOOKUP($C26,'RECAP SECT'!$G$6:$FJ$253,44,FALSE) -> 49% | U26: =VLOOKUP($C26,'RECAP SECT'!$G$6:$FJ$253,45,FALSE) -> 9 | V26: =VLOOKUP($C26,'RECAP SECT'!$G$6:$FJ$253,46,FALSE) -> 62% | W26: =VLOOKUP($C26,'RECAP SECT'!$G$6:$FJ$253,47,FALSE) -> 44% | X26: =VLOOKUP($C26,'RECAP SECT'!$G$6:$FJ$253,48,FALSE) -> 13
A27: 80 | B27: VOSGES | C27: 55 | D27: SAINT DIE | E27: =VLOOKUP($C27,'RECAP SECT'!$G$6:$FJ$253,3,FALSE) -> 47.9 | F27: =VLOOKUP($C27,'RECAP SECT'!$G$6:$FJ$253,30,FALSE) -> 6.45 | G27: =VLOOKUP($C27,'RECAP SECT'!$G$6:$FJ$253,31,FALSE) -> 2.60 | H27: =VLOOKUP($C27,'RECAP SECT'!$G$6:$FJ$253,32,FALSE) -> 59% | I27: =VLOOKUP($C27,'RECAP SECT'!$G$6:$FJ$253,33,FALSE) -> 10 | J27: =VLOOKUP($C27,'RECAP SECT'!$G$6:$FJ$253,34,FALSE) -> 6.99 | K27: =VLOOKUP($C27,'RECAP SECT'!$G$6:$FJ$253,35,FALSE) -> 4.62 | L27: =VLOOKUP($C27,'RECAP SECT'!$G$6:$FJ$253,36,FALSE) -> 43% | M27: =VLOOKUP($C27,'RECAP SECT'!$G$6:$FJ$253,37,FALSE) -> 6 | N27: =VLOOKUP($C27,'RECAP SECT'!$G$6:$FJ$253,38,FALSE) -> 11.75 | O27: =VLOOKUP($C27,'RECAP SECT'!$G$6:$FJ$253,39,FALSE) -> 7.86 | P27: =VLOOKUP($C27,'RECAP SECT'!$G$6:$FJ$253,40,FALSE) -> 40% | Q27: =VLOOKUP($C27,'RECAP SECT'!$G$6:$FJ$253,41,FALSE) -> 3 | R27: =VLOOKUP($C27,'RECAP SECT'!$G$6:$FJ$253,42,FALSE) -> 1.27 | S27: =VLOOKUP($C27,'RECAP SECT'!$G$6:$FJ$253,43,FALSE) -> 0.83 | T27: =VLOOKUP($C27,'RECAP SECT'!$G$6:$FJ$253,44,FALSE) -> 34% | U27: =VLOOKUP($C27,'RECAP SECT'!$G$6:$FJ$253,45,FALSE) -> 7 | V27: =VLOOKUP($C27,'RECAP SECT'!$G$6:$FJ$253,46,FALSE) -> 45% | W27: =VLOOKUP($C27,'RECAP SECT'!$G$6:$FJ$253,47,FALSE) -> 26% | X27: =VLOOKUP($C27,'RECAP SECT'!$G$6:$FJ$253,48,FALSE) -> 6
A28: Total CEGEE Directions Régionales | E28: =SUM(E10:E27) -> 1131

Sheet SE_EPARGNE
B1: Accueil | F1: BAROMETRE BDD - TERRITOIRES
F2: EPARGNE
F3: =ACCUEIL!F7 -> 2020-06-28
F7: Excédent Epargne Liquide | J7: CA UC + arbitrage | N7: Excédent Assurance Vie | R7: Total Epargne
F8: =DATEMAJ!C17 -> au 28/06 | H8: coef | I8: ='RECAP DIRCOM'!BL4 -> 3% | J8: =DATEMAJ!C18 -> au 21/06 | L8: coef | M8: ='RECAP DIRCOM'!BP4 -> 4% | N8: =DATEMAJ!C19 -> au 28/06 | P8: coef | Q8: ='RECAP DIRCOM'!BT4 -> 3% | S8: coef | T8: ='RECAP DIRCOM'!BW4 -> 10%
A9: eds | B9: Direction | C9: eds | D9: Territoire | E9: ="ETP perf "&DATEMAJ!$C$39 -> ETP perf au 31/05 | F9: Réal / ETP | G9: PNB / ETP | H9: % Ecart au 1er | I9: Rang | J9: Réal / ETP | K9: PNB / ETP | L9: % Ecart au 1er | M9: Rang | N9: Réal / ETP | O9: PNB / ETP | P9: % Ecart au 1er | Q9: Rang | R9: Moyenne ecart au 1er | S9: % Ecart au 1er | T9: Rang CEGEE
A10: 50 | B10: AUBE HAUTE MARNE | C10: 21 | D10: CHAUMONT | E10: =VLOOKUP($C10,'RECAP SECT'!$G$6:$FJ$253,3,FALSE) -> 34.2 | F10: =VLOOKUP($C10,'RECAP SECT'!$G$6:$FJ$253,55,FALSE) -> 321.79 | G10: =VLOOKUP($C10,'RECAP SECT'!$G$6:$FJ$253,56,FALSE) -> 7.57 | H10: =VLOOKUP($C10,'RECAP SECT'!$G$6:$FJ$253,57,FALSE) -> 32% | I10: =VLOOKUP($C10,'RECAP SECT'!$G$6:$FJ$253,58,FALSE) -> 9 | J10: =VLOOKUP($C10,'RECAP SECT'!$G$6:$FJ$253,59,FALSE) -> 84.91 | K10: =VLOOKUP($C10,'RECAP SECT'!$G$6:$FJ$253,60,FALSE) -> 0.57 | L10: =VLOOKUP($C10,'RECAP SECT'!$G$6:$FJ$253,61,FALSE) -> 55% | M10: =VLOOKUP($C10,'RECAP SECT'!$G$6:$FJ$253,62,FALSE) -> 17 | N10: =VLOOKUP($C10,'RECAP SECT'!$G$6:$FJ$253,63,FALSE) -> 9.71 | O10: =VLOOKUP($C10,'RECAP SECT'!$G$6:$FJ$253,64,FALSE) -> 0.35 | P10: =VLOOKUP($C10,'RECAP SECT'!$G$6:$FJ$253,65,FALSE) -> 37% | Q10: =VLOOKUP($C10,'RECAP SECT'!$G$6:$FJ$253,66,FALSE) -> 4 | R10: =VLOOKUP($C10,'RECAP SECT'!$G$6:$FJ$253,67,FALSE) -> 43% | S10: =VLOOKUP($C10,'RECAP SECT'!$G$6:$FJ$253,68,FALSE) -> 20% | T10: =VLOOKUP($C10,'RECAP SECT'!$G$6:$FJ$253,69,FALSE) -> 9
A11: 50 | B11: AUBE HAUTE MARNE | C11: 14 | D11: TROYES | E11: =VLOOKUP($C11,'RECAP SECT'!$G$6:$FJ$253,3,FALSE) -> 65.3 | F11: =VLOOKUP($C11,'RECAP SECT'!$G$6:$FJ$253,55,FALSE) -> 296.60 | G11: =VLOOKUP($C11,'RECAP SECT'!$G$6:$FJ$253,56,FALSE) -> 6.73 | H11: =VLOOKUP($C11,'RECAP SECT'!$G$6:$FJ$253,57,FALSE) -> 40% | I11: =VLOOKUP($C11,'RECAP SECT'!$G$6:$FJ$253,58,FALSE) -> 11 | J11: =VLOOKUP($C11,'RECAP SECT'!$G$6:$FJ$253,59,FALSE) -> 119.82 | K11: =VLOOKUP($C11,'RECAP SECT'!$G$6:$FJ$253,60,FALSE) -> 0.97 | L11: =VLOOKUP($C11,'RECAP SECT'!$G$6:$FJ$253,61,FALSE) -> 24% | M11: =VLOOKUP($C11,'RECAP SECT'!$G$6:$FJ$253,62,FALSE) -> 5 | N11: =VLOOKUP($C11,'RECAP SECT'!$G$6:$FJ$253,63,FALSE) -> -76.59 | O11: =VLOOKUP($C11,'RECAP SECT'!$G$6:$FJ$253,64,FALSE) -> -2.75 | P11: =VLOOKUP($C11,'RECAP SECT'!$G$6:$FJ$253,65,FALSE) -> 115% | Q11: =VLOOKUP($C11,'RECAP SECT'!$G$6:$FJ$253,66,FALSE) -> 14 | R11: =VLOOKUP($C11,'RECAP SECT'!$G$6:$FJ$253,67,FALSE) -> 56% | S11: =VLOOKUP($C11,'RECAP SECT'!$G$6:$FJ$253,68,FALSE) -> 33% | T11: =VLOOKUP($C11,'RECAP SECT'!$G$6:$FJ$253,69,FALSE) -> 15
A12: 262 | B12: BAS-RHIN | C12: 5060 | D12: HAGUENAU | E12: =VLOOKUP($C12,'RECAP SECT'!$G$6:$FJ$253,3,FALSE) -> 74.3 | F12: =VLOOKUP($C12,'RECAP SECT'!$G$6:$FJ$253,55,FALSE) -> 267.39 | G12: =VLOOKUP($C12,'RECAP SECT'!$G$6:$FJ$253,56,FALSE) -> 6.48 | H12: =VLOOKUP($C12,'RECAP SECT'!$G$6:$FJ$253,57,FALSE) -> 42% | I12: =VLOOKUP($C12,'RECAP SECT'!$G$6:$FJ$253,58,FALSE) -> 14 | J12: =VLOOKUP($C12,'RECAP SECT'!$G$6:$FJ$253,59,FALSE) -> 96.52 | K12: =VLOOKUP($C12,'RECAP SECT'!$G$6:$FJ$253,60,FALSE) -> 0.61 | L12: =VLOOKUP($C12,'RECAP SECT'!$G$6:$FJ$253,61,FALSE) -> 52% | M12: =VLOOKUP($C12,'RECAP SECT'!$G$6:$FJ$253,62,FALSE) -> 15 | N12: =VLOOKUP($C12,'RECAP SECT'!$G$6:$FJ$253,63,FALSE) -> -42.09 | O12: =VLOOKUP($C12,'RECAP SECT'!$G$6:$FJ$253,64,FALSE) -> -1.51 | P12: =VLOOKUP($C12,'RECAP SECT'!$G$6:$FJ$253,65,FALSE) -> 84% | Q12: =VLOOKUP($C12,'RECAP SECT'!$G$6:$FJ$253,66,FALSE) -> 10 | R12: =VLOOKUP($C12,'RECAP SECT'!$G$6:$FJ$253,67,FALSE) -> 59% | S12: =VLOOKUP($C12,'RECAP SECT'!$G$6:$FJ$253,68,FALSE) -> 35% | T12: =VLOOKUP($C12,'RECAP SECT'!$G$6:$FJ$253,69,FALSE) -> 16
A13: 262 | B13: BAS-RHIN | C13: 5101 | D13: SELESTAT | E13: =VLOOKUP($C13,'RECAP SECT'!$G$6:$FJ$253,3,FALSE) -> 62.1 | F13: =VLOOKUP($C13,'RECAP SECT'!$G$6:$FJ$253,55,FALSE) -> 411.06 | G13: =VLOOKUP($C13,'RECAP SECT'!$G$6:$FJ$253,56,FALSE) -> 9.40 | H13: =VLOOKUP($C13,'RECAP SECT'!$G$6:$FJ$253,57,FALSE) -> 16% | I13: =VLOOKUP($C13,'RECAP SECT'!$G$6:$FJ$253,58,FALSE) -> 4 | J13: =VLOOKUP($C13,'RECAP SECT'!$G$6:$FJ$253,59,FALSE) -> 114.67 | K13: =VLOOKUP($C13,'RECAP SECT'!$G$6:$FJ$253,60,FALSE) -> 0.83 | L13: =VLOOKUP($C13,'RECAP SECT'!$G$6:$FJ$253,61,FALSE) -> 36% | M13: =VLOOKUP($C13,'RECAP SECT'!$G$6:$FJ$253,62,FALSE) -> 7 | N13: =VLOOKUP($C13,'RECAP SECT'!$G$6:$FJ$253,63,FALSE) -> -15.56 | O13: =VLOOKUP($C13,'RECAP SECT'!$G$6:$FJ$253,64,FALSE) -> -0.56 | P13: =VLOOKUP($C13,'RECAP SECT'!$G$6:$FJ$253,65,FALSE) -> 60% | Q13: =VLOOKUP($C13,'RECAP SECT'!$G$6:$FJ$253,66,FALSE) -> 9 | R13: =VLOOKUP($C13,'RECAP SECT'!$G$6:$FJ$253,67,FALSE) -> 37% | S13: =VLOOKUP($C13,'RECAP SECT'!$G$6:$FJ$253,68,FALSE) -> 14% | T13: =VLOOKUP($C13,'RECAP SECT'!$G$6:$FJ$253,69,FALSE) -> 4
A14: 262 | B14: BAS-RHIN | C14: 5006 | D14: STRASBOURG | E14: =VLOOKUP($C14,'RECAP SECT'!$G$6:$FJ$253,3,FALSE) -> 73.4 | F14: =VLOOKUP($C14,'RECAP SECT'!$G$6:$FJ$253,55,FALSE) -> 490.29 | G14: =VLOOKUP($C14,'RECAP SECT'!$G$6:$FJ$253,56,FALSE) -> 11.17 | H14: =VLOOKUP($C14,'RECAP SECT'!$G$6:$FJ$253,57,FALSE) -> 0% | I14: =VLOOKUP($C14,'RECAP SECT'!$G$6:$FJ$253,58,FALSE) -> 1 | J14: =VLOOKUP($C14,'RECAP SECT'!$G$6:$FJ$253,59,FALSE) -> 134.42 | K14: =VLOOKUP($C14,'RECAP SECT'!$G$6:$FJ$253,60,FALSE) -> 1.13 | L14: =VLOOKUP($C14,'RECAP SECT'!$G$6:$FJ$253,61,FALSE) -> 13% | M14: =VLOOKUP($C14,'RECAP SECT'!$G$6:$FJ$253,62,FALSE) -> 3 | N14: =VLOOKUP($C14,'RECAP SECT'!$G$6:$FJ$253,63,FALSE) -> -57.56 | O14: =VLOOKUP($C14,'RECAP SECT'!$G$6:$FJ$253,64,FALSE) -> -2.07 | P14: =VLOOKUP($C14,'RECAP SECT'!$G$6:$FJ$253,65,FALSE) -> 98% | Q14: =VLOOKUP($C14,'RECAP SECT'!$G$6:$FJ$253,66,FALSE) -> 11 | R14: =VLOOKUP($C14,'RECAP SECT'!$G$6:$FJ$253,67,FALSE) -> 34% | S14: =VLOOKUP($C14,'RECAP SECT'!$G$6:$FJ$253,68,FALSE) -> 11% | T14: =VLOOKUP($C14,'RECAP SECT'!$G$6:$FJ$253,69,FALSE) -> 3
A15: 264 | B15: HAUT-RHIN | C15: 5130 | D15: COLMAR | E15: =VLOOKUP($C15,'RECAP SECT'!$G$6:$FJ$253,3,FALSE) -> 64.9 | F15: =VLOOKUP($C15,'RECAP SECT'!$G$6:$FJ$253,55,FALSE) -> 365.93 | G15: =VLOOKUP($C15,'RECAP SECT'!$G$6:$FJ$253,56,FALSE) -> 8.35 | H15: =VLOOKUP($C15,'RECAP SECT'!$G$6:$FJ$253,57,FALSE) -> 25% | I15: =VLOOKUP($C15,'RECAP SECT'!$G$6:$FJ$253,58,FALSE) -> 6 | J15: =VLOOKUP($C15,'RECAP SECT'!$G$6:$FJ$253,59,FALSE) -> 132.40 | K15: =VLOOKUP($C15,'RECAP SECT'!$G$6:$FJ$253,60,FALSE) -> 1.29 | L15: =VLOOKUP($C15,'RECAP SECT'!$G$6:$FJ$253,61,FALSE) -> 0% | M15: =VLOOKUP($C15,'RECAP SECT'!$G$6:$FJ$253,62,FALSE) -> 1 | N15: =VLOOKUP($C15,'RECAP SECT'!$G$6:$FJ$253,63,FALSE) -> -81.00 | O15: =VLOOKUP($C15,'RECAP SECT'!$G$6:$FJ$253,64,FALSE) -> -2.91 | P15: =VLOOKUP($C15,'RECAP SECT'!$G$6:$FJ$253,65,FALSE) -> 119% | Q15: =VLOOKUP($C15,'RECAP SECT'!$G$6:$FJ$253,66,FALSE) -> 16 | R15: =VLOOKUP($C15,'RECAP SECT'!$G$6:$FJ$253,67,FALSE) -> 43% | S15: =VLOOKUP($C15,'RECAP SECT'!$G$6:$FJ$253,68,FALSE) -> 20% | T15: =VLOOKUP($C15,'RECAP SECT'!$G$6:$FJ$253,69,FALSE) -> 10
A16: 264 | B16: HAUT-RHIN | C16: 5169 | D16: MULHOUSE | E16: =VLOOKUP($C16,'RECAP SECT'!$G$6:$FJ$253,3,FALSE) -> 61.1 | F16: =VLOOKUP($C16,'RECAP SECT'!$G$6:$FJ$253,55,FALSE) -> 338.02 | G16: =VLOOKUP($C16,'RECAP SECT'!$G$6:$FJ$253,56,FALSE) -> 7.71 | H16: =VLOOKUP($C16,'RECAP SECT'!$G$6:$FJ$253,57,FALSE) -> 31% | I16: =VLOOKUP($C16,'RECAP SECT'!$G$6:$FJ$253,58,FALSE) -> 8 | J16: =VLOOKUP($C16,'RECAP SECT'!$G$6:$FJ$253,59,FALSE) -> 69.47 | K16: =VLOOKUP($C16,'RECAP SECT'!$G$6:$FJ$253,60,FALSE) -> 0.43 | L16: =VLOOKUP($C16,'RECAP SECT'!$G$6:$FJ$253,61,FALSE) -> 67% | M16: =VLOOKUP($C16,'RECAP SECT'!$G$6:$FJ$253,62,FALSE) -> 18 | N16: =VLOOKUP($C16,'RECAP SECT'!$G$6:$FJ$253,63,FALSE) -> -116.14 | O16: =VLOOKUP($C16,'RECAP SECT'!$G$6:$FJ$253,64,FALSE) -> -4.17 | P16: =VLOOKUP($C16,'RECAP SECT'!$G$6:$FJ$253,65,FALSE) -> 150% | Q16: =VLOOKUP($C16,'RECAP SECT'!$G$6:$FJ$253,66,FALSE) -> 18 | R16: =VLOOKUP($C16,'RECAP SECT'!$G$6:$FJ$253,67,FALSE) -> 81% | S16: =VLOOKUP($C16,'RECAP SECT'!$G$6:$FJ$253,68,FALSE) -> 58% | T16: =VLOOKUP($C16,'RECAP SECT'!$G$6:$FJ$253,69,FALSE) -> 18
A17: 30 | B17: MARNE-ARDENNES | C17: 6 | D17: CHALONS EN CHAMPAGNE | E17: =VLOOKUP($C17,'RECAP SECT'!$G$6:$FJ$253,3,FALSE) -> 45.0 | F17: =VLOOKUP($C17,'RECAP SECT'!$G$6:$FJ$253,55,FALSE) -> 423.58 | G17: =VLOOKUP($C17,'RECAP SECT'!$G$6:$FJ$253,56,FALSE) -> 9.51 | H17: =VLOOKUP($C17,'RECAP SECT'!$G$6:$FJ$253,57,FALSE) -> 15% | I17: =VLOOKUP($C17,'RECAP SECT'!$G$6:$FJ$253,58,FALSE) -> 3 | J17: =VLOOKUP($C17,'RECAP SECT'!$G$6:$FJ$253,59,FALSE) -> 131.07 | K17: =VLOOKUP($C17,'RECAP SECT'!$G$6:$FJ$253,60,FALSE) -> 1.00 | L17: =VLOOKUP($C17,'RECAP SECT'!$G$6:$FJ$253,61,FALSE) -> 22% | M17: =VLOOKUP($C17,'RECAP SECT'!$G$6:$FJ$253,62,FALSE) -> 4 | N17: =VLOOKUP($C17,'RECAP SECT'!$G$6:$FJ$253,63,FALSE) -> -80.27 | O17: =VLOOKUP($C17,'RECAP SECT'!$G$6:$FJ$253,64,FALSE) -> -2.88 | P17: =VLOOKUP($C17,'RECAP SECT'!$G$6:$FJ$253,65,FALSE) -> 118% | Q17: =VLOOKUP($C17,'RECAP SECT'!$G$6:$FJ$253,66,FALSE) -> 15 | R17: =VLOOKUP($C17,'RECAP SECT'!$G$6:$FJ$253,67,FALSE) -> 49% | S17: =VLOOKUP($C17,'RECAP SECT'!$G$6:$FJ$253,68,FALSE) -> 25% | T17: =VLOOKUP($C17,'RECAP SECT'!$G$6:$FJ$253,69,FALSE) -> 11
A18: 30 | B18: MARNE-ARDENNES | C18: 2 | D18: CHARLEVILLE MEZIERES | E18: =VLOOKUP($C18,'RECAP SECT'!$G$6:$FJ$253,3,FALSE) -> 54.5 | F18: =VLOOKUP($C18,'RECAP SECT'!$G$6:$FJ$253,55,FALSE) -> 261.18 | G18: =VLOOKUP($C18,'RECAP SECT'!$G$6:$FJ$253,56,FALSE) -> 6.43 | H18: =VLOOKUP($C18,'RECAP SECT'!$G$6:$FJ$253,57,FALSE) -> 42% | I18: =VLOOKUP($C18,'RECAP SECT'!$G$6:$FJ$253,58,FALSE) -> 17 | J18: =VLOOKUP($C18,'RECAP SECT'!$G$6:$FJ$253,59,FALSE) -> 105.09 | K18: =VLOOKUP($C18,'RECAP SECT'!$G$6:$FJ$253,60,FALSE) -> 0.78 | L18: =VLOOKUP($C18,'RECAP SECT'!$G$6:$FJ$253,61,FALSE) -> 40% | M18: =VLOOKUP($C18,'RECAP SECT'!$G$6:$FJ$253,62,FALSE) -> 10 | N18: =VLOOKUP($C18,'RECAP SECT'!$G$6:$FJ$253,63,FALSE) -> 14.26 | O18: =VLOOKUP($C18,'RECAP SECT'!$G$6:$FJ$253,64,FALSE) -> 0.51 | P18: =VLOOKUP($C18,'RECAP SECT'!$G$6:$FJ$253,65,FALSE) -> 33% | Q18: =VLOOKUP($C18,'RECAP SECT'!$G$6:$FJ$253,66,FALSE) -> 3 | R18: =VLOOKUP($C18,'RECAP SECT'!$G$6:$FJ$253,67,FALSE) -> 39% | S18: =VLOOKUP($C18,'RECAP SECT'!$G$6:$FJ$253,68,FALSE) -> 15% | T18: =VLOOKUP($C18,'RECAP SECT'!$G$6:$FJ$253,69,FALSE) -> 5
A19: 30 | B19: MARNE-ARDENNES | C19: 11 | D19: REIMS | E19: =VLOOKUP($C19,'RECAP SECT'!$G$6:$FJ$253,3,FALSE) -> 78.1 | F19: =VLOOKUP($C19,'RECAP SECT'!$G$6:$FJ$253,55,FALSE) -> 479.11 | G19: =VLOOKUP($C19,'RECAP SECT'!$G$6:$FJ$253,56,FALSE) -> 11.00 | H19: =VLOOKUP($C19,'RECAP SECT'!$G$6:$FJ$253,57,FALSE) -> 2% | I19: =VLOOKUP($C19,'RECAP SECT'!$G$6:$FJ$253,58,FALSE) -> 2 | J19: =VLOOKUP($C19,'RECAP SECT'!$G$6:$FJ$253,59,FALSE) -> 111.48 | K19: =VLOOKUP($C19,'RECAP SECT'!$G$6:$FJ$253,60,FALSE) -> 0.73 | L19: =VLOOKUP($C19,'RECAP SECT'!$G$6:$FJ$253,61,FALSE) -> 44% | M19: =VLOOKUP($C19,'RECAP SECT'!$G$6:$FJ$253,62,FALSE) -> 13 | N19: =VLOOKUP($C19,'RECAP SECT'!$G$6:$FJ$253,63,FALSE) -> -68.75 | O19: =VLOOKUP($C19,'RECAP SECT'!$G$6:$FJ$253,64,FALSE) -> -2.47 | P19: =VLOOKUP($C19,'RECAP SECT'!$G$6:$FJ$253,65,FALSE) -> 108% | Q19: =VLOOKUP($C19,'RECAP SECT'!$G$6:$FJ$253,66,FALSE) -> 12 | R19: =VLOOKUP($C19,'RECAP SECT'!$G$6:$FJ$253,67,FALSE) -> 50% | S19: =VLOOKUP($C19,'RECAP SECT'!$G$6:$FJ$253,68,FALSE) -> 27% | T19: =VLOOKUP($C19,'RECAP SECT'!$G$6:$FJ$253,69,FALSE) -> 13
A20: 110 | B20: MEURTHE ET MOSELLE MEUSE | C20: 26 | D20: NANCY | E20: =VLOOKUP($C20,'RECAP SECT'!$G$6:$FJ$253,3,FALSE) -> 63.6 | F20: =VLOOKUP($C20,'RECAP SECT'!$G$6:$FJ$253,55,FALSE) -> 354.05 | G20: =VLOOKUP($C20,'RECAP SECT'!$G$6:$FJ$253,56,FALSE) -> 8.27 | H20: =VLOOKUP($C20,'RECAP SECT'!$G$6:$FJ$253,57,FALSE) -> 26% | I20: =VLOOKUP($C20,'RECAP SECT'!$G$6:$FJ$253,58,FALSE) -> 7 | J20: =VLOOKUP($C20,'RECAP SECT'!$G$6:$FJ$253,59,FALSE) -> 149.46 | K20: =VLOOKUP($C20,'RECAP SECT'!$G$6:$FJ$253,60,FALSE) -> 1.24 | L20: =VLOOKUP($C20,'RECAP SECT'!$G$6:$FJ$253,61,FALSE) -> 4% | M20: =VLOOKUP($C20,'RECAP SECT'!$G$6:$FJ$253,62,FALSE) -> 2 | N20: =VLOOKUP($C20,'RECAP SECT'!$G$6:$FJ$253,63,FALSE) -> -73.86 | O20: =VLOOKUP($C20,'RECAP SECT'!$G$6:$FJ$253,64,FALSE) -> -2.65 | P20: =VLOOKUP($C20,'RECAP SECT'!$G$6:$FJ$253,65,FALSE) -> 112% | Q20: =VLOOKUP($C20,'RECAP SECT'!$G$6:$FJ$253,66,FALSE) -> 13 | R20: =VLOOKUP($C20,'RECAP SECT'!$G$6:$FJ$253,67,FALSE) -> 43% | S20: =VLOOKUP($C20,'RECAP SECT'!$G$6:$FJ$253,68,FALSE) -> 20% | T20: =VLOOKUP($C20,'RECAP SECT'!$G$6:$FJ$253,69,FALSE) -> 8
A21: 110 | B21: MEURTHE ET MOSELLE MEUSE | C21: 27 | D21: PONT A MOUSSON | E21: =VLOOKUP($C21,'RECAP SECT'!$G$6:$FJ$253,3,FALSE) -> 71.9 | F21: =VLOOKUP($C21,'RECAP SECT'!$G$6:$FJ$253,55,FALSE) -> 384.57 | G21: =VLOOKUP($C21,'RECAP SECT'!$G$6:$FJ$253,56,FALSE) -> 8.72 | H21: =VLOOKUP($C21,'RECAP SECT'!$G$6:$FJ$253,57,FALSE) -> 22% | I21: =VLOOKUP($C21,'RECAP SECT'!$G$6:$FJ$253,58,FALSE) -> 5 | J21: =VLOOKUP($C21,'RECAP SECT'!$G$6:$FJ$253,59,FALSE) -> 109.81 | K21: =VLOOKUP($C21,'RECAP SECT'!$G$6:$FJ$253,60,FALSE) -> 0.69 | L21: =VLOOKUP($C21,'RECAP SECT'!$G$6:$FJ$253,61,FALSE) -> 46% | M21: =VLOOKUP($C21,'RECAP SECT'!$G$6:$FJ$253,62,FALSE) -> 14 | N21: =VLOOKUP($C21,'RECAP SECT'!$G$6:$FJ$253,63,FALSE) -> 49.75 | O21: =VLOOKUP($C21,'RECAP SECT'!$G$6:$FJ$253,64,FALSE) -> 1.79 | P21: =VLOOKUP($C21,'RECAP SECT'!$G$6:$FJ$253,65,FALSE) -> 2% | Q21: =VLOOKUP($C21,'RECAP SECT'!$G$6:$FJ$253,66,FALSE) -> 2 | R21: =VLOOKUP($C21,'RECAP SECT'!$G$6:$FJ$253,67,FALSE) -> 25% | S21: =VLOOKUP($C21,'RECAP SECT'!$G$6:$FJ$253,68,FALSE) -> 2% | T21: =VLOOKUP($C21,'RECAP SECT'!$G$6:$FJ$253,69,FALSE) -> 2
A22: 110 | B22: MEURTHE ET MOSELLE MEUSE | C22: 31 | D22: VERDUN | E22: =VLOOKUP($C22,'RECAP SECT'!$G$6:$FJ$253,3,FALSE) -> 51.9 | F22: =VLOOKUP($C22,'RECAP SECT'!$G$6:$FJ$253,55,FALSE) -> 276.76 | G22: =VLOOKUP($C22,'RECAP SECT'!$G$6:$FJ$253,56,FALSE) -> 6.54 | H22: =VLOOKUP($C22,'RECAP SECT'!$G$6:$FJ$253,57,FALSE) -> 41% | I22: =VLOOKUP($C22,'RECAP SECT'!$G$6:$FJ$253,58,FALSE) -> 13 | J22: =VLOOKUP($C22,'RECAP SECT'!$G$6:$FJ$253,59,FALSE) -> 122.62 | K22: =VLOOKUP($C22,'RECAP SECT'!$G$6:$FJ$253,60,FALSE) -> 0.76 | L22: =VLOOKUP($C22,'RECAP SECT'!$G$6:$FJ$253,61,FALSE) -> 41% | M22: =VLOOKUP($C22,'RECAP SECT'!$G$6:$FJ$253,62,FALSE) -> 11 | N22: =VLOOKUP($C22,'RECAP SECT'!$G$6:$FJ$253,63,FALSE) -> 2.19 | O22: =VLOOKUP($C22,'RECAP SECT'!$G$6:$FJ$253,64,FALSE) -> 0.08 | P22: =VLOOKUP($C22,'RECAP SECT'!$G$6:$FJ$253,65,FALSE) -> 44% | Q22: =VLOOKUP($C22,'RECAP SECT'!$G$6:$FJ$253,66,FALSE) -> 5 | R22: =VLOOKUP($C22,'RECAP SECT'!$G$6:$FJ$253,67,FALSE) -> 42% | S22: =VLOOKUP($C22,'RECAP SECT'!$G$6:$FJ$253,68,FALSE) -> 19% | T22: =VLOOKUP($C22,'RECAP SECT'!$G$6:$FJ$253,69,FALSE) -> 7
A23: 160 | B23: MOSELLE | C23: 45 | D23: METZ | E23: =VLOOKUP($C23,'RECAP SECT'!$G$6:$FJ$253,3,FALSE) -> 85.7 | F23: =VLOOKUP($C23,'RECAP SECT'!$G$6:$FJ$253,55,FALSE) -> 333.13 | G23: =VLOOKUP($C23,'RECAP SECT'!$G$6:$FJ$253,56,FALSE) -> 7.41 | H23: =VLOOKUP($C23,'RECAP SECT'!$G$6:$FJ$253,57,FALSE) -> 34% | I23: =VLOOKUP($C23,'RECAP SECT'!$G$6:$FJ$253,58,FALSE) -> 10 | J23: =VLOOKUP($C23,'RECAP SECT'!$G$6:$FJ$253,59,FALSE) -> 117.69 | K23: =VLOOKUP($C23,'RECAP SECT'!$G$6:$FJ$253,60,FALSE) -> 0.79 | L23: =VLOOKUP($C23,'RECAP SECT'!$G$6:$FJ$253,61,FALSE) -> 38% | M23: =VLOOKUP($C23,'RECAP SECT'!$G$6:$FJ$253,62,FALSE) -> 9 | N23: =VLOOKUP($C23,'RECAP SECT'!$G$6:$FJ$253,63,FALSE) -> -7.26 | O23: =VLOOKUP($C23,'RECAP SECT'!$G$6:$FJ$253,64,FALSE) -> -0.26 | P23: =VLOOKUP($C23,'RECAP SECT'!$G$6:$FJ$253,65,FALSE) -> 53% | Q23: =VLOOKUP($C23,'RECAP SECT'!$G$6:$FJ$253,66,FALSE) -> 6 | R23: =VLOOKUP($C23,'RECAP SECT'!$G$6:$FJ$253,67,FALSE) -> 41% | S23: =VLOOKUP($C23,'RECAP SECT'!$G$6:$FJ$253,68,FALSE) -> 18% | T23: =VLOOKUP($C23,'RECAP SECT'!$G$6:$FJ$253,69,FALSE) -> 6
A24: 160 | B24: MOSELLE | C24: 42 | D24: MOSELLE EST | E24: =VLOOKUP($C24,'RECAP SECT'!$G$6:$FJ$253,3,FALSE) -> 70.1 | F24: =VLOOKUP($C24,'RECAP SECT'!$G$6:$FJ$253,55,FALSE) -> 273.37 | G24: =VLOOKUP($C24,'RECAP SECT'!$G$6:$FJ$253,56,FALSE) -> 6.56 | H24: =VLOOKUP($C24,'RECAP SECT'!$G$6:$FJ$253,57,FALSE) -> 41% | I24: =VLOOKUP($C24,'RECAP SECT'!$G$6:$FJ$253,58,FALSE) -> 12 | J24: =VLOOKUP($C24,'RECAP SECT'!$G$6:$FJ$253,59,FALSE) -> 95.29 | K24: =VLOOKUP($C24,'RECAP SECT'!$G$6:$FJ$253,60,FALSE) -> 0.81 | L24: =VLOOKUP($C24,'RECAP SECT'!$G$6:$FJ$253,61,FALSE) -> 37% | M24: =VLOOKUP($C24,'RECAP SECT'!$G$6:$FJ$253,62,FALSE) -> 8 | N24: =VLOOKUP($C24,'RECAP SECT'!$G$6:$FJ$253,63,FALSE) -> -105.17 | O24: =VLOOKUP($C24,'RECAP SECT'!$G$6:$FJ$253,64,FALSE) -> -3.78 | P24: =VLOOKUP($C24,'RECAP SECT'!$G$6:$FJ$253,65,FALSE) -> 140% | Q24: =VLOOKUP($C24,'RECAP SECT'!$G$6:$FJ$253,66,FALSE) -> 17 | R24: =VLOOKUP($C24,'RECAP SECT'!$G$6:$FJ$253,67,FALSE) -> 69% | S24: =VLOOKUP($C24,'RECAP SECT'!$G$6:$FJ$253,68,FALSE) -> 46% | T24: =VLOOKUP($C24,'RECAP SECT'!$G$6:$FJ$253,69,FALSE) -> 17
A25: 160 | B25: MOSELLE | C25: 44 | D25: MOSELLE NORD | E25: =VLOOKUP($C25,'RECAP SECT'!$G$6:$FJ$253,3,FALSE) -> 68.2 | F25: =VLOOKUP($C25,'RECAP SECT'!$G$6:$FJ$253,55,FALSE) -> 251.98 | G25: =VLOOKUP($C25,'RECAP SECT'!$G$6:$FJ$253,56,FALSE) -> 5.58 | H25: =VLOOKUP($C25,'RECAP SECT'!$G$6:$FJ$253,57,FALSE) -> 50% | I25: =VLOOKUP($C25,'RECAP SECT'!$G$6:$FJ$253,58,FALSE) -> 18 | J25: =VLOOKUP($C25,'RECAP SECT'!$G$6:$FJ$253,59,FALSE) -> 107.75 | K25: =VLOOKUP($C25,'RECAP SECT'!$G$6:$FJ$253,60,FALSE) -> 0.74 | L25: =VLOOKUP($C25,'RECAP SECT'!$G$6:$FJ$253,61,FALSE) -> 42% | M25: =VLOOKUP($C25,'RECAP SECT'!$G$6:$FJ$253,62,FALSE) -> 12 | N25: =VLOOKUP($C25,'RECAP SECT'!$G$6:$FJ$253,63,FALSE) -> -12.20 | O25: =VLOOKUP($C25,'RECAP SECT'!$G$6:$FJ$253,64,FALSE) -> -0.44 | P25: =VLOOKUP($C25,'RECAP SECT'!$G$6:$FJ$253,65,FALSE) -> 57% | Q25: =VLOOKUP($C25,'RECAP SECT'!$G$6:$FJ$253,66,FALSE) -> 8 | R25: =VLOOKUP($C25,'RECAP SECT'!$G$6:$FJ$253,67,FALSE) -> 49% | S25: =VLOOKUP($C25,'RECAP SECT'!$G$6:$FJ$253,68,FALSE) -> 26% | T25: =VLOOKUP($C25,'RECAP SECT'!$G$6:$FJ$253,69,FALSE) -> 12
A26: 80 | B26: VOSGES | C26: 57 | D26: EPINAL | E26: =VLOOKUP($C26,'RECAP SECT'!$G$6:$FJ$253,3,FALSE) -> 59.2 | F26: =VLOOKUP($C26,'RECAP SECT'!$G$6:$FJ$253,55,FALSE) -> 250.08 | G26: =VLOOKUP($C26,'RECAP SECT'!$G$6:$FJ$253,56,FALSE) -> 6.45 | H26: =VLOOKUP($C26,'RECAP SECT'!$G$6:$FJ$253,57,FALSE) -> 42% | I26: =VLOOKUP($C26,'RECAP SECT'!$G$6:$FJ$253,58,FALSE) -> 16 | J26: =VLOOKUP($C26,'RECAP SECT'!$G$6:$FJ$253,59,FALSE) -> 103.73 | K26: =VLOOKUP($C26,'RECAP SECT'!$G$6:$FJ$253,60,FALSE) -> 0.58 | L26: =VLOOKUP($C26,'RECAP SECT'!$G$6:$FJ$253,61,FALSE) -> 55% | M26: =VLOOKUP($C26,'RECAP SECT'!$G$6:$FJ$253,62,FALSE) -> 16 | N26: =VLOOKUP($C26,'RECAP SECT'!$G$6:$FJ$253,63,FALSE) -> -11.41 | O26: =VLOOKUP($C26,'RECAP SECT'!$G$6:$FJ$253,64,FALSE) -> -0.41 | P26: =VLOOKUP($C26,'RECAP SECT'!$G$6:$FJ$253,65,FALSE) -> 56% | Q26: =VLOOKUP($C26,'RECAP SECT'!$G$6:$FJ$253,66,FALSE) -> 7 | R26: =VLOOKUP($C26,'RECAP SECT'!$G$6:$FJ$253,67,FALSE) -> 52% | S26: =VLOOKUP($C26,'RECAP SECT'!$G$6:$FJ$253,68,FALSE) -> 28% | T26: =VLOOKUP($C26,'RECAP SECT'!$G$6:$FJ$253,69,FALSE) -> 14
A27: 80 | B27: VOSGES | C27: 55 | D27: SAINT DIE | E27: =VLOOKUP($C27,'RECAP SECT'!$G$6:$FJ$253,3,FALSE) -> 47.9 | F27: =VLOOKUP($C27,'RECAP SECT'!$G$6:$FJ$253,55,FALSE) -> 239.14 | G27: =VLOOKUP($C27,'RECAP SECT'!$G$6:$FJ$253,56,FALSE) -> 6.46 | H27: =VLOOKUP($C27,'RECAP SECT'!$G$6:$FJ$253,57,FALSE) -> 42% | I27: =VLOOKUP($C27,'RECAP SECT'!$G$6:$FJ$253,58,FALSE) -> 15 | J27: =VLOOKUP($C27,'RECAP SECT'!$G$6:$FJ$253,59,FALSE) -> 154.48 | K27: =VLOOKUP($C27,'RECAP SECT'!$G$6:$FJ$253,60,FALSE) -> 0.95 | L27: =VLOOKUP($C27,'RECAP SECT'!$G$6:$FJ$253,61,FALSE) -> 26% | M27: =VLOOKUP($C27,'RECAP SECT'!$G$6:$FJ$253,62,FALSE) -> 6 | N27: =VLOOKUP($C27,'RECAP SECT'!$G$6:$FJ$253,63,FALSE) -> 51.43 | O27: =VLOOKUP($C27,'RECAP SECT'!$G$6:$FJ$253,64,FALSE) -> 1.85 | P27: =VLOOKUP($C27,'RECAP SECT'!$G$6:$FJ$253,65,FALSE) -> 0% | Q27: =VLOOKUP($C27,'RECAP SECT'!$G$6:$FJ$253,66,FALSE) -> 1 | R27: =VLOOKUP($C27,'RECAP SECT'!$G$6:$FJ$253,67,FALSE) -> 23% | S27: =VLOOKUP($C27,'RECAP SECT'!$G$6:$FJ$253,68,FALSE) -> 0% | T27: =VLOOKUP($C27,'RECAP SECT'!$G$6:$FJ$253,69,FALSE) -> 1
A28: Total CEGEE Directions Régionales | E28: =SUM(E10:E27) -> 1131

Sheet SE_CREDIT
B1: Accueil | F1: BAROMETRE BDD - TERRITOIRES
F2: CREDITS
F3: =ACCUEIL!F7 -> 2020-06-28
F7: Engagements crédits conso | J7: ADE crédits conso | N7: Engagements crédits immo | R7: ADE crédits immo | V7: SACCEF | Z7: Engagement Crédits MLT + Crédits Bail | AD7: Total Crédits
F8: =DATEMAJ!C21 -> au 28/06 | H8: coef | I8: ='RECAP DIRCOM'!CG4 -> 4% | K8: =DATEMAJ!C22 -> au 28/06 | L8: coef | M8: ='RECAP DIRCOM'!CK4 -> 1% | N8: =DATEMAJ!C23 -> au 28/06 | P8: coef | Q8: ='RECAP DIRCOM'!CO4 -> 4% | S8: =DATEMAJ!C24 -> au 28/06 | T8: coef | U8: ='RECAP DIRCOM'!CS4 -> 2% | W8: =DATEMAJ!C25 -> au 28/06 | X8: coef | Y8: ='RECAP DIRCOM'!CW4 -> 2% | Z8: =DATEMAJ!C26 -> au 28/06 | AB8: coef | AC8: ='RECAP DIRCOM'!DA4 -> 2% | AE8: coef | AF8: ='RECAP DIRCOM'!DD4 -> 15%
B9: Direction | C9: eds | D9: Territoire | E9: ="ETP perf "&DATEMAJ!$C$39 -> ETP perf au 31/05 | F9: Réal / ETP | G9: PNB / ETP | H9: % Ecart au 1er | I9: Rang | K9: PNB / ETP | L9: % Ecart au 1er | M9: Rang | N9: Réal / ETP | O9: PNB / ETP | P9: % Ecart au 1er | Q9: Rang | S9: PNB / ETP | T9: % Ecart au 1er | U9: Rang | W9: PNB / ETP | X9: % Ecart au 1er | Y9: Rang | Z9: Réal / ETP | AA9: PNB / ETP | AB9: % Ecart au 1er | AC9: Rang | AD9: Moyenne ecart au 1er | AE9: % Ecart au 1er | AF9: Rang CEGEE
A10: 50 | B10: AUBE HAUTE MARNE | C10: 21 | D10: CHAUMONT | E10: =VLOOKUP($C10,'RECAP SECT'!$G$6:$FJ$253,3,FALSE) -> 34.2 | F10: =VLOOKUP($C10,'RECAP SECT'!$G$6:$FJ$253,76,FALSE) -> 346.92 | G10: =VLOOKUP($C10,'RECAP SECT'!$G$6:$FJ$253,77,FALSE) -> 32.85 | H10: =VLOOKUP($C10,'RECAP SECT'!$G$6:$FJ$253,78,FALSE) -> 0% | I10: =VLOOKUP($C10,'RECAP SECT'!$G$6:$FJ$253,79,FALSE) -> 1 | K10: =VLOOKUP($C10,'RECAP SECT'!$G$6:$FJ$253,81,FALSE) -> 7.77 | L10: =VLOOKUP($C10,'RECAP SECT'!$G$6:$FJ$253,82,FALSE) -> 6% | M10: =VLOOKUP($C10,'RECAP SECT'!$G$6:$FJ$253,83,FALSE) -> 2 | N10: =VLOOKUP($C10,'RECAP SECT'!$G$6:$FJ$253,84,FALSE) -> 641.32 | O10: =VLOOKUP($C10,'RECAP SECT'!$G$6:$FJ$253,85,FALSE) -> 26.23 | P10: =VLOOKUP($C10,'RECAP SECT'!$G$6:$FJ$253,86,FALSE) -> 53% | Q10: =VLOOKUP($C10,'RECAP SECT'!$G$6:$FJ$253,87,FALSE) -> 15 | S10: =VLOOKUP($C10,'RECAP SECT'!$G$6:$FJ$253,89,FALSE) -> 14.16 | T10: =VLOOKUP($C10,'RECAP SECT'!$G$6:$FJ$253,90,FALSE) -> 60% | U10: =VLOOKUP($C10,'RECAP SECT'!$G$6:$FJ$253,91,FALSE) -> 15 | W10: =VLOOKUP($C10,'RECAP SECT'!$G$6:$FJ$253,93,FALSE) -> 1.64 | X10: =VLOOKUP($C10,'RECAP SECT'!$G$6:$FJ$253,94,FALSE) -> 49% | Y10: =VLOOKUP($C10,'RECAP SECT'!$G$6:$FJ$253,95,FALSE) -> 10 | Z10: =VLOOKUP($C10,'RECAP SECT'!$G$6:$FJ$253,96,FALSE) -> 98.13 | AA10: =VLOOKUP($C10,'RECAP SECT'!$G$6:$FJ$253,97,FALSE) -> 4.51 | AB10: =VLOOKUP($C10,'RECAP SECT'!$G$6:$FJ$253,98,FALSE) -> 56% | AC10: =VLOOKUP($C10,'RECAP SECT'!$G$6:$FJ$253,99,FALSE) -> 5 | AD10: =VLOOKUP($C10,'RECAP SECT'!$G$6:$FJ$253,100,FALSE) -> 36% | AE10: =VLOOKUP($C10,'RECAP SECT'!$G$6:$FJ$253,101,FALSE) -> 26% | AF10: =VLOOKUP($C10,'RECAP SECT'!$G$6:$FJ$253,102,FALSE) -> 9
A11: 50 | B11: AUBE HAUTE MARNE | C11: 14 | D11: TROYES | E11: =VLOOKUP($C11,'RECAP SECT'!$G$6:$FJ$253,3,FALSE) -> 65.3 | F11: =VLOOKUP($C11,'RECAP SECT'!$G$6:$FJ$253,76,FALSE) -> 275.12 | G11: =VLOOKUP($C11,'RECAP SECT'!$G$6:$FJ$253,77,FALSE) -> 28.20 | H11: =VLOOKUP($C11,'RECAP SECT'!$G$6:$FJ$253,78,FALSE) -> 14% | I11: =VLOOKUP($C11,'RECAP SECT'!$G$6:$FJ$253,79,FALSE) -> 5 | K11: =VLOOKUP($C11,'RECAP SECT'!$G$6:$FJ$253,81,FALSE) -> 5.69 | L11: =VLOOKUP($C11,'RECAP SECT'!$G$6:$FJ$253,82,FALSE) -> 31% | M11: =VLOOKUP($C11,'RECAP SECT'!$G$6:$FJ$253,83,FALSE) -> 12 | N11: =VLOOKUP($C11,'RECAP SECT'!$G$6:$FJ$253,84,FALSE) -> 601.06 | O11: =VLOOKUP($C11,'RECAP SECT'!$G$6:$FJ$253,85,FALSE) -> 26.18 | P11: =VLOOKUP($C11,'RECAP SECT'!$G$6:$FJ$253,86,FALSE) -> 53% | Q11: =VLOOKUP($C11,'RECAP SECT'!$G$6:$FJ$253,87,FALSE) -> 16 | S11: =VLOOKUP($C11,'RECAP SECT'!$G$6:$FJ$253,89,FALSE) -> 11.39 | T11: =VLOOKUP($C11,'RECAP SECT'!$G$6:$FJ$253,90,FALSE) -> 68% | U11: =VLOOKUP($C11,'RECAP SECT'!$G$6:$FJ$253,91,FALSE) -> 18 | W11: =VLOOKUP($C11,'RECAP SECT'!$G$6:$FJ$253,93,FALSE) -> 1.40 | X11: =VLOOKUP($C11,'RECAP SECT'!$G$6:$FJ$253,94,FALSE) -> 57% | Y11: =VLOOKUP($C11,'RECAP SECT'!$G$6:$FJ$253,95,FALSE) -> 15 | Z11: =VLOOKUP($C11,'RECAP SECT'!$G$6:$FJ$253,96,FALSE) -> 179.08 | AA11: =VLOOKUP($C11,'RECAP SECT'!$G$6:$FJ$253,97,FALSE) -> 6.63 | AB11: =VLOOKUP($C11,'RECAP SECT'!$G$6:$FJ$253,98,FALSE) -> 36% | AC11: =VLOOKUP($C11,'RECAP SECT'!$G$6:$FJ$253,99,FALSE) -> 2 | AD11: =VLOOKUP($C11,'RECAP SECT'!$G$6:$FJ$253,100,FALSE) -> 41% | AE11: =VLOOKUP($C11,'RECAP SECT'!$G$6:$FJ$253,101,FALSE) -> 31% | AF11: =VLOOKUP($C11,'RECAP SECT'!$G$6:$FJ$253,102,FALSE) -> 11
A12: 262 | B12: BAS-RHIN | C12: 5060 | D12: HAGUENAU | E12: =VLOOKUP($C12,'RECAP SECT'!$G$6:$FJ$253,3,FALSE) -> 74.3 | F12: =VLOOKUP($C12,'RECAP SECT'!$G$6:$FJ$253,76,FALSE) -> 244.75 | G12: =VLOOKUP($C12,'RECAP SECT'!$G$6:$FJ$253,77,FALSE) -> 21.88 | H12: =VLOOKUP($C12,'RECAP SECT'!$G$6:$FJ$253,78,FALSE) -> 33% | I12: =VLOOKUP($C12,'RECAP SECT'!$G$6:$FJ$253,79,FALSE) -> 17 | K12: =VLOOKUP($C12,'RECAP SECT'!$G$6:$FJ$253,81,FALSE) -> 5.37 | L12: =VLOOKUP($C12,'RECAP SECT'!$G$6:$FJ$253,82,FALSE) -> 35% | M12: =VLOOKUP($C12,'RECAP SECT'!$G$6:$FJ$253,83,FALSE) -> 15 | N12: =VLOOKUP($C12,'RECAP SECT'!$G$6:$FJ$253,84,FALSE) -> 587.12 | O12: =VLOOKUP($C12,'RECAP SECT'!$G$6:$FJ$253,85,FALSE) -> 21.23 | P12: =VLOOKUP($C12,'RECAP SECT'!$G$6:$FJ$253,86,FALSE) -> 62% | Q12: =VLOOKUP($C12,'RECAP SECT'!$G$6:$FJ$253,87,FALSE) -> 18 | S12: =VLOOKUP($C12,'RECAP SECT'!$G$6:$FJ$253,89,FALSE) -> 12.51 | T12: =VLOOKUP($C12,'RECAP SECT'!$G$6:$FJ$253,90,FALSE) -> 64% | U12: =VLOOKUP($C12,'RECAP SECT'!$G$6:$FJ$253,91,FALSE) -> 16 | W12: =VLOOKUP($C12,'RECAP SECT'!$G$6:$FJ$253,93,FALSE) -> 1.23 | X12: =VLOOKUP($C12,'RECAP SECT'!$G$6:$FJ$253,94,FALSE) -> 62% | Y12: =VLOOKUP($C12,'RECAP SECT'!$G$6:$FJ$253,95,FALSE) -> 17 | Z12: =VLOOKUP($C12,'RECAP SECT'!$G$6:$FJ$253,96,FALSE) -> 67.35 | AA12: =VLOOKUP($C12,'RECAP SECT'!$G$6:$FJ$253,97,FALSE) -> 2.25 | AB12: =VLOOKUP($C12,'RECAP SECT'!$G$6:$FJ$253,98,FALSE) -> 78% | AC12: =VLOOKUP($C12,'RECAP SECT'!$G$6:$FJ$253,99,FALSE) -> 11 | AD12: =VLOOKUP($C12,'RECAP SECT'!$G$6:$FJ$253,100,FALSE) -> 55% | AE12: =VLOOKUP($C12,'RECAP SECT'!$G$6:$FJ$253,101,FALSE) -> 45% | AF12: =VLOOKUP($C12,'RECAP SECT'!$G$6:$FJ$253,102,FALSE) -> 18
A13: 262 | B13: BAS-RHIN | C13: 5101 | D13: SELESTAT | E13: =VLOOKUP($C13,'RECAP SECT'!$G$6:$FJ$253,3,FALSE) -> 62.1 | F13: =VLOOKUP($C13,'RECAP SECT'!$G$6:$FJ$253,76,FALSE) -> 257.60 | G13: =VLOOKUP($C13,'RECAP SECT'!$G$6:$FJ$253,77,FALSE) -> 22.98 | H13: =VLOOKUP($C13,'RECAP SECT'!$G$6:$FJ$253,78,FALSE) -> 30% | I13: =VLOOKUP($C13,'RECAP SECT'!$G$6:$FJ$253,79,FALSE) -> 14 | K13: =VLOOKUP($C13,'RECAP SECT'!$G$6:$FJ$253,81,FALSE) -> 5.35 | L13: =VLOOKUP($C13,'RECAP SECT'!$G$6:$FJ$253,82,FALSE) -> 35% | M13: =VLOOKUP($C13,'RECAP SECT'!$G$6:$FJ$253,83,FALSE) -> 17 | N13: =VLOOKUP($C13,'RECAP SECT'!$G$6:$FJ$253,84,FALSE) -> 780.01 | O13: =VLOOKUP($C13,'RECAP SECT'!$G$6:$FJ$253,85,FALSE) -> 27.55 | P13: =VLOOKUP($C13,'RECAP SECT'!$G$6:$FJ$253,86,FALSE) -> 51% | Q13: =VLOOKUP($C13,'RECAP SECT'!$G$6:$FJ$253,87,FALSE) -> 13 | S13: =VLOOKUP($C13,'RECAP SECT'!$G$6:$FJ$253,89,FALSE) -> 16.71 | T13: =VLOOKUP($C13,'RECAP SECT'!$G$6:$FJ$253,90,FALSE) -> 52% | U13: =VLOOKUP($C13,'RECAP SECT'!$G$6:$FJ$253,91,FALSE) -> 11 | W13: =VLOOKUP($C13,'RECAP SECT'!$G$6:$FJ$253,93,FALSE) -> 1.43 | X13: =VLOOKUP($C13,'RECAP SECT'!$G$6:$FJ$253,94,FALSE) -> 55% | Y13: =VLOOKUP($C13,'RECAP SECT'!$G$6:$FJ$253,95,FALSE) -> 14 | Z13: =VLOOKUP($C13,'RECAP SECT'!$G$6:$FJ$253,96,FALSE) -> 102.95 | AA13: =VLOOKUP($C13,'RECAP SECT'!$G$6:$FJ$253,97,FALSE) -> 2.31 | AB13: =VLOOKUP($C13,'RECAP SECT'!$G$6:$FJ$253,98,FALSE) -> 78% | AC13: =VLOOKUP($C13,'RECAP SECT'!$G$6:$FJ$253,99,FALSE) -> 10 | AD13: =VLOOKUP($C13,'RECAP SECT'!$G$6:$FJ$253,100,FALSE) -> 49% | AE13: =VLOOKUP($C13,'RECAP SECT'!$G$6:$FJ$253,101,FALSE) -> 38% | AF13: =VLOOKUP($C13,'RECAP SECT'!$G$6:$FJ$253,102,FALSE) -> 16
A14: 262 | B14: BAS-RHIN | C14: 5006 | D14: STRASBOURG | E14: =VLOOKUP($C14,'RECAP SECT'!$G$6:$FJ$253,3,FALSE) -> 73.4 | F14: =VLOOKUP($C14,'RECAP SECT'!$G$6:$FJ$253,76,FALSE) -> 238.47 | G14: =VLOOKUP($C14,'RECAP SECT'!$G$6:$FJ$253,77,FALSE) -> 21.94 | H14: =VLOOKUP($C14,'RECAP SECT'!$G$6:$FJ$253,78,FALSE) -> 33% | I14: =VLOOKUP($C14,'RECAP SECT'!$G$6:$FJ$253,79,FALSE) -> 16 | K14: =VLOOKUP($C14,'RECAP SECT'!$G$6:$FJ$253,81,FALSE) -> 6.65 | L14: =VLOOKUP($C14,'RECAP SECT'!$G$6:$FJ$253,82,FALSE) -> 19% | M14: =VLOOKUP($C14,'RECAP SECT'!$G$6:$FJ$253,83,FALSE) -> 3 | N14: =VLOOKUP($C14,'RECAP SECT'!$G$6:$FJ$253,84,FALSE) -> 1122.79 | O14: =VLOOKUP($C14,'RECAP SECT'!$G$6:$FJ$253,85,FALSE) -> 29.56 | P14: =VLOOKUP($C14,'RECAP SECT'!$G$6:$FJ$253,86,FALSE) -> 47% | Q14: =VLOOKUP($C14,'RECAP SECT'!$G$6:$FJ$253,87,FALSE) -> 10 | S14: =VLOOKUP($C14,'RECAP SECT'!$G$6:$FJ$253,89,FALSE) -> 17.67 | T14: =VLOOKUP($C14,'RECAP SECT'!$G$6:$FJ$253,90,FALSE) -> 50% | U14: =VLOOKUP($C14,'RECAP SECT'!$G$6:$FJ$253,91,FALSE) -> 9 | W14: =VLOOKUP($C14,'RECAP SECT'!$G$6:$FJ$253,93,FALSE) -> 2.05 | X14: =VLOOKUP($C14,'RECAP SECT'!$G$6:$FJ$253,94,FALSE) -> 36% | Y14: =VLOOKUP($C14,'RECAP SECT'!$G$6:$FJ$253,95,FALSE) -> 8 | Z14: =VLOOKUP($C14,'RECAP SECT'!$G$6:$FJ$253,96,FALSE) -> 170.08 | AA14: =VLOOKUP($C14,'RECAP SECT'!$G$6:$FJ$253,97,FALSE) -> 6.60 | AB14: =VLOOKUP($C14,'RECAP SECT'!$G$6:$FJ$253,98,FALSE) -> 36% | AC14: =VLOOKUP($C14,'RECAP SECT'!$G$6:$FJ$253,99,FALSE) -> 3 | AD14: =VLOOKUP($C14,'RECAP SECT'!$G$6:$FJ$253,100,FALSE) -> 39% | AE14: =VLOOKUP($C14,'RECAP SECT'!$G$6:$FJ$253,101,FALSE) -> 29% | AF14: =VLOOKUP($C14,'RECAP SECT'!$G$6:$FJ$253,102,FALSE) -> 10
A15: 264 | B15: HAUT-RHIN | C15: 5130 | D15: COLMAR | E15: =VLOOKUP($C15,'RECAP SECT'!$G$6:$FJ$253,3,FALSE) -> 64.9 | F15: =VLOOKUP($C15,'RECAP SECT'!$G$6:$FJ$253,76,FALSE) -> 207.21 | G15: =VLOOKUP($C15,'RECAP SECT'!$G$6:$FJ$253,77,FALSE) -> 19.71 | H15: =VLOOKUP($C15,'RECAP SECT'!$G$6:$FJ$253,78,FALSE) -> 40% | I15: =VLOOKUP($C15,'RECAP SECT'!$G$6:$FJ$253,79,FALSE) -> 18 | K15: =VLOOKUP($C15,'RECAP SECT'!$G$6:$FJ$253,81,FALSE) -> 4.35 | L15: =VLOOKUP($C15,'RECAP SECT'!$G$6:$FJ$253,82,FALSE) -> 47% | M15: =VLOOKUP($C15,'RECAP SECT'!$G$6:$FJ$253,83,FALSE) -> 18 | N15: =VLOOKUP($C15,'RECAP SECT'!$G$6:$FJ$253,84,FALSE) -> 699.92 | O15: =VLOOKUP($C15,'RECAP SECT'!$G$6:$FJ$253,85,FALSE) -> 25.05 | P15: =VLOOKUP($C15,'RECAP SECT'!$G$6:$FJ$253,86,FALSE) -> 55% | Q15: =VLOOKUP($C15,'RECAP SECT'!$G$6:$FJ$253,87,FALSE) -> 17 | S15: =VLOOKUP($C15,'RECAP SECT'!$G$6:$FJ$253,89,FALSE) -> 12.16 | T15: =VLOOKUP($C15,'RECAP SECT'!$G$6:$FJ$253,90,FALSE) -> 65% | U15: =VLOOKUP($C15,'RECAP SECT'!$G$6:$FJ$253,91,FALSE) -> 17 | W15: =VLOOKUP($C15,'RECAP SECT'!$G$6:$FJ$253,93,FALSE) -> 1.30 | X15: =VLOOKUP($C15,'RECAP SECT'!$G$6:$FJ$253,94,FALSE) -> 60% | Y15: =VLOOKUP($C15,'RECAP SECT'!$G$6:$FJ$253,95,FALSE) -> 16 | Z15: =VLOOKUP($C15,'RECAP SECT'!$G$6:$FJ$253,96,FALSE) -> 118.40 | AA15: =VLOOKUP($C15,'RECAP SECT'!$G$6:$FJ$253,97,FALSE) -> 4.57 | AB15: =VLOOKUP($C15,'RECAP SECT'!$G$6:$FJ$253,98,FALSE) -> 56% | AC15: =VLOOKUP($C15,'RECAP SECT'!$G$6:$FJ$253,99,FALSE) -> 4 | AD15: =VLOOKUP($C15,'RECAP SECT'!$G$6:$FJ$253,100,FALSE) -> 53% | AE15: =VLOOKUP($C15,'RECAP SECT'!$G$6:$FJ$253,101,FALSE) -> 42% | AF15: =VLOOKUP($C15,'RECAP SECT'!$G$6:$FJ$253,102,FALSE) -> 17
A16: 264 | B16: HAUT-RHIN | C16: 5169 | D16: MULHOUSE | E16: =VLOOKUP($C16,'RECAP SECT'!$G$6:$FJ$253,3,FALSE) -> 61.1 | F16: =VLOOKUP($C16,'RECAP SECT'!$G$6:$FJ$253,76,FALSE) -> 243.36 | G16: =VLOOKUP($C16,'RECAP SECT'!$G$6:$FJ$253,77,FALSE) -> 22.93 | H16: =VLOOKUP($C16,'RECAP SECT'!$G$6:$FJ$253,78,FALSE) -> 30% | I16: =VLOOKUP($C16,'RECAP SECT'!$G$6:$FJ$253,79,FALSE) -> 15 | K16: =VLOOKUP($C16,'RECAP SECT'!$G$6:$FJ$253,81,FALSE) -> 5.86 | L16: =VLOOKUP($C16,'RECAP SECT'!$G$6:$FJ$253,82,FALSE) -> 29% | M16: =VLOOKUP($C16,'RECAP SECT'!$G$6:$FJ$253,83,FALSE) -> 9 | N16: =VLOOKUP($C16,'RECAP SECT'!$G$6:$FJ$253,84,FALSE) -> 833.36 | O16: =VLOOKUP($C16,'RECAP SECT'!$G$6:$FJ$253,85,FALSE) -> 28.79 | P16: =VLOOKUP($C16,'RECAP SECT'!$G$6:$FJ$253,86,FALSE) -> 48% | Q16: =VLOOKUP($C16,'RECAP SECT'!$G$6:$FJ$253,87,FALSE) -> 11 | S16: =VLOOKUP($C16,'RECAP SECT'!$G$6:$FJ$253,89,FALSE) -> 22.79 | T16: =VLOOKUP($C16,'RECAP SECT'!$G$6:$FJ$253,90,FALSE) -> 35% | U16: =VLOOKUP($C16,'RECAP SECT'!$G$6:$FJ$253,91,FALSE) -> 6 | W16: =VLOOKUP($C16,'RECAP SECT'!$G$6:$FJ$253,93,FALSE) -> 1.46 | X16: =VLOOKUP($C16,'RECAP SECT'!$G$6:$FJ$253,94,FALSE) -> 55% | Y16: =VLOOKUP($C16,'RECAP SECT'!$G$6:$FJ$253,95,FALSE) -> 13 | Z16: =VLOOKUP($C16,'RECAP SECT'!$G$6:$FJ$253,96,FALSE) -> 115.50 | AA16: =VLOOKUP($C16,'RECAP SECT'!$G$6:$FJ$253,97,FALSE) -> 3.98 | AB16: =VLOOKUP($C16,'RECAP SECT'!$G$6:$FJ$253,98,FALSE) -> 61% | AC16: =VLOOKUP($C16,'RECAP SECT'!$G$6:$FJ$253,99,FALSE) -> 6 | AD16: =VLOOKUP($C16,'RECAP SECT'!$G$6:$FJ$253,100,FALSE) -> 43% | AE16: =VLOOKUP($C16,'RECAP SECT'!$G$6:$FJ$253,101,FALSE) -> 33% | AF16: =VLOOKUP($C16,'RECAP SECT'!$G$6:$FJ$253,102,FALSE) -> 13
A17: 30 | B17: MARNE-ARDENNES | C17: 6 | D17: CHALONS EN CHAMPAGNE | E17: =VLOOKUP($C17,'RECAP SECT'!$G$6:$FJ$253,3,FALSE) -> 45.0 | F17: =VLOOKUP($C17,'RECAP SECT'!$G$6:$FJ$253,76,FALSE) -> 255.82 | G17: =VLOOKUP($C17,'RECAP SECT'!$G$6:$FJ$253,77,FALSE) -> 24.12 | H17: =VLOOKUP($C17,'RECAP SECT'!$G$6:$FJ$253,78,FALSE) -> 27% | I17: =VLOOKUP($C17,'RECAP SECT'!$G$6:$FJ$253,79,FALSE) -> 12 | K17: =VLOOKUP($C17,'RECAP SECT'!$G$6:$FJ$253,81,FALSE) -> 5.65 | L17: =VLOOKUP($C17,'RECAP SECT'!$G$6:$FJ$253,82,FALSE) -> 32% | M17: =VLOOKUP($C17,'RECAP SECT'!$G$6:$FJ$253,83,FALSE) -> 13 | N17: =VLOOKUP($C17,'RECAP SECT'!$G$6:$FJ$253,84,FALSE) -> 1000.20 | O17: =VLOOKUP($C17,'RECAP SECT'!$G$6:$FJ$253,85,FALSE) -> 44.58 | P17: =VLOOKUP($C17,'RECAP SECT'!$G$6:$FJ$253,86,FALSE) -> 20% | Q17: =VLOOKUP($C17,'RECAP SECT'!$G$6:$FJ$253,87,FALSE) -> 6 | S17: =VLOOKUP($C17,'RECAP SECT'!$G$6:$FJ$253,89,FALSE) -> 26.81 | T17: =VLOOKUP($C17,'RECAP SECT'!$G$6:$FJ$253,90,FALSE) -> 24% | U17: =VLOOKUP($C17,'RECAP SECT'!$G$6:$FJ$253,91,FALSE) -> 5 | W17: =VLOOKUP($C17,'RECAP SECT'!$G$6:$FJ$253,93,FALSE) -> 2.36 | X17: =VLOOKUP($C17,'RECAP SECT'!$G$6:$FJ$253,94,FALSE) -> 27% | Y17: =VLOOKUP($C17,'RECAP SECT'!$G$6:$FJ$253,95,FALSE) -> 6 | Z17: =VLOOKUP($C17,'RECAP SECT'!$G$6:$FJ$253,96,FALSE) -> 135.77 | AA17: =VLOOKUP($C17,'RECAP SECT'!$G$6:$FJ$253,97,FALSE) -> 0.65 | AB17: =VLOOKUP($C17,'RECAP SECT'!$G$6:$FJ$253,98,FALSE) -> 94% | AC17: =VLOOKUP($C17,'RECAP SECT'!$G$6:$FJ$253,99,FALSE) -> 18 | AD17: =VLOOKUP($C17,'RECAP SECT'!$G$6:$FJ$253,100,FALSE) -> 34% | AE17: =VLOOKUP($C17,'RECAP SECT'!$G$6:$FJ$253,101,FALSE) -> 23% | AF17: =VLOOKUP($C17,'RECAP SECT'!$G$6:$FJ$253,102,FALSE) -> 6
A18: 30 | B18: MARNE-ARDENNES | C18: 2 | D18: CHARLEVILLE MEZIERES | E18: =VLOOKUP($C18,'RECAP SECT'!$G$6:$FJ$253,3,FALSE) -> 54.5 | F18: =VLOOKUP($C18,'RECAP SECT'!$G$6:$FJ$253,76,FALSE) -> 297.26 | G18: =VLOOKUP($C18,'RECAP SECT'!$G$6:$FJ$253,77,FALSE) -> 29.57 | H18: =VLOOKUP($C18,'RECAP SECT'!$G$6:$FJ$253,78,FALSE) -> 10% | I18: =VLOOKUP($C18,'RECAP SECT'!$G$6:$FJ$253,79,FALSE) -> 3 | K18: =VLOOKUP($C18,'RECAP SECT'!$G$6:$FJ$253,81,FALSE) -> 6.62 | L18: =VLOOKUP($C18,'RECAP SECT'!$G$6:$FJ$253,82,FALSE) -> 20% | M18: =VLOOKUP($C18,'RECAP SECT'!$G$6:$FJ$253,83,FALSE) -> 4 | N18: =VLOOKUP($C18,'RECAP SECT'!$G$6:$FJ$253,84,FALSE) -> 988.46 | O18: =VLOOKUP($C18,'RECAP SECT'!$G$6:$FJ$253,85,FALSE) -> 47.33 | P18: =VLOOKUP($C18,'RECAP SECT'!$G$6:$FJ$253,86,FALSE) -> 15% | Q18: =VLOOKUP($C18,'RECAP SECT'!$G$6:$FJ$253,87,FALSE) -> 3 | S18: =VLOOKUP($C18,'RECAP SECT'!$G$6:$FJ$253,89,FALSE) -> 26.99 | T18: =VLOOKUP($C18,'RECAP SECT'!$G$6:$FJ$253,90,FALSE) -> 23% | U18: =VLOOKUP($C18,'RECAP SECT'!$G$6:$FJ$253,91,FALSE) -> 4 | W18: =VLOOKUP($C18,'RECAP SECT'!$G$6:$FJ$253,93,FALSE) -> 2.44 | X18: =VLOOKUP($C18,'RECAP SECT'!$G$6:$FJ$253,94,FALSE) -> 24% | Y18: =VLOOKUP($C18,'RECAP SECT'!$G$6:$FJ$253,95,FALSE) -> 5 | Z18: =VLOOKUP($C18,'RECAP SECT'!$G$6:$FJ$253,96,FALSE) -> 69.70 | AA18: =VLOOKUP($C18,'RECAP SECT'!$G$6:$FJ$253,97,FALSE) -> 1.76 | AB18: =VLOOKUP($C18,'RECAP SECT'!$G$6:$FJ$253,98,FALSE) -> 83% | AC18: =VLOOKUP($C18,'RECAP SECT'!$G$6:$FJ$253,99,FALSE) -> 15 | AD18: =VLOOKUP($C18,'RECAP SECT'!$G$6:$FJ$253,100,FALSE) -> 25% | AE18: =VLOOKUP($C18,'RECAP SECT'!$G$6:$FJ$253,101,FALSE) -> 15% | AF18: =VLOOKUP($C18,'RECAP SECT'!$G$6:$FJ$253,102,FALSE) -> 3
A19: 30 | B19: MARNE-ARDENNES | C19: 11 | D19: REIMS | E19: =VLOOKUP($C19,'RECAP SECT'!$G$6:$FJ$253,3,FALSE) -> 78.1 | F19: =VLOOKUP($C19,'RECAP SECT'!$G$6:$FJ$253,76,FALSE) -> 283.14 | G19: =VLOOKUP($C19,'RECAP SECT'!$G$6:$FJ$253,77,FALSE) -> 25.77 | H19: =VLOOKUP($C19,'RECAP SECT'!$G$6:$FJ$253,78,FALSE) -> 22% | I19: =VLOOKUP($C19,'RECAP SECT'!$G$6:$FJ$253,79,FALSE) -> 11 | K19: =VLOOKUP($C19,'RECAP SECT'!$G$6:$FJ$253,81,FALSE) -> 5.86 | L19: =VLOOKUP($C19,'RECAP SECT'!$G$6:$FJ$253,82,FALSE) -> 29% | M19: =VLOOKUP($C19,'RECAP SECT'!$G$6:$FJ$253,83,FALSE) -> 10 | N19: =VLOOKUP($C19,'RECAP SECT'!$G$6:$FJ$253,84,FALSE) -> 1379.16 | O19: =VLOOKUP($C19,'RECAP SECT'!$G$6:$FJ$253,85,FALSE) -> 48.41 | P19: =VLOOKUP($C19,'RECAP SECT'!$G$6:$FJ$253,86,FALSE) -> 13% | Q19: =VLOOKUP($C19,'RECAP SECT'!$G$6:$FJ$253,87,FALSE) -> 2 | S19: =VLOOKUP($C19,'RECAP SECT'!$G$6:$FJ$253,89,FALSE) -> 35.10 | T19: =VLOOKUP($C19,'RECAP SECT'!$G$6:$FJ$253,90,FALSE) -> 0% | U19: =VLOOKUP($C19,'RECAP SECT'!$G$6:$FJ$253,91,FALSE) -> 1 | W19: =VLOOKUP($C19,'RECAP SECT'!$G$6:$FJ$253,93,FALSE) -> 3.04 | X19: =VLOOKUP($C19,'RECAP SECT'!$G$6:$FJ$253,94,FALSE) -> 6% | Y19: =VLOOKUP($C19,'RECAP SECT'!$G$6:$FJ$253,95,FALSE) -> 2 | Z19: =VLOOKUP($C19,'RECAP SECT'!$G$6:$FJ$253,96,FALSE) -> 308.63 | AA19: =VLOOKUP($C19,'RECAP SECT'!$G$6:$FJ$253,97,FALSE) -> 10.29 | AB19: =VLOOKUP($C19,'RECAP SECT'!$G$6:$FJ$253,98,FALSE) -> 0% | AC19: =VLOOKUP($C19,'RECAP SECT'!$G$6:$FJ$253,99,FALSE) -> 1 | AD19: =VLOOKUP($C19,'RECAP SECT'!$G$6:$FJ$253,100,FALSE) -> 12% | AE19: =VLOOKUP($C19,'RECAP SECT'!$G$6:$FJ$253,101,FALSE) -> 2% | AF19: =VLOOKUP($C19,'RECAP SECT'!$G$6:$FJ$253,102,FALSE) -> 2
A20: 110 | B20: MEURTHE ET MOSELLE MEUSE | C20: 26 | D20: NANCY | E20: =VLOOKUP($C20,'RECAP SECT'!$G$6:$FJ$253,3,FALSE) -> 63.6 | F20: =VLOOKUP($C20,'RECAP SECT'!$G$6:$FJ$253,76,FALSE) -> 260.75 | G20: =VLOOKUP($C20,'RECAP SECT'!$G$6:$FJ$253,77,FALSE) -> 26.36 | H20: =VLOOKUP($C20,'RECAP SECT'!$G$6:$FJ$253,78,FALSE) -> 20% | I20: =VLOOKUP($C20,'RECAP SECT'!$G$6:$FJ$253,79,FALSE) -> 10 | K20: =VLOOKUP($C20,'RECAP SECT'!$G$6:$FJ$253,81,FALSE) -> 5.48 | L20: =VLOOKUP($C20,'RECAP SECT'!$G$6:$FJ$253,82,FALSE) -> 34% | M20: =VLOOKUP($C20,'RECAP SECT'!$G$6:$FJ$253,83,FALSE) -> 14 | N20: =VLOOKUP($C20,'RECAP SECT'!$G$6:$FJ$253,84,FALSE) -> 1326.99 | O20: =VLOOKUP($C20,'RECAP SECT'!$G$6:$FJ$253,85,FALSE) -> 45.56 | P20: =VLOOKUP($C20,'RECAP SECT'!$G$6:$FJ$253,86,FALSE) -> 18% | Q20: =VLOOKUP($C20,'RECAP SECT'!$G$6:$FJ$253,87,FALSE) -> 4 | S20: =VLOOKUP($C20,'RECAP SECT'!$G$6:$FJ$253,89,FALSE) -> 28.53 | T20: =VLOOKUP($C20,'RECAP SECT'!$G$6:$FJ$253,90,FALSE) -> 19% | U20: =VLOOKUP($C20,'RECAP SECT'!$G$6:$FJ$253,91,FALSE) -> 3 | W20: =VLOOKUP($C20,'RECAP SECT'!$G$6:$FJ$253,93,FALSE) -> 2.97 | X20: =VLOOKUP($C20,'RECAP SECT'!$G$6:$FJ$253,94,FALSE) -> 8% | Y20: =VLOOKUP($C20,'RECAP SECT'!$G$6:$FJ$253,95,FALSE) -> 3 | Z20: =VLOOKUP($C20,'RECAP SECT'!$G$6:$FJ$253,96,FALSE) -> 55.20 | AA20: =VLOOKUP($C20,'RECAP SECT'!$G$6:$FJ$253,97,FALSE) -> 2.11 | AB20: =VLOOKUP($C20,'RECAP SECT'!$G$6:$FJ$253,98,FALSE) -> 79% | AC20: =VLOOKUP($C20,'RECAP SECT'!$G$6:$FJ$253,99,FALSE) -> 13 | AD20: =VLOOKUP($C20,'RECAP SECT'!$G$6:$FJ$253,100,FALSE) -> 26% | AE20: =VLOOKUP($C20,'RECAP SECT'!$G$6:$FJ$253,101,FALSE) -> 16% | AF20: =VLOOKUP($C20,'RECAP SECT'!$G$6:$FJ$253,102,FALSE) -> 4
A21: 110 | B21: MEURTHE ET MOSELLE MEUSE | C21: 27 | D21: PONT A MOUSSON | E21: =VLOOKUP($C21,'RECAP SECT'!$G$6:$FJ$253,3,FALSE) -> 71.9 | F21: =VLOOKUP($C21,'RECAP SECT'!$G$6:$FJ$253,76,FALSE) -> 342.74 | G21: =VLOOKUP($C21,'RECAP SECT'!$G$6:$FJ$253,77,FALSE) -> 32.54 | H21: =VLOOKUP($C21,'RECAP SECT'!$G$6:$FJ$253,78,FALSE) -> 1% | I21: =VLOOKUP($C21,'RECAP SECT'!$G$6:$FJ$253,79,FALSE) -> 2 | K21: =VLOOKUP($C21,'RECAP SECT'!$G$6:$FJ$253,81,FALSE) -> 8.26 | L21: =VLOOKUP($C21,'RECAP SECT'!$G$6:$FJ$253,82,FALSE) -> 0% | M21: =VLOOKUP($C21,'RECAP SECT'!$G$6:$FJ$253,83,FALSE) -> 1 | N21: =VLOOKUP($C21,'RECAP SECT'!$G$6:$FJ$253,84,FALSE) -> 1419.06 | O21: =VLOOKUP($C21,'RECAP SECT'!$G$6:$FJ$253,85,FALSE) -> 55.65 | P21: =VLOOKUP($C21,'RECAP SECT'!$G$6:$FJ$253,86,FALSE) -> 0% | Q21: =VLOOKUP($C21,'RECAP SECT'!$G$6:$FJ$253,87,FALSE) -> 1 | S21: =VLOOKUP($C21,'RECAP SECT'!$G$6:$FJ$253,89,FALSE) -> 33.76 | T21: =VLOOKUP($C21,'RECAP SECT'!$G$6:$FJ$253,90,FALSE) -> 4% | U21: =VLOOKUP($C21,'RECAP SECT'!$G$6:$FJ$253,91,FALSE) -> 2 | W21: =VLOOKUP($C21,'RECAP SECT'!$G$6:$FJ$253,93,FALSE) -> 3.22 | X21: =VLOOKUP($C21,'RECAP SECT'!$G$6:$FJ$253,94,FALSE) -> 0% | Y21: =VLOOKUP($C21,'RECAP SECT'!$G$6:$FJ$253,95,FALSE) -> 1 | Z21: =VLOOKUP($C21,'RECAP SECT'!$G$6:$FJ$253,96,FALSE) -> 62.55 | AA21: =VLOOKUP($C21,'RECAP SECT'!$G$6:$FJ$253,97,FALSE) -> 2.97 | AB21: =VLOOKUP($C21,'RECAP SECT'!$G$6:$FJ$253,98,FALSE) -> 71% | AC21: =VLOOKUP($C21,'RECAP SECT'!$G$6:$FJ$253,99,FALSE) -> 7 | AD21: =VLOOKUP($C21,'RECAP SECT'!$G$6:$FJ$253,100,FALSE) -> 10% | AE21: =VLOOKUP($C21,'RECAP SECT'!$G$6:$FJ$253,101,FALSE) -> 0% | AF21: =VLOOKUP($C21,'RECAP SECT'!$G$6:$FJ$253,102,FALSE) -> 1
A22: 110 | B22: MEURTHE ET MOSELLE MEUSE | C22: 31 | D22: VERDUN | E22: =VLOOKUP($C22,'RECAP SECT'!$G$6:$FJ$253,3,FALSE) -> 51.9 | F22: =VLOOKUP($C22,'RECAP SECT'!$G$6:$FJ$253,76,FALSE) -> 290.10 | G22: =VLOOKUP($C22,'RECAP SECT'!$G$6:$FJ$253,77,FALSE) -> 28.04 | H22: =VLOOKUP($C22,'RECAP SECT'!$G$6:$FJ$253,78,FALSE) -> 15% | I22: =VLOOKUP($C22,'RECAP SECT'!$G$6:$FJ$253,79,FALSE) -> 6 | K22: =VLOOKUP($C22,'RECAP SECT'!$G$6:$FJ$253,81,FALSE) -> 6.00 | L22: =VLOOKUP($C22,'RECAP SECT'!$G$6:$FJ$253,82,FALSE) -> 27% | M22: =VLOOKUP($C22,'RECAP SECT'!$G$6:$FJ$253,83,FALSE) -> 6 | N22: =VLOOKUP($C22,'RECAP SECT'!$G$6:$FJ$253,84,FALSE) -> 816.55 | O22: =VLOOKUP($C22,'RECAP SECT'!$G$6:$FJ$253,85,FALSE) -> 39.90 | P22: =VLOOKUP($C22,'RECAP SECT'!$G$6:$FJ$253,86,FALSE) -> 28% | Q22: =VLOOKUP($C22,'RECAP SECT'!$G$6:$FJ$253,87,FALSE) -> 8 | S22: =VLOOKUP($C22,'RECAP SECT'!$G$6:$FJ$253,89,FALSE) -> 19.17 | T22: =VLOOKUP($C22,'RECAP SECT'!$G$6:$FJ$253,90,FALSE) -> 45% | U22: =VLOOKUP($C22,'RECAP SECT'!$G$6:$FJ$253,91,FALSE) -> 7 | W22: =VLOOKUP($C22,'RECAP SECT'!$G$6:$FJ$253,93,FALSE) -> 2.05 | X22: =VLOOKUP($C22,'RECAP SECT'!$G$6:$FJ$253,94,FALSE) -> 36% | Y22: =VLOOKUP($C22,'RECAP SECT'!$G$6:$FJ$253,95,FALSE) -> 9 | Z22: =VLOOKUP($C22,'RECAP SECT'!$G$6:$FJ$253,96,FALSE) -> 29.16 | AA22: =VLOOKUP($C22,'RECAP SECT'!$G$6:$FJ$253,97,FALSE) -> 1.67 | AB22: =VLOOKUP($C22,'RECAP SECT'!$G$6:$FJ$253,98,FALSE) -> 84% | AC22: =VLOOKUP($C22,'RECAP SECT'!$G$6:$FJ$253,99,FALSE) -> 16 | AD22: =VLOOKUP($C22,'RECAP SECT'!$G$6:$FJ$253,100,FALSE) -> 35% | AE22: =VLOOKUP($C22,'RECAP SECT'!$G$6:$FJ$253,101,FALSE) -> 25% | AF22: =VLOOKUP($C22,'RECAP SECT'!$G$6:$FJ$253,102,FALSE) -> 8
A23: 160 | B23: MOSELLE | C23: 45 | D23: METZ | E23: =VLOOKUP($C23,'RECAP SECT'!$G$6:$FJ$253,3,FALSE) -> 85.7 | F23: =VLOOKUP($C23,'RECAP SECT'!$G$6:$FJ$253,76,FALSE) -> 293.54 | G23: =VLOOKUP($C23,'RECAP SECT'!$G$6:$FJ$253,77,FALSE) -> 27.78 | H23: =VLOOKUP($C23,'RECAP SECT'!$G$6:$FJ$253,78,FALSE) -> 15% | I23: =VLOOKUP($C23,'RECAP SECT'!$G$6:$FJ$253,79,FALSE) -> 8 | K23: =VLOOKUP($C23,'RECAP SECT'!$G$6:$FJ$253,81,FALSE) -> 5.72 | L23: =VLOOKUP($C23,'RECAP SECT'!$G$6:$FJ$253,82,FALSE) -> 31% | M23: =VLOOKUP($C23,'RECAP SECT'!$G$6:$FJ$253,83,FALSE) -> 11 | N23: =VLOOKUP($C23,'RECAP SECT'!$G$6:$FJ$253,84,FALSE) -> 1150.67 | O23: =VLOOKUP($C23,'RECAP SECT'!$G$6:$FJ$253,85,FALSE) -> 41.11 | P23: =VLOOKUP($C23,'RECAP SECT'!$G$6:$FJ$253,86,FALSE) -> 26% | Q23: =VLOOKUP($C23,'RECAP SECT'!$G$6:$FJ$253,87,FALSE) -> 7 | S23: =VLOOKUP($C23,'RECAP SECT'!$G$6:$FJ$253,89,FALSE) -> 17.79 | T23: =VLOOKUP($C23,'RECAP SECT'!$G$6:$FJ$253,90,FALSE) -> 49% | U23: =VLOOKUP($C23,'RECAP SECT'!$G$6:$FJ$253,91,FALSE) -> 8 | W23: =VLOOKUP($C23,'RECAP SECT'!$G$6:$FJ$253,93,FALSE) -> 2.31 | X23: =VLOOKUP($C23,'RECAP SECT'!$G$6:$FJ$253,94,FALSE) -> 28% | Y23: =VLOOKUP($C23,'RECAP SECT'!$G$6:$FJ$253,95,FALSE) -> 7 | Z23: =VLOOKUP($C23,'RECAP SECT'!$G$6:$FJ$253,96,FALSE) -> 54.86 | AA23: =VLOOKUP($C23,'RECAP SECT'!$G$6:$FJ$253,97,FALSE) -> 2.01 | AB23: =VLOOKUP($C23,'RECAP SECT'!$G$6:$FJ$253,98,FALSE) -> 80% | AC23: =VLOOKUP($C23,'RECAP SECT'!$G$6:$FJ$253,99,FALSE) -> 14 | AD23: =VLOOKUP($C23,'RECAP SECT'!$G$6:$FJ$253,100,FALSE) -> 34% | AE23: =VLOOKUP($C23,'RECAP SECT'!$G$6:$FJ$253,101,FALSE) -> 24% | AF23: =VLOOKUP($C23,'RECAP SECT'!$G$6:$FJ$253,102,FALSE) -> 7
A24: 160 | B24: MOSELLE | C24: 42 | D24: MOSELLE EST | E24: =VLOOKUP($C24,'RECAP SECT'!$G$6:$FJ$253,3,FALSE) -> 70.1 | F24: =VLOOKUP($C24,'RECAP SECT'!$G$6:$FJ$253,76,FALSE) -> 288.16 | G24: =VLOOKUP($C24,'RECAP SECT'!$G$6:$FJ$253,77,FALSE) -> 28.45 | H24: =VLOOKUP($C24,'RECAP SECT'!$G$6:$FJ$253,78,FALSE) -> 13% | I24: =VLOOKUP($C24,'RECAP SECT'!$G$6:$FJ$253,79,FALSE) -> 4 | K24: =VLOOKUP($C24,'RECAP SECT'!$G$6:$FJ$253,81,FALSE) -> 5.96 | L24: =VLOOKUP($C24,'RECAP SECT'!$G$6:$FJ$253,82,FALSE) -> 28% | M24: =VLOOKUP($C24,'RECAP SECT'!$G$6:$FJ$253,83,FALSE) -> 8 | N24: =VLOOKUP($C24,'RECAP SECT'!$G$6:$FJ$253,84,FALSE) -> 715.31 | O24: =VLOOKUP($C24,'RECAP SECT'!$G$6:$FJ$253,85,FALSE) -> 31.80 | P24: =VLOOKUP($C24,'RECAP SECT'!$G$6:$FJ$253,86,FALSE) -> 43% | Q24: =VLOOKUP($C24,'RECAP SECT'!$G$6:$FJ$253,87,FALSE) -> 9 | S24: =VLOOKUP($C24,'RECAP SECT'!$G$6:$FJ$253,89,FALSE) -> 16.01 | T24: =VLOOKUP($C24,'RECAP SECT'!$G$6:$FJ$253,90,FALSE) -> 54% | U24: =VLOOKUP($C24,'RECAP SECT'!$G$6:$FJ$253,91,FALSE) -> 12 | W24: =VLOOKUP($C24,'RECAP SECT'!$G$6:$FJ$253,93,FALSE) -> 1.53 | X24: =VLOOKUP($C24,'RECAP SECT'!$G$6:$FJ$253,94,FALSE) -> 52% | Y24: =VLOOKUP($C24,'RECAP SECT'!$G$6:$FJ$253,95,FALSE) -> 12 | Z24: =VLOOKUP($C24,'RECAP SECT'!$G$6:$FJ$253,96,FALSE) -> 62.31 | AA24: =VLOOKUP($C24,'RECAP SECT'!$G$6:$FJ$253,97,FALSE) -> 2.33 | AB24: =VLOOKUP($C24,'RECAP SECT'!$G$6:$FJ$253,98,FALSE) -> 77% | AC24: =VLOOKUP($C24,'RECAP SECT'!$G$6:$FJ$253,99,FALSE) -> 9 | AD24: =VLOOKUP($C24,'RECAP SECT'!$G$6:$FJ$253,100,FALSE) -> 41% | AE24: =VLOOKUP($C24,'RECAP SECT'!$G$6:$FJ$253,101,FALSE) -> 31% | AF24: =VLOOKUP($C24,'RECAP SECT'!$G$6:$FJ$253,102,FALSE) -> 12
A25: 160 | B25: MOSELLE | C25: 44 | D25: MOSELLE NORD | E25: =VLOOKUP($C25,'RECAP SECT'!$G$6:$FJ$253,3,FALSE) -> 68.2 | F25: =VLOOKUP($C25,'RECAP SECT'!$G$6:$FJ$253,76,FALSE) -> 285.73 | G25: =VLOOKUP($C25,'RECAP SECT'!$G$6:$FJ$253,77,FALSE) -> 27.06 | H25: =VLOOKUP($C25,'RECAP SECT'!$G$6:$FJ$253,78,FALSE) -> 18% | I25: =VLOOKUP($C25,'RECAP SECT'!$G$6:$FJ$253,79,FALSE) -> 9 | K25: =VLOOKUP($C25,'RECAP SECT'!$G$6:$FJ$253,81,FALSE) -> 5.98 | L25: =VLOOKUP($C25,'RECAP SECT'!$G$6:$FJ$253,82,FALSE) -> 28% | M25: =VLOOKUP($C25,'RECAP SECT'!$G$6:$FJ$253,83,FALSE) -> 7 | N25: =VLOOKUP($C25,'RECAP SECT'!$G$6:$FJ$253,84,FALSE) -> 1168.82 | O25: =VLOOKUP($C25,'RECAP SECT'!$G$6:$FJ$253,85,FALSE) -> 45.24 | P25: =VLOOKUP($C25,'RECAP SECT'!$G$6:$FJ$253,86,FALSE) -> 19% | Q25: =VLOOKUP($C25,'RECAP SECT'!$G$6:$FJ$253,87,FALSE) -> 5 | S25: =VLOOKUP($C25,'RECAP SECT'!$G$6:$FJ$253,89,FALSE) -> 17.23 | T25: =VLOOKUP($C25,'RECAP SECT'!$G$6:$FJ$253,90,FALSE) -> 51% | U25: =VLOOKUP($C25,'RECAP SECT'!$G$6:$FJ$253,91,FALSE) -> 10 | W25: =VLOOKUP($C25,'RECAP SECT'!$G$6:$FJ$253,93,FALSE) -> 2.64 | X25: =VLOOKUP($C25,'RECAP SECT'!$G$6:$FJ$253,94,FALSE) -> 18% | Y25: =VLOOKUP($C25,'RECAP SECT'!$G$6:$FJ$253,95,FALSE) -> 4 | Z25: =VLOOKUP($C25,'RECAP SECT'!$G$6:$FJ$253,96,FALSE) -> 32.58 | AA25: =VLOOKUP($C25,'RECAP SECT'!$G$6:$FJ$253,97,FALSE) -> 1.39 | AB25: =VLOOKUP($C25,'RECAP SECT'!$G$6:$FJ$253,98,FALSE) -> 86% | AC25: =VLOOKUP($C25,'RECAP SECT'!$G$6:$FJ$253,99,FALSE) -> 17 | AD25: =VLOOKUP($C25,'RECAP SECT'!$G$6:$FJ$253,100,FALSE) -> 32% | AE25: =VLOOKUP($C25,'RECAP SECT'!$G$6:$FJ$253,101,FALSE) -> 22% | AF25: =VLOOKUP($C25,'RECAP SECT'!$G$6:$FJ$253,102,FALSE) -> 5
A26: 80 | B26: VOSGES | C26: 57 | D26: EPINAL | E26: =VLOOKUP($C26,'RECAP SECT'!$G$6:$FJ$253,3,FALSE) -> 59.2 | F26: =VLOOKUP($C26,'RECAP SECT'!$G$6:$FJ$253,76,FALSE) -> 248.29 | G26: =VLOOKUP($C26,'RECAP SECT'!$G$6:$FJ$253,77,FALSE) -> 23.18 | H26: =VLOOKUP($C26,'RECAP SECT'!$G$6:$FJ$253,78,FALSE) -> 29% | I26: =VLOOKUP($C26,'RECAP SECT'!$G$6:$FJ$253,79,FALSE) -> 13 | K26: =VLOOKUP($C26,'RECAP SECT'!$G$6:$FJ$253,81,FALSE) -> 5.36 | L26: =VLOOKUP($C26,'RECAP SECT'!$G$6:$FJ$253,82,FALSE) -> 35% | M26: =VLOOKUP($C26,'RECAP SECT'!$G$6:$FJ$253,83,FALSE) -> 16 | N26: =VLOOKUP($C26,'RECAP SECT'!$G$6:$FJ$253,84,FALSE) -> 646.70 | O26: =VLOOKUP($C26,'RECAP SECT'!$G$6:$FJ$253,85,FALSE) -> 27.85 | P26: =VLOOKUP($C26,'RECAP SECT'!$G$6:$FJ$253,86,FALSE) -> 50% | Q26: =VLOOKUP($C26,'RECAP SECT'!$G$6:$FJ$253,87,FALSE) -> 12 | S26: =VLOOKUP($C26,'RECAP SECT'!$G$6:$FJ$253,89,FALSE) -> 15.50 | T26: =VLOOKUP($C26,'RECAP SECT'!$G$6:$FJ$253,90,FALSE) -> 56% | U26: =VLOOKUP($C26,'RECAP SECT'!$G$6:$FJ$253,91,FALSE) -> 13 | W26: =VLOOKUP($C26,'RECAP SECT'!$G$6:$FJ$253,93,FALSE) -> 1.63 | X26: =VLOOKUP($C26,'RECAP SECT'!$G$6:$FJ$253,94,FALSE) -> 49% | Y26: =VLOOKUP($C26,'RECAP SECT'!$G$6:$FJ$253,95,FALSE) -> 11 | Z26: =VLOOKUP($C26,'RECAP SECT'!$G$6:$FJ$253,96,FALSE) -> 69.69 | AA26: =VLOOKUP($C26,'RECAP SECT'!$G$6:$FJ$253,97,FALSE) -> 2.24 | AB26: =VLOOKUP($C26,'RECAP SECT'!$G$6:$FJ$253,98,FALSE) -> 78% | AC26: =VLOOKUP($C26,'RECAP SECT'!$G$6:$FJ$253,99,FALSE) -> 12 | AD26: =VLOOKUP($C26,'RECAP SECT'!$G$6:$FJ$253,100,FALSE) -> 48% | AE26: =VLOOKUP($C26,'RECAP SECT'!$G$6:$FJ$253,101,FALSE) -> 38% | AF26: =VLOOKUP($C26,'RECAP SECT'!$G$6:$FJ$253,102,FALSE) -> 15
A27: 80 | B27: VOSGES | C27: 55 | D27: SAINT DIE | E27: =VLOOKUP($C27,'RECAP SECT'!$G$6:$FJ$253,3,FALSE) -> 47.9 | F27: =VLOOKUP($C27,'RECAP SECT'!$G$6:$FJ$253,76,FALSE) -> 296.24 | G27: =VLOOKUP($C27,'RECAP SECT'!$G$6:$FJ$253,77,FALSE) -> 27.86 | H27: =VLOOKUP($C27,'RECAP SECT'!$G$6:$FJ$253,78,FALSE) -> 15% | I27: =VLOOKUP($C27,'RECAP SECT'!$G$6:$FJ$253,79,FALSE) -> 7 | K27: =VLOOKUP($C27,'RECAP SECT'!$G$6:$FJ$253,81,FALSE) -> 6.42 | L27: =VLOOKUP($C27,'RECAP SECT'!$G$6:$FJ$253,82,FALSE) -> 22% | M27: =VLOOKUP($C27,'RECAP SECT'!$G$6:$FJ$253,83,FALSE) -> 5 | N27: =VLOOKUP($C27,'RECAP SECT'!$G$6:$FJ$253,84,FALSE) -> 593.22 | O27: =VLOOKUP($C27,'RECAP SECT'!$G$6:$FJ$253,85,FALSE) -> 26.77 | P27: =VLOOKUP($C27,'RECAP SECT'!$G$6:$FJ$253,86,FALSE) -> 52% | Q27: =VLOOKUP($C27,'RECAP SECT'!$G$6:$FJ$253,87,FALSE) -> 14 | S27: =VLOOKUP($C27,'RECAP SECT'!$G$6:$FJ$253,89,FALSE) -> 14.33 | T27: =VLOOKUP($C27,'RECAP SECT'!$G$6:$FJ$253,90,FALSE) -> 59% | U27: =VLOOKUP($C27,'RECAP SECT'!$G$6:$FJ$253,91,FALSE) -> 14 | W27: =VLOOKUP($C27,'RECAP SECT'!$G$6:$FJ$253,93,FALSE) -> 1.17 | X27: =VLOOKUP($C27,'RECAP SECT'!$G$6:$FJ$253,94,FALSE) -> 64% | Y27: =VLOOKUP($C27,'RECAP SECT'!$G$6:$FJ$253,95,FALSE) -> 18 | Z27: =VLOOKUP($C27,'RECAP SECT'!$G$6:$FJ$253,96,FALSE) -> 70.70 | AA27: =VLOOKUP($C27,'RECAP SECT'!$G$6:$FJ$253,97,FALSE) -> 2.92 | AB27: =VLOOKUP($C27,'RECAP SECT'!$G$6:$FJ$253,98,FALSE) -> 72% | AC27: =VLOOKUP($C27,'RECAP SECT'!$G$6:$FJ$253,99,FALSE) -> 8 | AD27: =VLOOKUP($C27,'RECAP SECT'!$G$6:$FJ$253,100,FALSE) -> 45% | AE27: =VLOOKUP($C27,'RECAP SECT'!$G$6:$FJ$253,101,FALSE) -> 35% | AF27: =VLOOKUP($C27,'RECAP SECT'!$G$6:$FJ$253,102,FALSE) -> 14
A28: Total CEGEE Directions Régionales | E28: =SUM(E10:E27) -> 1131

Sheet SE_IARD
B1: Accueil | F1: BAROMETRE BDD - TERRITOIRES
F2: IARD ET PREVOYANCE
F3: =ACCUEIL!F7 -> 2020-06-28
F7: Ventes nettes IARD | J7: Ventes nettes Prévoyance | N7: Total IARD Prévoyance
F8: =DATEMAJ!C28 -> au 28/06 | H8: coef | I8: ='RECAP DIRCOM'!DN4 -> 9% | J8: =DATEMAJ!C29 -> au 28/06 | L8: coef | M8: ='RECAP DIRCOM'!DR4 -> 6% | O8: coef | P8: ='RECAP DIRCOM'!DU4 -> 15%
B9: Direction | C9: eds | D9: Territoire | E9: ="ETP perf "&DATEMAJ!$C$39 -> ETP perf au 31/05 | F9: Nb / ETP | H9: % Ecart au 1er | I9: Rang | J9: Nb / ETP | L9: % Ecart au 1er | M9: Rang | N9: Moyenne ecart au 1er | O9: % Ecart au 1er | P9: Rang CEGEE
A10: 50 | B10: AUBE HAUTE MARNE | C10: 21 | D10: CHAUMONT | E10: =VLOOKUP($C10,'RECAP SECT'!$G$6:$FJ$253,3,FALSE) -> 34.2 | F10: =VLOOKUP($C10,'RECAP SECT'!$G$6:$FJ$253,109,FALSE) -> 9.55 | G10: =VLOOKUP($C10,'RECAP SECT'!$G$6:$FJ$253,110,FALSE) -> 0.95 | H10: =VLOOKUP($C10,'RECAP SECT'!$G$6:$FJ$253,111,FALSE) -> 48% | I10: =VLOOKUP($C10,'RECAP SECT'!$G$6:$FJ$253,112,FALSE) -> 7 | J10: =VLOOKUP($C10,'RECAP SECT'!$G$6:$FJ$253,113,FALSE) -> 8.56 | K10: =VLOOKUP($C10,'RECAP SECT'!$G$6:$FJ$253,114,FALSE) -> 1.27 | L10: =VLOOKUP($C10,'RECAP SECT'!$G$6:$FJ$253,115,FALSE) -> 15% | M10: =VLOOKUP($C10,'RECAP SECT'!$G$6:$FJ$253,116,FALSE) -> 5 | N10: =VLOOKUP($C10,'RECAP SECT'!$G$6:$FJ$253,117,FALSE) -> 34% | O10: =VLOOKUP($C10,'RECAP SECT'!$G$6:$FJ$253,118,FALSE) -> 25% | P10: =VLOOKUP($C10,'RECAP SECT'!$G$6:$FJ$253,119,FALSE) -> 5
A11: 50 | B11: AUBE HAUTE MARNE | C11: 14 | D11: TROYES | E11: =VLOOKUP($C11,'RECAP SECT'!$G$6:$FJ$253,3,FALSE) -> 65.3 | F11: =VLOOKUP($C11,'RECAP SECT'!$G$6:$FJ$253,109,FALSE) -> 5.02 | G11: =VLOOKUP($C11,'RECAP SECT'!$G$6:$FJ$253,110,FALSE) -> 0.55 | H11: =VLOOKUP($C11,'RECAP SECT'!$G$6:$FJ$253,111,FALSE) -> 70% | I11: =VLOOKUP($C11,'RECAP SECT'!$G$6:$FJ$253,112,FALSE) -> 16 | J11: =VLOOKUP($C11,'RECAP SECT'!$G$6:$FJ$253,113,FALSE) -> 8.84 | K11: =VLOOKUP($C11,'RECAP SECT'!$G$6:$FJ$253,114,FALSE) -> 1.32 | L11: =VLOOKUP($C11,'RECAP SECT'!$G$6:$FJ$253,115,FALSE) -> 12% | M11: =VLOOKUP($C11,'RECAP SECT'!$G$6:$FJ$253,116,FALSE) -> 4 | N11: =VLOOKUP($C11,'RECAP SECT'!$G$6:$FJ$253,117,FALSE) -> 47% | O11: =VLOOKUP($C11,'RECAP SECT'!$G$6:$FJ$253,118,FALSE) -> 38% | P11: =VLOOKUP($C11,'RECAP SECT'!$G$6:$FJ$253,119,FALSE) -> 10
A12: 262 | B12: BAS-RHIN | C12: 5060 | D12: HAGUENAU | E12: =VLOOKUP($C12,'RECAP SECT'!$G$6:$FJ$253,3,FALSE) -> 74.3 | F12: =VLOOKUP($C12,'RECAP SECT'!$G$6:$FJ$253,109,FALSE) -> 5.90 | G12: =VLOOKUP($C12,'RECAP SECT'!$G$6:$FJ$253,110,FALSE) -> 0.62 | H12: =VLOOKUP($C12,'RECAP SECT'!$G$6:$FJ$253,111,FALSE) -> 66% | I12: =VLOOKUP($C12,'RECAP SECT'!$G$6:$FJ$253,112,FALSE) -> 13 | J12: =VLOOKUP($C12,'RECAP SECT'!$G$6:$FJ$253,113,FALSE) -> 4.08 | K12: =VLOOKUP($C12,'RECAP SECT'!$G$6:$FJ$253,114,FALSE) -> 0.78 | L12: =VLOOKUP($C12,'RECAP SECT'!$G$6:$FJ$253,115,FALSE) -> 48% | M12: =VLOOKUP($C12,'RECAP SECT'!$G$6:$FJ$253,116,FALSE) -> 13 | N12: =VLOOKUP($C12,'RECAP SECT'!$G$6:$FJ$253,117,FALSE) -> 59% | O12: =VLOOKUP($C12,'RECAP SECT'!$G$6:$FJ$253,118,FALSE) -> 50% | P12: =VLOOKUP($C12,'RECAP SECT'!$G$6:$FJ$253,119,FALSE) -> 16
A13: 262 | B13: BAS-RHIN | C13: 5101 | D13: SELESTAT | E13: =VLOOKUP($C13,'RECAP SECT'!$G$6:$FJ$253,3,FALSE) -> 62.1 | F13: =VLOOKUP($C13,'RECAP SECT'!$G$6:$FJ$253,109,FALSE) -> 4.06 | G13: =VLOOKUP($C13,'RECAP SECT'!$G$6:$FJ$253,110,FALSE) -> 0.34 | H13: =VLOOKUP($C13,'RECAP SECT'!$G$6:$FJ$253,111,FALSE) -> 81% | I13: =VLOOKUP($C13,'RECAP SECT'!$G$6:$FJ$253,112,FALSE) -> 17 | J13: =VLOOKUP($C13,'RECAP SECT'!$G$6:$FJ$253,113,FALSE) -> 3.38 | K13: =VLOOKUP($C13,'RECAP SECT'!$G$6:$FJ$253,114,FALSE) -> 0.71 | L13: =VLOOKUP($C13,'RECAP SECT'!$G$6:$FJ$253,115,FALSE) -> 52% | M13: =VLOOKUP($C13,'RECAP SECT'!$G$6:$FJ$253,116,FALSE) -> 16 | N13: =VLOOKUP($C13,'RECAP SECT'!$G$6:$FJ$253,117,FALSE) -> 70% | O13: =VLOOKUP($C13,'RECAP SECT'!$G$6:$FJ$253,118,FALSE) -> 61% | P13: =VLOOKUP($C13,'RECAP SECT'!$G$6:$FJ$253,119,FALSE) -> 17
A14: 262 | B14: BAS-RHIN | C14: 5006 | D14: STRASBOURG | E14: =VLOOKUP($C14,'RECAP SECT'!$G$6:$FJ$253,3,FALSE) -> 73.4 | F14: =VLOOKUP($C14,'RECAP SECT'!$G$6:$FJ$253,109,FALSE) -> 6.92 | G14: =VLOOKUP($C14,'RECAP SECT'!$G$6:$FJ$253,110,FALSE) -> 0.71 | H14: =VLOOKUP($C14,'RECAP SECT'!$G$6:$FJ$253,111,FALSE) -> 61% | I14: =VLOOKUP($C14,'RECAP SECT'!$G$6:$FJ$253,112,FALSE) -> 12 | J14: =VLOOKUP($C14,'RECAP SECT'!$G$6:$FJ$253,113,FALSE) -> 10.50 | K14: =VLOOKUP($C14,'RECAP SECT'!$G$6:$FJ$253,114,FALSE) -> 1.49 | L14: =VLOOKUP($C14,'RECAP SECT'!$G$6:$FJ$253,115,FALSE) -> 0% | M14: =VLOOKUP($C14,'RECAP SECT'!$G$6:$FJ$253,116,FALSE) -> 1 | N14: =VLOOKUP($C14,'RECAP SECT'!$G$6:$FJ$253,117,FALSE) -> 37% | O14: =VLOOKUP($C14,'RECAP SECT'!$G$6:$FJ$253,118,FALSE) -> 28% | P14: =VLOOKUP($C14,'RECAP SECT'!$G$6:$FJ$253,119,FALSE) -> 6
A15: 264 | B15: HAUT-RHIN | C15: 5130 | D15: COLMAR | E15: =VLOOKUP($C15,'RECAP SECT'!$G$6:$FJ$253,3,FALSE) -> 64.9 | F15: =VLOOKUP($C15,'RECAP SECT'!$G$6:$FJ$253,109,FALSE) -> 5.24 | G15: =VLOOKUP($C15,'RECAP SECT'!$G$6:$FJ$253,110,FALSE) -> 0.55 | H15: =VLOOKUP($C15,'RECAP SECT'!$G$6:$FJ$253,111,FALSE) -> 70% | I15: =VLOOKUP($C15,'RECAP SECT'!$G$6:$FJ$253,112,FALSE) -> 15 | J15: =VLOOKUP($C15,'RECAP SECT'!$G$6:$FJ$253,113,FALSE) -> 4.61 | K15: =VLOOKUP($C15,'RECAP SECT'!$G$6:$FJ$253,114,FALSE) -> 0.94 | L15: =VLOOKUP($C15,'RECAP SECT'!$G$6:$FJ$253,115,FALSE) -> 37% | M15: =VLOOKUP($C15,'RECAP SECT'!$G$6:$FJ$253,116,FALSE) -> 9 | N15: =VLOOKUP($C15,'RECAP SECT'!$G$6:$FJ$253,117,FALSE) -> 56% | O15: =VLOOKUP($C15,'RECAP SECT'!$G$6:$FJ$253,118,FALSE) -> 47% | P15: =VLOOKUP($C15,'RECAP SECT'!$G$6:$FJ$253,119,FALSE) -> 15
A16: 264 | B16: HAUT-RHIN | C16: 5169 | D16: MULHOUSE | E16: =VLOOKUP($C16,'RECAP SECT'!$G$6:$FJ$253,3,FALSE) -> 61.1 | F16: =VLOOKUP($C16,'RECAP SECT'!$G$6:$FJ$253,109,FALSE) -> 3.19 | G16: =VLOOKUP($C16,'RECAP SECT'!$G$6:$FJ$253,110,FALSE) -> 0.30 | H16: =VLOOKUP($C16,'RECAP SECT'!$G$6:$FJ$253,111,FALSE) -> 83% | I16: =VLOOKUP($C16,'RECAP SECT'!$G$6:$FJ$253,112,FALSE) -> 18 | J16: =VLOOKUP($C16,'RECAP SECT'!$G$6:$FJ$253,113,FALSE) -> 2.85 | K16: =VLOOKUP($C16,'RECAP SECT'!$G$6:$FJ$253,114,FALSE) -> 0.63 | L16: =VLOOKUP($C16,'RECAP SECT'!$G$6:$FJ$253,115,FALSE) -> 58% | M16: =VLOOKUP($C16,'RECAP SECT'!$G$6:$FJ$253,116,FALSE) -> 18 | N16: =VLOOKUP($C16,'RECAP SECT'!$G$6:$FJ$253,117,FALSE) -> 73% | O16: =VLOOKUP($C16,'RECAP SECT'!$G$6:$FJ$253,118,FALSE) -> 64% | P16: =VLOOKUP($C16,'RECAP SECT'!$G$6:$FJ$253,119,FALSE) -> 18
A17: 30 | B17: MARNE-ARDENNES | C17: 6 | D17: CHALONS EN CHAMPAGNE | E17: =VLOOKUP($C17,'RECAP SECT'!$G$6:$FJ$253,3,FALSE) -> 45.0 | F17: =VLOOKUP($C17,'RECAP SECT'!$G$6:$FJ$253,109,FALSE) -> 11.42 | G17: =VLOOKUP($C17,'RECAP SECT'!$G$6:$FJ$253,110,FALSE) -> 1.24 | H17: =VLOOKUP($C17,'RECAP SECT'!$G$6:$FJ$253,111,FALSE) -> 32% | I17: =VLOOKUP($C17,'RECAP SECT'!$G$6:$FJ$253,112,FALSE) -> 3 | J17: =VLOOKUP($C17,'RECAP SECT'!$G$6:$FJ$253,113,FALSE) -> 8.00 | K17: =VLOOKUP($C17,'RECAP SECT'!$G$6:$FJ$253,114,FALSE) -> 1.23 | L17: =VLOOKUP($C17,'RECAP SECT'!$G$6:$FJ$253,115,FALSE) -> 18% | M17: =VLOOKUP($C17,'RECAP SECT'!$G$6:$FJ$253,116,FALSE) -> 6 | N17: =VLOOKUP($C17,'RECAP SECT'!$G$6:$FJ$253,117,FALSE) -> 26% | O17: =VLOOKUP($C17,'RECAP SECT'!$G$6:$FJ$253,118,FALSE) -> 17% | P17: =VLOOKUP($C17,'RECAP SECT'!$G$6:$FJ$253,119,FALSE) -> 4
A18: 30 | B18: MARNE-ARDENNES | C18: 2 | D18: CHARLEVILLE MEZIERES | E18: =VLOOKUP($C18,'RECAP SECT'!$G$6:$FJ$253,3,FALSE) -> 54.5 | F18: =VLOOKUP($C18,'RECAP SECT'!$G$6:$FJ$253,109,FALSE) -> 12.57 | G18: =VLOOKUP($C18,'RECAP SECT'!$G$6:$FJ$253,110,FALSE) -> 1.29 | H18: =VLOOKUP($C18,'RECAP SECT'!$G$6:$FJ$253,111,FALSE) -> 29% | I18: =VLOOKUP($C18,'RECAP SECT'!$G$6:$FJ$253,112,FALSE) -> 2 | J18: =VLOOKUP($C18,'RECAP SECT'!$G$6:$FJ$253,113,FALSE) -> 7.97 | K18: =VLOOKUP($C18,'RECAP SECT'!$G$6:$FJ$253,114,FALSE) -> 1.43 | L18: =VLOOKUP($C18,'RECAP SECT'!$G$6:$FJ$253,115,FALSE) -> 4% | M18: =VLOOKUP($C18,'RECAP SECT'!$G$6:$FJ$253,116,FALSE) -> 3 | N18: =VLOOKUP($C18,'RECAP SECT'!$G$6:$FJ$253,117,FALSE) -> 19% | O18: =VLOOKUP($C18,'RECAP SECT'!$G$6:$FJ$253,118,FALSE) -> 10% | P18: =VLOOKUP($C18,'RECAP SECT'!$G$6:$FJ$253,119,FALSE) -> 2
A19: 30 | B19: MARNE-ARDENNES | C19: 11 | D19: REIMS | E19: =VLOOKUP($C19,'RECAP SECT'!$G$6:$FJ$253,3,FALSE) -> 78.1 | F19: =VLOOKUP($C19,'RECAP SECT'!$G$6:$FJ$253,109,FALSE) -> 10.32 | G19: =VLOOKUP($C19,'RECAP SECT'!$G$6:$FJ$253,110,FALSE) -> 1.10 | H19: =VLOOKUP($C19,'RECAP SECT'!$G$6:$FJ$253,111,FALSE) -> 40% | I19: =VLOOKUP($C19,'RECAP SECT'!$G$6:$FJ$253,112,FALSE) -> 5 | J19: =VLOOKUP($C19,'RECAP SECT'!$G$6:$FJ$253,113,FALSE) -> 7.49 | K19: =VLOOKUP($C19,'RECAP SECT'!$G$6:$FJ$253,114,FALSE) -> 1.44 | L19: =VLOOKUP($C19,'RECAP SECT'!$G$6:$FJ$253,115,FALSE) -> 3% | M19: =VLOOKUP($C19,'RECAP SECT'!$G$6:$FJ$253,116,FALSE) -> 2 | N19: =VLOOKUP($C19,'RECAP SECT'!$G$6:$FJ$253,117,FALSE) -> 25% | O19: =VLOOKUP($C19,'RECAP SECT'!$G$6:$FJ$253,118,FALSE) -> 16% | P19: =VLOOKUP($C19,'RECAP SECT'!$G$6:$FJ$253,119,FALSE) -> 3
A20: 110 | B20: MEURTHE ET MOSELLE MEUSE | C20: 26 | D20: NANCY | E20: =VLOOKUP($C20,'RECAP SECT'!$G$6:$FJ$253,3,FALSE) -> 63.6 | F20: =VLOOKUP($C20,'RECAP SECT'!$G$6:$FJ$253,109,FALSE) -> 10.57 | G20: =VLOOKUP($C20,'RECAP SECT'!$G$6:$FJ$253,110,FALSE) -> 1.08 | H20: =VLOOKUP($C20,'RECAP SECT'!$G$6:$FJ$253,111,FALSE) -> 41% | I20: =VLOOKUP($C20,'RECAP SECT'!$G$6:$FJ$253,112,FALSE) -> 6 | J20: =VLOOKUP($C20,'RECAP SECT'!$G$6:$FJ$253,113,FALSE) -> 3.89 | K20: =VLOOKUP($C20,'RECAP SECT'!$G$6:$FJ$253,114,FALSE) -> 0.67 | L20: =VLOOKUP($C20,'RECAP SECT'!$G$6:$FJ$253,115,FALSE) -> 55% | M20: =VLOOKUP($C20,'RECAP SECT'!$G$6:$FJ$253,116,FALSE) -> 17 | N20: =VLOOKUP($C20,'RECAP SECT'!$G$6:$FJ$253,117,FALSE) -> 46% | O20: =VLOOKUP($C20,'RECAP SECT'!$G$6:$FJ$253,118,FALSE) -> 37% | P20: =VLOOKUP($C20,'RECAP SECT'!$G$6:$FJ$253,119,FALSE) -> 9
A21: 110 | B21: MEURTHE ET MOSELLE MEUSE | C21: 27 | D21: PONT A MOUSSON | E21: =VLOOKUP($C21,'RECAP SECT'!$G$6:$FJ$253,3,FALSE) -> 71.9 | F21: =VLOOKUP($C21,'RECAP SECT'!$G$6:$FJ$253,109,FALSE) -> 18.70 | G21: =VLOOKUP($C21,'RECAP SECT'!$G$6:$FJ$253,110,FALSE) -> 1.82 | H21: =VLOOKUP($C21,'RECAP SECT'!$G$6:$FJ$253,111,FALSE) -> 0% | I21: =VLOOKUP($C21,'RECAP SECT'!$G$6:$FJ$253,112,FALSE) -> 1 | J21: =VLOOKUP($C21,'RECAP SECT'!$G$6:$FJ$253,113,FALSE) -> 10.59 | K21: =VLOOKUP($C21,'RECAP SECT'!$G$6:$FJ$253,114,FALSE) -> 1.16 | L21: =VLOOKUP($C21,'RECAP SECT'!$G$6:$FJ$253,115,FALSE) -> 22% | M21: =VLOOKUP($C21,'RECAP SECT'!$G$6:$FJ$253,116,FALSE) -> 7 | N21: =VLOOKUP($C21,'RECAP SECT'!$G$6:$FJ$253,117,FALSE) -> 9% | O21: =VLOOKUP($C21,'RECAP SECT'!$G$6:$FJ$253,118,FALSE) -> 0% | P21: =VLOOKUP($C21,'RECAP SECT'!$G$6:$FJ$253,119,FALSE) -> 1
A22: 110 | B22: MEURTHE ET MOSELLE MEUSE | C22: 31 | D22: VERDUN | E22: =VLOOKUP($C22,'RECAP SECT'!$G$6:$FJ$253,3,FALSE) -> 51.9 | F22: =VLOOKUP($C22,'RECAP SECT'!$G$6:$FJ$253,109,FALSE) -> 7.19 | G22: =VLOOKUP($C22,'RECAP SECT'!$G$6:$FJ$253,110,FALSE) -> 0.77 | H22: =VLOOKUP($C22,'RECAP SECT'!$G$6:$FJ$253,111,FALSE) -> 58% | I22: =VLOOKUP($C22,'RECAP SECT'!$G$6:$FJ$253,112,FALSE) -> 11 | J22: =VLOOKUP($C22,'RECAP SECT'!$G$6:$FJ$253,113,FALSE) -> 4.51 | K22: =VLOOKUP($C22,'RECAP SECT'!$G$6:$FJ$253,114,FALSE) -> 0.80 | L22: =VLOOKUP($C22,'RECAP SECT'!$G$6:$FJ$253,115,FALSE) -> 46% | M22: =VLOOKUP($C22,'RECAP SECT'!$G$6:$FJ$253,116,FALSE) -> 11 | N22: =VLOOKUP($C22,'RECAP SECT'!$G$6:$FJ$253,117,FALSE) -> 53% | O22: =VLOOKUP($C22,'RECAP SECT'!$G$6:$FJ$253,118,FALSE) -> 44% | P22: =VLOOKUP($C22,'RECAP SECT'!$G$6:$FJ$253,119,FALSE) -> 11
A23: 160 | B23: MOSELLE | C23: 45 | D23: METZ | E23: =VLOOKUP($C23,'RECAP SECT'!$G$6:$FJ$253,3,FALSE) -> 85.7 | F23: =VLOOKUP($C23,'RECAP SECT'!$G$6:$FJ$253,109,FALSE) -> 7.33 | G23: =VLOOKUP($C23,'RECAP SECT'!$G$6:$FJ$253,110,FALSE) -> 0.77 | H23: =VLOOKUP($C23,'RECAP SECT'!$G$6:$FJ$253,111,FALSE) -> 58% | I23: =VLOOKUP($C23,'RECAP SECT'!$G$6:$FJ$253,112,FALSE) -> 10 | J23: =VLOOKUP($C23,'RECAP SECT'!$G$6:$FJ$253,113,FALSE) -> 4.42 | K23: =VLOOKUP($C23,'RECAP SECT'!$G$6:$FJ$253,114,FALSE) -> 0.72 | L23: =VLOOKUP($C23,'RECAP SECT'!$G$6:$FJ$253,115,FALSE) -> 52% | M23: =VLOOKUP($C23,'RECAP SECT'!$G$6:$FJ$253,116,FALSE) -> 14 | N23: =VLOOKUP($C23,'RECAP SECT'!$G$6:$FJ$253,117,FALSE) -> 55% | O23: =VLOOKUP($C23,'RECAP SECT'!$G$6:$FJ$253,118,FALSE) -> 46% | P23: =VLOOKUP($C23,'RECAP SECT'!$G$6:$FJ$253,119,FALSE) -> 13
A24: 160 | B24: MOSELLE | C24: 42 | D24: MOSELLE EST | E24: =VLOOKUP($C24,'RECAP SECT'!$G$6:$FJ$253,3,FALSE) -> 70.1 | F24: =VLOOKUP($C24,'RECAP SECT'!$G$6:$FJ$253,109,FALSE) -> 7.48 | G24: =VLOOKUP($C24,'RECAP SECT'!$G$6:$FJ$253,110,FALSE) -> 0.77 | H24: =VLOOKUP($C24,'RECAP SECT'!$G$6:$FJ$253,111,FALSE) -> 57% | I24: =VLOOKUP($C24,'RECAP SECT'!$G$6:$FJ$253,112,FALSE) -> 9 | J24: =VLOOKUP($C24,'RECAP SECT'!$G$6:$FJ$253,113,FALSE) -> 4.55 | K24: =VLOOKUP($C24,'RECAP SECT'!$G$6:$FJ$253,114,FALSE) -> 0.79 | L24: =VLOOKUP($C24,'RECAP SECT'!$G$6:$FJ$253,115,FALSE) -> 47% | M24: =VLOOKUP($C24,'RECAP SECT'!$G$6:$FJ$253,116,FALSE) -> 12 | N24: =VLOOKUP($C24,'RECAP SECT'!$G$6:$FJ$253,117,FALSE) -> 53% | O24: =VLOOKUP($C24,'RECAP SECT'!$G$6:$FJ$253,118,FALSE) -> 44% | P24: =VLOOKUP($C24,'RECAP SECT'!$G$6:$FJ$253,119,FALSE) -> 12
A25: 160 | B25: MOSELLE | C25: 44 | D25: MOSELLE NORD | E25: =VLOOKUP($C25,'RECAP SECT'!$G$6:$FJ$253,3,FALSE) -> 68.2 | F25: =VLOOKUP($C25,'RECAP SECT'!$G$6:$FJ$253,109,FALSE) -> 10.76 | G25: =VLOOKUP($C25,'RECAP SECT'!$G$6:$FJ$253,110,FALSE) -> 1.11 | H25: =VLOOKUP($C25,'RECAP SECT'!$G$6:$FJ$253,111,FALSE) -> 39% | I25: =VLOOKUP($C25,'RECAP SECT'!$G$6:$FJ$253,112,FALSE) -> 4 | J25: =VLOOKUP($C25,'RECAP SECT'!$G$6:$FJ$253,113,FALSE) -> 4.53 | K25: =VLOOKUP($C25,'RECAP SECT'!$G$6:$FJ$253,114,FALSE) -> 0.71 | L25: =VLOOKUP($C25,'RECAP SECT'!$G$6:$FJ$253,115,FALSE) -> 52% | M25: =VLOOKUP($C25,'RECAP SECT'!$G$6:$FJ$253,116,FALSE) -> 15 | N25: =VLOOKUP($C25,'RECAP SECT'!$G$6:$FJ$253,117,FALSE) -> 44% | O25: =VLOOKUP($C25,'RECAP SECT'!$G$6:$FJ$253,118,FALSE) -> 35% | P25: =VLOOKUP($C25,'RECAP SECT'!$G$6:$FJ$253,119,FALSE) -> 8
A26: 80 | B26: VOSGES | C26: 57 | D26: EPINAL | E26: =VLOOKUP($C26,'RECAP SECT'!$G$6:$FJ$253,3,FALSE) -> 59.2 | F26: =VLOOKUP($C26,'RECAP SECT'!$G$6:$FJ$253,109,FALSE) -> 5.19 | G26: =VLOOKUP($C26,'RECAP SECT'!$G$6:$FJ$253,110,FALSE) -> 0.59 | H26: =VLOOKUP($C26,'RECAP SECT'!$G$6:$FJ$253,111,FALSE) -> 68% | I26: =VLOOKUP($C26,'RECAP SECT'!$G$6:$FJ$253,112,FALSE) -> 14 | J26: =VLOOKUP($C26,'RECAP SECT'!$G$6:$FJ$253,113,FALSE) -> 4.97 | K26: =VLOOKUP($C26,'RECAP SECT'!$G$6:$FJ$253,114,FALSE) -> 0.93 | L26: =VLOOKUP($C26,'RECAP SECT'!$G$6:$FJ$253,115,FALSE) -> 38% | M26: =VLOOKUP($C26,'RECAP SECT'!$G$6:$FJ$253,116,FALSE) -> 10 | N26: =VLOOKUP($C26,'RECAP SECT'!$G$6:$FJ$253,117,FALSE) -> 56% | O26: =VLOOKUP($C26,'RECAP SECT'!$G$6:$FJ$253,118,FALSE) -> 47% | P26: =VLOOKUP($C26,'RECAP SECT'!$G$6:$FJ$253,119,FALSE) -> 14
A27: 80 | B27: VOSGES | C27: 55 | D27: SAINT DIE | E27: =VLOOKUP($C27,'RECAP SECT'!$G$6:$FJ$253,3,FALSE) -> 47.9 | F27: =VLOOKUP($C27,'RECAP SECT'!$G$6:$FJ$253,109,FALSE) -> 8.93 | G27: =VLOOKUP($C27,'RECAP SECT'!$G$6:$FJ$253,110,FALSE) -> 0.94 | H27: =VLOOKUP($C27,'RECAP SECT'!$G$6:$FJ$253,111,FALSE) -> 48% | I27: =VLOOKUP($C27,'RECAP SECT'!$G$6:$FJ$253,112,FALSE) -> 8 | J27: =VLOOKUP($C27,'RECAP SECT'!$G$6:$FJ$253,113,FALSE) -> 6.12 | K27: =VLOOKUP($C27,'RECAP SECT'!$G$6:$FJ$253,114,FALSE) -> 0.99 | L27: =VLOOKUP($C27,'RECAP SECT'!$G$6:$FJ$253,115,FALSE) -> 34% | M27: =VLOOKUP($C27,'RECAP SECT'!$G$6:$FJ$253,116,FALSE) -> 8 | N27: =VLOOKUP($C27,'RECAP SECT'!$G$6:$FJ$253,117,FALSE) -> 42% | O27: =VLOOKUP($C27,'RECAP SECT'!$G$6:$FJ$253,118,FALSE) -> 33% | P27: =VLOOKUP($C27,'RECAP SECT'!$G$6:$FJ$253,119,FALSE) -> 7
A28: Total CEGEE Directions Régionales | E28: =SUM(E10:E27) -> 1131

Sheet SE_CONQUETE
B1: Accueil | F1: BAROMETRE BDD - TERRITOIRES
F2: CLIENTS
F3: =ACCUEIL!F7 -> 2020-06-28
F7: Evolution nette clients Bancarisés Principaux | J7: Evolution nette relations PREMIUM | N7: Evolution nette clients Jeunes équipés | R7: Evolution nette clients Pro actif équipés | V7: Total Clients
F8: =DATEMAJ!C7 -> au 30/04 | H8: coef | I8: ='RECAP DIRCOM'!N4 -> 4% | J8: =DATEMAJ!C8 -> au 30/04 | L8: coef | M8: ='RECAP DIRCOM'!R4 -> 5% | N8: =DATEMAJ!C9 -> au 30/04 | P8: coef | Q8: ='RECAP DIRCOM'!V4 -> 3% | R8: =DATEMAJ!C10 -> au 30/04 | T8: coef | U8: ='RECAP DIRCOM'!Z4 -> 3% | W8: coef | X8: ='RECAP DIRCOM'!AC4 -> 15%
B9: Direction | C9: eds | D9: Territoire | E9: ="ETP perf "&DATEMAJ!$C$39 -> ETP perf au 31/05 | F9: Nb / ETP | G9: PNB / ETP | H9: % Ecart au 1er | I9: Rang | J9: Nb / ETP | K9: PNB / ETP | L9: % Ecart au 1er | M9: Rang | N9: Nb / ETP | O9: PNB / ETP | P9: % Ecart au 1er | Q9: Rang | R9: Nb / ETP | S9: PNB / ETP | T9: % Ecart au 1er | U9: Rang | V9: Moyenne ecart au 1er | W9: % Ecart au 1er | X9: Rang CEGEE
A10: 50 | B10: AUBE HAUTE MARNE | C10: 21 | D10: CHAUMONT | E10: =VLOOKUP($C10,'RECAP SECT'!$G$6:$FJ$253,3,FALSE) -> 34.2 | F10: =VLOOKUP($C10,'RECAP SECT'!$G$6:$FJ$253,5,FALSE) -> -3.59 | G10: =VLOOKUP($C10,'RECAP SECT'!$G$6:$FJ$253,6,FALSE) -> -1.80 | H10: =VLOOKUP($C10,'RECAP SECT'!$G$6:$FJ$253,7,FALSE) -> 39% | I10: =VLOOKUP($C10,'RECAP SECT'!$G$6:$FJ$253,8,FALSE) -> 6 | J10: =VLOOKUP($C10,'RECAP SECT'!$G$6:$FJ$253,9,FALSE) -> 0.41 | K10: =VLOOKUP($C10,'RECAP SECT'!$G$6:$FJ$253,10,FALSE) -> 0.29 | L10: =VLOOKUP($C10,'RECAP SECT'!$G$6:$FJ$253,11,FALSE) -> 75% | M10: =VLOOKUP($C10,'RECAP SECT'!$G$6:$FJ$253,12,FALSE) -> 14 | N10: =VLOOKUP($C10,'RECAP SECT'!$G$6:$FJ$253,13,FALSE) -> -3.54 | O10: =VLOOKUP($C10,'RECAP SECT'!$G$6:$FJ$253,14,FALSE) -> -0.53 | P10: =VLOOKUP($C10,'RECAP SECT'!$G$6:$FJ$253,15,FALSE) -> 67% | Q10: =VLOOKUP($C10,'RECAP SECT'!$G$6:$FJ$253,16,FALSE) -> 5 | R10: =VLOOKUP($C10,'RECAP SECT'!$G$6:$FJ$253,17,FALSE) -> 29% | S10: =VLOOKUP($C10,'RECAP SECT'!$G$6:$FJ$253,18,FALSE) -> 73% | T10: =VLOOKUP($C10,'RECAP SECT'!$G$6:$FJ$253,19,FALSE) -> 4% | U10: =VLOOKUP($C10,'RECAP SECT'!$G$6:$FJ$253,20,FALSE) -> 3 | V10: =VLOOKUP($C10,'RECAP SECT'!$G$6:$FJ$253,21,FALSE) -> 50% | W10: =VLOOKUP($C10,'RECAP SECT'!$G$6:$FJ$253,22,FALSE) -> 21% | X10: =VLOOKUP($C10,'RECAP SECT'!$G$6:$FJ$253,23,FALSE) -> 9
A11: 50 | B11: AUBE HAUTE MARNE | C11: 14 | D11: TROYES | E11: =VLOOKUP($C11,'RECAP SECT'!$G$6:$FJ$253,3,FALSE) -> 65.3 | F11: =VLOOKUP($C11,'RECAP SECT'!$G$6:$FJ$253,5,FALSE) -> -5.15 | G11: =VLOOKUP($C11,'RECAP SECT'!$G$6:$FJ$253,6,FALSE) -> -2.57 | H11: =VLOOKUP($C11,'RECAP SECT'!$G$6:$FJ$253,7,FALSE) -> 70% | I11: =VLOOKUP($C11,'RECAP SECT'!$G$6:$FJ$253,8,FALSE) -> 13 | J11: =VLOOKUP($C11,'RECAP SECT'!$G$6:$FJ$253,9,FALSE) -> 1.64 | K11: =VLOOKUP($C11,'RECAP SECT'!$G$6:$FJ$253,10,FALSE) -> 1.15 | L11: =VLOOKUP($C11,'RECAP SECT'!$G$6:$FJ$253,11,FALSE) -> 0% | M11: =VLOOKUP($C11,'RECAP SECT'!$G$6:$FJ$253,12,FALSE) -> 1 | N11: =VLOOKUP($C11,'RECAP SECT'!$G$6:$FJ$253,13,FALSE) -> -5.01 | O11: =VLOOKUP($C11,'RECAP SECT'!$G$6:$FJ$253,14,FALSE) -> -0.75 | P11: =VLOOKUP($C11,'RECAP SECT'!$G$6:$FJ$253,15,FALSE) -> 108% | Q11: =VLOOKUP($C11,'RECAP SECT'!$G$6:$FJ$253,16,FALSE) -> 14 | R11: =VLOOKUP($C11,'RECAP SECT'!$G$6:$FJ$253,17,FALSE) -> 23% | S11: =VLOOKUP($C11,'RECAP SECT'!$G$6:$FJ$253,18,FALSE) -> 57% | T11: =VLOOKUP($C11,'RECAP SECT'!$G$6:$FJ$253,19,FALSE) -> 24% | U11: =VLOOKUP($C11,'RECAP SECT'!$G$6:$FJ$253,20,FALSE) -> 4 | V11: =VLOOKUP($C11,'RECAP SECT'!$G$6:$FJ$253,21,FALSE) -> 45% | W11: =VLOOKUP($C11,'RECAP SECT'!$G$6:$FJ$253,22,FALSE) -> 17% | X11: =VLOOKUP($C11,'RECAP SECT'!$G$6:$FJ$253,23,FALSE) -> 3
A12: 262 | B12: BAS-RHIN | C12: 5060 | D12: HAGUENAU | E12: =VLOOKUP($C12,'RECAP SECT'!$G$6:$FJ$253,3,FALSE) -> 74.3 | F12: =VLOOKUP($C12,'RECAP SECT'!$G$6:$FJ$253,5,FALSE) -> -4.96 | G12: =VLOOKUP($C12,'RECAP SECT'!$G$6:$FJ$253,6,FALSE) -> -2.48 | H12: =VLOOKUP($C12,'RECAP SECT'!$G$6:$FJ$253,7,FALSE) -> 66% | I12: =VLOOKUP($C12,'RECAP SECT'!$G$6:$FJ$253,8,FALSE) -> 10 | J12: =VLOOKUP($C12,'RECAP SECT'!$G$6:$FJ$253,9,FALSE) -> 0.63 | K12: =VLOOKUP($C12,'RECAP SECT'!$G$6:$FJ$253,10,FALSE) -> 0.44 | L12: =VLOOKUP($C12,'RECAP SECT'!$G$6:$FJ$253,11,FALSE) -> 61% | M12: =VLOOKUP($C12,'RECAP SECT'!$G$6:$FJ$253,12,FALSE) -> 10 | N12: =VLOOKUP($C12,'RECAP SECT'!$G$6:$FJ$253,13,FALSE) -> -4.52 | O12: =VLOOKUP($C12,'RECAP SECT'!$G$6:$FJ$253,14,FALSE) -> -0.68 | P12: =VLOOKUP($C12,'RECAP SECT'!$G$6:$FJ$253,15,FALSE) -> 95% | Q12: =VLOOKUP($C12,'RECAP SECT'!$G$6:$FJ$253,16,FALSE) -> 9 | R12: =VLOOKUP($C12,'RECAP SECT'!$G$6:$FJ$253,17,FALSE) -> 7% | S12: =VLOOKUP($C12,'RECAP SECT'!$G$6:$FJ$253,18,FALSE) -> 17% | T12: =VLOOKUP($C12,'RECAP SECT'!$G$6:$FJ$253,19,FALSE) -> 78% | U12: =VLOOKUP($C12,'RECAP SECT'!$G$6:$FJ$253,20,FALSE) -> 14 | V12: =VLOOKUP($C12,'RECAP SECT'!$G$6:$FJ$253,21,FALSE) -> 73% | W12: =VLOOKUP($C12,'RECAP SECT'!$G$6:$FJ$253,22,FALSE) -> 44% | X12: =VLOOKUP($C12,'RECAP SECT'!$G$6:$FJ$253,23,FALSE) -> 14
A13: 262 | B13: BAS-RHIN | C13: 5101 | D13: SELESTAT | E13: =VLOOKUP($C13,'RECAP SECT'!$G$6:$FJ$253,3,FALSE) -> 62.1 | F13: =VLOOKUP($C13,'RECAP SECT'!$G$6:$FJ$253,5,FALSE) -> -6.86 | G13: =VLOOKUP($C13,'RECAP SECT'!$G$6:$FJ$253,6,FALSE) -> -3.43 | H13: =VLOOKUP($C13,'RECAP SECT'!$G$6:$FJ$253,7,FALSE) -> 104% | I13: =VLOOKUP($C13,'RECAP SECT'!$G$6:$FJ$253,8,FALSE) -> 17 | J13: =VLOOKUP($C13,'RECAP SECT'!$G$6:$FJ$253,9,FALSE) -> 0.53 | K13: =VLOOKUP($C13,'RECAP SECT'!$G$6:$FJ$253,10,FALSE) -> 0.37 | L13: =VLOOKUP($C13,'RECAP SECT'!$G$6:$FJ$253,11,FALSE) -> 68% | M13: =VLOOKUP($C13,'RECAP SECT'!$G$6:$FJ$253,12,FALSE) -> 11 | N13: =VLOOKUP($C13,'RECAP SECT'!$G$6:$FJ$253,13,FALSE) -> -6.09 | O13: =VLOOKUP($C13,'RECAP SECT'!$G$6:$FJ$253,14,FALSE) -> -0.91 | P13: =VLOOKUP($C13,'RECAP SECT'!$G$6:$FJ$253,15,FALSE) -> 138% | Q13: =VLOOKUP($C13,'RECAP SECT'!$G$6:$FJ$253,16,FALSE) -> 17 | R13: =VLOOKUP($C13,'RECAP SECT'!$G$6:$FJ$253,17,FALSE) -> -3% | S13: =VLOOKUP($C13,'RECAP SECT'!$G$6:$FJ$253,18,FALSE) -> -8% | T13: =VLOOKUP($C13,'RECAP SECT'!$G$6:$FJ$253,19,FALSE) -> 111% | U13: =VLOOKUP($C13,'RECAP SECT'!$G$6:$FJ$253,20,FALSE) -> 18 | V13: =VLOOKUP($C13,'RECAP SECT'!$G$6:$FJ$253,21,FALSE) -> 100% | W13: =VLOOKUP($C13,'RECAP SECT'!$G$6:$FJ$253,22,FALSE) -> 72% | X13: =VLOOKUP($C13,'RECAP SECT'!$G$6:$FJ$253,23,FALSE) -> 17
A14: 262 | B14: BAS-RHIN | C14: 5006 | D14: STRASBOURG | E14: =VLOOKUP($C14,'RECAP SECT'!$G$6:$FJ$253,3,FALSE) -> 73.4 | F14: =VLOOKUP($C14,'RECAP SECT'!$G$6:$FJ$253,5,FALSE) -> -5.01 | G14: =VLOOKUP($C14,'RECAP SECT'!$G$6:$FJ$253,6,FALSE) -> -2.51 | H14: =VLOOKUP($C14,'RECAP SECT'!$G$6:$FJ$253,7,FALSE) -> 67% | I14: =VLOOKUP($C14,'RECAP SECT'!$G$6:$FJ$253,8,FALSE) -> 12 | J14: =VLOOKUP($C14,'RECAP SECT'!$G$6:$FJ$253,9,FALSE) -> 0.49 | K14: =VLOOKUP($C14,'RECAP SECT'!$G$6:$FJ$253,10,FALSE) -> 0.34 | L14: =VLOOKUP($C14,'RECAP SECT'!$G$6:$FJ$253,11,FALSE) -> 70% | M14: =VLOOKUP($C14,'RECAP SECT'!$G$6:$FJ$253,12,FALSE) -> 12 | N14: =VLOOKUP($C14,'RECAP SECT'!$G$6:$FJ$253,13,FALSE) -> -3.68 | O14: =VLOOKUP($C14,'RECAP SECT'!$G$6:$FJ$253,14,FALSE) -> -0.55 | P14: =VLOOKUP($C14,'RECAP SECT'!$G$6:$FJ$253,15,FALSE) -> 71% | Q14: =VLOOKUP($C14,'RECAP SECT'!$G$6:$FJ$253,16,FALSE) -> 6 | R14: =VLOOKUP($C14,'RECAP SECT'!$G$6:$FJ$253,17,FALSE) -> 11% | S14: =VLOOKUP($C14,'RECAP SECT'!$G$6:$FJ$253,18,FALSE) -> 27% | T14: =VLOOKUP($C14,'RECAP SECT'!$G$6:$FJ$253,19,FALSE) -> 64% | U14: =VLOOKUP($C14,'RECAP SECT'!$G$6:$FJ$253,20,FALSE) -> 11 | V14: =VLOOKUP($C14,'RECAP SECT'!$G$6:$FJ$253,21,FALSE) -> 68% | W14: =VLOOKUP($C14,'RECAP SECT'!$G$6:$FJ$253,22,FALSE) -> 40% | X14: =VLOOKUP($C14,'RECAP SECT'!$G$6:$FJ$253,23,FALSE) -> 11
A15: 264 | B15: HAUT-RHIN | C15: 5130 | D15: COLMAR | E15: =VLOOKUP($C15,'RECAP SECT'!$G$6:$FJ$253,3,FALSE) -> 64.9 | F15: =VLOOKUP($C15,'RECAP SECT'!$G$6:$FJ$253,5,FALSE) -> -6.76 | G15: =VLOOKUP($C15,'RECAP SECT'!$G$6:$FJ$253,6,FALSE) -> -3.38 | H15: =VLOOKUP($C15,'RECAP SECT'!$G$6:$FJ$253,7,FALSE) -> 102% | I15: =VLOOKUP($C15,'RECAP SECT'!$G$6:$FJ$253,8,FALSE) -> 16 | J15: =VLOOKUP($C15,'RECAP SECT'!$G$6:$FJ$253,9,FALSE) -> 0.92 | K15: =VLOOKUP($C15,'RECAP SECT'!$G$6:$FJ$253,10,FALSE) -> 0.65 | L15: =VLOOKUP($C15,'RECAP SECT'!$G$6:$FJ$253,11,FALSE) -> 44% | M15: =VLOOKUP($C15,'RECAP SECT'!$G$6:$FJ$253,12,FALSE) -> 7 | N15: =VLOOKUP($C15,'RECAP SECT'!$G$6:$FJ$253,13,FALSE) -> -5.16 | O15: =VLOOKUP($C15,'RECAP SECT'!$G$6:$FJ$253,14,FALSE) -> -0.77 | P15: =VLOOKUP($C15,'RECAP SECT'!$G$6:$FJ$253,15,FALSE) -> 112% | Q15: =VLOOKUP($C15,'RECAP SECT'!$G$6:$FJ$253,16,FALSE) -> 15 | R15: =VLOOKUP($C15,'RECAP SECT'!$G$6:$FJ$253,17,FALSE) -> 8% | S15: =VLOOKUP($C15,'RECAP SECT'!$G$6:$FJ$253,18,FALSE) -> 19% | T15: =VLOOKUP($C15,'RECAP SECT'!$G$6:$FJ$253,19,FALSE) -> 75% | U15: =VLOOKUP($C15,'RECAP SECT'!$G$6:$FJ$253,20,FALSE) -> 13 | V15: =VLOOKUP($C15,'RECAP SECT'!$G$6:$FJ$253,21,FALSE) -> 79% | W15: =VLOOKUP($C15,'RECAP SECT'!$G$6:$FJ$253,22,FALSE) -> 51% | X15: =VLOOKUP($C15,'RECAP SECT'!$G$6:$FJ$253,23,FALSE) -> 15
A16: 264 | B16: HAUT-RHIN | C16: 5169 | D16: MULHOUSE | E16: =VLOOKUP($C16,'RECAP SECT'!$G$6:$FJ$253,3,FALSE) -> 61.1 | F16: =VLOOKUP($C16,'RECAP SECT'!$G$6:$FJ$253,5,FALSE) -> -9.17 | G16: =VLOOKUP($C16,'RECAP SECT'!$G$6:$FJ$253,6,FALSE) -> -4.59 | H16: =VLOOKUP($C16,'RECAP SECT'!$G$6:$FJ$253,7,FALSE) -> 150% | I16: =VLOOKUP($C16,'RECAP SECT'!$G$6:$FJ$253,8,FALSE) -> 18 | J16: =VLOOKUP($C16,'RECAP SECT'!$G$6:$FJ$253,9,FALSE) -> 0.25 | K16: =VLOOKUP($C16,'RECAP SECT'!$G$6:$FJ$253,10,FALSE) -> 0.17 | L16: =VLOOKUP($C16,'RECAP SECT'!$G$6:$FJ$253,11,FALSE) -> 85% | M16: =VLOOKUP($C16,'RECAP SECT'!$G$6:$FJ$253,12,FALSE) -> 17 | N16: =VLOOKUP($C16,'RECAP SECT'!$G$6:$FJ$253,13,FALSE) -> -6.53 | O16: =VLOOKUP($C16,'RECAP SECT'!$G$6:$FJ$253,14,FALSE) -> -0.98 | P16: =VLOOKUP($C16,'RECAP SECT'!$G$6:$FJ$253,15,FALSE) -> 150% | Q16: =VLOOKUP($C16,'RECAP SECT'!$G$6:$FJ$253,16,FALSE) -> 18 | R16: =VLOOKUP($C16,'RECAP SECT'!$G$6:$FJ$253,17,FALSE) -> 20% | S16: =VLOOKUP($C16,'RECAP SECT'!$G$6:$FJ$253,18,FALSE) -> 49% | T16: =VLOOKUP($C16,'RECAP SECT'!$G$6:$FJ$253,19,FALSE) -> 35% | U16: =VLOOKUP($C16,'RECAP SECT'!$G$6:$FJ$253,20,FALSE) -> 5 | V16: =VLOOKUP($C16,'RECAP SECT'!$G$6:$FJ$253,21,FALSE) -> 105% | W16: =VLOOKUP($C16,'RECAP SECT'!$G$6:$FJ$253,22,FALSE) -> 77% | X16: =VLOOKUP($C16,'RECAP SECT'!$G$6:$FJ$253,23,FALSE) -> 18
A17: 30 | B17: MARNE-ARDENNES | C17: 6 | D17: CHALONS EN CHAMPAGNE | E17: =VLOOKUP($C17,'RECAP SECT'!$G$6:$FJ$253,3,FALSE) -> 45.0 | F17: =VLOOKUP($C17,'RECAP SECT'!$G$6:$FJ$253,5,FALSE) -> -2.75 | G17: =VLOOKUP($C17,'RECAP SECT'!$G$6:$FJ$253,6,FALSE) -> -1.38 | H17: =VLOOKUP($C17,'RECAP SECT'!$G$6:$FJ$253,7,FALSE) -> 22% | I17: =VLOOKUP($C17,'RECAP SECT'!$G$6:$FJ$253,8,FALSE) -> 3 | J17: =VLOOKUP($C17,'RECAP SECT'!$G$6:$FJ$253,9,FALSE) -> 0.33 | K17: =VLOOKUP($C17,'RECAP SECT'!$G$6:$FJ$253,10,FALSE) -> 0.23 | L17: =VLOOKUP($C17,'RECAP SECT'!$G$6:$FJ$253,11,FALSE) -> 80% | M17: =VLOOKUP($C17,'RECAP SECT'!$G$6:$FJ$253,12,FALSE) -> 16 | N17: =VLOOKUP($C17,'RECAP SECT'!$G$6:$FJ$253,13,FALSE) -> -1.09 | O17: =VLOOKUP($C17,'RECAP SECT'!$G$6:$FJ$253,14,FALSE) -> -0.16 | P17: =VLOOKUP($C17,'RECAP SECT'!$G$6:$FJ$253,15,FALSE) -> 0% | Q17: =VLOOKUP($C17,'RECAP SECT'!$G$6:$FJ$253,16,FALSE) -> 1 | R17: =VLOOKUP($C17,'RECAP SECT'!$G$6:$FJ$253,17,FALSE) -> 4% | S17: =VLOOKUP($C17,'RECAP SECT'!$G$6:$FJ$253,18,FALSE) -> 11% | T17: =VLOOKUP($C17,'RECAP SECT'!$G$6:$FJ$253,19,FALSE) -> 85% | U17: =VLOOKUP($C17,'RECAP SECT'!$G$6:$FJ$253,20,FALSE) -> 17 | V17: =VLOOKUP($C17,'RECAP SECT'!$G$6:$FJ$253,21,FALSE) -> 50% | W17: =VLOOKUP($C17,'RECAP SECT'!$G$6:$FJ$253,22,FALSE) -> 21% | X17: =VLOOKUP($C17,'RECAP SECT'!$G$6:$FJ$253,23,FALSE) -> 8
A18: 30 | B18: MARNE-ARDENNES | C18: 2 | D18: CHARLEVILLE MEZIERES | E18: =VLOOKUP($C18,'RECAP SECT'!$G$6:$FJ$253,3,FALSE) -> 54.5 | F18: =VLOOKUP($C18,'RECAP SECT'!$G$6:$FJ$253,5,FALSE) -> -3.52 | G18: =VLOOKUP($C18,'RECAP SECT'!$G$6:$FJ$253,6,FALSE) -> -1.76 | H18: =VLOOKUP($C18,'RECAP SECT'!$G$6:$FJ$253,7,FALSE) -> 37% | I18: =VLOOKUP($C18,'RECAP SECT'!$G$6:$FJ$253,8,FALSE) -> 5 | J18: =VLOOKUP($C18,'RECAP SECT'!$G$6:$FJ$253,9,FALSE) -> 0.35 | K18: =VLOOKUP($C18,'RECAP SECT'!$G$6:$FJ$253,10,FALSE) -> 0.24 | L18: =VLOOKUP($C18,'RECAP SECT'!$G$6:$FJ$253,11,FALSE) -> 79% | M18: =VLOOKUP($C18,'RECAP SECT'!$G$6:$FJ$253,12,FALSE) -> 15 | N18: =VLOOKUP($C18,'RECAP SECT'!$G$6:$FJ$253,13,FALSE) -> -2.73 | O18: =VLOOKUP($C18,'RECAP SECT'!$G$6:$FJ$253,14,FALSE) -> -0.41 | P18: =VLOOKUP($C18,'RECAP SECT'!$G$6:$FJ$253,15,FALSE) -> 45% | Q18: =VLOOKUP($C18,'RECAP SECT'!$G$6:$FJ$253,16,FALSE) -> 3 | R18: =VLOOKUP($C18,'RECAP SECT'!$G$6:$FJ$253,17,FALSE) -> 29% | S18: =VLOOKUP($C18,'RECAP SECT'!$G$6:$FJ$253,18,FALSE) -> 73% | T18: =VLOOKUP($C18,'RECAP SECT'!$G$6:$FJ$253,19,FALSE) -> 3% | U18: =VLOOKUP($C18,'RECAP SECT'!$G$6:$FJ$253,20,FALSE) -> 2 | V18: =VLOOKUP($C18,'RECAP SECT'!$G$6:$FJ$253,21,FALSE) -> 46% | W18: =VLOOKUP($C18,'RECAP SECT'!$G$6:$FJ$253,22,FALSE) -> 18% | X18: =VLOOKUP($C18,'RECAP SECT'!$G$6:$FJ$253,23,FALSE) -> 6
A19: 30 | B19: MARNE-ARDENNES | C19: 11 | D19: REIMS | E19: =VLOOKUP($C19,'RECAP SECT'!$G$6:$FJ$253,3,FALSE) -> 78.1 | F19: =VLOOKUP($C19,'RECAP SECT'!$G$6:$FJ$253,5,FALSE) -> -1.65 | G19: =VLOOKUP($C19,'RECAP SECT'!$G$6:$FJ$253,6,FALSE) -> -0.83 | H19: =VLOOKUP($C19,'RECAP SECT'!$G$6:$FJ$253,7,FALSE) -> 0% | I19: =VLOOKUP($C19,'RECAP SECT'!$G$6:$FJ$253,8,FALSE) -> 1 | J19: =VLOOKUP($C19,'RECAP SECT'!$G$6:$FJ$253,9,FALSE) -> 1.13 | K19: =VLOOKUP($C19,'RECAP SECT'!$G$6:$FJ$253,10,FALSE) -> 0.79 | L19: =VLOOKUP($C19,'RECAP SECT'!$G$6:$FJ$253,11,FALSE) -> 31% | M19: =VLOOKUP($C19,'RECAP SECT'!$G$6:$FJ$253,12,FALSE) -> 4 | N19: =VLOOKUP($C19,'RECAP SECT'!$G$6:$FJ$253,13,FALSE) -> -4.16 | O19: =VLOOKUP($C19,'RECAP SECT'!$G$6:$FJ$253,14,FALSE) -> -0.62 | P19: =VLOOKUP($C19,'RECAP SECT'!$G$6:$FJ$253,15,FALSE) -> 85% | Q19: =VLOOKUP($C19,'RECAP SECT'!$G$6:$FJ$253,16,FALSE) -> 8 | R19: =VLOOKUP($C19,'RECAP SECT'!$G$6:$FJ$253,17,FALSE) -> 6% | S19: =VLOOKUP($C19,'RECAP SECT'!$G$6:$FJ$253,18,FALSE) -> 16% | T19: =VLOOKUP($C19,'RECAP SECT'!$G$6:$FJ$253,19,FALSE) -> 79% | U19: =VLOOKUP($C19,'RECAP SECT'!$G$6:$FJ$253,20,FALSE) -> 15 | V19: =VLOOKUP($C19,'RECAP SECT'!$G$6:$FJ$253,21,FALSE) -> 43% | W19: =VLOOKUP($C19,'RECAP SECT'!$G$6:$FJ$253,22,FALSE) -> 15% | X19: =VLOOKUP($C19,'RECAP SECT'!$G$6:$FJ$253,23,FALSE) -> 2
A20: 110 | B20: MEURTHE ET MOSELLE MEUSE | C20: 26 | D20: NANCY | E20: =VLOOKUP($C20,'RECAP SECT'!$G$6:$FJ$253,3,FALSE) -> 63.6 | F20: =VLOOKUP($C20,'RECAP SECT'!$G$6:$FJ$253,5,FALSE) -> -3.26 | G20: =VLOOKUP($C20,'RECAP SECT'!$G$6:$FJ$253,6,FALSE) -> -1.63 | H20: =VLOOKUP($C20,'RECAP SECT'!$G$6:$FJ$253,7,FALSE) -> 32% | I20: =VLOOKUP($C20,'RECAP SECT'!$G$6:$FJ$253,8,FALSE) -> 4 | J20: =VLOOKUP($C20,'RECAP SECT'!$G$6:$FJ$253,9,FALSE) -> 1.10 | K20: =VLOOKUP($C20,'RECAP SECT'!$G$6:$FJ$253,10,FALSE) -> 0.77 | L20: =VLOOKUP($C20,'RECAP SECT'!$G$6:$FJ$253,11,FALSE) -> 33% | M20: =VLOOKUP($C20,'RECAP SECT'!$G$6:$FJ$253,12,FALSE) -> 5 | N20: =VLOOKUP($C20,'RECAP SECT'!$G$6:$FJ$253,13,FALSE) -> -3.12 | O20: =VLOOKUP($C20,'RECAP SECT'!$G$6:$FJ$253,14,FALSE) -> -0.47 | P20: =VLOOKUP($C20,'RECAP SECT'!$G$6:$FJ$253,15,FALSE) -> 56% | Q20: =VLOOKUP($C20,'RECAP SECT'!$G$6:$FJ$253,16,FALSE) -> 4 | R20: =VLOOKUP($C20,'RECAP SECT'!$G$6:$FJ$253,17,FALSE) -> 6% | S20: =VLOOKUP($C20,'RECAP SECT'!$G$6:$FJ$253,18,FALSE) -> 16% | T20: =VLOOKUP($C20,'RECAP SECT'!$G$6:$FJ$253,19,FALSE) -> 79% | U20: =VLOOKUP($C20,'RECAP SECT'!$G$6:$FJ$253,20,FALSE) -> 16 | V20: =VLOOKUP($C20,'RECAP SECT'!$G$6:$FJ$253,21,FALSE) -> 47% | W20: =VLOOKUP($C20,'RECAP SECT'!$G$6:$FJ$253,22,FALSE) -> 18% | X20: =VLOOKUP($C20,'RECAP SECT'!$G$6:$FJ$253,23,FALSE) -> 7
A21: 110 | B21: MEURTHE ET MOSELLE MEUSE | C21: 27 | D21: PONT A MOUSSON | E21: =VLOOKUP($C21,'RECAP SECT'!$G$6:$FJ$253,3,FALSE) -> 71.9 | F21: =VLOOKUP($C21,'RECAP SECT'!$G$6:$FJ$253,5,FALSE) -> -1.99 | G21: =VLOOKUP($C21,'RECAP SECT'!$G$6:$FJ$253,6,FALSE) -> -0.99 | H21: =VLOOKUP($C21,'RECAP SECT'!$G$6:$FJ$253,7,FALSE) -> 7% | I21: =VLOOKUP($C21,'RECAP SECT'!$G$6:$FJ$253,8,FALSE) -> 2 | J21: =VLOOKUP($C21,'RECAP SECT'!$G$6:$FJ$253,9,FALSE) -> 0.88 | K21: =VLOOKUP($C21,'RECAP SECT'!$G$6:$FJ$253,10,FALSE) -> 0.61 | L21: =VLOOKUP($C21,'RECAP SECT'!$G$6:$FJ$253,11,FALSE) -> 47% | M21: =VLOOKUP($C21,'RECAP SECT'!$G$6:$FJ$253,12,FALSE) -> 8 | N21: =VLOOKUP($C21,'RECAP SECT'!$G$6:$FJ$253,13,FALSE) -> -1.79 | O21: =VLOOKUP($C21,'RECAP SECT'!$G$6:$FJ$253,14,FALSE) -> -0.27 | P21: =VLOOKUP($C21,'RECAP SECT'!$G$6:$FJ$253,15,FALSE) -> 19% | Q21: =VLOOKUP($C21,'RECAP SECT'!$G$6:$FJ$253,16,FALSE) -> 2 | R21: =VLOOKUP($C21,'RECAP SECT'!$G$6:$FJ$253,17,FALSE) -> 19% | S21: =VLOOKUP($C21,'RECAP SECT'!$G$6:$FJ$253,18,FALSE) -> 49% | T21: =VLOOKUP($C21,'RECAP SECT'!$G$6:$FJ$253,19,FALSE) -> 36% | U21: =VLOOKUP($C21,'RECAP SECT'!$G$6:$FJ$253,20,FALSE) -> 6 | V21: =VLOOKUP($C21,'RECAP SECT'!$G$6:$FJ$253,21,FALSE) -> 28% | W21: =VLOOKUP($C21,'RECAP SECT'!$G$6:$FJ$253,22,FALSE) -> 0% | X21: =VLOOKUP($C21,'RECAP SECT'!$G$6:$FJ$253,23,FALSE) -> 1
A22: 110 | B22: MEURTHE ET MOSELLE MEUSE | C22: 31 | D22: VERDUN | E22: =VLOOKUP($C22,'RECAP SECT'!$G$6:$FJ$253,3,FALSE) -> 51.9 | F22: =VLOOKUP($C22,'RECAP SECT'!$G$6:$FJ$253,5,FALSE) -> -5.22 | G22: =VLOOKUP($C22,'RECAP SECT'!$G$6:$FJ$253,6,FALSE) -> -2.61 | H22: =VLOOKUP($C22,'RECAP SECT'!$G$6:$FJ$253,7,FALSE) -> 71% | I22: =VLOOKUP($C22,'RECAP SECT'!$G$6:$FJ$253,8,FALSE) -> 14 | J22: =VLOOKUP($C22,'RECAP SECT'!$G$6:$FJ$253,9,FALSE) -> -0.54 | K22: =VLOOKUP($C22,'RECAP SECT'!$G$6:$FJ$253,10,FALSE) -> -0.38 | L22: =VLOOKUP($C22,'RECAP SECT'!$G$6:$FJ$253,11,FALSE) -> 133% | M22: =VLOOKUP($C22,'RECAP SECT'!$G$6:$FJ$253,12,FALSE) -> 18 | N22: =VLOOKUP($C22,'RECAP SECT'!$G$6:$FJ$253,13,FALSE) -> -4.88 | O22: =VLOOKUP($C22,'RECAP SECT'!$G$6:$FJ$253,14,FALSE) -> -0.73 | P22: =VLOOKUP($C22,'RECAP SECT'!$G$6:$FJ$253,15,FALSE) -> 104% | Q22: =VLOOKUP($C22,'RECAP SECT'!$G$6:$FJ$253,16,FALSE) -> 12 | R22: =VLOOKUP($C22,'RECAP SECT'!$G$6:$FJ$253,17,FALSE) -> 17% | S22: =VLOOKUP($C22,'RECAP SECT'!$G$6:$FJ$253,18,FALSE) -> 43% | T22: =VLOOKUP($C22,'RECAP SECT'!$G$6:$FJ$253,19,FALSE) -> 43% | U22: =VLOOKUP($C22,'RECAP SECT'!$G$6:$FJ$253,20,FALSE) -> 7 | V22: =VLOOKUP($C22,'RECAP SECT'!$G$6:$FJ$253,21,FALSE) -> 93% | W22: =VLOOKUP($C22,'RECAP SECT'!$G$6:$FJ$253,22,FALSE) -> 64% | X22: =VLOOKUP($C22,'RECAP SECT'!$G$6:$FJ$253,23,FALSE) -> 16
A23: 160 | B23: MOSELLE | C23: 45 | D23: METZ | E23: =VLOOKUP($C23,'RECAP SECT'!$G$6:$FJ$253,3,FALSE) -> 85.7 | F23: =VLOOKUP($C23,'RECAP SECT'!$G$6:$FJ$253,5,FALSE) -> -3.73 | G23: =VLOOKUP($C23,'RECAP SECT'!$G$6:$FJ$253,6,FALSE) -> -1.87 | H23: =VLOOKUP($C23,'RECAP SECT'!$G$6:$FJ$253,7,FALSE) -> 42% | I23: =VLOOKUP($C23,'RECAP SECT'!$G$6:$FJ$253,8,FALSE) -> 7 | J23: =VLOOKUP($C23,'RECAP SECT'!$G$6:$FJ$253,9,FALSE) -> 1.24 | K23: =VLOOKUP($C23,'RECAP SECT'!$G$6:$FJ$253,10,FALSE) -> 0.87 | L23: =VLOOKUP($C23,'RECAP SECT'!$G$6:$FJ$253,11,FALSE) -> 25% | M23: =VLOOKUP($C23,'RECAP SECT'!$G$6:$FJ$253,12,FALSE) -> 3 | N23: =VLOOKUP($C23,'RECAP SECT'!$G$6:$FJ$253,13,FALSE) -> -4.11 | O23: =VLOOKUP($C23,'RECAP SECT'!$G$6:$FJ$253,14,FALSE) -> -0.62 | P23: =VLOOKUP($C23,'RECAP SECT'!$G$6:$FJ$253,15,FALSE) -> 83% | Q23: =VLOOKUP($C23,'RECAP SECT'!$G$6:$FJ$253,16,FALSE) -> 7 | R23: =VLOOKUP($C23,'RECAP SECT'!$G$6:$FJ$253,17,FALSE) -> 16% | S23: =VLOOKUP($C23,'RECAP SECT'!$G$6:$FJ$253,18,FALSE) -> 41% | T23: =VLOOKUP($C23,'RECAP SECT'!$G$6:$FJ$253,19,FALSE) -> 46% | U23: =VLOOKUP($C23,'RECAP SECT'!$G$6:$FJ$253,20,FALSE) -> 8 | V23: =VLOOKUP($C23,'RECAP SECT'!$G$6:$FJ$253,21,FALSE) -> 45% | W23: =VLOOKUP($C23,'RECAP SECT'!$G$6:$FJ$253,22,FALSE) -> 17% | X23: =VLOOKUP($C23,'RECAP SECT'!$G$6:$FJ$253,23,FALSE) -> 4
A24: 160 | B24: MOSELLE | C24: 42 | D24: MOSELLE EST | E24: =VLOOKUP($C24,'RECAP SECT'!$G$6:$FJ$253,3,FALSE) -> 70.1 | F24: =VLOOKUP($C24,'RECAP SECT'!$G$6:$FJ$253,5,FALSE) -> -4.84 | G24: =VLOOKUP($C24,'RECAP SECT'!$G$6:$FJ$253,6,FALSE) -> -2.42 | H24: =VLOOKUP($C24,'RECAP SECT'!$G$6:$FJ$253,7,FALSE) -> 64% | I24: =VLOOKUP($C24,'RECAP SECT'!$G$6:$FJ$253,8,FALSE) -> 9 | J24: =VLOOKUP($C24,'RECAP SECT'!$G$6:$FJ$253,9,FALSE) -> 0.68 | K24: =VLOOKUP($C24,'RECAP SECT'!$G$6:$FJ$253,10,FALSE) -> 0.48 | L24: =VLOOKUP($C24,'RECAP SECT'!$G$6:$FJ$253,11,FALSE) -> 58% | M24: =VLOOKUP($C24,'RECAP SECT'!$G$6:$FJ$253,12,FALSE) -> 9 | N24: =VLOOKUP($C24,'RECAP SECT'!$G$6:$FJ$253,13,FALSE) -> -4.75 | O24: =VLOOKUP($C24,'RECAP SECT'!$G$6:$FJ$253,14,FALSE) -> -0.71 | P24: =VLOOKUP($C24,'RECAP SECT'!$G$6:$FJ$253,15,FALSE) -> 101% | Q24: =VLOOKUP($C24,'RECAP SECT'!$G$6:$FJ$253,16,FALSE) -> 10 | R24: =VLOOKUP($C24,'RECAP SECT'!$G$6:$FJ$253,17,FALSE) -> 9% | S24: =VLOOKUP($C24,'RECAP SECT'!$G$6:$FJ$253,18,FALSE) -> 21% | T24: =VLOOKUP($C24,'RECAP SECT'!$G$6:$FJ$253,19,FALSE) -> 72% | U24: =VLOOKUP($C24,'RECAP SECT'!$G$6:$FJ$253,20,FALSE) -> 12 | V24: =VLOOKUP($C24,'RECAP SECT'!$G$6:$FJ$253,21,FALSE) -> 71% | W24: =VLOOKUP($C24,'RECAP SECT'!$G$6:$FJ$253,22,FALSE) -> 43% | X24: =VLOOKUP($C24,'RECAP SECT'!$G$6:$FJ$253,23,FALSE) -> 12
A25: 160 | B25: MOSELLE | C25: 44 | D25: MOSELLE NORD | E25: =VLOOKUP($C25,'RECAP SECT'!$G$6:$FJ$253,3,FALSE) -> 68.2 | F25: =VLOOKUP($C25,'RECAP SECT'!$G$6:$FJ$253,5,FALSE) -> -5.60 | G25: =VLOOKUP($C25,'RECAP SECT'!$G$6:$FJ$253,6,FALSE) -> -2.80 | H25: =VLOOKUP($C25,'RECAP SECT'!$G$6:$FJ$253,7,FALSE) -> 79% | I25: =VLOOKUP($C25,'RECAP SECT'!$G$6:$FJ$253,8,FALSE) -> 15 | J25: =VLOOKUP($C25,'RECAP SECT'!$G$6:$FJ$253,9,FALSE) -> 1.00 | K25: =VLOOKUP($C25,'RECAP SECT'!$G$6:$FJ$253,10,FALSE) -> 0.70 | L25: =VLOOKUP($C25,'RECAP SECT'!$G$6:$FJ$253,11,FALSE) -> 39% | M25: =VLOOKUP($C25,'RECAP SECT'!$G$6:$FJ$253,12,FALSE) -> 6 | N25: =VLOOKUP($C25,'RECAP SECT'!$G$6:$FJ$253,13,FALSE) -> -4.90 | O25: =VLOOKUP($C25,'RECAP SECT'!$G$6:$FJ$253,14,FALSE) -> -0.73 | P25: =VLOOKUP($C25,'RECAP SECT'!$G$6:$FJ$253,15,FALSE) -> 105% | Q25: =VLOOKUP($C25,'RECAP SECT'!$G$6:$FJ$253,16,FALSE) -> 13 | R25: =VLOOKUP($C25,'RECAP SECT'!$G$6:$FJ$253,17,FALSE) -> 16% | S25: =VLOOKUP($C25,'RECAP SECT'!$G$6:$FJ$253,18,FALSE) -> 40% | T25: =VLOOKUP($C25,'RECAP SECT'!$G$6:$FJ$253,19,FALSE) -> 47% | U25: =VLOOKUP($C25,'RECAP SECT'!$G$6:$FJ$253,20,FALSE) -> 9 | V25: =VLOOKUP($C25,'RECAP SECT'!$G$6:$FJ$253,21,FALSE) -> 64% | W25: =VLOOKUP($C25,'RECAP SECT'!$G$6:$FJ$253,22,FALSE) -> 36% | X25: =VLOOKUP($C25,'RECAP SECT'!$G$6:$FJ$253,23,FALSE) -> 10
A26: 80 | B26: VOSGES | C26: 57 | D26: EPINAL | E26: =VLOOKUP($C26,'RECAP SECT'!$G$6:$FJ$253,3,FALSE) -> 59.2 | F26: =VLOOKUP($C26,'RECAP SECT'!$G$6:$FJ$253,5,FALSE) -> -4.97 | G26: =VLOOKUP($C26,'RECAP SECT'!$G$6:$FJ$253,6,FALSE) -> -2.48 | H26: =VLOOKUP($C26,'RECAP SECT'!$G$6:$FJ$253,7,FALSE) -> 66% | I26: =VLOOKUP($C26,'RECAP SECT'!$G$6:$FJ$253,8,FALSE) -> 11 | J26: =VLOOKUP($C26,'RECAP SECT'!$G$6:$FJ$253,9,FALSE) -> 1.37 | K26: =VLOOKUP($C26,'RECAP SECT'!$G$6:$FJ$253,10,FALSE) -> 0.96 | L26: =VLOOKUP($C26,'RECAP SECT'!$G$6:$FJ$253,11,FALSE) -> 17% | M26: =VLOOKUP($C26,'RECAP SECT'!$G$6:$FJ$253,12,FALSE) -> 2 | N26: =VLOOKUP($C26,'RECAP SECT'!$G$6:$FJ$253,13,FALSE) -> -5.19 | O26: =VLOOKUP($C26,'RECAP SECT'!$G$6:$FJ$253,14,FALSE) -> -0.78 | P26: =VLOOKUP($C26,'RECAP SECT'!$G$6:$FJ$253,15,FALSE) -> 113% | Q26: =VLOOKUP($C26,'RECAP SECT'!$G$6:$FJ$253,16,FALSE) -> 16 | R26: =VLOOKUP($C26,'RECAP SECT'!$G$6:$FJ$253,17,FALSE) -> 30% | S26: =VLOOKUP($C26,'RECAP SECT'!$G$6:$FJ$253,18,FALSE) -> 76% | T26: =VLOOKUP($C26,'RECAP SECT'!$G$6:$FJ$253,19,FALSE) -> 0% | U26: =VLOOKUP($C26,'RECAP SECT'!$G$6:$FJ$253,20,FALSE) -> 1 | V26: =VLOOKUP($C26,'RECAP SECT'!$G$6:$FJ$253,21,FALSE) -> 46% | W26: =VLOOKUP($C26,'RECAP SECT'!$G$6:$FJ$253,22,FALSE) -> 17% | X26: =VLOOKUP($C26,'RECAP SECT'!$G$6:$FJ$253,23,FALSE) -> 5
A27: 80 | B27: VOSGES | C27: 55 | D27: SAINT DIE | E27: =VLOOKUP($C27,'RECAP SECT'!$G$6:$FJ$253,3,FALSE) -> 47.9 | F27: =VLOOKUP($C27,'RECAP SECT'!$G$6:$FJ$253,5,FALSE) -> -4.45 | G27: =VLOOKUP($C27,'RECAP SECT'!$G$6:$FJ$253,6,FALSE) -> -2.22 | H27: =VLOOKUP($C27,'RECAP SECT'!$G$6:$FJ$253,7,FALSE) -> 56% | I27: =VLOOKUP($C27,'RECAP SECT'!$G$6:$FJ$253,8,FALSE) -> 8 | J27: =VLOOKUP($C27,'RECAP SECT'!$G$6:$FJ$253,9,FALSE) -> 0.46 | K27: =VLOOKUP($C27,'RECAP SECT'!$G$6:$FJ$253,10,FALSE) -> 0.32 | L27: =VLOOKUP($C27,'RECAP SECT'!$G$6:$FJ$253,11,FALSE) -> 72% | M27: =VLOOKUP($C27,'RECAP SECT'!$G$6:$FJ$253,12,FALSE) -> 13 | N27: =VLOOKUP($C27,'RECAP SECT'!$G$6:$FJ$253,13,FALSE) -> -4.82 | O27: =VLOOKUP($C27,'RECAP SECT'!$G$6:$FJ$253,14,FALSE) -> -0.72 | P27: =VLOOKUP($C27,'RECAP SECT'!$G$6:$FJ$253,15,FALSE) -> 103% | Q27: =VLOOKUP($C27,'RECAP SECT'!$G$6:$FJ$253,16,FALSE) -> 11 | R27: =VLOOKUP($C27,'RECAP SECT'!$G$6:$FJ$253,17,FALSE) -> 13% | S27: =VLOOKUP($C27,'RECAP SECT'!$G$6:$FJ$253,18,FALSE) -> 31% | T27: =VLOOKUP($C27,'RECAP SECT'!$G$6:$FJ$253,19,FALSE) -> 59% | U27: =VLOOKUP($C27,'RECAP SECT'!$G$6:$FJ$253,20,FALSE) -> 10 | V27: =VLOOKUP($C27,'RECAP SECT'!$G$6:$FJ$253,21,FALSE) -> 71% | W27: =VLOOKUP($C27,'RECAP SECT'!$G$6:$FJ$253,22,FALSE) -> 43% | X27: =VLOOKUP($C27,'RECAP SECT'!$G$6:$FJ$253,23,FALSE) -> 13
A28: Total CEGEE Directions Régionales | E28: =SUM(E10:E27) -> 1131

Sheet SE_ACCELER
B1: Accueil | F1: BAROMETRE BDD - TERRITOIRES
F2: ACCELERATEURS DE PNB
F3: =ACCUEIL!F7 -> 2020-06-28
F7: Ventes brutes SED finalisées | J7: Clients Equipés E documents | N7: Economie Opt'in | R7: Remises Commerciales | V7: Total Accélérateurs PNB
F8: =DATEMAJ!C31 -> au 28/06 | H8: coef | I8: ='RECAP DIRCOM'!EE4 -> 6% | J8: =DATEMAJ!C32 -> au 30/04 | L8: coef | M8: ='RECAP DIRCOM'!EI4 -> 3% | N8: =DATEMAJ!C33 -> au 30/04 | P8: coef | Q8: ='RECAP DIRCOM'!EM4 -> 3% | R8: =DATEMAJ!C34 -> au 31/05 | T8: coef | U8: ='RECAP DIRCOM'!EQ4 -> 3% | W8: coef | X8: ='RECAP DIRCOM'!ET4 -> 15%
B9: Direction | C9: eds | D9: Territoire | E9: ="ETP perf "&DATEMAJ!$C$39 -> ETP perf au 31/05 | F9: Nb / ETP | G9: PNB / ETP | H9: % Ecart au 1er | I9: Rang | J9: Nb / ETP | K9: PNB / ETP | L9: % Ecart au 1er | M9: Rang | N9: Nb / ETP | O9: PNB / ETP | P9: % Ecart au 1er | Q9: Rang | R9: Rem / ETP | S9: PNB / ETP | T9: % Ecart au 1er | U9: Rang | V9: Moyenne ecart au 1er | W9: % Ecart au 1er | X9: Rang CEGEE
A10: 50 | B10: AUBE HAUTE MARNE | C10: 21 | D10: CHAUMONT | E10: =VLOOKUP($C10,'RECAP SECT'!$G$6:$FJ$253,3,FALSE) -> 34.2 | F10: =VLOOKUP($C10,'RECAP SECT'!$G$6:$FJ$253,126,FALSE) -> 36.99 | G10: =VLOOKUP($C10,'RECAP SECT'!$G$6:$FJ$253,127,FALSE) -> 0.37 | H10: =VLOOKUP($C10,'RECAP SECT'!$G$6:$FJ$253,128,FALSE) -> 22% | I10: =VLOOKUP($C10,'RECAP SECT'!$G$6:$FJ$253,129,FALSE) -> 6 | J10: =VLOOKUP($C10,'RECAP SECT'!$G$6:$FJ$253,130,FALSE) -> 13.15 | K10: =VLOOKUP($C10,'RECAP SECT'!$G$6:$FJ$253,131,FALSE) -> 0.66 | L10: =VLOOKUP($C10,'RECAP SECT'!$G$6:$FJ$253,132,FALSE) -> 40% | M10: =VLOOKUP($C10,'RECAP SECT'!$G$6:$FJ$253,133,FALSE) -> 13 | N10: =VLOOKUP($C10,'RECAP SECT'!$G$6:$FJ$253,134,FALSE) -> 16.16 | O10: =VLOOKUP($C10,'RECAP SECT'!$G$6:$FJ$253,135,FALSE) -> 0.24 | P10: =VLOOKUP($C10,'RECAP SECT'!$G$6:$FJ$253,136,FALSE) -> 64% | Q10: =VLOOKUP($C10,'RECAP SECT'!$G$6:$FJ$253,137,FALSE) -> 8 | R10: =VLOOKUP($C10,'RECAP SECT'!$G$6:$FJ$253,138,FALSE) -> -42.65 | S10: =VLOOKUP($C10,'RECAP SECT'!$G$6:$FJ$253,139,FALSE) -> -1.25 | T10: =VLOOKUP($C10,'RECAP SECT'!$G$6:$FJ$253,140,FALSE) -> 5% | U10: =VLOOKUP($C10,'RECAP SECT'!$G$6:$FJ$253,141,FALSE) -> 2 | V10: =VLOOKUP($C10,'RECAP SECT'!$G$6:$FJ$253,142,FALSE) -> 31% | W10: =VLOOKUP($C10,'RECAP SECT'!$G$6:$FJ$253,143,FALSE) -> 13% | X10: =VLOOKUP($C10,'RECAP SECT'!$G$6:$FJ$253,144,FALSE) -> 6
A11: 50 | B11: AUBE HAUTE MARNE | C11: 14 | D11: TROYES | E11: =VLOOKUP($C11,'RECAP SECT'!$G$6:$FJ$253,3,FALSE) -> 65.3 | F11: =VLOOKUP($C11,'RECAP SECT'!$G$6:$FJ$253,126,FALSE) -> 28.60 | G11: =VLOOKUP($C11,'RECAP SECT'!$G$6:$FJ$253,127,FALSE) -> 0.29 | H11: =VLOOKUP($C11,'RECAP SECT'!$G$6:$FJ$253,128,FALSE) -> 40% | I11: =VLOOKUP($C11,'RECAP SECT'!$G$6:$FJ$253,129,FALSE) -> 13 | J11: =VLOOKUP($C11,'RECAP SECT'!$G$6:$FJ$253,130,FALSE) -> 15.12 | K11: =VLOOKUP($C11,'RECAP SECT'!$G$6:$FJ$253,131,FALSE) -> 0.76 | L11: =VLOOKUP($C11,'RECAP SECT'!$G$6:$FJ$253,132,FALSE) -> 31% | M11: =VLOOKUP($C11,'RECAP SECT'!$G$6:$FJ$253,133,FALSE) -> 7 | N11: =VLOOKUP($C11,'RECAP SECT'!$G$6:$FJ$253,134,FALSE) -> 17.88 | O11: =VLOOKUP($C11,'RECAP SECT'!$G$6:$FJ$253,135,FALSE) -> 0.27 | P11: =VLOOKUP($C11,'RECAP SECT'!$G$6:$FJ$253,136,FALSE) -> 60% | Q11: =VLOOKUP($C11,'RECAP SECT'!$G$6:$FJ$253,137,FALSE) -> 6 | R11: =VLOOKUP($C11,'RECAP SECT'!$G$6:$FJ$253,138,FALSE) -> -106.98 | S11: =VLOOKUP($C11,'RECAP SECT'!$G$6:$FJ$253,139,FALSE) -> -1.64 | T11: =VLOOKUP($C11,'RECAP SECT'!$G$6:$FJ$253,140,FALSE) -> 38% | U11: =VLOOKUP($C11,'RECAP SECT'!$G$6:$FJ$253,141,FALSE) -> 8 | V11: =VLOOKUP($C11,'RECAP SECT'!$G$6:$FJ$253,142,FALSE) -> 42% | W11: =VLOOKUP($C11,'RECAP SECT'!$G$6:$FJ$253,143,FALSE) -> 24% | X11: =VLOOKUP($C11,'RECAP SECT'!$G$6:$FJ$253,144,FALSE) -> 11
A12: 262 | B12: BAS-RHIN | C12: 5060 | D12: HAGUENAU | E12: =VLOOKUP($C12,'RECAP SECT'!$G$6:$FJ$253,3,FALSE) -> 74.3 | F12: =VLOOKUP($C12,'RECAP SECT'!$G$6:$FJ$253,126,FALSE) -> 30.84 | G12: =VLOOKUP($C12,'RECAP SECT'!$G$6:$FJ$253,127,FALSE) -> 0.31 | H12: =VLOOKUP($C12,'RECAP SECT'!$G$6:$FJ$253,128,FALSE) -> 35% | I12: =VLOOKUP($C12,'RECAP SECT'!$G$6:$FJ$253,129,FALSE) -> 12 | J12: =VLOOKUP($C12,'RECAP SECT'!$G$6:$FJ$253,130,FALSE) -> 12.63 | K12: =VLOOKUP($C12,'RECAP SECT'!$G$6:$FJ$253,131,FALSE) -> 0.63 | L12: =VLOOKUP($C12,'RECAP SECT'!$G$6:$FJ$253,132,FALSE) -> 42% | M12: =VLOOKUP($C12,'RECAP SECT'!$G$6:$FJ$253,133,FALSE) -> 15 | N12: =VLOOKUP($C12,'RECAP SECT'!$G$6:$FJ$253,134,FALSE) -> 22.50 | O12: =VLOOKUP($C12,'RECAP SECT'!$G$6:$FJ$253,135,FALSE) -> 0.34 | P12: =VLOOKUP($C12,'RECAP SECT'!$G$6:$FJ$253,136,FALSE) -> 50% | Q12: =VLOOKUP($C12,'RECAP SECT'!$G$6:$FJ$253,137,FALSE) -> 3 | R12: =VLOOKUP($C12,'RECAP SECT'!$G$6:$FJ$253,138,FALSE) -> -115.78 | S12: =VLOOKUP($C12,'RECAP SECT'!$G$6:$FJ$253,139,FALSE) -> -1.56 | T12: =VLOOKUP($C12,'RECAP SECT'!$G$6:$FJ$253,140,FALSE) -> 32% | U12: =VLOOKUP($C12,'RECAP SECT'!$G$6:$FJ$253,141,FALSE) -> 6 | V12: =VLOOKUP($C12,'RECAP SECT'!$G$6:$FJ$253,142,FALSE) -> 39% | W12: =VLOOKUP($C12,'RECAP SECT'!$G$6:$FJ$253,143,FALSE) -> 21% | X12: =VLOOKUP($C12,'RECAP SECT'!$G$6:$FJ$253,144,FALSE) -> 8
A13: 262 | B13: BAS-RHIN | C13: 5101 | D13: SELESTAT | E13: =VLOOKUP($C13,'RECAP SECT'!$G$6:$FJ$253,3,FALSE) -> 62.1 | F13: =VLOOKUP($C13,'RECAP SECT'!$G$6:$FJ$253,126,FALSE) -> 28.19 | G13: =VLOOKUP($C13,'RECAP SECT'!$G$6:$FJ$253,127,FALSE) -> 0.28 | H13: =VLOOKUP($C13,'RECAP SECT'!$G$6:$FJ$253,128,FALSE) -> 41% | I13: =VLOOKUP($C13,'RECAP SECT'!$G$6:$FJ$253,129,FALSE) -> 14 | J13: =VLOOKUP($C13,'RECAP SECT'!$G$6:$FJ$253,130,FALSE) -> 14.63 | K13: =VLOOKUP($C13,'RECAP SECT'!$G$6:$FJ$253,131,FALSE) -> 0.73 | L13: =VLOOKUP($C13,'RECAP SECT'!$G$6:$FJ$253,132,FALSE) -> 33% | M13: =VLOOKUP($C13,'RECAP SECT'!$G$6:$FJ$253,133,FALSE) -> 9 | N13: =VLOOKUP($C13,'RECAP SECT'!$G$6:$FJ$253,134,FALSE) -> 21.44 | O13: =VLOOKUP($C13,'RECAP SECT'!$G$6:$FJ$253,135,FALSE) -> 0.32 | P13: =VLOOKUP($C13,'RECAP SECT'!$G$6:$FJ$253,136,FALSE) -> 52% | Q13: =VLOOKUP($C13,'RECAP SECT'!$G$6:$FJ$253,137,FALSE) -> 4 | R13: =VLOOKUP($C13,'RECAP SECT'!$G$6:$FJ$253,138,FALSE) -> -104.64 | S13: =VLOOKUP($C13,'RECAP SECT'!$G$6:$FJ$253,139,FALSE) -> -1.69 | T13: =VLOOKUP($C13,'RECAP SECT'!$G$6:$FJ$253,140,FALSE) -> 42% | U13: =VLOOKUP($C13,'RECAP SECT'!$G$6:$FJ$253,141,FALSE) -> 10 | V13: =VLOOKUP($C13,'RECAP SECT'!$G$6:$FJ$253,142,FALSE) -> 42% | W13: =VLOOKUP($C13,'RECAP SECT'!$G$6:$FJ$253,143,FALSE) -> 24% | X13: =VLOOKUP($C13,'RECAP SECT'!$G$6:$FJ$253,144,FALSE) -> 10
A14: 262 | B14: BAS-RHIN | C14: 5006 | D14: STRASBOURG | E14: =VLOOKUP($C14,'RECAP SECT'!$G$6:$FJ$253,3,FALSE) -> 73.4 | F14: =VLOOKUP($C14,'RECAP SECT'!$G$6:$FJ$253,126,FALSE) -> 36.77 | G14: =VLOOKUP($C14,'RECAP SECT'!$G$6:$FJ$253,127,FALSE) -> 0.37 | H14: =VLOOKUP($C14,'RECAP SECT'!$G$6:$FJ$253,128,FALSE) -> 23% | I14: =VLOOKUP($C14,'RECAP SECT'!$G$6:$FJ$253,129,FALSE) -> 7 | J14: =VLOOKUP($C14,'RECAP SECT'!$G$6:$FJ$253,130,FALSE) -> 21.47 | K14: =VLOOKUP($C14,'RECAP SECT'!$G$6:$FJ$253,131,FALSE) -> 1.07 | L14: =VLOOKUP($C14,'RECAP SECT'!$G$6:$FJ$253,132,FALSE) -> 1% | M14: =VLOOKUP($C14,'RECAP SECT'!$G$6:$FJ$253,133,FALSE) -> 2 | N14: =VLOOKUP($C14,'RECAP SECT'!$G$6:$FJ$253,134,FALSE) -> 44.74 | O14: =VLOOKUP($C14,'RECAP SECT'!$G$6:$FJ$253,135,FALSE) -> 0.67 | P14: =VLOOKUP($C14,'RECAP SECT'!$G$6:$FJ$253,136,FALSE) -> 0% | Q14: =VLOOKUP($C14,'RECAP SECT'!$G$6:$FJ$253,137,FALSE) -> 1 | R14: =VLOOKUP($C14,'RECAP SECT'!$G$6:$FJ$253,138,FALSE) -> -143.02 | S14: =VLOOKUP($C14,'RECAP SECT'!$G$6:$FJ$253,139,FALSE) -> -1.95 | T14: =VLOOKUP($C14,'RECAP SECT'!$G$6:$FJ$253,140,FALSE) -> 64% | U14: =VLOOKUP($C14,'RECAP SECT'!$G$6:$FJ$253,141,FALSE) -> 16 | V14: =VLOOKUP($C14,'RECAP SECT'!$G$6:$FJ$253,142,FALSE) -> 22% | W14: =VLOOKUP($C14,'RECAP SECT'!$G$6:$FJ$253,143,FALSE) -> 4% | X14: =VLOOKUP($C14,'RECAP SECT'!$G$6:$FJ$253,144,FALSE) -> 3
A15: 264 | B15: HAUT-RHIN | C15: 5130 | D15: COLMAR | E15: =VLOOKUP($C15,'RECAP SECT'!$G$6:$FJ$253,3,FALSE) -> 64.9 | F15: =VLOOKUP($C15,'RECAP SECT'!$G$6:$FJ$253,126,FALSE) -> 26.57 | G15: =VLOOKUP($C15,'RECAP SECT'!$G$6:$FJ$253,127,FALSE) -> 0.27 | H15: =VLOOKUP($C15,'RECAP SECT'!$G$6:$FJ$253,128,FALSE) -> 44% | I15: =VLOOKUP($C15,'RECAP SECT'!$G$6:$FJ$253,129,FALSE) -> 15 | J15: =VLOOKUP($C15,'RECAP SECT'!$G$6:$FJ$253,130,FALSE) -> 12.66 | K15: =VLOOKUP($C15,'RECAP SECT'!$G$6:$FJ$253,131,FALSE) -> 0.63 | L15: =VLOOKUP($C15,'RECAP SECT'!$G$6:$FJ$253,132,FALSE) -> 42% | M15: =VLOOKUP($C15,'RECAP SECT'!$G$6:$FJ$253,133,FALSE) -> 14 | N15: =VLOOKUP($C15,'RECAP SECT'!$G$6:$FJ$253,134,FALSE) -> 12.88 | O15: =VLOOKUP($C15,'RECAP SECT'!$G$6:$FJ$253,135,FALSE) -> 0.19 | P15: =VLOOKUP($C15,'RECAP SECT'!$G$6:$FJ$253,136,FALSE) -> 71% | Q15: =VLOOKUP($C15,'RECAP SECT'!$G$6:$FJ$253,137,FALSE) -> 11 | R15: =VLOOKUP($C15,'RECAP SECT'!$G$6:$FJ$253,138,FALSE) -> -125.41 | S15: =VLOOKUP($C15,'RECAP SECT'!$G$6:$FJ$253,139,FALSE) -> -1.93 | T15: =VLOOKUP($C15,'RECAP SECT'!$G$6:$FJ$253,140,FALSE) -> 63% | U15: =VLOOKUP($C15,'RECAP SECT'!$G$6:$FJ$253,141,FALSE) -> 14 | V15: =VLOOKUP($C15,'RECAP SECT'!$G$6:$FJ$253,142,FALSE) -> 53% | W15: =VLOOKUP($C15,'RECAP SECT'!$G$6:$FJ$253,143,FALSE) -> 35% | X15: =VLOOKUP($C15,'RECAP SECT'!$G$6:$FJ$253,144,FALSE) -> 16
A16: 264 | B16: HAUT-RHIN | C16: 5169 | D16: MULHOUSE | E16: =VLOOKUP($C16,'RECAP SECT'!$G$6:$FJ$253,3,FALSE) -> 61.1 | F16: =VLOOKUP($C16,'RECAP SECT'!$G$6:$FJ$253,126,FALSE) -> 22.50 | G16: =VLOOKUP($C16,'RECAP SECT'!$G$6:$FJ$253,127,FALSE) -> 0.23 | H16: =VLOOKUP($C16,'RECAP SECT'!$G$6:$FJ$253,128,FALSE) -> 53% | I16: =VLOOKUP($C16,'RECAP SECT'!$G$6:$FJ$253,129,FALSE) -> 18 | J16: =VLOOKUP($C16,'RECAP SECT'!$G$6:$FJ$253,130,FALSE) -> 13.67 | K16: =VLOOKUP($C16,'RECAP SECT'!$G$6:$FJ$253,131,FALSE) -> 0.68 | L16: =VLOOKUP($C16,'RECAP SECT'!$G$6:$FJ$253,132,FALSE) -> 37% | M16: =VLOOKUP($C16,'RECAP SECT'!$G$6:$FJ$253,133,FALSE) -> 12 | N16: =VLOOKUP($C16,'RECAP SECT'!$G$6:$FJ$253,134,FALSE) -> 8.73 | O16: =VLOOKUP($C16,'RECAP SECT'!$G$6:$FJ$253,135,FALSE) -> 0.13 | P16: =VLOOKUP($C16,'RECAP SECT'!$G$6:$FJ$253,136,FALSE) -> 80% | Q16: =VLOOKUP($C16,'RECAP SECT'!$G$6:$FJ$253,137,FALSE) -> 15 | R16: =VLOOKUP($C16,'RECAP SECT'!$G$6:$FJ$253,138,FALSE) -> -118.31 | S16: =VLOOKUP($C16,'RECAP SECT'!$G$6:$FJ$253,139,FALSE) -> -1.94 | T16: =VLOOKUP($C16,'RECAP SECT'!$G$6:$FJ$253,140,FALSE) -> 64% | U16: =VLOOKUP($C16,'RECAP SECT'!$G$6:$FJ$253,141,FALSE) -> 15 | V16: =VLOOKUP($C16,'RECAP SECT'!$G$6:$FJ$253,142,FALSE) -> 57% | W16: =VLOOKUP($C16,'RECAP SECT'!$G$6:$FJ$253,143,FALSE) -> 40% | X16: =VLOOKUP($C16,'RECAP SECT'!$G$6:$FJ$253,144,FALSE) -> 18
A17: 30 | B17: MARNE-ARDENNES | C17: 6 | D17: CHALONS EN CHAMPAGNE | E17: =VLOOKUP($C17,'RECAP SECT'!$G$6:$FJ$253,3,FALSE) -> 45.0 | F17: =VLOOKUP($C17,'RECAP SECT'!$G$6:$FJ$253,126,FALSE) -> 36.76 | G17: =VLOOKUP($C17,'RECAP SECT'!$G$6:$FJ$253,127,FALSE) -> 0.37 | H17: =VLOOKUP($C17,'RECAP SECT'!$G$6:$FJ$253,128,FALSE) -> 23% | I17: =VLOOKUP($C17,'RECAP SECT'!$G$6:$FJ$253,129,FALSE) -> 8 | J17: =VLOOKUP($C17,'RECAP SECT'!$G$6:$FJ$253,130,FALSE) -> 21.77 | K17: =VLOOKUP($C17,'RECAP SECT'!$G$6:$FJ$253,131,FALSE) -> 1.09 | L17: =VLOOKUP($C17,'RECAP SECT'!$G$6:$FJ$253,132,FALSE) -> 0% | M17: =VLOOKUP($C17,'RECAP SECT'!$G$6:$FJ$253,133,FALSE) -> 1 | N17: =VLOOKUP($C17,'RECAP SECT'!$G$6:$FJ$253,134,FALSE) -> 22.70 | O17: =VLOOKUP($C17,'RECAP SECT'!$G$6:$FJ$253,135,FALSE) -> 0.34 | P17: =VLOOKUP($C17,'RECAP SECT'!$G$6:$FJ$253,136,FALSE) -> 49% | Q17: =VLOOKUP($C17,'RECAP SECT'!$G$6:$FJ$253,137,FALSE) -> 2 | R17: =VLOOKUP($C17,'RECAP SECT'!$G$6:$FJ$253,138,FALSE) -> -53.33 | S17: =VLOOKUP($C17,'RECAP SECT'!$G$6:$FJ$253,139,FALSE) -> -1.18 | T17: =VLOOKUP($C17,'RECAP SECT'!$G$6:$FJ$253,140,FALSE) -> 0% | U17: =VLOOKUP($C17,'RECAP SECT'!$G$6:$FJ$253,141,FALSE) -> 1 | V17: =VLOOKUP($C17,'RECAP SECT'!$G$6:$FJ$253,142,FALSE) -> 19% | W17: =VLOOKUP($C17,'RECAP SECT'!$G$6:$FJ$253,143,FALSE) -> 1% | X17: =VLOOKUP($C17,'RECAP SECT'!$G$6:$FJ$253,144,FALSE) -> 2
A18: 30 | B18: MARNE-ARDENNES | C18: 2 | D18: CHARLEVILLE MEZIERES | E18: =VLOOKUP($C18,'RECAP SECT'!$G$6:$FJ$253,3,FALSE) -> 54.5 | F18: =VLOOKUP($C18,'RECAP SECT'!$G$6:$FJ$253,126,FALSE) -> 45.36 | G18: =VLOOKUP($C18,'RECAP SECT'!$G$6:$FJ$253,127,FALSE) -> 0.45 | H18: =VLOOKUP($C18,'RECAP SECT'!$G$6:$FJ$253,128,FALSE) -> 5% | I18: =VLOOKUP($C18,'RECAP SECT'!$G$6:$FJ$253,129,FALSE) -> 2 | J18: =VLOOKUP($C18,'RECAP SECT'!$G$6:$FJ$253,130,FALSE) -> 19.66 | K18: =VLOOKUP($C18,'RECAP SECT'!$G$6:$FJ$253,131,FALSE) -> 0.98 | L18: =VLOOKUP($C18,'RECAP SECT'!$G$6:$FJ$253,132,FALSE) -> 10% | M18: =VLOOKUP($C18,'RECAP SECT'!$G$6:$FJ$253,133,FALSE) -> 4 | N18: =VLOOKUP($C18,'RECAP SECT'!$G$6:$FJ$253,134,FALSE) -> 16.46 | O18: =VLOOKUP($C18,'RECAP SECT'!$G$6:$FJ$253,135,FALSE) -> 0.25 | P18: =VLOOKUP($C18,'RECAP SECT'!$G$6:$FJ$253,136,FALSE) -> 63% | Q18: =VLOOKUP($C18,'RECAP SECT'!$G$6:$FJ$253,137,FALSE) -> 7 | R18: =VLOOKUP($C18,'RECAP SECT'!$G$6:$FJ$253,138,FALSE) -> -68.92 | S18: =VLOOKUP($C18,'RECAP SECT'!$G$6:$FJ$253,139,FALSE) -> -1.27 | T18: =VLOOKUP($C18,'RECAP SECT'!$G$6:$FJ$253,140,FALSE) -> 7% | U18: =VLOOKUP($C18,'RECAP SECT'!$G$6:$FJ$253,141,FALSE) -> 3 | V18: =VLOOKUP($C18,'RECAP SECT'!$G$6:$FJ$253,142,FALSE) -> 18% | W18: =VLOOKUP($C18,'RECAP SECT'!$G$6:$FJ$253,143,FALSE) -> 0% | X18: =VLOOKUP($C18,'RECAP SECT'!$G$6:$FJ$253,144,FALSE) -> 1
A19: 30 | B19: MARNE-ARDENNES | C19: 11 | D19: REIMS | E19: =VLOOKUP($C19,'RECAP SECT'!$G$6:$FJ$253,3,FALSE) -> 78.1 | F19: =VLOOKUP($C19,'RECAP SECT'!$G$6:$FJ$253,126,FALSE) -> 39.07 | G19: =VLOOKUP($C19,'RECAP SECT'!$G$6:$FJ$253,127,FALSE) -> 0.39 | H19: =VLOOKUP($C19,'RECAP SECT'!$G$6:$FJ$253,128,FALSE) -> 18% | I19: =VLOOKUP($C19,'RECAP SECT'!$G$6:$FJ$253,129,FALSE) -> 4 | J19: =VLOOKUP($C19,'RECAP SECT'!$G$6:$FJ$253,130,FALSE) -> 21.24 | K19: =VLOOKUP($C19,'RECAP SECT'!$G$6:$FJ$253,131,FALSE) -> 1.06 | L19: =VLOOKUP($C19,'RECAP SECT'!$G$6:$FJ$253,132,FALSE) -> 2% | M19: =VLOOKUP($C19,'RECAP SECT'!$G$6:$FJ$253,133,FALSE) -> 3 | N19: =VLOOKUP($C19,'RECAP SECT'!$G$6:$FJ$253,134,FALSE) -> 10.11 | O19: =VLOOKUP($C19,'RECAP SECT'!$G$6:$FJ$253,135,FALSE) -> 0.15 | P19: =VLOOKUP($C19,'RECAP SECT'!$G$6:$FJ$253,136,FALSE) -> 77% | Q19: =VLOOKUP($C19,'RECAP SECT'!$G$6:$FJ$253,137,FALSE) -> 13 | R19: =VLOOKUP($C19,'RECAP SECT'!$G$6:$FJ$253,138,FALSE) -> -167.34 | S19: =VLOOKUP($C19,'RECAP SECT'!$G$6:$FJ$253,139,FALSE) -> -2.14 | T19: =VLOOKUP($C19,'RECAP SECT'!$G$6:$FJ$253,140,FALSE) -> 81% | U19: =VLOOKUP($C19,'RECAP SECT'!$G$6:$FJ$253,141,FALSE) -> 18 | V19: =VLOOKUP($C19,'RECAP SECT'!$G$6:$FJ$253,142,FALSE) -> 39% | W19: =VLOOKUP($C19,'RECAP SECT'!$G$6:$FJ$253,143,FALSE) -> 21% | X19: =VLOOKUP($C19,'RECAP SECT'!$G$6:$FJ$253,144,FALSE) -> 9
A20: 110 | B20: MEURTHE ET MOSELLE MEUSE | C20: 26 | D20: NANCY | E20: =VLOOKUP($C20,'RECAP SECT'!$G$6:$FJ$253,3,FALSE) -> 63.6 | F20: =VLOOKUP($C20,'RECAP SECT'!$G$6:$FJ$253,126,FALSE) -> 47.55 | G20: =VLOOKUP($C20,'RECAP SECT'!$G$6:$FJ$253,127,FALSE) -> 0.48 | H20: =VLOOKUP($C20,'RECAP SECT'!$G$6:$FJ$253,128,FALSE) -> 0% | I20: =VLOOKUP($C20,'RECAP SECT'!$G$6:$FJ$253,129,FALSE) -> 1 | J20: =VLOOKUP($C20,'RECAP SECT'!$G$6:$FJ$253,130,FALSE) -> 19.26 | K20: =VLOOKUP($C20,'RECAP SECT'!$G$6:$FJ$253,131,FALSE) -> 0.96 | L20: =VLOOKUP($C20,'RECAP SECT'!$G$6:$FJ$253,132,FALSE) -> 12% | M20: =VLOOKUP($C20,'RECAP SECT'!$G$6:$FJ$253,133,FALSE) -> 6 | N20: =VLOOKUP($C20,'RECAP SECT'!$G$6:$FJ$253,134,FALSE) -> 20.30 | O20: =VLOOKUP($C20,'RECAP SECT'!$G$6:$FJ$253,135,FALSE) -> 0.30 | P20: =VLOOKUP($C20,'RECAP SECT'!$G$6:$FJ$253,136,FALSE) -> 55% | Q20: =VLOOKUP($C20,'RECAP SECT'!$G$6:$FJ$253,137,FALSE) -> 5 | R20: =VLOOKUP($C20,'RECAP SECT'!$G$6:$FJ$253,138,FALSE) -> -124.77 | S20: =VLOOKUP($C20,'RECAP SECT'!$G$6:$FJ$253,139,FALSE) -> -1.96 | T20: =VLOOKUP($C20,'RECAP SECT'!$G$6:$FJ$253,140,FALSE) -> 66% | U20: =VLOOKUP($C20,'RECAP SECT'!$G$6:$FJ$253,141,FALSE) -> 17 | V20: =VLOOKUP($C20,'RECAP SECT'!$G$6:$FJ$253,142,FALSE) -> 26% | W20: =VLOOKUP($C20,'RECAP SECT'!$G$6:$FJ$253,143,FALSE) -> 9% | X20: =VLOOKUP($C20,'RECAP SECT'!$G$6:$FJ$253,144,FALSE) -> 4
A21: 110 | B21: MEURTHE ET MOSELLE MEUSE | C21: 27 | D21: PONT A MOUSSON | E21: =VLOOKUP($C21,'RECAP SECT'!$G$6:$FJ$253,3,FALSE) -> 71.9 | F21: =VLOOKUP($C21,'RECAP SECT'!$G$6:$FJ$253,126,FALSE) -> 42.88 | G21: =VLOOKUP($C21,'RECAP SECT'!$G$6:$FJ$253,127,FALSE) -> 0.43 | H21: =VLOOKUP($C21,'RECAP SECT'!$G$6:$FJ$253,128,FALSE) -> 10% | I21: =VLOOKUP($C21,'RECAP SECT'!$G$6:$FJ$253,129,FALSE) -> 3 | J21: =VLOOKUP($C21,'RECAP SECT'!$G$6:$FJ$253,130,FALSE) -> 19.53 | K21: =VLOOKUP($C21,'RECAP SECT'!$G$6:$FJ$253,131,FALSE) -> 0.98 | L21: =VLOOKUP($C21,'RECAP SECT'!$G$6:$FJ$253,132,FALSE) -> 10% | M21: =VLOOKUP($C21,'RECAP SECT'!$G$6:$FJ$253,133,FALSE) -> 5 | N21: =VLOOKUP($C21,'RECAP SECT'!$G$6:$FJ$253,134,FALSE) -> 13.94 | O21: =VLOOKUP($C21,'RECAP SECT'!$G$6:$FJ$253,135,FALSE) -> 0.21 | P21: =VLOOKUP($C21,'RECAP SECT'!$G$6:$FJ$253,136,FALSE) -> 69% | Q21: =VLOOKUP($C21,'RECAP SECT'!$G$6:$FJ$253,137,FALSE) -> 9 | R21: =VLOOKUP($C21,'RECAP SECT'!$G$6:$FJ$253,138,FALSE) -> -130.55 | S21: =VLOOKUP($C21,'RECAP SECT'!$G$6:$FJ$253,139,FALSE) -> -1.81 | T21: =VLOOKUP($C21,'RECAP SECT'!$G$6:$FJ$253,140,FALSE) -> 53% | U21: =VLOOKUP($C21,'RECAP SECT'!$G$6:$FJ$253,141,FALSE) -> 13 | V21: =VLOOKUP($C21,'RECAP SECT'!$G$6:$FJ$253,142,FALSE) -> 30% | W21: =VLOOKUP($C21,'RECAP SECT'!$G$6:$FJ$253,143,FALSE) -> 13% | X21: =VLOOKUP($C21,'RECAP SECT'!$G$6:$FJ$253,144,FALSE) -> 5
A22: 110 | B22: MEURTHE ET MOSELLE MEUSE | C22: 31 | D22: VERDUN | E22: =VLOOKUP($C22,'RECAP SECT'!$G$6:$FJ$253,3,FALSE) -> 51.9 | F22: =VLOOKUP($C22,'RECAP SECT'!$G$6:$FJ$253,126,FALSE) -> 26.44 | G22: =VLOOKUP($C22,'RECAP SECT'!$G$6:$FJ$253,127,FALSE) -> 0.26 | H22: =VLOOKUP($C22,'RECAP SECT'!$G$6:$FJ$253,128,FALSE) -> 44% | I22: =VLOOKUP($C22,'RECAP SECT'!$G$6:$FJ$253,129,FALSE) -> 16 | J22: =VLOOKUP($C22,'RECAP SECT'!$G$6:$FJ$253,130,FALSE) -> 14.22 | K22: =VLOOKUP($C22,'RECAP SECT'!$G$6:$FJ$253,131,FALSE) -> 0.71 | L22: =VLOOKUP($C22,'RECAP SECT'!$G$6:$FJ$253,132,FALSE) -> 35% | M22: =VLOOKUP($C22,'RECAP SECT'!$G$6:$FJ$253,133,FALSE) -> 11 | N22: =VLOOKUP($C22,'RECAP SECT'!$G$6:$FJ$253,134,FALSE) -> 13.12 | O22: =VLOOKUP($C22,'RECAP SECT'!$G$6:$FJ$253,135,FALSE) -> 0.20 | P22: =VLOOKUP($C22,'RECAP SECT'!$G$6:$FJ$253,136,FALSE) -> 71% | Q22: =VLOOKUP($C22,'RECAP SECT'!$G$6:$FJ$253,137,FALSE) -> 10 | R22: =VLOOKUP($C22,'RECAP SECT'!$G$6:$FJ$253,138,FALSE) -> -84.70 | S22: =VLOOKUP($C22,'RECAP SECT'!$G$6:$FJ$253,139,FALSE) -> -1.63 | T22: =VLOOKUP($C22,'RECAP SECT'!$G$6:$FJ$253,140,FALSE) -> 38% | U22: =VLOOKUP($C22,'RECAP SECT'!$G$6:$FJ$253,141,FALSE) -> 7 | V22: =VLOOKUP($C22,'RECAP SECT'!$G$6:$FJ$253,142,FALSE) -> 46% | W22: =VLOOKUP($C22,'RECAP SECT'!$G$6:$FJ$253,143,FALSE) -> 29% | X22: =VLOOKUP($C22,'RECAP SECT'!$G$6:$FJ$253,144,FALSE) -> 14
A23: 160 | B23: MOSELLE | C23: 45 | D23: METZ | E23: =VLOOKUP($C23,'RECAP SECT'!$G$6:$FJ$253,3,FALSE) -> 85.7 | F23: =VLOOKUP($C23,'RECAP SECT'!$G$6:$FJ$253,126,FALSE) -> 38.38 | G23: =VLOOKUP($C23,'RECAP SECT'!$G$6:$FJ$253,127,FALSE) -> 0.38 | H23: =VLOOKUP($C23,'RECAP SECT'!$G$6:$FJ$253,128,FALSE) -> 19% | I23: =VLOOKUP($C23,'RECAP SECT'!$G$6:$FJ$253,129,FALSE) -> 5 | J23: =VLOOKUP($C23,'RECAP SECT'!$G$6:$FJ$253,130,FALSE) -> 14.81 | K23: =VLOOKUP($C23,'RECAP SECT'!$G$6:$FJ$253,131,FALSE) -> 0.74 | L23: =VLOOKUP($C23,'RECAP SECT'!$G$6:$FJ$253,132,FALSE) -> 32% | M23: =VLOOKUP($C23,'RECAP SECT'!$G$6:$FJ$253,133,FALSE) -> 8 | N23: =VLOOKUP($C23,'RECAP SECT'!$G$6:$FJ$253,134,FALSE) -> 4.50 | O23: =VLOOKUP($C23,'RECAP SECT'!$G$6:$FJ$253,135,FALSE) -> 0.07 | P23: =VLOOKUP($C23,'RECAP SECT'!$G$6:$FJ$253,136,FALSE) -> 90% | Q23: =VLOOKUP($C23,'RECAP SECT'!$G$6:$FJ$253,137,FALSE) -> 17 | R23: =VLOOKUP($C23,'RECAP SECT'!$G$6:$FJ$253,138,FALSE) -> -154.47 | S23: =VLOOKUP($C23,'RECAP SECT'!$G$6:$FJ$253,139,FALSE) -> -1.80 | T23: =VLOOKUP($C23,'RECAP SECT'!$G$6:$FJ$253,140,FALSE) -> 52% | U23: =VLOOKUP($C23,'RECAP SECT'!$G$6:$FJ$253,141,FALSE) -> 12 | V23: =VLOOKUP($C23,'RECAP SECT'!$G$6:$FJ$253,142,FALSE) -> 43% | W23: =VLOOKUP($C23,'RECAP SECT'!$G$6:$FJ$253,143,FALSE) -> 25% | X23: =VLOOKUP($C23,'RECAP SECT'!$G$6:$FJ$253,144,FALSE) -> 12
A24: 160 | B24: MOSELLE | C24: 42 | D24: MOSELLE EST | E24: =VLOOKUP($C24,'RECAP SECT'!$G$6:$FJ$253,3,FALSE) -> 70.1 | F24: =VLOOKUP($C24,'RECAP SECT'!$G$6:$FJ$253,126,FALSE) -> 31.65 | G24: =VLOOKUP($C24,'RECAP SECT'!$G$6:$FJ$253,127,FALSE) -> 0.32 | H24: =VLOOKUP($C24,'RECAP SECT'!$G$6:$FJ$253,128,FALSE) -> 33% | I24: =VLOOKUP($C24,'RECAP SECT'!$G$6:$FJ$253,129,FALSE) -> 11 | J24: =VLOOKUP($C24,'RECAP SECT'!$G$6:$FJ$253,130,FALSE) -> 11.56 | K24: =VLOOKUP($C24,'RECAP SECT'!$G$6:$FJ$253,131,FALSE) -> 0.58 | L24: =VLOOKUP($C24,'RECAP SECT'!$G$6:$FJ$253,132,FALSE) -> 47% | M24: =VLOOKUP($C24,'RECAP SECT'!$G$6:$FJ$253,133,FALSE) -> 17 | N24: =VLOOKUP($C24,'RECAP SECT'!$G$6:$FJ$253,134,FALSE) -> 3.14 | O24: =VLOOKUP($C24,'RECAP SECT'!$G$6:$FJ$253,135,FALSE) -> 0.05 | P24: =VLOOKUP($C24,'RECAP SECT'!$G$6:$FJ$253,136,FALSE) -> 93% | Q24: =VLOOKUP($C24,'RECAP SECT'!$G$6:$FJ$253,137,FALSE) -> 18 | R24: =VLOOKUP($C24,'RECAP SECT'!$G$6:$FJ$253,138,FALSE) -> -102.08 | S24: =VLOOKUP($C24,'RECAP SECT'!$G$6:$FJ$253,139,FALSE) -> -1.46 | T24: =VLOOKUP($C24,'RECAP SECT'!$G$6:$FJ$253,140,FALSE) -> 23% | U24: =VLOOKUP($C24,'RECAP SECT'!$G$6:$FJ$253,141,FALSE) -> 5 | V24: =VLOOKUP($C24,'RECAP SECT'!$G$6:$FJ$253,142,FALSE) -> 46% | W24: =VLOOKUP($C24,'RECAP SECT'!$G$6:$FJ$253,143,FALSE) -> 28% | X24: =VLOOKUP($C24,'RECAP SECT'!$G$6:$FJ$253,144,FALSE) -> 13
A25: 160 | B25: MOSELLE | C25: 44 | D25: MOSELLE NORD | E25: =VLOOKUP($C25,'RECAP SECT'!$G$6:$FJ$253,3,FALSE) -> 68.2 | F25: =VLOOKUP($C25,'RECAP SECT'!$G$6:$FJ$253,126,FALSE) -> 35.12 | G25: =VLOOKUP($C25,'RECAP SECT'!$G$6:$FJ$253,127,FALSE) -> 0.35 | H25: =VLOOKUP($C25,'RECAP SECT'!$G$6:$FJ$253,128,FALSE) -> 26% | I25: =VLOOKUP($C25,'RECAP SECT'!$G$6:$FJ$253,129,FALSE) -> 9 | J25: =VLOOKUP($C25,'RECAP SECT'!$G$6:$FJ$253,130,FALSE) -> 14.50 | K25: =VLOOKUP($C25,'RECAP SECT'!$G$6:$FJ$253,131,FALSE) -> 0.73 | L25: =VLOOKUP($C25,'RECAP SECT'!$G$6:$FJ$253,132,FALSE) -> 33% | M25: =VLOOKUP($C25,'RECAP SECT'!$G$6:$FJ$253,133,FALSE) -> 10 | N25: =VLOOKUP($C25,'RECAP SECT'!$G$6:$FJ$253,134,FALSE) -> 11.22 | O25: =VLOOKUP($C25,'RECAP SECT'!$G$6:$FJ$253,135,FALSE) -> 0.17 | P25: =VLOOKUP($C25,'RECAP SECT'!$G$6:$FJ$253,136,FALSE) -> 75% | Q25: =VLOOKUP($C25,'RECAP SECT'!$G$6:$FJ$253,137,FALSE) -> 12 | R25: =VLOOKUP($C25,'RECAP SECT'!$G$6:$FJ$253,138,FALSE) -> -97.17 | S25: =VLOOKUP($C25,'RECAP SECT'!$G$6:$FJ$253,139,FALSE) -> -1.42 | T25: =VLOOKUP($C25,'RECAP SECT'!$G$6:$FJ$253,140,FALSE) -> 20% | U25: =VLOOKUP($C25,'RECAP SECT'!$G$6:$FJ$253,141,FALSE) -> 4 | V25: =VLOOKUP($C25,'RECAP SECT'!$G$6:$FJ$253,142,FALSE) -> 36% | W25: =VLOOKUP($C25,'RECAP SECT'!$G$6:$FJ$253,143,FALSE) -> 18% | X25: =VLOOKUP($C25,'RECAP SECT'!$G$6:$FJ$253,144,FALSE) -> 7
A26: 80 | B26: VOSGES | C26: 57 | D26: EPINAL | E26: =VLOOKUP($C26,'RECAP SECT'!$G$6:$FJ$253,3,FALSE) -> 59.2 | F26: =VLOOKUP($C26,'RECAP SECT'!$G$6:$FJ$253,126,FALSE) -> 24.64 | G26: =VLOOKUP($C26,'RECAP SECT'!$G$6:$FJ$253,127,FALSE) -> 0.25 | H26: =VLOOKUP($C26,'RECAP SECT'!$G$6:$FJ$253,128,FALSE) -> 48% | I26: =VLOOKUP($C26,'RECAP SECT'!$G$6:$FJ$253,129,FALSE) -> 17 | J26: =VLOOKUP($C26,'RECAP SECT'!$G$6:$FJ$253,130,FALSE) -> 12.28 | K26: =VLOOKUP($C26,'RECAP SECT'!$G$6:$FJ$253,131,FALSE) -> 0.61 | L26: =VLOOKUP($C26,'RECAP SECT'!$G$6:$FJ$253,132,FALSE) -> 44% | M26: =VLOOKUP($C26,'RECAP SECT'!$G$6:$FJ$253,133,FALSE) -> 16 | N26: =VLOOKUP($C26,'RECAP SECT'!$G$6:$FJ$253,134,FALSE) -> 8.72 | O26: =VLOOKUP($C26,'RECAP SECT'!$G$6:$FJ$253,135,FALSE) -> 0.13 | P26: =VLOOKUP($C26,'RECAP SECT'!$G$6:$FJ$253,136,FALSE) -> 81% | Q26: =VLOOKUP($C26,'RECAP SECT'!$G$6:$FJ$253,137,FALSE) -> 16 | R26: =VLOOKUP($C26,'RECAP SECT'!$G$6:$FJ$253,138,FALSE) -> -101.65 | S26: =VLOOKUP($C26,'RECAP SECT'!$G$6:$FJ$253,139,FALSE) -> -1.72 | T26: =VLOOKUP($C26,'RECAP SECT'!$G$6:$FJ$253,140,FALSE) -> 45% | U26: =VLOOKUP($C26,'RECAP SECT'!$G$6:$FJ$253,141,FALSE) -> 11 | V26: =VLOOKUP($C26,'RECAP SECT'!$G$6:$FJ$253,142,FALSE) -> 53% | W26: =VLOOKUP($C26,'RECAP SECT'!$G$6:$FJ$253,143,FALSE) -> 35% | X26: =VLOOKUP($C26,'RECAP SECT'!$G$6:$FJ$253,144,FALSE) -> 17
A27: 80 | B27: VOSGES | C27: 55 | D27: SAINT DIE | E27: =VLOOKUP($C27,'RECAP SECT'!$G$6:$FJ$253,3,FALSE) -> 47.9 | F27: =VLOOKUP($C27,'RECAP SECT'!$G$6:$FJ$253,126,FALSE) -> 31.97 | G27: =VLOOKUP($C27,'RECAP SECT'!$G$6:$FJ$253,127,FALSE) -> 0.32 | H27: =VLOOKUP($C27,'RECAP SECT'!$G$6:$FJ$253,128,FALSE) -> 33% | I27: =VLOOKUP($C27,'RECAP SECT'!$G$6:$FJ$253,129,FALSE) -> 10 | J27: =VLOOKUP($C27,'RECAP SECT'!$G$6:$FJ$253,130,FALSE) -> 11.35 | K27: =VLOOKUP($C27,'RECAP SECT'!$G$6:$FJ$253,131,FALSE) -> 0.57 | L27: =VLOOKUP($C27,'RECAP SECT'!$G$6:$FJ$253,132,FALSE) -> 48% | M27: =VLOOKUP($C27,'RECAP SECT'!$G$6:$FJ$253,133,FALSE) -> 18 | N27: =VLOOKUP($C27,'RECAP SECT'!$G$6:$FJ$253,134,FALSE) -> 9.56 | O27: =VLOOKUP($C27,'RECAP SECT'!$G$6:$FJ$253,135,FALSE) -> 0.14 | P27: =VLOOKUP($C27,'RECAP SECT'!$G$6:$FJ$253,136,FALSE) -> 79% | Q27: =VLOOKUP($C27,'RECAP SECT'!$G$6:$FJ$253,137,FALSE) -> 14 | R27: =VLOOKUP($C27,'RECAP SECT'!$G$6:$FJ$253,138,FALSE) -> -80.30 | S27: =VLOOKUP($C27,'RECAP SECT'!$G$6:$FJ$253,139,FALSE) -> -1.68 | T27: =VLOOKUP($C27,'RECAP SECT'!$G$6:$FJ$253,140,FALSE) -> 41% | U27: =VLOOKUP($C27,'RECAP SECT'!$G$6:$FJ$253,141,FALSE) -> 9 | V27: =VLOOKUP($C27,'RECAP SECT'!$G$6:$FJ$253,142,FALSE) -> 47% | W27: =VLOOKUP($C27,'RECAP SECT'!$G$6:$FJ$253,143,FALSE) -> 29% | X27: =VLOOKUP($C27,'RECAP SECT'!$G$6:$FJ$253,144,FALSE) -> 15
A28: Total CEGEE Directions Régionales | E28: =SUM(E10:E27) -> 1131

Sheet SE_SATISFACTION
B1: Accueil | F1: BAROMETRE BDD - TERRITOIRES
F2: QUALITE / SATISFACTION
F3: =ACCUEIL!F7 -> 2020-06-28
F7: N P S | I7: Enquête Qualité Haute Définition | L7: Total Satisfaction Clients
F8: =DATEMAJ!C36 -> au 30/04 | G8: coef | H8: ='RECAP DIRCOM'!FC4 -> 8% | I8: =DATEMAJ!C37 -> au 30/04 | J8: coef | K8: ='RECAP DIRCOM'!FF4 -> 7% | M8: coef | N8: ='RECAP DIRCOM'!FI4 -> 15%
B9: Direction | C9: eds | D9: Territoire | E9: ="ETP perf "&DATEMAJ!$C$39 -> ETP perf au 31/05 | G9: % Ecart au 1er | H9: Rang | J9: % Ecart au 1er | K9: Rang | L9: Moyenne ecart au 1er | M9: % Ecart au 1er | N9: Rang CEGEE
A10: 50 | B10: AUBE HAUTE MARNE | C10: 21 | D10: CHAUMONT | E10: =VLOOKUP($C10,'RECAP SECT'!$G$6:$FJ$253,3,FALSE) -> 34.2 | F10: =VLOOKUP($C10,'RECAP SECT'!$G$6:$FJ$253,151,FALSE) -> -4 | G10: =VLOOKUP($C10,'RECAP SECT'!$G$6:$FJ$253,152,FALSE) -> 11% | H10: =VLOOKUP($C10,'RECAP SECT'!$G$6:$FJ$253,153,FALSE) -> 2 | I10: =VLOOKUP($C10,'RECAP SECT'!$G$6:$FJ$253,154,FALSE) -> 48% | J10: =VLOOKUP($C10,'RECAP SECT'!$G$6:$FJ$253,155,FALSE) -> 26% | K10: =VLOOKUP($C10,'RECAP SECT'!$G$6:$FJ$253,156,FALSE) -> 12 | L10: =VLOOKUP($C10,'RECAP SECT'!$G$6:$FJ$253,157,FALSE) -> 18% | M10: =VLOOKUP($C10,'RECAP SECT'!$G$6:$FJ$253,158,FALSE) -> 12% | N10: =VLOOKUP($C10,'RECAP SECT'!$G$6:$FJ$253,159,FALSE) -> 2
A11: 50 | B11: AUBE HAUTE MARNE | C11: 14 | D11: TROYES | E11: =VLOOKUP($C11,'RECAP SECT'!$G$6:$FJ$253,3,FALSE) -> 65.3 | F11: =VLOOKUP($C11,'RECAP SECT'!$G$6:$FJ$253,151,FALSE) -> -14 | G11: =VLOOKUP($C11,'RECAP SECT'!$G$6:$FJ$253,152,FALSE) -> 64% | H11: =VLOOKUP($C11,'RECAP SECT'!$G$6:$FJ$253,153,FALSE) -> 11 | I11: =VLOOKUP($C11,'RECAP SECT'!$G$6:$FJ$253,154,FALSE) -> 44% | J11: =VLOOKUP($C11,'RECAP SECT'!$G$6:$FJ$253,155,FALSE) -> 33% | K11: =VLOOKUP($C11,'RECAP SECT'!$G$6:$FJ$253,156,FALSE) -> 13 | L11: =VLOOKUP($C11,'RECAP SECT'!$G$6:$FJ$253,157,FALSE) -> 50% | M11: =VLOOKUP($C11,'RECAP SECT'!$G$6:$FJ$253,158,FALSE) -> 43% | N11: =VLOOKUP($C11,'RECAP SECT'!$G$6:$FJ$253,159,FALSE) -> 12
A12: 262 | B12: BAS-RHIN | C12: 5060 | D12: HAGUENAU | E12: =VLOOKUP($C12,'RECAP SECT'!$G$6:$FJ$253,3,FALSE) -> 74.3 | F12: =VLOOKUP($C12,'RECAP SECT'!$G$6:$FJ$253,151,FALSE) -> -8 | G12: =VLOOKUP($C12,'RECAP SECT'!$G$6:$FJ$253,152,FALSE) -> 32% | H12: =VLOOKUP($C12,'RECAP SECT'!$G$6:$FJ$253,153,FALSE) -> 6 | I12: =VLOOKUP($C12,'RECAP SECT'!$G$6:$FJ$253,154,FALSE) -> 49% | J12: =VLOOKUP($C12,'RECAP SECT'!$G$6:$FJ$253,155,FALSE) -> 24% | K12: =VLOOKUP($C12,'RECAP SECT'!$G$6:$FJ$253,156,FALSE) -> 8 | L12: =VLOOKUP($C12,'RECAP SECT'!$G$6:$FJ$253,157,FALSE) -> 28% | M12: =VLOOKUP($C12,'RECAP SECT'!$G$6:$FJ$253,158,FALSE) -> 22% | N12: =VLOOKUP($C12,'RECAP SECT'!$G$6:$FJ$253,159,FALSE) -> 7
A13: 262 | B13: BAS-RHIN | C13: 5101 | D13: SELESTAT | E13: =VLOOKUP($C13,'RECAP SECT'!$G$6:$FJ$253,3,FALSE) -> 62.1 | F13: =VLOOKUP($C13,'RECAP SECT'!$G$6:$FJ$253,151,FALSE) -> -25 | G13: =VLOOKUP($C13,'RECAP SECT'!$G$6:$FJ$253,152,FALSE) -> 123% | H13: =VLOOKUP($C13,'RECAP SECT'!$G$6:$FJ$253,153,FALSE) -> 16 | I13: =VLOOKUP($C13,'RECAP SECT'!$G$6:$FJ$253,154,FALSE) -> 39% | J13: =VLOOKUP($C13,'RECAP SECT'!$G$6:$FJ$253,155,FALSE) -> 39% | K13: =VLOOKUP($C13,'RECAP SECT'!$G$6:$FJ$253,156,FALSE) -> 15 | L13: =VLOOKUP($C13,'RECAP SECT'!$G$6:$FJ$253,157,FALSE) -> 84% | M13: =VLOOKUP($C13,'RECAP SECT'!$G$6:$FJ$253,158,FALSE) -> 78% | N13: =VLOOKUP($C13,'RECAP SECT'!$G$6:$FJ$253,159,FALSE) -> 16
A14: 262 | B14: BAS-RHIN | C14: 5006 | D14: STRASBOURG | E14: =VLOOKUP($C14,'RECAP SECT'!$G$6:$FJ$253,3,FALSE) -> 73.4 | F14: =VLOOKUP($C14,'RECAP SECT'!$G$6:$FJ$253,151,FALSE) -> -30 | G14: =VLOOKUP($C14,'RECAP SECT'!$G$6:$FJ$253,152,FALSE) -> 150% | H14: =VLOOKUP($C14,'RECAP SECT'!$G$6:$FJ$253,153,FALSE) -> 18 | I14: =VLOOKUP($C14,'RECAP SECT'!$G$6:$FJ$253,154,FALSE) -> 32% | J14: =VLOOKUP($C14,'RECAP SECT'!$G$6:$FJ$253,155,FALSE) -> 50% | K14: =VLOOKUP($C14,'RECAP SECT'!$G$6:$FJ$253,156,FALSE) -> 18 | L14: =VLOOKUP($C14,'RECAP SECT'!$G$6:$FJ$253,157,FALSE) -> 104% | M14: =VLOOKUP($C14,'RECAP SECT'!$G$6:$FJ$253,158,FALSE) -> 98% | N14: =VLOOKUP($C14,'RECAP SECT'!$G$6:$FJ$253,159,FALSE) -> 18
A15: 264 | B15: HAUT-RHIN | C15: 5130 | D15: COLMAR | E15: =VLOOKUP($C15,'RECAP SECT'!$G$6:$FJ$253,3,FALSE) -> 64.9 | F15: =VLOOKUP($C15,'RECAP SECT'!$G$6:$FJ$253,151,FALSE) -> -18 | G15: =VLOOKUP($C15,'RECAP SECT'!$G$6:$FJ$253,152,FALSE) -> 86% | H15: =VLOOKUP($C15,'RECAP SECT'!$G$6:$FJ$253,153,FALSE) -> 13 | I15: =VLOOKUP($C15,'RECAP SECT'!$G$6:$FJ$253,154,FALSE) -> 42% | J15: =VLOOKUP($C15,'RECAP SECT'!$G$6:$FJ$253,155,FALSE) -> 35% | K15: =VLOOKUP($C15,'RECAP SECT'!$G$6:$FJ$253,156,FALSE) -> 14 | L15: =VLOOKUP($C15,'RECAP SECT'!$G$6:$FJ$253,157,FALSE) -> 62% | M15: =VLOOKUP($C15,'RECAP SECT'!$G$6:$FJ$253,158,FALSE) -> 56% | N15: =VLOOKUP($C15,'RECAP SECT'!$G$6:$FJ$253,159,FALSE) -> 14
A16: 264 | B16: HAUT-RHIN | C16: 5169 | D16: MULHOUSE | E16: =VLOOKUP($C16,'RECAP SECT'!$G$6:$FJ$253,3,FALSE) -> 61.1 | F16: =VLOOKUP($C16,'RECAP SECT'!$G$6:$FJ$253,151,FALSE) -> -26 | G16: =VLOOKUP($C16,'RECAP SECT'!$G$6:$FJ$253,152,FALSE) -> 129% | H16: =VLOOKUP($C16,'RECAP SECT'!$G$6:$FJ$253,153,FALSE) -> 17 | I16: =VLOOKUP($C16,'RECAP SECT'!$G$6:$FJ$253,154,FALSE) -> 33% | J16: =VLOOKUP($C16,'RECAP SECT'!$G$6:$FJ$253,155,FALSE) -> 49% | K16: =VLOOKUP($C16,'RECAP SECT'!$G$6:$FJ$253,156,FALSE) -> 17 | L16: =VLOOKUP($C16,'RECAP SECT'!$G$6:$FJ$253,157,FALSE) -> 92% | M16: =VLOOKUP($C16,'RECAP SECT'!$G$6:$FJ$253,158,FALSE) -> 86% | N16: =VLOOKUP($C16,'RECAP SECT'!$G$6:$FJ$253,159,FALSE) -> 17
A17: 30 | B17: MARNE-ARDENNES | C17: 6 | D17: CHALONS EN CHAMPAGNE | E17: =VLOOKUP($C17,'RECAP SECT'!$G$6:$FJ$253,3,FALSE) -> 45.0 | F17: =VLOOKUP($C17,'RECAP SECT'!$G$6:$FJ$253,151,FALSE) -> -11 | G17: =VLOOKUP($C17,'RECAP SECT'!$G$6:$FJ$253,152,FALSE) -> 48% | H17: =VLOOKUP($C17,'RECAP SECT'!$G$6:$FJ$253,153,FALSE) -> 8 | I17: =VLOOKUP($C17,'RECAP SECT'!$G$6:$FJ$253,154,FALSE) -> 65% | J17: =VLOOKUP($C17,'RECAP SECT'!$G$6:$FJ$253,155,FALSE) -> 0% | K17: =VLOOKUP($C17,'RECAP SECT'!$G$6:$FJ$253,156,FALSE) -> 1 | L17: =VLOOKUP($C17,'RECAP SECT'!$G$6:$FJ$253,157,FALSE) -> 26% | M17: =VLOOKUP($C17,'RECAP SECT'!$G$6:$FJ$253,158,FALSE) -> 20% | N17: =VLOOKUP($C17,'RECAP SECT'!$G$6:$FJ$253,159,FALSE) -> 6
A18: 30 | B18: MARNE-ARDENNES | C18: 2 | D18: CHARLEVILLE MEZIERES | E18: =VLOOKUP($C18,'RECAP SECT'!$G$6:$FJ$253,3,FALSE) -> 54.5 | F18: =VLOOKUP($C18,'RECAP SECT'!$G$6:$FJ$253,151,FALSE) -> -12 | G18: =VLOOKUP($C18,'RECAP SECT'!$G$6:$FJ$253,152,FALSE) -> 54% | H18: =VLOOKUP($C18,'RECAP SECT'!$G$6:$FJ$253,153,FALSE) -> 9 | I18: =VLOOKUP($C18,'RECAP SECT'!$G$6:$FJ$253,154,FALSE) -> 59% | J18: =VLOOKUP($C18,'RECAP SECT'!$G$6:$FJ$253,155,FALSE) -> 9% | K18: =VLOOKUP($C18,'RECAP SECT'!$G$6:$FJ$253,156,FALSE) -> 2 | L18: =VLOOKUP($C18,'RECAP SECT'!$G$6:$FJ$253,157,FALSE) -> 33% | M18: =VLOOKUP($C18,'RECAP SECT'!$G$6:$FJ$253,158,FALSE) -> 27% | N18: =VLOOKUP($C18,'RECAP SECT'!$G$6:$FJ$253,159,FALSE) -> 8
A19: 30 | B19: MARNE-ARDENNES | C19: 11 | D19: REIMS | E19: =VLOOKUP($C19,'RECAP SECT'!$G$6:$FJ$253,3,FALSE) -> 78.1 | F19: =VLOOKUP($C19,'RECAP SECT'!$G$6:$FJ$253,151,FALSE) -> -6 | G19: =VLOOKUP($C19,'RECAP SECT'!$G$6:$FJ$253,152,FALSE) -> 21% | H19: =VLOOKUP($C19,'RECAP SECT'!$G$6:$FJ$253,153,FALSE) -> 4 | I19: =VLOOKUP($C19,'RECAP SECT'!$G$6:$FJ$253,154,FALSE) -> 54% | J19: =VLOOKUP($C19,'RECAP SECT'!$G$6:$FJ$253,155,FALSE) -> 16% | K19: =VLOOKUP($C19,'RECAP SECT'!$G$6:$FJ$253,156,FALSE) -> 5 | L19: =VLOOKUP($C19,'RECAP SECT'!$G$6:$FJ$253,157,FALSE) -> 19% | M19: =VLOOKUP($C19,'RECAP SECT'!$G$6:$FJ$253,158,FALSE) -> 13% | N19: =VLOOKUP($C19,'RECAP SECT'!$G$6:$FJ$253,159,FALSE) -> 3
A20: 110 | B20: MEURTHE ET MOSELLE MEUSE | C20: 26 | D20: NANCY | E20: =VLOOKUP($C20,'RECAP SECT'!$G$6:$FJ$253,3,FALSE) -> 63.6 | F20: =VLOOKUP($C20,'RECAP SECT'!$G$6:$FJ$253,151,FALSE) -> -5 | G20: =VLOOKUP($C20,'RECAP SECT'!$G$6:$FJ$253,152,FALSE) -> 16% | H20: =VLOOKUP($C20,'RECAP SECT'!$G$6:$FJ$253,153,FALSE) -> 3 | I20: =VLOOKUP($C20,'RECAP SECT'!$G$6:$FJ$253,154,FALSE) -> 49% | J20: =VLOOKUP($C20,'RECAP SECT'!$G$6:$FJ$253,155,FALSE) -> 25% | K20: =VLOOKUP($C20,'RECAP SECT'!$G$6:$FJ$253,156,FALSE) -> 10 | L20: =VLOOKUP($C20,'RECAP SECT'!$G$6:$FJ$253,157,FALSE) -> 20% | M20: =VLOOKUP($C20,'RECAP SECT'!$G$6:$FJ$253,158,FALSE) -> 14% | N20: =VLOOKUP($C20,'RECAP SECT'!$G$6:$FJ$253,159,FALSE) -> 4
A21: 110 | B21: MEURTHE ET MOSELLE MEUSE | C21: 27 | D21: PONT A MOUSSON | E21: =VLOOKUP($C21,'RECAP SECT'!$G$6:$FJ$253,3,FALSE) -> 71.9 | F21: =VLOOKUP($C21,'RECAP SECT'!$G$6:$FJ$253,151,FALSE) -> -19 | G21: =VLOOKUP($C21,'RECAP SECT'!$G$6:$FJ$253,152,FALSE) -> 91% | H21: =VLOOKUP($C21,'RECAP SECT'!$G$6:$FJ$253,153,FALSE) -> 14 | I21: =VLOOKUP($C21,'RECAP SECT'!$G$6:$FJ$253,154,FALSE) -> 49% | J21: =VLOOKUP($C21,'RECAP SECT'!$G$6:$FJ$253,155,FALSE) -> 25% | K21: =VLOOKUP($C21,'RECAP SECT'!$G$6:$FJ$253,156,FALSE) -> 9 | L21: =VLOOKUP($C21,'RECAP SECT'!$G$6:$FJ$253,157,FALSE) -> 60% | M21: =VLOOKUP($C21,'RECAP SECT'!$G$6:$FJ$253,158,FALSE) -> 54% | N21: =VLOOKUP($C21,'RECAP SECT'!$G$6:$FJ$253,159,FALSE) -> 13
A22: 110 | B22: MEURTHE ET MOSELLE MEUSE | C22: 31 | D22: VERDUN | E22: =VLOOKUP($C22,'RECAP SECT'!$G$6:$FJ$253,3,FALSE) -> 51.9 | F22: =VLOOKUP($C22,'RECAP SECT'!$G$6:$FJ$253,151,FALSE) -> -2 | G22: =VLOOKUP($C22,'RECAP SECT'!$G$6:$FJ$253,152,FALSE) -> 0% | H22: =VLOOKUP($C22,'RECAP SECT'!$G$6:$FJ$253,153,FALSE) -> 1 | I22: =VLOOKUP($C22,'RECAP SECT'!$G$6:$FJ$253,154,FALSE) -> 56% | J22: =VLOOKUP($C22,'RECAP SECT'!$G$6:$FJ$253,155,FALSE) -> 13% | K22: =VLOOKUP($C22,'RECAP SECT'!$G$6:$FJ$253,156,FALSE) -> 3 | L22: =VLOOKUP($C22,'RECAP SECT'!$G$6:$FJ$253,157,FALSE) -> 6% | M22: =VLOOKUP($C22,'RECAP SECT'!$G$6:$FJ$253,158,FALSE) -> 0% | N22: =VLOOKUP($C22,'RECAP SECT'!$G$6:$FJ$253,159,FALSE) -> 1
A23: 160 | B23: MOSELLE | C23: 45 | D23: METZ | E23: =VLOOKUP($C23,'RECAP SECT'!$G$6:$FJ$253,3,FALSE) -> 85.7 | F23: =VLOOKUP($C23,'RECAP SECT'!$G$6:$FJ$253,151,FALSE) -> -12 | G23: =VLOOKUP($C23,'RECAP SECT'!$G$6:$FJ$253,152,FALSE) -> 54% | H23: =VLOOKUP($C23,'RECAP SECT'!$G$6:$FJ$253,153,FALSE) -> 9 | I23: =VLOOKUP($C23,'RECAP SECT'!$G$6:$FJ$253,154,FALSE) -> 55% | J23: =VLOOKUP($C23,'RECAP SECT'!$G$6:$FJ$253,155,FALSE) -> 15% | K23: =VLOOKUP($C23,'RECAP SECT'!$G$6:$FJ$253,156,FALSE) -> 4 | L23: =VLOOKUP($C23,'RECAP SECT'!$G$6:$FJ$253,157,FALSE) -> 36% | M23: =VLOOKUP($C23,'RECAP SECT'!$G$6:$FJ$253,158,FALSE) -> 30% | N23: =VLOOKUP($C23,'RECAP SECT'!$G$6:$FJ$253,159,FALSE) -> 10
A24: 160 | B24: MOSELLE | C24: 42 | D24: MOSELLE EST | E24: =VLOOKUP($C24,'RECAP SECT'!$G$6:$FJ$253,3,FALSE) -> 70.1 | F24: =VLOOKUP($C24,'RECAP SECT'!$G$6:$FJ$253,151,FALSE) -> -10 | G24: =VLOOKUP($C24,'RECAP SECT'!$G$6:$FJ$253,152,FALSE) -> 43% | H24: =VLOOKUP($C24,'RECAP SECT'!$G$6:$FJ$253,153,FALSE) -> 7 | I24: =VLOOKUP($C24,'RECAP SECT'!$G$6:$FJ$253,154,FALSE) -> 48% | J24: =VLOOKUP($C24,'RECAP SECT'!$G$6:$FJ$253,155,FALSE) -> 26% | K24: =VLOOKUP($C24,'RECAP SECT'!$G$6:$FJ$253,156,FALSE) -> 11 | L24: =VLOOKUP($C24,'RECAP SECT'!$G$6:$FJ$253,157,FALSE) -> 35% | M24: =VLOOKUP($C24,'RECAP SECT'!$G$6:$FJ$253,158,FALSE) -> 29% | N24: =VLOOKUP($C24,'RECAP SECT'!$G$6:$FJ$253,159,FALSE) -> 9
A25: 160 | B25: MOSELLE | C25: 44 | D25: MOSELLE NORD | E25: =VLOOKUP($C25,'RECAP SECT'!$G$6:$FJ$253,3,FALSE) -> 68.2 | F25: =VLOOKUP($C25,'RECAP SECT'!$G$6:$FJ$253,151,FALSE) -> -22 | G25: =VLOOKUP($C25,'RECAP SECT'!$G$6:$FJ$253,152,FALSE) -> 107% | H25: =VLOOKUP($C25,'RECAP SECT'!$G$6:$FJ$253,153,FALSE) -> 15 | I25: =VLOOKUP($C25,'RECAP SECT'!$G$6:$FJ$253,154,FALSE) -> 38% | J25: =VLOOKUP($C25,'RECAP SECT'!$G$6:$FJ$253,155,FALSE) -> 42% | K25: =VLOOKUP($C25,'RECAP SECT'!$G$6:$FJ$253,156,FALSE) -> 16 | L25: =VLOOKUP($C25,'RECAP SECT'!$G$6:$FJ$253,157,FALSE) -> 77% | M25: =VLOOKUP($C25,'RECAP SECT'!$G$6:$FJ$253,158,FALSE) -> 71% | N25: =VLOOKUP($C25,'RECAP SECT'!$G$6:$FJ$253,159,FALSE) -> 15
A26: 80 | B26: VOSGES | C26: 57 | D26: EPINAL | E26: =VLOOKUP($C26,'RECAP SECT'!$G$6:$FJ$253,3,FALSE) -> 59.2 | F26: =VLOOKUP($C26,'RECAP SECT'!$G$6:$FJ$253,151,FALSE) -> -14 | G26: =VLOOKUP($C26,'RECAP SECT'!$G$6:$FJ$253,152,FALSE) -> 64% | H26: =VLOOKUP($C26,'RECAP SECT'!$G$6:$FJ$253,153,FALSE) -> 11 | I26: =VLOOKUP($C26,'RECAP SECT'!$G$6:$FJ$253,154,FALSE) -> 52% | J26: =VLOOKUP($C26,'RECAP SECT'!$G$6:$FJ$253,155,FALSE) -> 19% | K26: =VLOOKUP($C26,'RECAP SECT'!$G$6:$FJ$253,156,FALSE) -> 6 | L26: =VLOOKUP($C26,'RECAP SECT'!$G$6:$FJ$253,157,FALSE) -> 43% | M26: =VLOOKUP($C26,'RECAP SECT'!$G$6:$FJ$253,158,FALSE) -> 37% | N26: =VLOOKUP($C26,'RECAP SECT'!$G$6:$FJ$253,159,FALSE) -> 11
A27: 80 | B27: VOSGES | C27: 55 | D27: SAINT DIE | E27: =VLOOKUP($C27,'RECAP SECT'!$G$6:$FJ$253,3,FALSE) -> 47.9 | F27: =VLOOKUP($C27,'RECAP SECT'!$G$6:$FJ$253,151,FALSE) -> -6 | G27: =VLOOKUP($C27,'RECAP SECT'!$G$6:$FJ$253,152,FALSE) -> 21% | H27: =VLOOKUP($C27,'RECAP SECT'!$G$6:$FJ$253,153,FALSE) -> 4 | I27: =VLOOKUP($C27,'RECAP SECT'!$G$6:$FJ$253,154,FALSE) -> 51% | J27: =VLOOKUP($C27,'RECAP SECT'!$G$6:$FJ$253,155,FALSE) -> 21% | K27: =VLOOKUP($C27,'RECAP SECT'!$G$6:$FJ$253,156,FALSE) -> 7 | L27: =VLOOKUP($C27,'RECAP SECT'!$G$6:$FJ$253,157,FALSE) -> 21% | M27: =VLOOKUP($C27,'RECAP SECT'!$G$6:$FJ$253,158,FALSE) -> 15% | N27: =VLOOKUP($C27,'RECAP SECT'!$G$6:$FJ$253,159,FALSE) -> 5
A28: Total CEGEE Directions Régionales | E28: =SUM(E10:E27) -> 1131

Sheet AG_CLASS
B1: Accueil | H1: BAROMETRE BDD - AGENCES
H2: CLASSEMENTS
H3: =ACCUEIL!F7 -> 2020-06-28
H8: CLASSEMENT GENERAL | I8: CRITERE CLIENTS | J8: Evolution nette clients Bancarisés Principaux | K8: Evolution nette relations PREMIUM | L8: Evolution nette clients Jeunes équipés | M8: Evolution nette clients Pro actif équipés | N8: CRITERE BANCARISATION | O8: Ventes nettes FORFAITS | P8: Ventes nettes IZICARTES débit différé | Q8: Ventes nettes Cartes HDG débit différé | R8: Ventes nettes Forfaits Pro Cartes Pro | S8: CRITERE EPARGNE | T8: Excédent Epargne Liquide | U8: CA UC + arbitrage | V8: Excédent Assurance Vie | W8: CRITERE CREDITS | X8: Engagements crédits conso | Y8: ADE crédits conso | Z8: Engagements crédits immo | AA8: ADE crédits immo | AB8: SACCEF | AC8: Engagement Crédits MLT + Crédits Bail | AD8: CRITERE IARD PREVOYANCE | AE8: Ventes nettes IARD | AF8: Ventes nettes Prévoyance | AG8: CRITERE ACCELERATEURS PNB | AH8: Ventes brutes SED finalisées | AI8: Clients Equipés E documents | AJ8: Economie Opt'in | AK8: Remises Commerciales | AL8: CRITERE Qualité Satisfaction Clients | AM8: Objectifs NPS* | AN8: Enquête Qualité Haute Définition
B9: Direction | C9: eds | D9: Territoire | E9: eds | F9: Agence | G9: ="ETP perf "&DATEMAJ!$C$39 -> ETP perf au 31/05 | H9: Rang | I9: Rang | J9: Rang | K9: Rang | L9: Rang | M9: Rang | N9: Rang | O9: Rang | P9: Rang | Q9: Rang | R9: Rang | S9: Rang | T9: Rang | U9: Rang | V9: Rang | W9: Rang | X9: Rang | Y9: Rang | Z9: Rang | AA9: Rang | AB9: Rang | AC9: Rang | AD9: Rang | AE9: Rang | AF9: Rang | AG9: Rang | AH9: Rang | AI9: Rang | AJ9: Rang | AK9: Rang | AL9: Rang | AM9: Rang | AN9: Rang
A10: 110 | B10: MEURTHE ET MOSELLE MEUSE | C10: 27 | D10: PONT A MOUSSON | E10: 454651 | F10: TOUL REPUBLIQUE | G10: 10.7 | H10: 1 | I10: 7 | J10: 10 | K10: 96 | L10: 7 | M10: 134 | N10: 1 | O10: 1 | P10: 1 | Q10: 2 | R10: 26 | S10: 11 | T10: 29 | U10: 54 | V10: 17 | W10: 1 | X10: 1 | Y10: 2 | Z10: 1 | AA10: 1 | AB10: 1 | AC10: 44 | AD10: 1 | AE10: 1 | AF10: 3 | AG10: 1 | AH10: 3 | AI10: 2 | AJ10: 11 | AK10: 62 | AL10: 260 | AM10: 255 | AN10: 242
A11: 80 | B11: VOSGES | C11: 57 | D11: EPINAL | E11: 488288 | F11: EPINAL LEOPOLD BOURG | G11: 1.8 | H11: 2 | I11: 45 | J11: 85 | K11: 3 | L11: 293 | M11: 51 | N11: 5 | O11: 18 | P11: 29 | Q11: 20 | R11: 1 | S11: 3 | T11: 1 | U11: 97 | V11: 35 | W11: 8 | X11: 33 | Y11: 36 | Z11: 2 | AA11: 12 | AB11: 57 | AC11: 292 | AD11: 23 | AE11: 7 | AF11: 178 | AG11: 38 | AH11: 10 | AI11: 50 | AJ11: 206 | AK11: 262 | AL11: 3 | AM11: 3 | AN11: 25
A12: 80 | B12: VOSGES | C12: 55 | D12: SAINT DIE | E12: 488346 | F12: GRANGES AUMONTZEY | G12: 1.8 | H12: 3 | I12: 204 | J12: 184 | K12: 232 | L12: 101 | M12: 134 | N12: 7 | O12: 13 | P12: 5 | Q12: 6 | R12: 121 | S12: 88 | T12: 277 | U12: 116 | V12: 4 | W12: 61 | X12: 7 | Y12: 8 | Z12: 203 | AA12: 108 | AB12: 173 | AC12: 199 | AD12: 3 | AE12: 3 | AF12: 9 | AG12: 5 | AH12: 4 | AI12: 135 | AJ12: 160 | AK12: 12 | AL12: 6 | AM12: 9 | AN12: 37
A13: 110 | B13: MEURTHE ET MOSELLE MEUSE | C13: 26 | D13: NANCY | E13: 454481 | F13: NANCY PLACE DOMBASLE | G13: 10.0 | H13: 4 | I13: 4 | J13: 5 | K13: 166 | L13: 8 | M13: 46 | N13: 9 | O13: 3 | P13: 22 | Q13: 35 | R13: 23 | S13: 56 | T13: 38 | U13: 6 | V13: 268 | W13: 20 | X13: 256 | Y13: 239 | Z13: 9 | AA13: 13 | AB13: 3 | AC13: 31 | AD13: 12 | AE13: 11 | AF13: 36 | AG13: 3 | AH13: 2 | AI13: 19 | AJ13: 24 | AK13: 249 | AL13: 136 | AM13: 118 | AN13: 161
A14: 110 | B14: MEURTHE ET MOSELLE MEUSE | C14: 27 | D14: PONT A MOUSSON | E14: 554531 | F14: POMPEY | G14: 2.1 | H14: 5 | I14: 15 | J14: 33 | K14: 167 | L14: 6 | M14: 134 | N14: 8 | O14: 32 | P14: 9 | Q14: 10 | R14: 14 | S14: 259 | T14: 269 | U14: 226 | V14: 169 | W14: 6 | X14: 9 | Y14: 4 | Z14: 8 | AA14: 6 | AB14: 14 | AC14: 199 | AD14: 11 | AE14: 23 | AF14: 13 | AG14: 4 | AH14: 7 | AI14: 13 | AJ14: 42 | AK14: 24 | AL14: 181 | AM14: 203 | AN14: 130
A15: 30 | B15: MARNE-ARDENNES | C15: 6 | D15: CHALONS EN CHAMPAGNE | E15: 551103 | F15: FAGNIERES LECLERC | G15: 2.7 | H15: 6 | I15: 37 | J15: 1 | K15: 216 | L15: 147 | M15: 134 | N15: 52 | O15: 16 | P15: 211 | Q15: 182 | R15: 22 | S15: 13 | T15: 6 | U15: 162 | V15: 147 | W15: 11 | X15: 133 | Y15: 61 | Z15: 4 | AA15: 3 | AB15: 4 | AC15: 126 | AD15: 72 | AE15: 55 | AF15: 121 | AG15: 18 | AH15: 63 | AI15: 8 | AJ15: 51 | AK15: 26 | AL15: 36 | AM15: 50 | AN15: 47
A16: 30 | B16: MARNE-ARDENNES | C16: 11 | D16: REIMS | E16: 551310 | F16: REIMS CHATILLONS | G16: 3.6 | H16: 7 | I16: 32 | J16: 12 | K16: 12 | L16: 222 | M16: 282 | N16: 14 | O16: 20 | P16: 25 | Q16: 30 | R16: 29 | S16: 195 | T16: 182 | U16: 160 | V16: 156 | W16: 17 | X16: 42 | Y16: 23 | Z16: 28 | AA16: 14 | AB16: 21 | AC16: 64 | AD16: 48 | AE16: 17 | AF16: 142 | AG16: 2 | AH16: 1 | AI16: 12 | AJ16: 14 | AK16: 122 | AL16: 118 | AM16: 94 | AN16: 180
A17: 160 | B17: MOSELLE | C17: 45 | D17: METZ | E17: 557447 | F17: METZ SAINT MAXIMIN | G17: 3.0 | H17: 8 | I17: 2 | J17: 3 | K17: 73 | L17: 13 | M17: 40 | N17: 22 | O17: 4 | P17: 135 | Q17: 209 | R17: 24 | S17: 171 | T17: 170 | U17: 175 | V17: 132 | W17: 28 | X17: 128 | Y17: 140 | Z17: 20 | AA17: 7 | AB17: 11 | AC17: 287 | AD17: 41 | AE17: 38 | AF17: 76 | AG17: 11 | AH17: 12 | AI17: 52 | AJ17: 121 | AK17: 44 | AL17: 92 | AM17: 65 | AN17: 151
A18: 160 | B18: MOSELLE | C18: 44 | D18: MOSELLE NORD | E18: 557508 | F18: NILVANGE | G18: 2.5 | H18: 9 | I18: 150 | J18: 274 | K18: 256 | L18: 3 | M18: 134 | N18: 13 | O18: 8 | P18: 8 | Q18: 18 | R18: 180 | S18: 192 | T18: 232 | U18: 141 | V18: 92 | W18: 49 | X18: 38 | Y18: 10 | Z18: 39 | AA18: 209 | AB18: 38 | AC18: 199 | AD18: 2 | AE18: 2 | AF18: 4 | AG18: 40 | AH18: 43 | AI18: 177 | AJ18: 12 | AK18: 165 | AL18: 90 | AM18: 84 | AN18: 98
A19: 160 | B19: MOSELLE | C19: 44 | D19: MOSELLE NORD | E19: 557660 | F19: UCKANGE JEANNE D ARC | G19: 1.9 | H19: 10 | I19: 13 | J19: 262 | K19: 1 | L19: 229 | M19: 61 | N19: 4 | O19: 9 | P19: 11 | Q19: 21 | R19: 4 | S19: 20 | T19: 56 | U19: 34 | V19: 16 | W19: 10 | X19: 5 | Y19: 28 | Z19: 16 | AA19: 57 | AB19: 9 | AC19: 37 | AD19: 31 | AE19: 56 | AF19: 29 | AG19: 33 | AH19: 14 | AI19: 173 | AJ19: 235 | AK19: 97 | AL19: 210 | AM19: 195 | AN19: 200
A20: 30 | B20: MARNE-ARDENNES | C20: 11 | D20: REIMS | E20: 551340 | F20: BETHENY | G20: 3.0 | H20: 11 | I20: 8 | J20: 54 | K20: 5 | L20: 177 | M20: 96 | N20: 141 | O20: 51 | P20: 115 | Q20: 167 | R20: 244 | S20: 9 | T20: 28 | U20: 81 | V20: 11 | W20: 15 | X20: 46 | Y20: 102 | Z20: 11 | AA20: 11 | AB20: 8 | AC20: 155 | AD20: 24 | AE20: 22 | AF20: 48 | AG20: 30 | AH20: 25 | AI20: 42 | AJ20: 132 | AK20: 113 | AL20: 79 | AM20: 140 | AN20: 6
A21: 30 | B21: MARNE-ARDENNES | C21: 2 | D21: CHARLEVILLE MEZIERES | E21: 408814 | F21: VRIGNE AUX BOIS | G21: 0.9 | H21: 12 | I21: 159 | J21: 94 | K21: 290 | L21: 2 | M21: 134 | N21: 15 | O21: 143 | P21: 7 | Q21: 9 | R21: 56 | S21: 15 | T21: 14 | U21: 12 | V21: 181 | W21: 30 | X21: 11 | Y21: 27 | Z21: 72 | AA21: 80 | AB21: 102 | AC21: 106 | AD21: 6 | AE21: 4 | AF21: 20 | AG21: 28 | AH21: 54 | AI21: 22 | AJ21: 31 | AK21: 94 | AL21: 137 | AM21: 183 | AN21: 68
A22: 30 | B22: MARNE-ARDENNES | C22: 2 | D22: CHARLEVILLE MEZIERES | E22: 508833 | F22: VILLERS SEMEUSE CORA | G22: 2.9 | H22: 13 | I22: 78 | J22: 30 | K22: 186 | L22: 106 | M22: 92 | N22: 18 | O22: 17 | P22: 17 | Q22: 16 | R22: 113 | S22: 153 | T22: 129 | U22: 285 | V22: 118 | W22: 45 | X22: 125 | Y22: 105 | Z22: 23 | AA22: 34 | AB22: 30 | AC22: 199 | AD22: 8 | AE22: 10 | AF22: 8 | AG22: 10 | AH22: 6 | AI22: 43 | AJ22: 174 | AK22: 81 | AL22: 109 | AM22: 87 | AN22: 156
A23: 30 | B23: MARNE-ARDENNES | C23: 11 | D23: REIMS | E23: 551369 | F23: DAMERY | G23: 3.0 | H23: 14 | I23: 50 | J23: 11 | K23: 257 | L23: 41 | M23: 12 | N23: 17 | O23: 7 | P23: 126 | Q23: 111 | R23: 7 | S23: 60 | T23: 106 | U23: 209 | V23: 28 | W23: 2 | X23: 163 | Y23: 58 | Z23: 14 | AA23: 4 | AB23: 7 | AC23: 2 | AD23: 37 | AE23: 106 | AF23: 17 | AG23: 213 | AH23: 234 | AI23: 81 | AJ23: 111 | AK23: 235 | AL23: 41 | AM23: 30 | AN23: 106
A24: 110 | B24: MEURTHE ET MOSELLE MEUSE | C24: 26 | D24: NANCY | E24: 554266 | F24: DOMBASLE SUR MEURTHE | G24: 3.3 | H24: 15 | I24: 198 | J24: 130 | K24: 100 | L24: 286 | M24: 45 | N24: 6 | O24: 60 | P24: 10 | Q24: 7 | R24: 8 | S24: 105 | T24: 101 | U24: 38 | V24: 184 | W24: 13 | X24: 27 | Y24: 16 | Z24: 19 | AA24: 16 | AB24: 6 | AC24: 199 | AD24: 40 | AE24: 46 | AF24: 67 | AG24: 31 | AH24: 11 | AI24: 45 | AJ24: 79 | AK24: 266 | AL24: 53 | AM24: 53 | AN24: 74
A25: 30 | B25: MARNE-ARDENNES | C25: 2 | D25: CHARLEVILLE MEZIERES | E25: 408822 | F25: CHARLEVILLE MEZIERES | G25: 3.9 | H25: 16 | I25: 49 | J25: 6 | K25: 226 | L25: 15 | M25: 285 | N25: 38 | O25: 14 | P25: 42 | Q25: 83 | R25: 97 | S25: 68 | T25: 240 | U25: 95 | V25: 6 | W25: 18 | X25: 47 | Y25: 89 | Z25: 10 | AA25: 17 | AB25: 16 | AC25: 151 | AD25: 29 | AE25: 33 | AF25: 45 | AG25: 12 | AH25: 15 | AI25: 30 | AJ25: 77 | AK25: 60 | AL25: 82 | AM25: 105 | AN25: 46
A26: 160 | B26: MOSELLE | C26: 44 | D26: MOSELLE NORD | E26: 557633 | F26: THIONVILLE COTE DES ROSES | G26: 1.8 | H26: 17 | I26: 91 | J26: 56 | K26: 64 | L26: 211 | M26: 134 | N26: 43 | O26: 11 | P26: 39 | Q26: 72 | R26: 180 | S26: 6 | T26: 35 | U26: 75 | V26: 2 | W26: 7 | X26: 2 | Y26: 5 | Z26: 37 | AA26: 74 | AB26: 5 | AC26: 199 | AD26: 16 | AE26: 6 | AF26: 177 | AG26: 15 | AH26: 5 | AI26: 35 | AJ26: 285 | AK26: 115 | AL26: 187 | AM26: 248 | AN26: 44
A27: 30 | B27: MARNE-ARDENNES | C27: 11 | D27: REIMS | E27: 551314 | F27: FISMES | G27: 2.1 | H27: 18 | I27: 48 | J27: 9 | K27: 186 | L27: 163 | M27: 14 | N27: 58 | O27: 5 | P27: 194 | Q27: 78 | R27: 157 | S27: 271 | T27: 159 | U27: 291 | V27: 275 | W27: 16 | X27: 86 | Y27: 97 | Z27: 26 | AA27: 5 | AB27: 12 | AC27: 49 | AD27: 13 | AE27: 16 | AF27: 23 | AG27: 178 | AH27: 230 | AI27: 27 | AJ27: 281 | AK27: 130 | AL27: 17 | AM27: 36 | AN27: 23
A28: 30 | B28: MARNE-ARDENNES | C28: 11 | D28: REIMS | E28: 451370 | F28: EPERNAY VERRON | G28: 10.2 | H28: 19 | I28: 161 | J28: 95 | K28: 207 | L28: 103 | M28: 134 | N28: 26 | O28: 70 | P28: 32 | Q28: 70 | R28: 27 | S28: 136 | T28: 91 | U28: 21 | V28: 252 | W28: 52 | X28: 194 | Y28: 95 | Z28: 92 | AA28: 24 | AB28: 60 | AC28: 21 | AD28: 20 | AE28: 43 | AF28: 16 | AG28: 152 | AH28: 70 | AI28: 139 | AJ28: 243 | AK28: 237 | AL28: 18 | AM28: 19 | AN28: 78
A29: 30 | B29: MARNE-ARDENNES | C29: 6 | D29: CHALONS EN CHAMPAGNE | E29: 551354 | F29: VERTUS | G29: 2.9 | H29: 20 | I29: 14 | J29: 33 | K29: 156 | L29: 10 | M29: 93 | N29: 192 | O29: 101 | P29: 160 | Q29: 119 | R29: 260 | S29: 23 | T29: 25 | U29: 186 | V29: 53 | W29: 265 | X29: 155 | Y29: 162 | Z29: 179 | AA29: 218 | AB29: 236 | AC29: 293 | AD29: 70 | AE29: 129 | AF29: 53 | AG29: 59 | AH29: 35 | AI29: 181 | AJ29: 145 | AK29: 124 | AL29: 4 | AM29: 15 | AN29: 1
A30: 50 | B30: AUBE HAUTE MARNE | C30: 14 | D30: TROYES | E30: 410524 | F30: SAINT JULIEN LES VILLAS | G30: 5.3 | H30: 21 | I30: 95 | J30: 70 | K30: 110 | L30: 82 | M30: 266 | N30: 91 | O30: 120 | P30: 199 | Q30: 221 | R30: 16 | S30: 25 | T30: 12 | U30: 73 | V30: 235 | W30: 39 | X30: 239 | Y30: 222 | Z30: 34 | AA30: 66 | AB30: 32 | AC30: 11 | AD30: 104 | AE30: 114 | AF30: 95 | AG30: 151 | AH30: 163 | AI30: 169 | AJ30: 150 | AK30: 105 | AL30: 10 | AM30: 9 | AN30: 63
A31: 30 | B31: MARNE-ARDENNES | C31: 2 | D31: CHARLEVILLE MEZIERES | E31: 408862 | F31: REVIN | G31: 4.0 | H31: 22 | I31: 110 | J31: 206 | K31: 149 | L31: 57 | M31: 63 | N31: 37 | O31: 48 | P31: 49 | Q31: 71 | R31: 41 | S31: 272 | T31: 225 | U31: 286 | V31: 253 | W31: 146 | X31: 75 | Y31: 62 | Z31: 188 | AA31: 147 | AB31: 209 | AC31: 107 | AD31: 21 | AE31: 21 | AF31: 40 | AG31: 41 | AH31: 44 | AI31: 125 | AJ31: 163 | AK31: 14 | AL31: 35 | AM31: 65 | AN31: 12
A32: 30 | B32: MARNE-ARDENNES | C32: 2 | D32: CHARLEVILLE MEZIERES | E32: 508839 | F32: GIVET | G32: 2.5 | H32: 23 | I32: 16 | J32: 217 | K32: 144 | L32: 1 | M32: 21 | N32: 74 | O32: 161 | P32: 54 | Q32: 44 | R32: 122 | S32: 77 | T32: 156 | U32: 5 | V32: 179 | W32: 62 | X32: 58 | Y32: 117 | Z32: 65 | AA32: 56 | AB32: 65 | AC32: 127 | AD32: 15 | AE32: 18 | AF32: 30 | AG32: 46 | AH32: 38 | AI32: 41 | AJ32: 105 | AK32: 190 | AL32: 141 | AM32: 140 | AN32: 126
A33: 30 | B33: MARNE-ARDENNES | C33: 2 | D33: CHARLEVILLE MEZIERES | E33: 508820 | F33: VOUZIERS | G33: 2.9 | H33: 24 | I33: 182 | J33: 248 | K33: 69 | L33: 185 | M33: 134 | N33: 3 | O33: 45 | P33: 2 | Q33: 4 | R33: 139 | S33: 118 | T33: 252 | U33: 188 | V33: 10 | W33: 32 | X33: 10 | Y33: 3 | Z33: 79 | AA33: 107 | AB33: 112 | AC33: 182 | AD33: 4 | AE33: 5 | AF33: 10 | AG33: 26 | AH33: 16 | AI33: 193 | AJ33: 76 | AK33: 36 | AL33: 272 | AM33: 279 | AN33: 211
A34: 30 | B34: MARNE-ARDENNES | C34: 6 | D34: CHALONS EN CHAMPAGNE | E34: 451120 | F34: SARRY | G34: 2.5 | H34: 25 | I34: 11 | J34: 74 | K34: 74 | L34: 5 | M34: 134 | N34: 130 | O34: 28 | P34: 192 | Q34: 201 | R34: 197 | S34: 81 | T34: 190 | U34: 48 | V34: 34 | W34: 205 | X34: 82 | Y34: 63 | Z34: 240 | AA34: 207 | AB34: 235 | AC34: 199 | AD34: 88 | AE34: 49 | AF34: 167 | AG34: 9 | AH34: 190 | AI34: 1 | AJ34: 21 | AK34: 3 | AL34: 71 | AM34: 78 | AN34: 61
A35: 262 | B35: BAS-RHIN | C35: 5006 | D35: STRASBOURG | E35: 4019 | F35: STRASBOURG ANVERS | G35: 4.3 | H35: 26 | I35: 127 | J35: 105 | K35: 98 | L35: 220 | M35: 69 | N35: 11 | O35: 6 | P35: 50 | Q35: 12 | R35: 20 | S35: 46 | T35: 23 | U35: 10 | V35: 271 | W35: 12 | X35: 196 | Y35: 35 | Z35: 13 | AA35: 10 | AB35: 43 | AC35: 5 | AD35: 10 | AE35: 9 | AF35: 33 | AG35: 129 | AH35: 79 | AI35: 29 | AJ35: 90 | AK35: 277 | AL35: 215 | AM35: 195 | AN35: 216
A36: 50 | B36: AUBE HAUTE MARNE | C36: 14 | D36: TROYES | E36: 510570 | F36: NOGENT SUR SEINE | G36: 3.6 | H36: 27 | I36: 40 | J36: 69 | K36: 94 | L36: 73 | M36: 110 | N36: 196 | O36: 187 | P36: 166 | Q36: 149 | R36: 193 | S36: 167 | T36: 176 | U36: 49 | V36: 183 | W36: 64 | X36: 26 | Y36: 51 | Z36: 85 | AA36: 143 | AB36: 108 | AC36: 144 | AD36: 74 | AE36: 148 | AF36: 47 | AG36: 206 | AH36: 275 | AI36: 136 | AJ36: 54 | AK36: 168 | AL36: 2 | AM36: 1 | AN36: 72
A37: 262 | B37: BAS-RHIN | C37: 5006 | D37: STRASBOURG | E37: 4043 | F37: STRASBOURG HALLES | G37: 8.3 | H37: 28 | I37: 30 | J37: 26 | K37: 132 | L37: 25 | M37: 218 | N37: 10 | O37: 38 | P37: 23 | Q37: 36 | R37: 3 | S37: 35 | T37: 16 | U37: 93 | V37: 189 | W37: 33 | X37: 225 | Y37: 165 | Z37: 74 | AA37: 140 | AB37: 72 | AC37: 3 | AD37: 19 | AE37: 65 | AF37: 12 | AG37: 83 | AH37: 194 | AI37: 40 | AJ37: 30 | AK37: 142 | AL37: 228 | AM37: 226 | AN37: 212
A38: 262 | B38: BAS-RHIN | C38: 5006 | D38: STRASBOURG | E38: 4010 | F38: STRASBOURG MEINAU | G38: 2.2 | H38: 29 | I38: 266 | J38: 264 | K38: 224 | L38: 239 | M38: 134 | N38: 2 | O38: 111 | P38: 3 | Q38: 1 | R38: 36 | S38: 161 | T38: 264 | U38: 163 | V38: 29 | W38: 151 | X38: 28 | Y38: 49 | Z38: 200 | AA38: 215 | AB38: 285 | AC38: 199 | AD38: 7 | AE38: 34 | AF38: 2 | AG38: 6 | AH38: 17 | AI38: 6 | AJ38: 9 | AK38: 184 | AL38: 251 | AM38: 254 | AN38: 222
A39: 50 | B39: AUBE HAUTE MARNE | C39: 14 | D39: TROYES | E39: 410551 | F39: BRIENNE LE CHÂTEAU | G39: 2.7 | H39: 30 | I39: 105 | J39: 199 | K39: 120 | L39: 32 | M39: 134 | N39: 170 | O39: 135 | P39: 146 | Q39: 178 | R39: 180 | S39: 284 | T39: 293 | U39: 210 | V39: 148 | W39: 203 | X39: 35 | Y39: 43 | Z39: 279 | AA39: 254 | AB39: 275 | AC39: 199 | AD39: 14 | AE39: 74 | AF39: 7 | AG39: 133 | AH39: 225 | AI39: 233 | AJ39: 144 | AK39: 2 | AL39: 1 | AM39: 2 | AN39: 33
A40: 160 | B40: MOSELLE | C40: 45 | D40: METZ | E40: 557441 | F40: METZ PLAPPEVILLE | G40: 2.3 | H40: 31 | I40: 121 | J40: 220 | K40: 7 | L40: 280 | M40: 256 | N40: 147 | O40: 219 | P40: 123 | Q40: 121 | R40: 118 | S40: 14 | T40: 19 | U40: 63 | V40: 33 | W40: 3 | X40: 3 | Y40: 11 | Z40: 21 | AA40: 32 | AB40: 23 | AC40: 14 | AD40: 136 | AE40: 174 | AF40: 113 | AG40: 220 | AH40: 30 | AI40: 90 | AJ40: 289 | AK40: 291 | AL40: 33 | AM40: 43 | AN40: 60
A41: 30 | B41: MARNE-ARDENNES | C41: 2 | D41: CHARLEVILLE MEZIERES | E41: 408840 | F41: RETHEL | G41: 5.9 | H41: 32 | I41: 62 | J41: 67 | K41: 157 | L41: 64 | M41: 95 | N41: 66 | O41: 136 | P41: 34 | Q41: 57 | R41: 149 | S41: 265 | T41: 258 | U41: 165 | V41: 222 | W41: 112 | X41: 160 | Y41: 149 | Z41: 107 | AA41: 39 | AB41: 111 | AC41: 137 | AD41: 83 | AE41: 78 | AF41: 114 | AG41: 17 | AH41: 27 | AI41: 26 | AJ41: 89 | AK41: 13 | AL41: 47 | AM41: 24 | AN41: 138
A42: 262 | B42: BAS-RHIN | C42: 5006 | D42: STRASBOURG | E42: 4029 | F42: SCHILTIGHEIM KLEBER | G42: 1.7 | H42: 33 | I42: 18 | J42: 138 | K42: 186 | L42: 46 | M42: 1 | N42: 12 | O42: 173 | P42: 6 | Q42: 5 | R42: 166 | S42: 79 | T42: 108 | U42: 59 | V42: 108 | W42: 109 | X42: 45 | Y42: 211 | Z42: 119 | AA42: 182 | AB42: 125 | AC42: 138 | AD42: 59 | AE42: 243 | AF42: 11 | AG42: 29 | AH42: 26 | AI42: 18 | AJ42: 16 | AK42: 268 | AL42: 182 | AM42: 94 | AN42: 264
A43: 30 | B43: MARNE-ARDENNES | C43: 6 | D43: CHALONS EN CHAMPAGNE | E43: 451101 | F43: CHALONS VIVIERS | G43: 9.4 | H43: 34 | I43: 75 | J43: 104 | K43: 208 | L43: 24 | M43: 77 | N43: 93 | O43: 106 | P43: 69 | Q43: 94 | R43: 140 | S43: 142 | T43: 96 | U43: 11 | V43: 263 | W43: 44 | X43: 138 | Y43: 156 | Z43: 22 | AA43: 29 | AB43: 47 | AC43: 102 | AD43: 17 | AE43: 20 | AF43: 31 | AG43: 19 | AH43: 50 | AI43: 10 | AJ43: 18 | AK43: 139 | AL43: 163 | AM43: 236 | AN43: 20
A44: 30 | B44: MARNE-ARDENNES | C44: 2 | D44: CHARLEVILLE MEZIERES | E44: 508819 | F44: MOUZON | G44: 1.9 | H44: 35 | I44: 87 | J44: 166 | K44: 46 | L44: 129 | M44: 134 | N44: 172 | O44: 73 | P44: 270 | Q44: 257 | R44: 72 | S44: 188 | T44: 94 | U44: 289 | V44: 227 | W44: 5 | X44: 8 | Y44: 7 | Z44: 5 | AA44: 9 | AB44: 15 | AC44: 199 | AD44: 192 | AE44: 136 | AF44: 217 | AG44: 82 | AH44: 59 | AI44: 86 | AJ44: 114 | AK44: 203 | AL44: 27 | AM44: 24 | AN44: 77
A45: 50 | B45: AUBE HAUTE MARNE | C45: 21 | D45: CHAUMONT | E45: 410541 | F45: LANGRES | G45: 6.6 | H45: 36 | I45: 140 | J45: 75 | K45: 185 | L45: 173 | M45: 71 | N45: 109 | O45: 165 | P45: 94 | Q45: 204 | R45: 39 | S45: 94 | T45: 93 | U45: 143 | V45: 116 | W45: 75 | X45: 48 | Y45: 22 | Z45: 222 | AA45: 86 | AB45: 64 | AC45: 50 | AD45: 61 | AE45: 39 | AF45: 124 | AG45: 67 | AH45: 51 | AI45: 196 | AJ45: 116 | AK45: 77 | AL45: 29 | AM45: 24 | AN45: 86
A46: 30 | B46: MARNE-ARDENNES | C46: 6 | D46: CHALONS EN CHAMPAGNE | E46: 551330 | F46: MONTMIRAIL | G46: 3.3 | H46: 37 | I46: 60 | J46: 25 | K46: 186 | L46: 52 | M46: 134 | N46: 146 | O46: 89 | P46: 157 | Q46: 163 | R46: 162 | S46: 165 | T46: 67 | U46: 215 | V46: 250 | W46: 161 | X46: 266 | Y46: 248 | Z46: 88 | AA46: 44 | AB46: 74 | AC46: 195 | AD46: 103 | AE46: 176 | AF46: 69 | AG46: 36 | AH46: 61 | AI46: 77 | AJ46: 92 | AK46: 6 | AL46: 14 | AM46: 24 | AN46: 40
A47: 80 | B47: VOSGES | C47: 55 | D47: SAINT DIE | E47: 488616 | F47: SENONES | G47: 1.8 | H47: 38 | I47: 9 | J47: 16 | K47: 43 | L47: 22 | M47: 134 | N47: 56 | O47: 105 | P47: 144 | Q47: 199 | R47: 10 | S47: 202 | T47: 224 | U47: 24 | V47: 202 | W47: 107 | X47: 19 | Y47: 9 | Z47: 214 | AA47: 189 | AB47: 200 | AC47: 199 | AD47: 43 | AE47: 28 | AF47: 101 | AG47: 73 | AH47: 100 | AI47: 115 | AJ47: 49 | AK47: 102 | AL47: 115 | AM47: 94 | AN47: 170
A48: 160 | B48: MOSELLE | C48: 42 | D48: MOSELLE EST | E48: 457163 | F48: BEHREN LES FORBACH | G48: 2.3 | H48: 39 | I48: 224 | J48: 154 | K48: 262 | L48: 142 | M48: 75 | N48: 55 | O48: 62 | P48: 79 | Q48: 84 | R48: 66 | S48: 249 | T48: 237 | U48: 281 | V48: 196 | W48: 41 | X48: 14 | Y48: 39 | Z48: 67 | AA48: 126 | AB48: 137 | AC48: 132 | AD48: 47 | AE48: 35 | AF48: 102 | AG48: 76 | AH48: 64 | AI48: 112 | AJ48: 179 | AK48: 103 | AL48: 19 | AM48: 5 | AN48: 156
A49: 264 | B49: HAUT-RHIN | C49: 5130 | D49: COLMAR | E49: 4132 | F49: COLMAR MARAICHERS | G49: 2.5 | H49: 40 | I49: 108 | J49: 86 | K49: 217 | L49: 55 | M49: 81 | N49: 113 | O49: 78 | P49: 55 | Q49: 73 | R49: 255 | S49: 22 | T49: 26 | U49: 41 | V49: 100 | W49: 43 | X49: 23 | Y49: 20 | Z49: 115 | AA49: 264 | AB49: 184 | AC49: 15 | AD49: 219 | AE49: 236 | AF49: 164 | AG49: 48 | AH49: 19 | AI49: 150 | AJ49: 187 | AK49: 157 | AL49: 49 | AM49: 19 | AN49: 178
A50: 262 | B50: BAS-RHIN | C50: 5101 | D50: SELESTAT | E50: 4113 | F50: BARR | G50: 3.0 | H50: 41 | I50: 191 | J50: 98 | K50: 176 | L50: 170 | M50: 245 | N50: 64 | O50: 30 | P50: 101 | Q50: 103 | R50: 125 | S50: 115 | T50: 201 | U50: 112 | V50: 31 | W50: 55 | X50: 248 | Y50: 257 | Z50: 32 | AA50: 38 | AB50: 54 | AC50: 27 | AD50: 194 | AE50: 178 | AF50: 195 | AG50: 110 | AH50: 112 | AI50: 128 | AJ50: 108 | AK50: 164 | AL50: 8 | AM50: 11 | AN50: 38
A51: 110 | B51: MEURTHE ET MOSELLE MEUSE | C51: 27 | D51: PONT A MOUSSON | E51: 554416 | F51: LUDRES | G51: 3.9 | H51: 42 | I51: 65 | J51: 123 | K51: 36 | L51: 157 | M51: 134 | N51: 119 | O51: 41 | P51: 171 | Q51: 195 | R51: 136 | S51: 5 | T51: 10 | U51: 17 | V51: 22 | W51: 124 | X51: 243 | Y51: 218 | Z51: 151 | AA51: 84 | AB51: 20 | AC51: 54 | AD51: 174 | AE51: 79 | AF51: 246 | AG51: 107 | AH51: 34 | AI51: 61 | AJ51: 158 | AK51: 280 | AL51: 46 | AM51: 84 | AN51: 4
A52: 110 | B52: MEURTHE ET MOSELLE MEUSE | C52: 26 | D52: NANCY | E52: 554636 | F52: TOMBLAINE | G52: 2.9 | H52: 43 | I52: 125 | J52: 101 | K52: 125 | L52: 133 | M52: 134 | N52: 105 | O52: 66 | P52: 137 | Q52: 198 | R52: 77 | S52: 52 | T52: 103 | U52: 78 | V52: 40 | W52: 126 | X52: 97 | Y52: 112 | Z52: 163 | AA52: 70 | AB52: 114 | AC52: 199 | AD52: 57 | AE52: 50 | AF52: 104 | AG52: 77 | AH52: 117 | AI52: 66 | AJ52: 80 | AK52: 110 | AL52: 54 | AM52: 73 | AN52: 31
A53: 30 | B53: MARNE-ARDENNES | C53: 11 | D53: REIMS | E53: 551349 | F53: REIMS SAINT REMI | G53: 2.7 | H53: 44 | I53: 51 | J53: 284 | K53: 27 | L53: 43 | M53: 26 | N53: 173 | O53: 166 | P53: 46 | Q53: 58 | R53: 287 | S53: 38 | T53: 4 | U53: 265 | V53: 282 | W53: 100 | X53: 231 | Y53: 252 | Z53: 48 | AA53: 18 | AB53: 98 | AC53: 199 | AD53: 212 | AE53: 266 | AF53: 109 | AG53: 16 | AH53: 9 | AI53: 4 | AJ53: 167 | AK53: 278 | AL53: 69 | AM53: 73 | AN53: 65
A54: 262 | B54: BAS-RHIN | C54: 5006 | D54: STRASBOURG | E54: 4054 | F54: STRASBOURG MONTAGNE VERTE | G54: 2.7 | H54: 45 | I54: 6 | J54: 28 | K54: 8 | L54: 152 | M54: 83 | N54: 163 | O54: 212 | P54: 145 | Q54: 109 | R54: 148 | S54: 156 | T54: 228 | U54: 154 | V54: 48 | W54: 132 | X54: 118 | Y54: 150 | Z54: 129 | AA54: 242 | AB54: 86 | AC54: 59 | AD54: 5 | AE54: 44 | AF54: 1 | AG54: 163 | AH54: 277 | AI54: 20 | AJ54: 58 | AK54: 212 | AL54: 209 | AM54: 236 | AN54: 122
A55: 30 | B55: MARNE-ARDENNES | C55: 11 | D55: REIMS | E55: 551309 | F55: REIMS EUROPE | G55: 2.9 | H55: 46 | I55: 90 | J55: 13 | K55: 186 | L55: 200 | M55: 38 | N55: 98 | O55: 42 | P55: 108 | Q55: 133 | R55: 180 | S55: 42 | T55: 31 | U55: 268 | V55: 97 | W55: 74 | X55: 39 | Y55: 100 | Z55: 86 | AA55: 139 | AB55: 104 | AC55: 112 | AD55: 138 | AE55: 99 | AF55: 169 | AG55: 146 | AH55: 223 | AI55: 14 | AJ55: 52 | AK55: 265 | AL55: 32 | AM55: 19 | AN55: 121
A56: 30 | B56: MARNE-ARDENNES | C56: 6 | D56: CHALONS EN CHAMPAGNE | E56: 551110 | F56: CHALONS ROOSEVELT | G56: 5.3 | H56: 47 | I56: 116 | J56: 129 | K56: 186 | L56: 37 | M56: 134 | N56: 137 | O56: 124 | P56: 102 | Q56: 171 | R56: 154 | S56: 12 | T56: 5 | U56: 87 | V56: 185 | W56: 179 | X56: 222 | Y56: 202 | Z56: 139 | AA56: 81 | AB56: 107 | AC56: 199 | AD56: 123 | AE56: 80 | AF56: 172 | AG56: 144 | AH56: 193 | AI56: 121 | AJ56: 133 | AK56: 99 | AL56: 16 | AM56: 43 | AN56: 9
A57: 160 | B57: MOSELLE | C57: 42 | D57: MOSELLE EST | E57: 557305 | F57: FAULQUEMONT | G57: 2.9 | H57: 48 | I57: 209 | J57: 81 | K57: 186 | L57: 208 | M57: 246 | N57: 49 | O57: 34 | P57: 40 | Q57: 101 | R57: 116 | S57: 98 | T57: 160 | U57: 159 | V57: 32 | W57: 36 | X57: 64 | Y57: 158 | Z57: 25 | AA57: 31 | AB57: 31 | AC57: 199 | AD57: 33 | AE57: 25 | AF57: 63 | AG57: 25 | AH57: 13 | AI57: 164 | AJ57: 198 | AK57: 38 | AL57: 168 | AM57: 232 | AN57: 55
A58: 50 | B58: AUBE HAUTE MARNE | C58: 21 | D58: CHAUMONT | E58: 410560 | F58: BOURBONNE LES BAINS | G58: 1.8 | H58: 49 | I58: 107 | J58: 45 | K58: 230 | L58: 93 | M58: 57 | N58: 106 | O58: 139 | P58: 64 | Q58: 93 | R58: 163 | S58: 150 | T58: 150 | U58: 266 | V58: 89 | W58: 215 | X58: 36 | Y58: 25 | Z58: 285 | AA58: 282 | AB58: 282 | AC58: 199 | AD58: 106 | AE58: 118 | AF58: 97 | AG58: 53 | AH58: 29 | AI58: 248 | AJ58: 151 | AK58: 42 | AL58: 26 | AM58: 23 | AN58: 82
A59: 30 | B59: MARNE-ARDENNES | C59: 6 | D59: CHALONS EN CHAMPAGNE | E59: 451115 | F59: MOURMELON suippes | G59: 3.0 | H59: 50 | I59: 43 | J59: 97 | K59: 213 | L59: 4 | M59: 243 | N59: 110 | O59: 82 | P59: 112 | Q59: 141 | R59: 114 | S59: 263 | T59: 217 | U59: 240 | V59: 243 | W59: 110 | X59: 67 | Y59: 29 | Z59: 133 | AA59: 125 | AB59: 154 | AC59: 149 | AD59: 9 | AE59: 8 | AF59: 39 | AG59: 14 | AH59: 21 | AI59: 49 | AJ59: 22 | AK59: 59 | AL59: 218 | AM59: 273 | AN59: 54
A60: 160 | B60: MOSELLE | C60: 45 | D60: METZ | E60: 557444 | F60: METZ SAINT JULIEN | G60: 6.0 | H60: 51 | I60: 102 | J60: 96 | K60: 63 | L60: 141 | M60: 242 | N60: 63 | O60: 63 | P60: 75 | Q60: 65 | R60: 143 | S60: 45 | T60: 148 | U60: 82 | V60: 12 | W60: 89 | X60: 151 | Y60: 188 | Z60: 36 | AA60: 88 | AB60: 93 | AC60: 171 | AD60: 76 | AE60: 37 | AF60: 161 | AG60: 172 | AH60: 99 | AI60: 228 | AJ60: 217 | AK60: 182 | AL60: 66 | AM60: 50 | AN60: 115
A61: 262 | B61: BAS-RHIN | C61: 5006 | D61: STRASBOURG | E61: 4033 | F61: LA WANTZENAU | G61: 1.2 | H61: 52 | I61: 273 | J61: 237 | K61: 95 | L61: 135 | M61: 293 | N61: 75 | O61: 164 | P61: 105 | Q61: 50 | R61: 70 | S61: 1 | T61: 3 | U61: 1 | V61: 280 | W61: 99 | X61: 69 | Y61: 55 | Z61: 95 | AA61: 285 | AB61: 66 | AC61: 83 | AD61: 217 | AE61: 83 | AF61: 283 | AG61: 217 | AH61: 136 | AI61: 109 | AJ61: 57 | AK61: 286 | AL61: 25 | AM61: 43 | AN61: 26
A62: 160 | B62: MOSELLE | C62: 42 | D62: MOSELLE EST | E62: 457165 | F62: BITCHE | G62: 3.3 | H62: 53 | I62: 176 | J62: 39 | K62: 186 | L62: 216 | M62: 134 | N62: 21 | O62: 19 | P62: 70 | Q62: 29 | R62: 51 | S62: 140 | T62: 204 | U62: 117 | V62: 60 | W62: 136 | X62: 180 | Y62: 118 | Z62: 193 | AA62: 268 | AB62: 166 | AC62: 16 | AD62: 99 | AE62: 188 | AF62: 56 | AG62: 72 | AH62: 47 | AI62: 157 | AJ62: 244 | AK62: 63 | AL62: 64 | AM62: 87 | AN62: 29
A63: 110 | B63: MEURTHE ET MOSELLE MEUSE | C63: 26 | D63: NANCY | E63: 454671 | F63: VANDOEUVRE LES NANCY | G63: 3.9 | H63: 54 | I63: 59 | J63: 112 | K63: 72 | L63: 51 | M63: 228 | N63: 135 | O63: 104 | P63: 82 | Q63: 173 | R63: 195 | S63: 24 | T63: 79 | U63: 98 | V63: 9 | W63: 144 | X63: 149 | Y63: 155 | Z63: 125 | AA63: 100 | AB63: 129 | AC63: 199 | AD63: 238 | AE63: 182 | AF63: 250 | AG63: 113 | AH63: 177 | AI63: 46 | AJ63: 34 | AK63: 234 | AL63: 11 | AM63: 4 | AN63: 134
A64: 80 | B64: VOSGES | C64: 55 | D64: SAINT DIE | E64: 488326 | F64: GERARDMER | G64: 5.0 | H64: 55 | I64: 163 | J64: 41 | K64: 145 | L64: 231 | M64: 225 | N64: 83 | O64: 79 | P64: 77 | Q64: 87 | R64: 117 | S64: 26 | T64: 36 | U64: 50 | V64: 78 | W64: 147 | X64: 156 | Y64: 80 | Z64: 132 | AA64: 138 | AB64: 152 | AC64: 94 | AD64: 101 | AE64: 57 | AF64: 170 | AG64: 191 | AH64: 73 | AI64: 251 | AJ64: 186 | AK64: 245 | AL64: 24 | AM64: 43 | AN64: 24
A65: 50 | B65: AUBE HAUTE MARNE | C65: 14 | D65: TROYES | E65: 510511 | F65: TROYES BROSSOLETTE | G65: 3.2 | H65: 56 | I65: 72 | J65: 79 | K65: 177 | L65: 54 | M65: 100 | N65: 80 | O65: 44 | P65: 19 | Q65: 40 | R65: 282 | S65: 123 | T65: 184 | U65: 122 | V65: 49 | W65: 69 | X65: 56 | Y65: 130 | Z65: 55 | AA65: 99 | AB65: 67 | AC65: 199 | AD65: 108 | AE65: 272 | AF65: 15 | AG65: 64 | AH65: 81 | AI65: 198 | AJ65: 28 | AK65: 76 | AL65: 93 | AM65: 118 | AN65: 52
A66: 50 | B66: AUBE HAUTE MARNE | C66: 21 | D66: CHAUMONT | E66: 510590 | F66: CHAUMONT REPUBLIQUE | G66: 2.4 | H66: 57 | I66: 3 | J66: 7 | K66: 21 | L66: 35 | M66: 134 | N66: 214 | O66: 57 | P66: 290 | Q66: 291 | R66: 76 | S66: 197 | T66: 211 | U66: 131 | V66: 141 | W66: 37 | X66: 16 | Y66: 12 | Z66: 58 | AA66: 144 | AB66: 73 | AC66: 163 | AD66: 222 | AE66: 281 | AF66: 75 | AG66: 162 | AH66: 260 | AI66: 51 | AJ66: 88 | AK66: 132 | AL66: 57 | AM66: 33 | AN66: 147
A67: 30 | B67: MARNE-ARDENNES | C67: 2 | D67: CHARLEVILLE MEZIERES | E67: 508802 | F67: CHARLEVILLE NEVERS | G67: 3.8 | H67: 58 | I67: 17 | J67: 14 | K67: 109 | L67: 34 | M67: 115 | N67: 102 | O67: 65 | P67: 131 | Q67: 162 | R67: 91 | S67: 208 | T67: 151 | U67: 245 | V67: 194 | W67: 106 | X67: 84 | Y67: 144 | Z67: 111 | AA67: 116 | AB67: 110 | AC67: 104 | AD67: 30 | AE67: 62 | AF67: 27 | AG67: 98 | AH67: 97 | AI67: 142 | AJ67: 152 | AK67: 123 | AL67: 140 | AM67: 168 | AN67: 95
A68: 30 | B68: MARNE-ARDENNES | C68: 11 | D68: REIMS | E68: 451336 | F68: TINQUEUX | G68: 4.7 | H68: 59 | I68: 200 | J68: 155 | K68: 251 | L68: 158 | M68: 19 | N68: 191 | O68: 201 | P68: 235 | Q68: 219 | R68: 58 | S68: 4 | T68: 2 | U68: 140 | V68: 59 | W68: 19 | X68: 172 | Y68: 127 | Z68: 45 | AA68: 20 | AB68: 42 | AC68: 6 | AD68: 77 | AE68: 115 | AF68: 68 | AG68: 70 | AH68: 48 | AI68: 62 | AJ68: 192 | AK68: 188 | AL68: 120 | AM68: 118 | AN68: 124
A69: 80 | B69: VOSGES | C69: 55 | D69: SAINT DIE | E69: 488556 | F69: RAON L ETAPE | G69: 3.4 | H69: 60 | I69: 133 | J69: 164 | K69: 38 | L69: 202 | M69: 235 | N69: 27 | O69: 134 | P69: 91 | Q69: 49 | R69: 11 | S69: 199 | T69: 263 | U69: 181 | V69: 50 | W69: 66 | X69: 15 | Y69: 18 | Z69: 178 | AA69: 169 | AB69: 174 | AC69: 79 | AD69: 147 | AE69: 183 | AF69: 115 | AG69: 257 | AH69: 246 | AI69: 208 | AJ69: 271 | AK69: 144 | AL69: 21 | AM69: 53 | AN69: 5
A70: 160 | B70: MOSELLE | C70: 44 | D70: MOSELLE NORD | E70: 457449 | F70: METZERVISSE | G70: 2.2 | H70: 61 | I70: 145 | J70: 143 | K70: 32 | L70: 236 | M70: 257 | N70: 164 | O70: 94 | P70: 63 | Q70: 97 | R70: 278 | S70: 125 | T70: 206 | U70: 91 | V70: 44 | W70: 256 | X70: 112 | Y70: 119 | Z70: 281 | AA70: 277 | AB70: 276 | AC70: 190 | AD70: 46 | AE70: 19 | AF70: 128 | AG70: 56 | AH70: 125 | AI70: 33 | AJ70: 82 | AK70: 58 | AL70: 23 | AM70: 5 | AN70: 162
A71: 160 | B71: MOSELLE | C71: 45 | D71: METZ | E71: 557434 | F71: MARLY | G71: 3.6 | H71: 62 | I71: 54 | J71: 108 | K71: 78 | L71: 97 | M71: 55 | N71: 54 | O71: 21 | P71: 88 | Q71: 56 | R71: 173 | S71: 133 | T71: 62 | U71: 260 | V71: 211 | W71: 150 | X71: 188 | Y71: 151 | Z71: 93 | AA71: 192 | AB71: 58 | AC71: 199 | AD71: 216 | AE71: 166 | AF71: 234 | AG71: 20 | AH71: 8 | AI71: 134 | AJ71: 64 | AK71: 111 | AL71: 98 | AM71: 159 | AN71: 13
A72: 50 | B72: AUBE HAUTE MARNE | C72: 21 | D72: CHAUMONT | E72: 551157 | F72: SAINT DIZIER EUROPE | G72: 2.4 | H72: 63 | I72: 184 | J72: 286 | K72: 142 | L72: 28 | M72: 134 | N72: 70 | O72: 131 | P72: 58 | Q72: 27 | R72: 169 | S72: 21 | T72: 53 | U72: 185 | V72: 8 | W72: 76 | X72: 21 | Y72: 21 | Z72: 134 | AA72: 203 | AB72: 92 | AC72: 199 | AD72: 93 | AE72: 250 | AF72: 22 | AG72: 137 | AH72: 149 | AI72: 133 | AJ72: 211 | AK72: 98 | AL72: 68 | AM72: 43 | AN72: 142
A73: 30 | B73: MARNE-ARDENNES | C73: 2 | D73: CHARLEVILLE MEZIERES | E73: 408801 | F73: CHARLEVILLE JEAN JAURES | G73: 8.5 | H73: 64 | I73: 130 | J73: 106 | K73: 162 | L73: 188 | M73: 20 | N73: 46 | O73: 36 | P73: 119 | Q73: 144 | R73: 25 | S73: 75 | T73: 70 | U73: 43 | V73: 182 | W73: 21 | X73: 148 | Y73: 88 | Z73: 6 | AA73: 15 | AB73: 13 | AC73: 109 | AD73: 196 | AE73: 146 | AF73: 211 | AG73: 58 | AH73: 86 | AI73: 55 | AJ73: 113 | AK73: 65 | AL73: 112 | AM73: 132 | AN73: 89
A74: 160 | B74: MOSELLE | C74: 45 | D74: METZ | E74: 457443 | F74: METZ REPUBLIQUE | G74: 4.1 | H74: 65 | I74: 68 | J74: 180 | K74: 31 | L74: 144 | M74: 119 | N74: 184 | O74: 224 | P74: 110 | Q74: 86 | R74: 240 | S74: 121 | T74: 135 | U74: 37 | V74: 152 | W74: 83 | X74: 236 | Y74: 178 | Z74: 70 | AA74: 202 | AB74: 95 | AC74: 13 | AD74: 168 | AE74: 211 | AF74: 111 | AG74: 245 | AH74: 122 | AI74: 205 | AJ74: 259 | AK74: 263 | AL74: 9 | AM74: 19 | AN74: 16
A75: 110 | B75: MEURTHE ET MOSELLE MEUSE | C75: 31 | D75: VERDUN | E75: 554700 | F75: VILLERUPT | G75: 2.5 | H75: 66 | I75: 44 | J75: 236 | K75: 16 | L75: 69 | M75: 134 | N75: 57 | O75: 146 | P75: 37 | Q75: 28 | R75: 124 | S75: 146 | T75: 246 | U75: 52 | V75: 63 | W75: 149 | X75: 87 | Y75: 160 | Z75: 148 | AA75: 132 | AB75: 165 | AC75: 199 | AD75: 173 | AE75: 119 | AF75: 202 | AG75: 149 | AH75: 249 | AI75: 74 | AJ75: 36 | AK75: 153 | AL75: 48 | AM75: 71 | AN75: 27
A76: 30 | B76: MARNE-ARDENNES | C76: 11 | D76: REIMS | E76: 551307 | F76: REIMS SAINTE ANNE | G76: 3.3 | H76: 67 | I76: 92 | J76: 66 | K76: 180 | L76: 20 | M76: 284 | N76: 51 | O76: 37 | P76: 96 | Q76: 137 | R76: 33 | S76: 290 | T76: 287 | U76: 197 | V76: 256 | W76: 78 | X76: 130 | Y76: 242 | Z76: 56 | AA76: 45 | AB76: 50 | AC76: 148 | AD76: 27 | AE76: 24 | AF76: 52 | AG76: 75 | AH76: 102 | AI76: 37 | AJ76: 97 | AK76: 167 | AL76: 129 | AM76: 78 | AN76: 217
A77: 264 | B77: HAUT-RHIN | C77: 5130 | D77: COLMAR | E77: 4162 | F77: ENSISHEIM | G77: 4.6 | H77: 68 | I77: 10 | J77: 50 | K77: 19 | L77: 95 | M77: 8 | N77: 78 | O77: 61 | P77: 56 | Q77: 113 | R77: 144 | S77: 112 | T77: 97 | U77: 198 | V77: 115 | W77: 162 | X77: 205 | Y77: 182 | Z77: 94 | AA77: 164 | AB77: 88 | AC77: 175 | AD77: 45 | AE77: 107 | AF77: 32 | AG77: 63 | AH77: 74 | AI77: 32 | AJ77: 69 | AK77: 198 | AL77: 191 | AM77: 226 | AN77: 108
A78: 160 | B78: MOSELLE | C78: 44 | D78: MOSELLE NORD | E78: 557113 | F78: AUDUN LE TICHE | G78: 2.2 | H78: 69 | I78: 136 | J78: 228 | K78: 22 | L78: 228 | M78: 134 | N78: 30 | O78: 10 | P78: 60 | Q78: 13 | R78: 231 | S78: 253 | T78: 291 | U78: 147 | V78: 80 | W78: 25 | X78: 34 | Y78: 6 | Z78: 38 | AA78: 36 | AB78: 19 | AC78: 199 | AD78: 50 | AE78: 152 | AF78: 24 | AG78: 32 | AH78: 80 | AI78: 5 | AJ78: 45 | AK78: 229 | AL78: 192 | AM78: 226 | AN78: 111
A79: 110 | B79: MEURTHE ET MOSELLE MEUSE | C79: 27 | D79: PONT A MOUSSON | E79: 454696 | F79: VILLERS GENERAL LECLERC | G79: 4.5 | H79: 70 | I79: 1 | J79: 2 | K79: 34 | L79: 53 | M79: 7 | N79: 117 | O79: 142 | P79: 190 | Q79: 165 | R79: 35 | S79: 32 | T79: 22 | U79: 119 | V79: 129 | W79: 26 | X79: 79 | Y79: 26 | Z79: 43 | AA79: 62 | AB79: 51 | AC79: 23 | AD79: 22 | AE79: 128 | AF79: 6 | AG79: 123 | AH79: 24 | AI79: 152 | AJ79: 267 | AK79: 275 | AL79: 275 | AM79: 281 | AN79: 221
A80: 110 | B80: MEURTHE ET MOSELLE MEUSE | C80: 31 | D80: VERDUN | E80: 555679 | F80: VERDUN MAZEL | G80: 3.8 | H80: 71 | I80: 219 | J80: 44 | K80: 274 | L80: 159 | M80: 134 | N80: 223 | O80: 138 | P80: 189 | Q80: 192 | R80: 256 | S80: 138 | T80: 245 | U80: 56 | V80: 45 | W80: 155 | X80: 65 | Y80: 57 | Z80: 186 | AA80: 234 | AB80: 132 | AC80: 199 | AD80: 69 | AE80: 214 | AF80: 18 | AG80: 99 | AH80: 67 | AI80: 282 | AJ80: 98 | AK80: 82 | AL80: 7 | AM80: 11 | AN80: 30
A81: 50 | B81: AUBE HAUTE MARNE | C81: 21 | D81: CHAUMONT | E81: 410582 | F81: NOGENT EN BASSIGNY | G81: 2.1 | H81: 72 | I81: 83 | J81: 163 | K81: 58 | L81: 18 | M81: 290 | N81: 84 | O81: 86 | P81: 74 | Q81: 128 | R81: 74 | S81: 226 | T81: 214 | U81: 273 | V81: 151 | W81: 208 | X81: 113 | Y81: 134 | Z81: 152 | AA81: 246 | AB81: 266 | AC81: 167 | AD81: 44 | AE81: 31 | AF81: 100 | AG81: 85 | AH81: 109 | AI81: 141 | AJ81: 244 | AK81: 23 | AL81: 75 | AM81: 108 | AN81: 19
A82: 264 | B82: HAUT-RHIN | C82: 5169 | D82: MULHOUSE | E82: 4180 | F82: RIEDISHEIM | G82: 3.4 | H82: 73 | I82: 52 | J82: 126 | K82: 30 | L82: 116 | M82: 134 | N82: 122 | O82: 71 | P82: 174 | Q82: 107 | R82: 151 | S82: 97 | T82: 90 | U82: 66 | V82: 178 | W82: 90 | X82: 177 | Y82: 210 | Z82: 54 | AA82: 83 | AB82: 85 | AC82: 62 | AD82: 129 | AE82: 71 | AF82: 201 | AG82: 130 | AH82: 132 | AI82: 151 | AJ82: 44 | AK82: 230 | AL82: 73 | AM82: 36 | AN82: 188
A83: 80 | B83: VOSGES | C83: 55 | D83: SAINT DIE | E83: 588551 | F83: RAMBERVILLERS | G83: 3.5 | H83: 74 | I83: 22 | J83: 27 | K83: 75 | L83: 90 | M83: 50 | N83: 86 | O83: 69 | P83: 197 | Q83: 81 | R83: 57 | S83: 221 | T83: 266 | U83: 199 | V83: 73 | W83: 95 | X83: 106 | Y83: 60 | Z83: 100 | AA83: 69 | AB83: 134 | AC83: 98 | AD83: 124 | AE83: 165 | AF83: 96 | AG83: 230 | AH83: 180 | AI83: 217 | AJ83: 189 | AK83: 205 | AL83: 70 | AM83: 87 | AN83: 42
A84: 160 | B84: MOSELLE | C84: 42 | D84: MOSELLE EST | E84: 557458 | F84: MORHANGE | G84: 2.5 | H84: 75 | I84: 235 | J84: 42 | K84: 279 | L84: 121 | M84: 252 | N84: 39 | O84: 55 | P84: 12 | Q84: 33 | R84: 226 | S84: 186 | T84: 283 | U84: 227 | V84: 21 | W84: 120 | X84: 136 | Y84: 147 | Z84: 102 | AA84: 64 | AB84: 135 | AC84: 199 | AD84: 60 | AE84: 41 | AF84: 122 | AG84: 55 | AH84: 18 | AI84: 281 | AJ84: 266 | AK84: 39 | AL84: 86 | AM84: 108 | AN84: 39
A85: 262 | B85: BAS-RHIN | C85: 5101 | D85: SELESTAT | E85: 4126 | F85: MUTZIG | G85: 2.8 | H85: 76 | I85: 157 | J85: 144 | K85: 186 | L85: 72 | M85: 134 | N85: 33 | O85: 15 | P85: 57 | Q85: 60 | R85: 80 | S85: 8 | T85: 8 | U85: 84 | V85: 79 | W85: 31 | X85: 53 | Y85: 33 | Z85: 46 | AA85: 136 | AB85: 22 | AC85: 30 | AD85: 160 | AE85: 104 | AF85: 198 | AG85: 35 | AH85: 23 | AI85: 56 | AJ85: 85 | AK85: 189 | AL85: 212 | AM85: 208 | AN85: 195
A86: 30 | B86: MARNE-ARDENNES | C86: 11 | D86: REIMS | E86: 551305 | F86: REIMS HIPPODROME | G86: 3.6 | H86: 77 | I86: 25 | J86: 8 | K86: 14 | L86: 235 | M86: 233 | N86: 246 | O86: 206 | P86: 266 | Q86: 242 | R86: 167 | S86: 70 | T86: 45 | U86: 284 | V86: 139 | W86: 70 | X86: 219 | Y86: 113 | Z86: 49 | AA86: 19 | AB86: 25 | AC86: 156 | AD86: 156 | AE86: 127 | AF86: 180 | AG86: 258 | AH86: 164 | AI86: 54 | AJ86: 270 | AK86: 287 | AL86: 30 | AM86: 15 | AN86: 120
A87: 30 | B87: MARNE-ARDENNES | C87: 2 | D87: CHARLEVILLE MEZIERES | E87: 408806 | F87: SEDAN LA HALLE | G87: 8.5 | H87: 78 | I87: 126 | J87: 120 | K87: 168 | L87: 108 | M87: 88 | N87: 127 | O87: 159 | P87: 143 | Q87: 168 | R87: 65 | S87: 34 | T87: 136 | U87: 44 | V87: 7 | W87: 197 | X87: 199 | Y87: 203 | Z87: 175 | AA87: 123 | AB87: 156 | AC87: 105 | AD87: 35 | AE87: 94 | AF87: 19 | AG87: 78 | AH87: 124 | AI87: 92 | AJ87: 62 | AK87: 85 | AL87: 117 | AM87: 132 | AN87: 102
A88: 110 | B88: MEURTHE ET MOSELLE MEUSE | C88: 26 | D88: NANCY | E88: 554471 | F88: NANCY JEAN JAURES | G88: 2.0 | H88: 79 | I88: 149 | J88: 43 | K88: 268 | L88: 40 | M88: 134 | N88: 100 | O88: 122 | P88: 28 | Q88: 77 | R88: 250 | S88: 139 | T88: 105 | U88: 166 | V88: 175 | W88: 63 | X88: 139 | Y88: 163 | Z88: 52 | AA88: 50 | AB88: 24 | AC88: 108 | AD88: 166 | AE88: 85 | AF88: 226 | AG88: 90 | AH88: 121 | AI88: 222 | AJ88: 55 | AK88: 72 | AL88: 60 | AM88: 118 | AN88: 2
A89: 110 | B89: MEURTHE ET MOSELLE MEUSE | C89: 27 | D89: PONT A MOUSSON | E89: 554496 | F89: NANCY TROIS MAISONS | G89: 2.8 | H89: 80 | I89: 123 | J89: 90 | K89: 175 | L89: 84 | M89: 134 | N89: 142 | O89: 117 | P89: 184 | Q89: 66 | R89: 215 | S89: 126 | T89: 107 | U89: 142 | V89: 146 | W89: 159 | X89: 49 | Y89: 255 | Z89: 171 | AA89: 181 | AB89: 190 | AC89: 199 | AD89: 87 | AE89: 63 | AF89: 136 | AG89: 164 | AH89: 119 | AI89: 146 | AJ89: 287 | AK89: 134 | AL89: 37 | AM89: 33 | AN89: 93
A90: 160 | B90: MOSELLE | C90: 42 | D90: MOSELLE EST | E90: 557503 | F90: NEUNKIRCH | G90: 2.9 | H90: 81 | I90: 115 | J90: 127 | K90: 92 | L90: 104 | M90: 247 | N90: 87 | O90: 75 | P90: 73 | Q90: 112 | R90: 107 | S90: 157 | T90: 118 | U90: 236 | V90: 154 | W90: 67 | X90: 22 | Y90: 103 | Z90: 81 | AA90: 76 | AB90: 206 | AC90: 170 | AD90: 170 | AE90: 143 | AF90: 181 | AG90: 232 | AH90: 237 | AI90: 291 | AJ90: 161 | AK90: 35 | AL90: 39 | AM90: 53 | AN90: 34
A91: 30 | B91: MARNE-ARDENNES | C91: 11 | D91: REIMS | E91: 451361 | F91: PIERRY LECLERC | G91: 1.8 | H91: 82 | I91: 79 | J91: 191 | K91: 163 | L91: 14 | M91: 134 | N91: 29 | O91: 39 | P91: 18 | Q91: 46 | R91: 102 | S91: 169 | T91: 141 | U91: 200 | V91: 153 | W91: 93 | X91: 114 | Y91: 123 | Z91: 99 | AA91: 42 | AB91: 79 | AC91: 176 | AD91: 91 | AE91: 48 | AF91: 176 | AG91: 89 | AH91: 120 | AI91: 70 | AJ91: 256 | AK91: 61 | AL91: 148 | AM91: 190 | AN91: 78
A92: 30 | B92: MARNE-ARDENNES | C92: 2 | D92: CHARLEVILLE MEZIERES | E92: 508815 | F92: CARIGNAN | G92: 2.9 | H92: 83 | I92: 61 | J92: 201 | K92: 153 | L92: 9 | M92: 134 | N92: 95 | O92: 126 | P92: 61 | Q92: 126 | R92: 100 | S92: 90 | T92: 88 | U92: 177 | V92: 114 | W92: 178 | X92: 105 | Y92: 79 | Z92: 187 | AA92: 183 | AB92: 246 | AC92: 66 | AD92: 145 | AE92: 234 | AF92: 73 | AG92: 24 | AH92: 46 | AI92: 21 | AJ92: 68 | AK92: 28 | AL92: 139 | AM92: 159 | AN92: 103
A93: 262 | B93: BAS-RHIN | C93: 5006 | D93: STRASBOURG | E93: 4037 | F93: MUNDOLSHEIM | G93: 4.3 | H93: 84 | I93: 42 | J93: 118 | K93: 134 | L93: 31 | M93: 36 | N93: 42 | O93: 102 | P93: 16 | Q93: 34 | R93: 119 | S93: 58 | T93: 72 | U93: 31 | V93: 143 | W93: 166 | X93: 77 | Y93: 38 | Z93: 228 | AA93: 195 | AB93: 136 | AC93: 159 | AD93: 203 | AE93: 225 | AF93: 150 | AG93: 84 | AH93: 95 | AI93: 94 | AJ93: 87 | AK93: 136 | AL93: 110 | AM93: 94 | AN93: 143
A94: 262 | B94: BAS-RHIN | C94: 5006 | D94: STRASBOURG | E94: 4047 | F94: STRASBOURG CRONENBOURG | G94: 5.8 | H94: 85 | I94: 74 | J94: 47 | K94: 127 | L94: 115 | M94: 125 | N94: 19 | O94: 46 | P94: 13 | Q94: 22 | R94: 89 | S94: 210 | T94: 174 | U94: 222 | V94: 171 | W94: 170 | X94: 277 | Y94: 264 | Z94: 84 | AA94: 82 | AB94: 33 | AC94: 193 | AD94: 257 | AE94: 201 | AF94: 269 | AG94: 22 | AH94: 22 | AI94: 23 | AJ94: 23 | AK94: 196 | AL94: 119 | AM94: 179 | AN94: 53
A95: 30 | B95: MARNE-ARDENNES | C95: 11 | D95: REIMS | E95: 551306 | F95: REIMS SAINT MARCEAUX | G95: 4.9 | H95: 86 | I95: 19 | J95: 24 | K95: 83 | L95: 62 | M95: 80 | N95: 44 | O95: 26 | P95: 14 | Q95: 166 | R95: 138 | S95: 108 | T95: 69 | U95: 88 | V95: 215 | W95: 54 | X95: 103 | Y95: 193 | Z95: 44 | AA95: 21 | AB95: 83 | AC95: 101 | AD95: 109 | AE95: 145 | AF95: 84 | AG95: 167 | AH95: 148 | AI95: 145 | AJ95: 236 | AK95: 141 | AL95: 185 | AM95: 240 | AN95: 71
A96: 80 | B96: VOSGES | C96: 57 | D96: EPINAL | E96: 488561 | F96: REMIREMONT | G96: 6.4 | H96: 87 | I96: 20 | J96: 146 | K96: 28 | L96: 61 | M96: 22 | N96: 112 | O96: 127 | P96: 140 | Q96: 164 | R96: 49 | S96: 53 | T96: 77 | U96: 60 | V96: 85 | W96: 214 | X96: 261 | Y96: 272 | Z96: 192 | AA96: 162 | AB96: 118 | AC96: 55 | AD96: 114 | AE96: 192 | AF96: 66 | AG96: 93 | AH96: 175 | AI96: 78 | AJ96: 26 | AK96: 178 | AL96: 114 | AM96: 132 | AN96: 96
A97: 80 | B97: VOSGES | C97: 57 | D97: EPINAL | E97: 588716 | F97: XERTIGNY | G97: 2.9 | H97: 88 | I97: 131 | J97: 151 | K97: 55 | L97: 201 | M97: 134 | N97: 28 | O97: 53 | P97: 20 | Q97: 32 | R97: 106 | S97: 224 | T97: 197 | U97: 276 | V97: 168 | W97: 113 | X97: 107 | Y97: 110 | Z97: 77 | AA97: 121 | AB97: 105 | AC97: 199 | AD97: 84 | AE97: 68 | AF97: 126 | AG97: 224 | AH97: 271 | AI97: 212 | AJ97: 41 | AK97: 154 | AL97: 80 | AM97: 78 | AN97: 89
A98: 30 | B98: MARNE-ARDENNES | C98: 11 | D98: REIMS | E98: 551341 | F98: REIMS JEAN JAURES | G98: 3.9 | H98: 89 | I98: 80 | J98: 31 | K98: 128 | L98: 74 | M98: 280 | N98: 225 | O98: 107 | P98: 233 | Q98: 261 | R98: 202 | S98: 71 | T98: 42 | U98: 247 | V98: 173 | W98: 34 | X98: 78 | Y98: 104 | Z98: 31 | AA98: 25 | AB98: 27 | AC98: 111 | AD98: 92 | AE98: 84 | AF98: 117 | AG98: 39 | AH98: 57 | AI98: 24 | AJ98: 126 | AK98: 56 | AL98: 150 | AM98: 140 | AN98: 159
A99: 160 | B99: MOSELLE | C99: 44 | D99: MOSELLE NORD | E99: 557307 | F99: FONTOY | G99: 3.0 | H99: 90 | I99: 129 | J99: 18 | K99: 212 | L99: 122 | M99: 241 | N99: 82 | O99: 92 | P99: 109 | Q99: 118 | R99: 48 | S99: 67 | T99: 162 | U99: 130 | V99: 19 | W99: 73 | X99: 17 | Y99: 42 | Z99: 116 | AA99: 156 | AB99: 220 | AC99: 199 | AD99: 201 | AE99: 139 | AF99: 224 | AG99: 69 | AH99: 115 | AI99: 237 | AJ99: 107 | AK99: 1 | AL99: 96 | AM99: 132 | AN99: 32
A100: 80 | B100: VOSGES | C100: 57 | D100: EPINAL | E100: 488291 | F100: EPINAL AVRINSART | G100: 2.0 | H100: 91 | I100: 34 | J100: 29 | K100: 102 | L100: 39 | M100: 258 | N100: 217 | O100: 191 | P100: 99 | Q100: 104 | R100: 279 | S100: 181 | T100: 243 | U100: 277 | V100: 37 | W100: 184 | X100: 74 | Y100: 81 | Z100: 183 | AA100: 249 | AB100: 189 | AC100: 199 | AD100: 75 | AE100: 120 | AF100: 62 | AG100: 168 | AH100: 142 | AI100: 130 | AJ100: 251 | AK100: 171 | AL100: 56 | AM100: 87 | AN100: 11
A101: 262 | B101: BAS-RHIN | C101: 5060 | D101: HAGUENAU | E101: 4071 | F101: WISSEMBOURG | G101: 8.4 | H101: 92 | I101: 172 | J101: 141 | K101: 206 | L101: 125 | M101: 86 | N101: 204 | O101: 170 | P101: 220 | Q101: 181 | R101: 164 | S101: 144 | T101: 154 | U101: 124 | V101: 130 | W101: 218 | X101: 187 | Y101: 204 | Z101: 211 | AA101: 204 | AB101: 211 | AC101: 92 | AD101: 89 | AE101: 91 | AF101: 106 | AG101: 114 | AH101: 200 | AI101: 202 | AJ101: 27 | AK101: 68 | AL101: 15 | AM101: 13 | AN101: 92
A102: 110 | B102: MEURTHE ET MOSELLE MEUSE | C102: 26 | D102: NANCY | E102: 554486 | F102: NANCY POINT CENTRAL | G102: 4.8 | H102: 93 | I102: 29 | J102: 188 | K102: 18 | L102: 50 | M102: 134 | N102: 145 | O102: 243 | P102: 186 | Q102: 145 | R102: 45 | S102: 104 | T102: 120 | U102: 171 | V102: 71 | W102: 167 | X102: 150 | Y102: 241 | Z102: 173 | AA102: 79 | AB102: 131 | AC102: 199 | AD102: 214 | AE102: 101 | AF102: 266 | AG102: 65 | AH102: 92 | AI102: 57 | AJ102: 190 | AK102: 50 | AL102: 78 | AM102: 59 | AN102: 141
